Workbook

Sheet codes
A1: progress codes
A2: a | B2: first compilation: copy values from the original food composition table
A3: b | B3: second compilation: completion of values but not complete
A4: c | B4: compilation completed: all first priority nutrients are completed
A5: d | B5: values rechecked and ready for printing
A7: Food types
A8: R | B8: Recipe
A9: F | B9: Food taken as such from FCT
A10: C | B10: Calculated based on a raw food
A12: tr | B12: trace
A14: Source types
A15: E | B15: Value is imputed, estimated, or guessed
A16: A | B16: Adapted from source food
A17: S | B17: According to standards
A18: Z | B18: Presumed zero
A19: C | B19: calculated
A20: A | B20: Analyzed
A22: Formula to calculate 100g cooked dish based on 100g edible raw food
A23: NV(cooked) = NV(raw) x 1/YF x RF
A24: NV | B24: Nutrient value
A25: YF | B25: yield factor
A26: RF | B26: retention factor

Sheet recipes
A1: code | C1: progress | D1: quantity of ingredient in g | F1: foodname | G1: LONG FOODNAME | H1: scientific name | I1: EDIBLE | J1: ENERC-kJ | K1: WATER-g | L1: NT-g | M1: PROTCNT-g | N1: PROPLA-g | O1: PROANI-g | P1: CHOL--g | Q1: FAT-g | R1: FATCE-g | S1: FASAT-g | T1: FAMS-g | U1: FAPU-g | V1: FATRN-g | W1: CHOAVLDF-g | X1: CHOCDF-g | Y1: CHOAVLM-g | Z1: STARCH-g | AA1: SUGAR-g | AB1: STARCHM-g | AC1: SUGARM-g | AD1: ADSUGAR-g | AE1: FIBTG-g | AF1: FIBTS-g | AG1: PSACNS-g | AH1: FIBC-g | AI1: ALC-g | AJ1: ASH-g | AK1: CA-mg | AL1: FE-mg | AM1: MG-mg | AN1: P-mg | AO1: K-mg | AP1: NA-mg | AQ1: ZN-mg | AR1: CU-mg | AS1: SE-mcg | AT1: MN-mcg | AU1: VITA_12-mcg | AV1: VITA_6-mcg | AW1: RETOL-mcg | AX1: CARTBEQ-mcg | AY1: CAROTA-mcg | AZ1: CAROTB-mcg | BA1: CRYPX-mcg | BB1: CARTG-mcg | BC1: LYCPN-mcg | BD1: LUTNZEA-mcg | BE1: VITD-mcg | BF1: VITDbr-mcg | BG1: VITD--mcg | BH1: VITE-mg | BI1: TOCPHA-mg | BJ1: THIA-mg | BK1: RIBF-mg | BL1: NIA-mg | BM1: NIAEQ-mg | BN1: VITB6-mg | BO1: FOL-mcg | BP1: VITB12-mcg | BQ1: VITC-mg | BR1: ASCL-mg | BS1: DEN | BT1: XN | BU1: XFA | BV1: yield | BW1: FCT SOURCE | BX1: FDNUMBER SOURCE | BZ1: comments | CA1: SUM GB | CB1: sum of proximates | CC1: CHOAVLDF-g | CD1: STARCH-g | CE1: SUGAR-g | CF1: VITA_12-mcg | CG1: VITD-mcg | CH1: VITC-mg | CI1: Recipe source
A3: help lines for recipe (to calculate nutrient values corresponding to weight of ingredient as in recipe)
A4: 130007 | D4: 100 | F4: Water, tab | I4: 1 | J4: 0 | K4: 99.9 | M4: 0 | P4: 0 | Q4: 0 | R4: 0 | S4: 0 | T4: 0 | U4: 0 | W4: 0 | X4: 0 | Z4: 0 | AA4: 0 | AD4: 0 | AE4: 0 | AF4: 0 | AG4: 0 | AH4: 0 | AI4: 0 | AJ4: 0.1 | AK4: 2 | AL4: 0 | AM4: 1 | AN4: 0 | AO4: 0 | AP4: 2 | AQ4: 0 | AR4: 0.007 | AS4: 0 | AT4: 0 | AV4: 0 | AW4: 0 | AX4: 0 | AY4: 0 | AZ4: 0 | BA4: 0 | BB4: 0 | BE4: 0 | BG4: 0 | BH4: 0 | BI4: 0 | BJ4: 0 | BK4: 0 | BL4: 0 | BM4: 0 | BN4: 0 | BO4: 0 | BP4: 0 | BQ4: 0 | BR4: 0 | BS4: 1 | BW4: US18 | BX4: 14429 | CC4: =100-(K4+M4+Q4+AJ4+AE4+AI4) -> 0
A5: 130007 | D5: 1000 | F5: Water, tab | J5: =J4*10 -> 0 | K5: =K4*10 -> 999 | M5: 0 | N5: 0 | O5: 0 | P5: 0 | Q5: 0 | R5: 0 | S5: 0 | T5: 0 | U5: 0 | V5: 0 | W5: 0 | X5: 0 | Y5: 0 | Z5: 0 | AA5: 0 | AB5: 0 | AC5: 0 | AD5: 0 | AE5: 0 | AF5: 0 | AG5: 0 | AH5: 0 | AI5: 0 | AJ5: 1 | AK5: 20 | AL5: 0 | AM5: 10 | AN5: 0 | AO5: 0 | AP5: 20 | AQ5: 0 | AR5: 0.07 | AS5: 0 | AT5: 0 | AU5: 0 | AV5: 0 | AW5: 0 | AX5: 0 | AY5: 0 | AZ5: 0 | BA5: 0 | BB5: 0 | BC5: 0 | BD5: 0 | BE5: 0 | BF5: 0 | BG5: 0 | BH5: 0 | BI5: 0 | BJ5: 0 | BK5: 0 | BL5: 0 | BM5: 0 | BN5: 0 | BO5: 0 | BP5: =BP4*10 -> 0 | BQ5: =BQ4*10 -> 0 | BR5: =BR4*10 -> 0 | CC5: =CC4*10 -> 0
A6: 090007 | D6: 100 | F6: Sunflower oil | G6: Sunflower oil, 100% refined oil | H6: Helianthus annus | I6: 1 | J6: 900 | K6: 0 | M6: 0 | N6: 0 | O6: 0 | P6: 0 | Q6: 100 | S6: 12.65 | T6: 18.57 | U6: 64.22 | W6: 0 | Z6: 0 | AE6: 0 | AK6: 0 | AL6: 0 | AM6: 0 | AN6: 0 | AO6: 0 | AP6: 0 | AQ6: 0 | AR6: 0 | AV6: 3 | BG6: 0 | BH6: 39.22 | BJ6: 0 | BK6: 0 | BL6: 0 | BN6: 0 | BO6: 0 | BP6: 0 | BW6: SA91 | BX6: 6536 | CC6: =100-(K6+M6+Q6+AJ6+AE6+AI6) -> 0
A7: 090007 | D7: 10 | F7: Sunflower oil | J7: =J6*0.1 -> 90 | K7: =K6*0.1 -> 0 | M7: 0 | N7: 0 | O7: 0 | P7: 0 | Q7: 10 | R7: 0 | S7: 1.265 | T7: 1.857 | U7: 6.422 | V7: 0 | W7: 0 | X7: 0 | Y7: 0 | Z7: 0 | AA7: 0 | AB7: 0 | AC7: 0 | AD7: 0 | AE7: 0 | AF7: 0 | AG7: 0 | AH7: 0 | AI7: 0 | AJ7: 0 | AK7: 0 | AL7: 0 | AM7: 0 | AN7: 0 | AO7: 0 | AP7: 0 | AQ7: 0 | AR7: 0 | AS7: 0 | AT7: 0 | AU7: 0 | AV7: 0.3 | AW7: 0 | AX7: 0 | AY7: 0 | AZ7: 0 | BA7: 0 | BB7: 0 | BC7: 0 | BD7: 0 | BE7: 0 | BF7: 0 | BG7: 0 | BH7: 3.922 | BI7: 0 | BJ7: 0 | BK7: 0 | BL7: 0 | BM7: 0 | BN7: 0 | BO7: 0 | BP7: =BP6*0.1 -> 0 | BQ7: =BQ6*0.1 -> 0 | BR7: =BR6*0.1 -> 0 | CC7: =CC6*0.1 -> 0
A9: 01 CEREAL AND CEREAL PRODUCTS
A10: retention factors boiling | J10: 1 | K10: 1 | L10: 1 | M10: 1 | N10: 1 | O10: 1 | P10: 1 | Q10: 1 | R10: 1 | S10: 1 | T10: 1 | U10: 1 | V10: 1 | W10: 1 | X10: 1 | Y10: 1 | Z10: 1 | AA10: 1 | AB10: 1 | AC10: 1 | AD10: 1 | AE10: 1 | AF10: 1 | AG10: 1 | AH10: 1 | AI10: 1 | AJ10: 1 | AK10: 1 | AL10: 1 | AM10: 1 | AN10: 1 | AO10: 1 | AP10: 1 | AQ10: 1 | AR10: 1 | AS10: 1 | AT10: 1 | AU10: 1 | AV10: 1 | AW10: 1 | AX10: 1 | AY10: 1 | AZ10: 1 | BA10: 1 | BB10: 1 | BC10: 1 | BD10: 1 | BE10: 1 | BF10: 1 | BG10: 1 | BH10: 1 | BI10: 1 | BJ10: 0.6 | BK10: 0.6 | BL10: 0.6 | BM10: 0.6 | BN10: 0.6 | BO10: 0.5 | BP10: 1 | BQ10: 1 | BR10: 1
A11: retention factors baking | J11: 1 | K11: 1 | L11: 1 | M11: 1 | N11: 1 | O11: 1 | P11: 1 | Q11: 1 | R11: 1 | S11: 1 | T11: 1 | U11: 1 | V11: 1 | W11: 1 | X11: 1 | Y11: 1 | Z11: 1 | AA11: 1 | AB11: 1 | AC11: 1 | AD11: 1 | AE11: 1 | AF11: 1 | AG11: 1 | AH11: 1 | AI11: 1 | AJ11: 1 | AK11: 1 | AL11: 1 | AM11: 1 | AN11: 1 | AO11: 1 | AP11: 1 | AQ11: 1 | AR11: 1 | AS11: 1 | AT11: 1 | AU11: 1 | AV11: 1 | AW11: 1 | AX11: 1 | AY11: 1 | AZ11: 1 | BA11: 1 | BB11: 1 | BC11: 1 | BD11: 1 | BE11: 1 | BF11: 1 | BG11: 1 | BH11: 1 | BI11: 1 | BJ11: 0.85 | BK11: 0.85 | BL11: 0.95 | BM11: 0.95 | BN11: 0.75 | BO11: 0.5 | BP11: 1 | BQ11: 1 | BR11: 1
A12: 011001 | F12: Maize, sorghum and wheat grains, boiled (Likhobe) | J12: =(M12*17)+(Q12*37)+(W12*17)+(AI12*29)+(AE12*8) -> 471.4695817 | K12: 73.24809886 | L12: =+L33 -> 0.4805418436 | M12: =+M33 -> 2.932509506 | N12: =+N33 -> 2.932509506 | O12: =+O33 -> 0 | P12: 0 | Q12: 1.821292776 | S12: 0.241539924 | T12: 0.4047528517 | U12: 0.9874524715 | W12: 19.52186312 | Z12: 5.826045627 | AA12: 0.03897338403 | AE12: 2.794676806 | AJ12: 1.841254753 | AK12: 25.23764259 | AL12: 1.009980989 | AM12: 33.53612167 | AN12: 97.05798479 | AO12: 104.3203422 | AP12: 207.6045627 | AQ12: 0.4691064639 | AR12: 0.1287072243 | AS12: 0 | AT12: 66.95731939 | AU12: 0 | AV12: 0.02851711027 | AW12: 0 | AX12: 0 | BE12: 0 | BH12: 0.5923954364 | BJ12: 0.06450570342 | BK12: 0.02326996198 | BL12: 0.5661787072 | BN12: 0.03262357414 | BO12: 3.517110266 | BP12: 0 | BQ12: 0 | CB12: =CC12+K12+M12+Q12+AE12+AJ12 -> 100 | CC12: =100-(K12+M12+Q12+AJ12+AE12+AI12) -> 17.3621673 | CI12: Researched
A13: 130007 | D13: 1000 | F13: Water, tab | J13: 0 | K13: 99.9 | L13: 0 | M13: 0 | N13: 0 | O13: 0 | P13: 0 | Q13: 0 | R13: 0 | S13: 0 | T13: 0 | U13: 0 | V13: 0 | W13: 0 | X13: 0 | Y13: 0 | Z13: 0 | AA13: 0 | AB13: 0 | AC13: 0 | AD13: 0 | AE13: 0 | AF13: 0 | AG13: 0 | AH13: 0 | AJ13: 1 | AK13: 20 | AL13: 0 | AM13: 10 | AN13: 0 | AO13: 0 | AP13: 20 | AQ13: 0 | AR13: 0.07 | AS13: 0 | AT13: 0 | AU13: 0 | AV13: 0 | AW13: 0 | AX13: 0 | AY13: 0 | AZ13: 0 | BA13: 0 | BB13: 0 | BC13: 0 | BD13: 0 | BE13: 0 | BF13: 0 | BG13: 0 | BH13: 0 | BI13: 0 | BJ13: 0 | BK13: 0 | BL13: 0 | BM13: 0 | BN13: 0 | BO13: 0 | BP13: 0 | BQ13: 0 | BT13: 6.25 | BW13: US18 | BX13: 14429 | CC13: 0
A14: 011007 | D14: 100 | F14: Maize, whole grain, white, dried, raw | H14: Zea mays | I14: 1 | J14: =((M14*17)+(Q14*37)+(CC14*17)+(AI14*29)+(AE14*8))*D14/100 -> 1450.39 | K14: 13 | L14: 1.472 | M14: 9.2 | N14: 9.2 | O14: 0 | P14: 0 | Q14: 4.3 | R14: =SUM(S14:V14) -> 3.7 | S14: 0.53 | T14: 1.23 | U14: 1.94 | V14: 0 | W14: 75.3 | X14: =100-K14-M14-Q14 -> 73.5 | AA14: 0 | AD14: 0 | AE14: 10.6 | AJ14: 1.13 | AK14: 10 | AL14: 3 | AM14: 123 | AN14: 241 | AO14: 346 | AP14: 11 | AQ14: 2.3 | AR14: 0.2 | AS14: 0 | AT14: 700 | AU14: 0 | AV14: 0 | AW14: 0 | BE14: 0 | BH14: 1.3 | BJ14: 0.5 | BK14: 0.12 | BL14: 2.2 | BN14: 0.3 | BO14: 33 | BP14: 0 | BQ14: 0 | BT14: 6.25 | BW14: SA91 | BX14: 4073 | BY14: 3271 | CB14: =CC14+K14+M14+Q14+AE14+AJ14 -> 100 | CC14: =100-(K14+M14+Q14+AJ14+AE14+AI14) -> 61.77
A15: 011037 | D15: 100 | F15: Wheat, whole grain, raw | H15: Triticum aestivum | I15: 1 | J15: =((M15*17)+(Q15*37)+(CC15*17)+(AI15*29)+(AE15*8))*D15/100 -> 1383.25 | K15: 12.17 | L15: 1.775300195 | M15: 10.35 | N15: 10.35 | O15: 0 | P15: 0 | Q15: 1.56 | S15: 0.289 | T15: 0.178 | U15: 0.656 | W15: =X15-AE15 -> 61.74 | X15: 74.24 | Z15: 61.29 | AA15: 0.41 | AE15: 12.5 | AJ15: 1.68 | AK15: 27 | AL15: 3.21 | AM15: 126 | AN15: 493 | AO15: 397 | AP15: 2 | AQ15: 2.63 | AR15: 0.45 | AT15: 4.391 | AU15: 0 | AW15: 0 | BE15: 0 | BH15: 1.00999999 | BJ15: 0.394 | BK15: 0.096 | BL15: 4.8 | BN15: 0.272 | BO15: 41 | BP15: 0 | BQ15: 0 | BT15: 5.829999924 | BW15: US18 | BX15: 20073 | CB15: =CC15+K15+M15+Q15+AE15+AJ15 -> 100 | CC15: =100-(K15+M15+Q15+AJ15+AE15+AI15) -> 61.74
A16: 011030 | D16: 100 | F16: Sorghum, whole grain, raw | H16: Sorghum bicolor | I16: 1 | J16: =((M16*17)+(Q16*37)+(CC16*17)+(AI16*29)+(AE16*8))*D16/100 -> 1526.21 | K16: 9.2 | L16: 1.808 | M16: 11.3 | N16: 11.3 | O16: 0 | P16: 0 | Q16: 3.3 | S16: 0.457 | T16: 0.993 | U16: 1.37 | W16: =X16-AE16 -> 68.33 | X16: 74.63 | AE16: 6.3 | AJ16: 1.57 | AK16: 28 | AL16: 4.4 | AN16: 287 | AO16: 350 | AP16: 6 | AU16: 0 | AW16: 0 | BE16: 0 | BH16: tr | BJ16: 0.237 | BK16: 0.142 | BL16: 2.927 | BP16: 0 | BQ16: 0 | BT16: 6.25 | BW16: US18 | BX16: 20067 | CB16: =CC16+K16+M16+Q16+AE16+AJ16 -> 100 | CC16: =100-(K16+M16+Q16+AJ16+AE16+AI16) -> 68.33
A17: 090007 | D17: 10 | F17: Sunflower oil | I17: 1 | J17: =((M17*17)+(Q17*37)+(CC17*17)+(AI17*29)+(AE17*8))*D17/100 -> 370 | K17: 0 | L17: tr | M17: 0 | N17: 0 | O17: 0 | P17: 0 | Q17: 100 | S17: 12.65 | T17: 18.57 | U17: 64.22 | W17: 0 | Z17: 0 | AE17: 0 | AK17: 0 | AL17: 0 | AM17: 0 | AN17: 0 | AO17: 0 | AP17: 0 | AQ17: 0 | AR17: 0 | AV17: 3 | BG17: 0 | BH17: 39.22 | BJ17: 0 | BK17: 0 | BL17: 0 | BN17: 0 | BO17: 0 | BP17: 0 | BT17: 6.25 | CC17: 0
A18: 150005 | D18: 5 | F18: Salt, iodated | I18: 1 | J18: 0 | K18: 0.2 | L18: 0 | M18: 0 | N18: 0 | O18: 0 | P18: 0 | Q18: 0 | S18: 0 | T18: 0 | U18: 0 | V18: 0 | W18: 0 | Y18: 0 | AB18: 0 | AC18: 0 | AG18: 0 | AJ18: 99.8 | AK18: 10 | AL18: 0.3 | AM18: 76 | AN18: 1 | AO18: 89 | AP18: 39300 | AQ18: 0.1 | AR18: 0.08 | AT18: tr | AW18: 0 | AX18: 0 | BF18: 0 | BH18: 0 | BJ18: 0 | BK18: 1 | BL18: 0 | BN18: 0 | BO18: 0 | BP18: 0 | BQ18: 0 | BT18: 6.25 | BW18: GB6 | BX18: 1226 | CB18: 100 | CC18: 0
D19: =SUM(D13:D18) -> 1315 | F19: Sum of weight and NV of raw ingredients (a) | J19: =SUM(J13:J18) -> 4729.85 | K19: =SUM(K13:K18) -> 134.47 | L19: 5.055300195 | M19: 30.85 | N19: 30.85 | O19: 0 | P19: 0 | Q19: 109.16 | R19: 3.7 | S19: 13.926 | T19: 20.971 | U19: 68.186 | V19: 0 | W19: 205.37 | X19: 222.37 | Y19: 0 | Z19: 61.29 | AA19: 0 | AB19: 0 | AC19: 0 | AD19: 0 | AE19: 29.4 | AF19: 0 | AG19: 0 | AH19: 0 | AJ19: 105.18 | AK19: 95 | AL19: 10.91 | AM19: 335 | AN19: 1022 | AO19: 1182 | AP19: 39339 | AQ19: 5.03 | AR19: 0.8 | AS19: 0 | AT19: 704.391 | AU19: 0 | AV19: 3 | AW19: 0 | AX19: 0 | AY19: 0 | AZ19: 0 | BA19: 0 | BB19: 0 | BC19: 0 | BD19: 0 | BE19: 0 | BF19: 0 | BG19: 0 | BH19: 41.52999999 | BI19: 0 | BJ19: 1.131 | BK19: 1.358 | BL19: 9.927 | BM19: 0 | BN19: 0.572 | BO19: 74 | BP19: =SUM(BP13:BP18) -> 0 | BQ19: =SUM(BQ13:BQ18) -> 0
D20: =D19*D21 -> 1052 | F20: Cooked weight (b): measurment or estimate (b) = (a) x (c) | K20: =K19-(D19-D20) -> -128.53
D21: 0.8 | F21: Yield factor (c) =1- (a-b)/a or estimated from similar recipe
F22: NV of 100g cooked dish incl. retention factors(RF): (d) = NV(a)/b x 100 x RF | J22: =J19/$D$20*100*J10 -> 449.6055133 | K22: RUTH VALUES | M22: =M19/$D$20*100*M10 -> 2.932509506 | N22: 2.932509506 | O22: 0 | P22: 0 | Q22: 10.37642586 | R22: 0.3517110266 | S22: 1.323764259 | T22: 1.993441065 | U22: 6.481558935 | V22: 0 | W22: 19.52186312 | X22: 21.1378327 | Y22: 0 | Z22: 5.826045627 | AA22: 0 | AB22: 0 | AC22: 0 | AD22: 0 | AE22: 2.794676806 | AF22: 0 | AG22: 0 | AH22: 0 | AJ22: =AJ19/$D$20*100*AJ10 -> 9.998098859 | AK22: 9.030418251 | AL22: 1.037072243 | AM22: 31.84410646 | AN22: 97.14828897 | AO22: 112.3574144 | AP22: 3739.448669 | AQ22: 0.4781368821 | AR22: 0.07604562738 | AS22: 0 | AT22: 66.95731939 | AU22: 0 | AV22: 0.2851711027 | AW22: 0 | AX22: 0 | AY22: 0 | AZ22: 0 | BA22: 0 | BB22: 0 | BC22: 0 | BD22: 0 | BE22: 0 | BF22: 0 | BG22: 0 | BH22: 3.94771863 | BI22: 0 | BJ22: 0.06450570342 | BK22: 0.07745247148 | BL22: 0.5661787072 | BM22: 0 | BN22: 0.03262357414 | BO22: 3.517110266 | BP22: 0 | BQ22: 0 | CC22: =CC19/$D$20*100*CC10 -> 0
F23: Water of 100g cooked dish (e) = NV(a)-(a-b)/b x 100 | K23: =(K19-(D19-D20))/D20*100 -> -12.21768061
F25: Water, tab | K25: =+K13*$D$13/100 -> 999 | L25: =+L13*$D$13/100 -> 0 | M25: =+M13*$D$13/100 -> 0 | N25: =+N13*$D$13/100 -> 0 | O25: 0 | P25: 0 | Q25: 0 | R25: 0 | S25: 0 | T25: 0 | U25: 0 | V25: 0 | W25: 0 | X25: 0 | Y25: 0 | Z25: 0 | AA25: 0 | AB25: 0 | AC25: 0 | AD25: 0 | AE25: 0 | AF25: 0 | AG25: 0 | AH25: 0 | AJ25: 10 | AK25: 200 | AL25: 0 | AM25: 100 | AN25: 0 | AO25: 0 | AP25: 200 | AQ25: 0 | AR25: 0.7 | AS25: 0 | AT25: 0 | AU25: 0 | AV25: 0 | AW25: 0 | AX25: 0 | AY25: 0 | AZ25: 0 | BA25: 0 | BB25: 0 | BC25: 0 | BD25: 0 | BE25: 0 | BF25: 0 | BG25: 0 | BH25: 0 | BI25: 0 | BJ25: 0 | BK25: 0 | BL25: 0 | BM25: 0 | BN25: 0 | BO25: 0 | BP25: 0 | BQ25: 0 | CC25: 0
F26: Maize, whole grain, white, dried, raw | K26: =+K14*$D$14/100 -> 13 | L26: =+L14*$D$14/100 -> 1.472 | M26: =+M14*$D$14/100 -> 9.2 | N26: =+N14*$D$14/100 -> 9.2 | O26: 0 | P26: 0 | Q26: 4.3 | R26: 3.7 | S26: 0.53 | T26: 1.23 | U26: 1.94 | V26: 0 | W26: 75.3 | X26: 73.5 | Y26: 0 | Z26: 0 | AA26: 0 | AB26: 0 | AC26: 0 | AD26: 0 | AE26: 10.6 | AF26: 0 | AG26: 0 | AH26: 0 | AJ26: 1.13 | AK26: 10 | AL26: 3 | AM26: 123 | AN26: 241 | AO26: 346 | AP26: 11 | AQ26: 2.3 | AR26: 0.2 | AS26: 0 | AT26: 700 | AU26: 0 | AV26: 0 | AW26: 0 | AX26: 0 | AY26: 0 | AZ26: 0 | BA26: 0 | BB26: 0 | BC26: 0 | BD26: 0 | BE26: 0 | BF26: 0 | BG26: 0 | BH26: 1.3 | BI26: 0 | BJ26: 0.5 | BK26: 0.12 | BL26: 2.2 | BM26: 0 | BN26: 0.3 | BO26: 33 | BP26: 0 | BQ26: 0 | CB26: =+CB14*$D$185/100 -> 100 | CC26: =100-(K26+M26+Q26+AJ26+AE26+AI26) -> 61.77
F27: Wheat, whole grain, raw | K27: =+K15*$D$15/100 -> 12.17 | L27: =+L15*$D$15/100 -> 1.775300195 | M27: =+M15*$D$15/100 -> 10.35 | N27: =+N15*$D$15/100 -> 10.35 | O27: 0 | P27: 0 | Q27: 1.56 | R27: 0 | S27: 0.289 | T27: 0.178 | U27: 0.656 | V27: 0 | W27: 61.74 | X27: 74.24 | Y27: 0 | Z27: 61.29 | AA27: 0.41 | AB27: 0 | AC27: 0 | AD27: 0 | AE27: 12.5 | AF27: 0 | AG27: 0 | AH27: 0 | AJ27: 1.68 | AK27: 27 | AL27: 3.21 | AM27: 126 | AN27: 493 | AO27: 397 | AP27: 2 | AQ27: 2.63 | AR27: 0.45 | AS27: 0 | AT27: 4.391 | AU27: 0 | AV27: 0 | AW27: 0 | AX27: 0 | AY27: 0 | AZ27: 0 | BA27: 0 | BB27: 0 | BC27: 0 | BD27: 0 | BE27: 0 | BF27: 0 | BG27: 0 | BH27: 1.00999999 | BI27: 0 | BJ27: 0.394 | BK27: 0.096 | BL27: 4.8 | BM27: 0 | BN27: 0.272 | BO27: 41 | BP27: 0 | BQ27: 0 | CB27: =+CB15*$D$186/100 -> 100 | CC27: =100-(K27+M27+Q27+AJ27+AE27+AI27) -> 61.74
F28: Sorghum, whole grain, raw | K28: =+K16*$D$16/100 -> 9.2 | L28: =+L16*$D$16/100 -> 1.808 | M28: =+M16*$D$16/100 -> 11.3 | N28: =+N16*$D$16/100 -> 11.3 | O28: 0 | P28: 0 | Q28: 3.3 | R28: 0 | S28: 0.457 | T28: 0.993 | U28: 1.37 | V28: 0 | W28: 68.33 | X28: 74.63 | Y28: 0 | Z28: 0 | AA28: 0 | AB28: 0 | AC28: 0 | AD28: 0 | AE28: 6.3 | AF28: 0 | AG28: 0 | AH28: 0 | AJ28: 1.57 | AK28: 28 | AL28: 4.4 | AM28: 0 | AN28: 287 | AO28: 350 | AP28: 6 | AQ28: 0 | AR28: 0 | AS28: 0 | AT28: 0 | AU28: 0 | AV28: 0 | AW28: 0 | AX28: 0 | AY28: 0 | AZ28: 0 | BA28: 0 | BB28: 0 | BC28: 0 | BD28: 0 | BE28: 0 | BF28: 0 | BG28: 0 | BH28: tr | BI28: 0 | BJ28: 0.237 | BK28: 0.142 | BL28: 2.927 | BM28: 0 | BP28: 0 | BQ28: 0 | CB28: =+CB16*$D$187/100 -> 100 | CC28: =100-(K28+M28+Q28+AJ28+AE28+AI28) -> 68.33
F29: Sunflower oil | K29: =+K17*$D$17/100 -> 0 | L29: tr | M29: =+M17*$D$17/100 -> 0 | N29: =+N17*$D$17/100 -> 0 | O29: 0 | P29: 0 | Q29: 10 | R29: 0 | S29: 1.265 | T29: 1.857 | U29: 6.422 | V29: 0 | W29: 0 | X29: 0 | Y29: 0 | Z29: 0 | AA29: 0 | AB29: 0 | AC29: 0 | AD29: 0 | AE29: 0 | AF29: 0 | AG29: 0 | AH29: 0 | AJ29: 0 | AK29: 0 | AL29: 0 | AM29: 0 | AN29: 0 | AO29: 0 | AP29: 0 | AQ29: 0 | AR29: 0 | AS29: 0 | AT29: 0 | AU29: 0 | AV29: 0.3 | AW29: 0 | AX29: 0 | AY29: 0 | AZ29: 0 | BA29: 0 | BB29: 0 | BC29: 0 | BD29: 0 | BE29: 0 | BF29: 0 | BG29: 0 | BH29: 3.922 | BI29: 0 | BJ29: 0 | BK29: 0 | BL29: 0 | BM29: 0 | BN29: 0 | BO29: 0 | BP29: 0 | BQ29: 0 | CC29: 0
F30: Salt, iodated | K30: =+K18*$D$18/100 -> 0.01 | L30: =+L18*$D$18/100 -> 0 | M30: =+M18*$D$18/100 -> 0 | N30: =+N18*$D$18/100 -> 0 | O30: 0 | P30: 0 | Q30: 0 | R30: 0 | S30: 0 | T30: 0 | U30: 0 | V30: 0 | W30: 0 | X30: 0 | Y30: 0 | Z30: 0 | AA30: 0 | AB30: 0 | AC30: 0 | AD30: 0 | AE30: 0 | AF30: 0 | AG30: 0 | AH30: 0 | AJ30: 4.99 | AK30: 0.5 | AL30: 0.015 | AM30: 3.8 | AN30: 0.05 | AO30: 4.45 | AP30: 1965 | AQ30: 0.005 | AR30: 0.004 | AS30: 0 | AT30: tr | AU30: 0 | AV30: 0 | AW30: 0 | AX30: 0 | AY30: 0 | AZ30: 0 | BA30: 0 | BB30: 0 | BC30: 0 | BD30: 0 | BE30: 0 | BF30: 0 | BG30: 0 | BH30: 0 | BI30: 0 | BJ30: 0 | BK30: 0.05 | BL30: 0 | BM30: 0 | BN30: 0 | BO30: 0 | BP30: 0 | BQ30: 0 | CC30: 0
K31: =SUM(K25:K30) -> 1033.38 | L31: =SUM(L25:L30) -> 5.055300195 | M31: =SUM(M25:M30) -> 30.85 | N31: =SUM(N25:N30) -> 30.85 | O31: 0 | P31: 0 | Q31: 19.16 | R31: 3.7 | S31: 2.541 | T31: 4.258 | U31: 10.388 | V31: 0 | W31: 205.37 | X31: 222.37 | Y31: 0 | Z31: 61.29 | AA31: 0.41 | AB31: 0 | AC31: 0 | AD31: 0 | AE31: 29.4 | AF31: 0 | AG31: 0 | AH31: 0 | AJ31: 19.37 | AK31: 265.5 | AL31: 10.625 | AM31: 352.8 | AN31: 1021.05 | AO31: 1097.45 | AP31: 2184 | AQ31: 4.935 | AR31: 1.354 | AS31: 0 | AT31: 704.391 | AU31: 0 | AV31: 0.3 | AW31: 0 | AX31: 0 | AY31: 0 | AZ31: 0 | BA31: 0 | BB31: 0 | BC31: 0 | BD31: 0 | BE31: 0 | BF31: 0 | BG31: 0 | BH31: 6.23199999 | BI31: 0 | BJ31: 1.131 | BK31: 0.408 | BL31: 9.927 | BM31: 0 | BN31: 0.572 | BO31: 74 | BP31: 0 | BQ31: 0 | CB31: =SUM(CB26:CB30) -> 300 | CC31: =SUM(CC25:CC30) -> 191.84
K33: =(K31-($D$19-$D$20))/$D$20*100 -> 73.23003802 | L33: =L31/$D$20*100*L10 -> 0.4805418436 | M33: =M31/$D$20*100*M10 -> 2.932509506 | N33: =N31/$D$20*100*N10 -> 2.932509506 | O33: 0 | P33: 0 | Q33: 1.821292776 | R33: 0.3517110266 | S33: 0.241539924 | T33: 0.4047528517 | U33: 0.9874524715 | V33: 0 | W33: 19.52186312 | X33: 21.1378327 | Y33: 0 | Z33: 5.826045627 | AA33: 0.03897338403 | AB33: 0 | AC33: 0 | AD33: 0 | AE33: 2.794676806 | AF33: 0 | AG33: 0 | AH33: 0 | AJ33: 1.841254753 | AK33: 25.23764259 | AL33: 1.009980989 | AM33: 33.53612167 | AN33: 97.05798479 | AO33: 104.3203422 | AP33: 207.6045627 | AQ33: 0.4691064639 | AR33: 0.1287072243 | AS33: 0 | AT33: 66.95731939 | AU33: 0 | AV33: 0.02851711027 | AW33: 0 | AX33: 0 | AY33: 0 | AZ33: 0 | BA33: 0 | BB33: 0 | BC33: 0 | BD33: 0 | BE33: 0 | BF33: 0 | BG33: 0 | BH33: 0.5923954364 | BI33: 0 | BJ33: 0.06450570342 | BK33: 0.02326996198 | BL33: 0.5661787072 | BM33: 0 | BN33: 0.03262357414 | BO33: 3.517110266 | BP33: 0 | BQ33: 0 | CB33: =(CB31)/3 -> 100 | CC33: =+CC31 -> 191.84
A36: 011018 | F36: Hard porridge from white maize meal, boiled (Papa) | J36: =(M36*17)+(Q36*37)+(W36*17)+(AI36*29)+(AE36*8) -> 633.8685015 | K36: =+K49 -> 66.63302752 | L36: =+L49 -> 0.4701834862 | M36: 3.402140673 | N36: 3.402140673 | O36: 0 | P36: 0 | Q36: 0.9556574924 | R36: 0 | S36: 0.126146789 | T36: 0.2981651376 | U36: 0.3631498471 | V36: 0 | W36: 31.19266055 | X36: 28.89908257 | Z36: 0 | AA36: 0 | AD36: 0 | AE36: 1.29969419 | AF36: 0 | AG36: 0 | AH36: 0 | AI36: 0 | AJ36: 0.3394495413 | AK36: 3.73088685 | AL36: 0.2675840979 | AM36: 29.7706422 | AN36: 66.51376147 | AO36: 95.94801223 | AP36: 4.877675841 | AQ36: 0.3440366972 | AR36: 0.04211009174 | AS36: 0 | AT36: 114.6788991 | AU36: 0 | AV36: 0 | AW36: 0 | AX36: 0 | AY36: 0 | AZ36: 0 | BA36: 0 | BB36: 0 | BE36: 0 | BF36: 0 | BG36: 0 | BH36: 0.244648318 | BI36: 0 | BJ36: 0.07339449541 | BK36: 0.009174311927 | BL36: 0.2064220183 | BM36: 0 | BN36: 0.01376146789 | BO36: 3.058103976 | BP36: 0 | BQ36: 0 | BR36: 0 | BW36: Recipe | BX36: =+BX49 ->  | CB36: =+CB49 -> 100 | CC36: 71.6 | CI36: Researched
A37: 130007 | D37: 720 | F37: Water, tab | I37: 1 | J37: 0 | K37: 99.9 | L37: 0 | M37: 0 | P37: 0 | Q37: 0 | R37: 0 | S37: 0 | T37: 0 | U37: 0 | W37: 0 | X37: 0 | Z37: 0 | AA37: 0 | AD37: 0 | AE37: 0 | AF37: 0 | AG37: 0 | AH37: 0 | AI37: 0 | AJ37: 0.1 | AK37: 2 | AL37: 0 | AM37: 1 | AN37: 0 | AO37: 0 | AP37: 2 | AQ37: 0 | AR37: 0.007 | AS37: 0 | AT37: 0 | AV37: 0 | AW37: 0 | AX37: 0 | AY37: 0 | AZ37: 0 | BA37: 0 | BB37: 0 | BE37: 0 | BG37: 0 | BH37: 0 | BI37: 0 | BJ37: 0 | BK37: 0 | BL37: 0 | BM37: 0 | BN37: 0 | BO37: 0 | BP37: 0 | BQ37: 0 | BR37: 0 | BS37: 1 | BT37: 6.25 | BW37: US18 | BX37: 14429 | CB37: =CC37+K37+M37+Q37+AE37+AJ37 -> 100 | CC37: 0
A38: 011006 | D38: 250 | F38: Maize meal, special, white, refined, raw | I38: 1 | J38: =((M38*17)+(Q38*37)+(CC38*17)+(AI38*29)+(AE38*8))*D38/100 -> 3720.5 | K38: 13 | L38: 1.23 | M38: 8.9 | N38: 8.9 | O38: 0 | P38: 0 | Q38: 2.5 | S38: 0.33 | T38: 0.78 | U38: 0.95 | V38: 0 | W38: 81.6 | X38: 75.6 | AA38: 0 | AD38: 0 | AE38: 3.4 | AJ38: 0.6 | AK38: 4 | AL38: 0.7 | AM38: 75 | AN38: 174 | AO38: 251 | AP38: 7 | AQ38: 0.9 | AR38: 0.09 | AS38: 0 | AT38: 300 | AU38: 0 | AV38: 0 | AW38: 0 | BE38: 0 | BH38: 0.64 | BJ38: 0.32 | BK38: 0.04 | BL38: 0.9 | BN38: 0.06 | BO38: 16 | BP38: 0 | BQ38: 0 | BT38: 6.25 | BW38: SA91 | BX38: 4072 | BY38: 3270 | CB38: =CC38+K38+M38+Q38+AE38+AJ38 -> 100 | CC38: =100-(K38+M38+Q38+AJ38+AE38+AI38) -> 71.6
D39: =SUM(D37:D38) -> 970 | F39: Sum of weight and NV of raw ingredients (a) | J39: =SUM(J37:J38) -> 3720.5 | K39: =SUM(K37:K38) -> 112.9 | L39: =SUM(L37:L38) -> 1.23 | M39: =SUM(M37:M38) -> 8.9 | N39: 8.9 | O39: 0 | P39: 0 | Q39: 2.5 | R39: 0 | S39: 0.33 | T39: 0.78 | U39: 0.95 | V39: 0 | W39: 81.6 | X39: 75.6 | Z39: 0 | AA39: 0 | AD39: 0 | AE39: 3.4 | AF39: 0 | AG39: 0 | AH39: 0 | AI39: 0 | AJ39: 0.7 | AK39: 6 | AL39: 0.7 | AM39: 76 | AN39: 174 | AO39: 251 | AP39: 9 | AQ39: 0.9 | AR39: 0.097 | AS39: 0 | AT39: 300 | AU39: 0 | AV39: 0 | AW39: 0 | AX39: 0 | AY39: 0 | AZ39: 0 | BA39: 0 | BB39: 0 | BE39: 0 | BF39: 0 | BG39: 0 | BH39: 0.64 | BI39: 0 | BJ39: 0.32 | BK39: 0.04 | BL39: 0.9 | BM39: 0 | BN39: 0.06 | BO39: 16 | BP39: 0 | BQ39: 0
D40: 654 | F40: Cooked weight (b): measurment or estimate (b) = (a) x (c) | K40: =D39*D41 -> 654
D41: =1-(D39-D40)/D39 -> 0.6742268041 | F41: Yield factor (c) =1- (a-b)/a or estimated from similar recipe | CB41: 100
F42: NV of 100g cooked dish incl. retention factors(RF): (d) = NV(a)/b x 100 x RF | J42: =J39/$D$40*100*K10 -> 568.883792 | L42: =L39/$D$40*100*M10 -> 0.1880733945 | M42: =M47/$D$40*100*N10 -> 3.402140673 | N42: =N39/$D$40*100*O10 -> 1.360856269 | O42: 0 | P42: 0 | Q42: 0.3822629969 | R42: 0 | S42: 0.0504587156 | T42: 0.119266055 | U42: 0.1452599388 | V42: 0 | W42: 12.47706422 | X42: 11.55963303 | Z42: 0 | AA42: 0 | AD42: 0 | AE42: 0.5198776758 | AF42: 0 | AG42: 0 | AH42: 0 | AI42: 0 | AJ42: 0.1070336391 | AK42: 0.9174311927 | AL42: 0.1070336391 | AM42: 11.62079511 | AN42: 26.60550459 | AO42: 38.37920489 | AP42: 1.376146789 | AQ42: 0.1376146789 | AR42: 0.01483180428 | AS42: 0 | AT42: =AT39/$D$40*100*AU10 -> 45.87155963 | AU42: 0 | AV42: 0 | AW42: 0 | AX42: 0 | AY42: 0 | AZ42: 0 | BA42: 0 | BB42: 0 | BE42: 0 | BF42: 0 | BG42: 0 | BH42: 0.09785932722 | BI42: 0 | BJ42: 0.02935779817 | BK42: 0.003669724771 | BL42: 0.08256880734 | BM42: 0 | BN42: 0.004587155963 | BO42: 2.44648318 | BP42: 0 | BQ42: 0 | BR42: 0
F43: Water of 100g cooked dish (e) = NV(a)-(a-b)/b x 100 | K43: =(K39-(D39-D40))/D40*100 -> -31.05504587
F45: Water, tab | K45: =+K37*$D$37/100 -> 719.28 | L45: 0 | M45: 0 | N45: 0 | O45: 0 | P45: 0 | Q45: 0 | R45: 0 | S45: 0 | T45: 0 | U45: 0 | V45: 0 | W45: 0 | X45: 0 | Z45: 0 | AA45: 0 | AD45: 0 | AE45: 0 | AF45: 0 | AG45: 0 | AH45: 0 | AI45: 0 | AJ45: 0.72 | AK45: 14.4 | AL45: 0 | AM45: 7.2 | AN45: 0 | AO45: 0 | AP45: 14.4 | AQ45: =+AQ37*$D$37/100 -> 0 | AR45: 0.0504 | AS45: 0 | AT45: 0 | AU45: 0 | AV45: 0 | AW45: 0 | AX45: 0 | AY45: 0 | AZ45: 0 | BA45: 0 | BB45: 0 | BE45: 0 | BF45: 0 | BG45: 0 | BH45: 0 | BI45: 0 | BJ45: 0 | BK45: 0 | BL45: 0 | BM45: 0 | BN45: 0 | BO45: 0 | BP45: 0 | BQ45: 0 | BR45: 0 | CG45: =+CG37*$D$37/100 -> 0 | CH45: =+CH37*$D$37/100 -> 0
F46: Maize meal, special, white, refined, raw | K46: =+K38*$D$38/100 -> 32.5 | L46: 3.075 | M46: 22.25 | N46: 22.25 | O46: 0 | P46: 0 | Q46: 6.25 | R46: 0 | S46: 0.825 | T46: 1.95 | U46: 2.375 | V46: 0 | W46: 204 | X46: 189 | Z46: 0 | AA46: 0 | AD46: 0 | AE46: 8.5 | AF46: 0 | AG46: 0 | AH46: 0 | AI46: 0 | AJ46: 1.5 | AK46: 10 | AL46: 1.75 | AM46: 187.5 | AN46: 435 | AO46: 627.5 | AP46: 17.5 | AQ46: =+AQ38*$D$38/100 -> 2.25 | AR46: 0.225 | AS46: 0 | AT46: 750 | AU46: 0 | AV46: 0 | AW46: 0 | AX46: 0 | AY46: 0 | AZ46: 0 | BA46: 0 | BB46: 0 | BE46: 0 | BF46: 0 | BG46: 0 | BH46: 1.6 | BI46: 0 | BJ46: 0.8 | BK46: 0.1 | BL46: 2.25 | BM46: 0 | BN46: 0.15 | BO46: 40 | BP46: 0 | BQ46: 0 | CB46: =+CB38 -> 100 | CC46: =+CC38 -> 71.6 | CG46: =+CG38*$D$38/100 -> 0 | CH46: =+CH38*$D$38/100 -> 0
K47: =SUM(K45:K46) -> 751.78 | L47: 3.075 | M47: 22.25 | N47: 22.25 | O47: 0 | P47: 0 | Q47: 6.25 | R47: 0 | S47: 0.825 | T47: 1.95 | U47: 2.375 | V47: 0 | W47: 204 | X47: 189 | Z47: 0 | AA47: 0 | AD47: 0 | AE47: 8.5 | AF47: 0 | AG47: 0 | AH47: 0 | AI47: 0 | AJ47: 2.22 | AK47: 24.4 | AL47: 1.75 | AM47: 194.7 | AN47: 435 | AO47: 627.5 | AP47: 31.9 | AQ47: 2.25 | AR47: 0.2754 | AS47: 0 | AT47: 750 | AU47: 0 | AV47: 0 | AW47: 0 | AX47: 0 | AY47: 0 | AZ47: 0 | BA47: 0 | BB47: 0 | BE47: 0 | BF47: 0 | BG47: 0 | BH47: 1.6 | BI47: 0 | BJ47: 0.8 | BK47: 0.1 | BL47: 2.25 | BM47: 0 | BN47: 0.15 | BO47: 40 | BP47: 0 | BQ47: 0 | BR47: 0 | CB47: =(CB37+CB38) -> 200 | CC47: =(CC37+CC38) -> 71.6 | CG47: =SUM(CG45:CG46) -> 0 | CH47: =SUM(CH45:CH46) -> 0
K49: =(K47-($D$39-$D$40))/$D$40*100 -> 66.63302752 | L49: =L47/$D$40*100*L10 -> 0.4701834862 | M49: 3.402140673 | N49: 3.402140673 | O49: 0 | P49: 0 | Q49: 0.9556574924 | R49: 0 | S49: 0.126146789 | T49: 0.2981651376 | U49: 0.3631498471 | V49: 0 | W49: 31.19266055 | X49: 28.89908257 | Z49: 0 | AA49: 0 | AD49: 0 | AE49: 1.29969419 | AF49: 0 | AG49: 0 | AH49: 0 | AI49: 0 | AJ49: 0.3394495413 | AK49: 3.73088685 | AL49: 0.2675840979 | AM49: 29.7706422 | AN49: 66.51376147 | AO49: 95.94801223 | AP49: 4.877675841 | AQ49: 0.3440366972 | AR49: =AR47/$D$40*100*AR10 -> 0.04211009174 | AS49: 0 | AT49: 114.6788991 | AU49: 0 | AV49: 0 | AW49: 0 | AX49: 0 | AY49: 0 | AZ49: 0 | BA49: 0 | BB49: 0 | BE49: 0 | BF49: 0 | BG49: 0 | BH49: 0.244648318 | BI49: 0 | BJ49: 0.07339449541 | BK49: 0.009174311927 | BL49: 0.2064220183 | BM49: 0 | BN49: 0.01376146789 | BO49: 3.058103976 | BP49: 0 | BQ49: 0 | BR49: 0 | CB49: =CB47/2 -> 100 | CC49: =CC47 -> 71.6 | CG49: =CG47/$D$40*100*CG10 -> 0 | CH49: =CH47/$D$40*100*CH10 -> 0
A52: 011019 | F52: Soft porridge from white maize meal, boiled (Lesheleshele) | J52: =(M52*17)+(Q52*37)+(W52*17)+(AI52*29)+(AE52*8) -> 314.567474 | K52: =+K67 -> 82.74740484 | M52: =+M67 -> 1.23183391 | N52: 1.23183391 | O52: 0 | P52: 0 | Q52: 0.3460207612 | R52: 0 | S52: 0.04567474048 | T52: 0.1079584775 | U52: 0.1314878893 | V52: 0 | W52: 16.29757785 | X52: 10.46366782 | Y52: 0 | Z52: 0 | AA52: 5.003460208 | AD52: 0 | AE52: 0.4705882353 | AF52: 0 | AG52: 0 | AH52: 0 | AI52: 0 | AJ52: 0.2595155709 | AK52: 7.560553633 | AL52: 0.2733564014 | AM52: 12.4567474 | AN52: 25.06920415 | AO52: 52.59515571 | AP52: 5.121107266 | AQ52: 0.124567474 | AR52: 0.02465397924 | AS52: 0 | AT52: 41.52249135 | AU52: 0 | AV52: 0 | AW52: 0 | AX52: 0 | AY52: 0 | AZ52: 0 | BA52: 0 | BB52: 0 | BE52: 0 | BF52: 0 | BG52: 0 | BH52: 0.08858131488 | BI52: 0 | BJ52: 0.02688581315 | BK52: 0.004256055363 | BL52: 0.08096885813 | BM52: 0 | BN52: 0.004982698962 | BO52: 1.107266436 | BP52: 0 | BQ52: 0 | CB52: =+CB67 -> 100 | CC52: =+CC67 -> 168.6 | CI52: Researched
A53: 130007 | D53: 375 | F53: Water, tab | I53: 1 | J53: 0 | K53: 99.9 | M53: 0 | P53: 0 | Q53: 0 | R53: 0 | S53: 0 | T53: 0 | U53: 0 | W53: 0 | X53: 0 | Z53: 0 | AA53: 0 | AD53: 0 | AE53: 0 | AF53: 0 | AG53: 0 | AH53: 0 | AI53: 0 | AJ53: 0.1 | AK53: 2 | AL53: 0 | AM53: 1 | AN53: 0 | AO53: 0 | AP53: 2 | AQ53: 0 | AR53: 0.007 | AS53: 0 | AT53: 0 | AV53: 0 | AW53: 0 | AX53: 0 | AY53: 0 | AZ53: 0 | BA53: 0 | BB53: 0 | BE53: 0 | BG53: 0 | BH53: 0 | BI53: 0 | BJ53: 0 | BK53: 0 | BL53: 0 | BM53: 0 | BN53: 0 | BO53: 0 | BP53: 0 | BQ53: 0 | BR53: 0 | BS53: 1 | BT53: 6.25 | BW53: US18 | BX53: 14429 | CC53: 0
A54: 011006 | D54: 40 | F54: Maize meal, special, white, refined, raw | I54: 1 | J54: =((M54*17)+(Q54*37)+(CC54*17)+(AI54*29)+(AE54*8))*D54/100 -> 595.28 | K54: 13 | M54: 8.9 | N54: 8.9 | O54: 0 | P54: 0 | Q54: 2.5 | S54: 0.33 | T54: 0.78 | U54: 0.95 | V54: 0 | W54: 81.6 | X54: 75.6 | AA54: 0 | AD54: 0 | AE54: 3.4 | AJ54: 0.6 | AK54: 4 | AL54: 0.7 | AM54: 75 | AN54: 174 | AO54: 251 | AP54: 7 | AQ54: 0.9 | AR54: 0.09 | AS54: 0 | AT54: 300 | AU54: 0 | AV54: 0 | AW54: 0 | BE54: 0 | BH54: 0.64 | BJ54: 0.32 | BK54: 0.04 | BL54: 0.9 | BN54: 0.06 | BO54: 16 | BP54: 0 | BQ54: 0 | BT54: 6.25 | BW54: SA91 | BX54: 4072 | BY54: 3270 | CB54: 100 | CC54: 71.6
A55: 110008 | D55: 15 | F55: Sugar, granulated, brown | I55: 1 | J55: =((M55*17)+(Q55*37)+(CC55*17)+(AI55*29)+(AE55*8))*D55/100 -> 247.35 | K55: 2.1 | M55: 0 | N55: 0 | O55: 0 | P55: 0 | Q55: 0 | S55: 0 | T55: 0 | U55: 0 | W55: 96.4 | AA55: 96.4 | AE55: 0 | AJ55: 0.9 | AK55: 85 | AL55: 3.4 | AM55: 15 | AN55: 19 | AO55: 344 | AP55: 30 | AR55: 0.06 | AV55: 0 | BE55: 0 | BH55: 0 | BJ55: 0.01 | BK55: 0.03 | BL55: 0.2 | BN55: 0 | BO55: 0 | BP55: 0 | BQ55: 0 | BT55: 6.25 | BW55: SA91 | BX55: 9032 | CB55: 100 | CC55: 97
D56: =SUM(D53:D55) -> 430 | F56: Sum of weight and NV of raw ingredients (a) | J56: =SUM(J53:J55) -> 842.63 | K56: =SUM(K53:K55) -> 115 | M56: =SUM(M53:M55) -> 8.9 | N56: 8.9 | O56: 0 | P56: 0 | Q56: 2.5 | R56: 0 | S56: 0.33 | T56: 0.78 | U56: 0.95 | V56: 0 | W56: 178 | X56: 75.6 | Y56: 0 | Z56: 0 | AA56: 96.4 | AB56: 0 | AC56: 0 | AD56: 0 | AE56: 3.4 | AF56: 0 | AG56: 0 | AH56: 0 | AI56: 0 | AJ56: 1.6 | AK56: 91 | AL56: 4.1 | AM56: 91 | AN56: 193 | AO56: 595 | AP56: 39 | AQ56: 0.9 | AR56: 0.157 | AS56: 0 | AT56: 300 | AU56: 0 | AV56: 0 | AW56: 0 | AX56: 0 | AY56: 0 | AZ56: 0 | BA56: 0 | BB56: 0 | BC56: 0 | BD56: 0 | BE56: 0 | BF56: 0 | BG56: 0 | BH56: 0.64 | BI56: 0 | BJ56: 0.33 | BK56: 0.07 | BL56: 1.1 | BM56: 0 | BN56: 0.06 | BO56: 16 | BP56: 0 | BQ56: 0
D57: 289 | F57: Cooked weight (b): measurment or estimate (b) = (a) x (c) | K57: =K56-(D56-D57) -> -26
D58: =1-(D56-D57)/D56 -> 0.6720930233 | F58: Yield factor (c) =1-(a-b)/a or estimated from similar recipe
F59: NV of 100g cooked dish incl. retention factors(RF): (d) = NV(a)/b x 100 x RF | J59: =J56/$D$57*100*J10 -> 291.567474 | M59: =M56/$D$57*100*M10 -> 3.079584775 | N59: 3.079584775 | O59: 0 | P59: 0 | Q59: 0.8650519031 | R59: 0 | S59: 0.1141868512 | T59: 0.2698961938 | U59: 0.3287197232 | V59: 0 | W59: 61.5916955 | X59: 26.15916955 | Y59: 0 | Z59: 0 | AA59: 33.35640138 | AB59: 0 | AC59: 0 | AD59: 0 | AE59: 1.176470588 | AF59: 0 | AG59: 0 | AH59: 0 | AI59: 0 | AJ59: 0.553633218 | AK59: 31.48788927 | AL59: 1.418685121 | AM59: 31.48788927 | AN59: 66.78200692 | AO59: 205.8823529 | AP59: 13.49480969 | AQ59: 0.3114186851 | AR59: 0.05432525952 | AS59: =AS56/$D$57*100*AS10 -> 0 | AT59: 103.8062284 | AU59: 0 | AV59: 0 | AW59: 0 | AX59: 0 | AY59: 0 | AZ59: 0 | BA59: 0 | BB59: 0 | BC59: 0 | BD59: 0 | BE59: 0 | BF59: 0 | BG59: 0 | BH59: 0.2214532872 | BI59: 0 | BJ59: 0.06851211073 | BK59: 0.01453287197 | BL59: 0.2283737024 | BM59: 0 | BN59: 0.0124567474 | BO59: 2.76816609 | BP59: 0 | BQ59: 0
F60: Water of 100g cooked dish (e) = NV(a)-(a-b)/b x 100 | K60: =(K55-(D55-D56))/D56*100 -> 97
F62: Water, tab | K62: =+K53*$D$53/100 -> 374.625 | M62: 0 | N62: 0 | O62: 0 | P62: 0 | Q62: 0 | R62: 0 | S62: 0 | T62: 0 | U62: 0 | V62: 0 | W62: 0 | X62: 0 | Y62: 0 | Z62: 0 | AA62: 0 | AB62: 0 | AC62: 0 | AD62: 0 | AE62: 0 | AF62: 0 | AG62: 0 | AH62: 0 | AI62: 0 | AJ62: 0.375 | AK62: 7.5 | AL62: 0 | AM62: 3.75 | AN62: 0 | AO62: 0 | AP62: 7.5 | AQ62: =+AQ53*$D$53/100 -> 0 | AR62: 0.02625 | AS62: 0 | AT62: 0 | AU62: 0 | AV62: 0 | AW62: 0 | AX62: 0 | AY62: 0 | AZ62: 0 | BA62: 0 | BB62: 0 | BC62: 0 | BD62: 0 | BE62: 0 | BF62: 0 | BG62: 0 | BH62: 0 | BI62: 0 | BJ62: 0 | BK62: 0 | BL62: 0 | BM62: 0 | BN62: 0 | BO62: 0 | BP62: 0 | BQ62: 0 | CG62: =+CG54*$D$37/100 -> 0 | CH62: =+CH54*$D$37/100 -> 0
F63: Maize meal, special, white, refined, raw | K63: =+K54*$D$54/100 -> 5.2 | M63: 3.56 | N63: 3.56 | O63: 0 | P63: 0 | Q63: 1 | R63: 0 | S63: 0.132 | T63: 0.312 | U63: 0.38 | V63: 0 | W63: 32.64 | X63: 30.24 | Y63: 0 | Z63: 0 | AA63: 0 | AB63: 0 | AC63: 0 | AD63: 0 | AE63: 1.36 | AF63: 0 | AG63: 0 | AH63: 0 | AI63: 0 | AJ63: 0.24 | AK63: 1.6 | AL63: 0.28 | AM63: 30 | AN63: 69.6 | AO63: 100.4 | AP63: 2.8 | AQ63: =+AQ54*$D$54/100 -> 0.36 | AR63: 0.036 | AS63: 0 | AT63: 120 | AU63: 0 | AV63: 0 | AW63: 0 | AX63: 0 | AY63: 0 | AZ63: 0 | BA63: 0 | BB63: 0 | BC63: 0 | BD63: 0 | BE63: 0 | BF63: 0 | BG63: 0 | BH63: 0.256 | BI63: 0 | BJ63: 0.128 | BK63: 0.016 | BL63: 0.36 | BM63: 0 | BN63: 0.024 | BO63: 6.4 | BP63: 0 | BQ63: 0 | CB63: =+CB55 -> 100 | CC63: =+CC55 -> 97 | CG63: =+CG55*$D$38/100 -> 0 | CH63: =+CH55*$D$38/100 -> 0
F64: Sugar, granulated, brown | K64: =+K55*$D$55/100 -> 0.315 | M64: 0 | N64: 0 | O64: 0 | P64: 0 | Q64: 0 | R64: 0 | S64: 0 | T64: 0 | U64: 0 | V64: 0 | W64: 14.46 | X64: 0 | Y64: 0 | Z64: 0 | AA64: 14.46 | AB64: 0 | AC64: 0 | AD64: 0 | AE64: 0 | AF64: 0 | AG64: 0 | AH64: 0 | AI64: 0 | AJ64: 0.135 | AK64: 12.75 | AL64: 0.51 | AM64: 2.25 | AN64: 2.85 | AO64: 51.6 | AP64: 4.5 | AQ64: =+AQ55*$D$55/100 -> 0 | AR64: 0.009 | AS64: 0 | AT64: 0 | AU64: 0 | AV64: 0 | AW64: 0 | AX64: 0 | AY64: 0 | AZ64: 0 | BA64: 0 | BB64: 0 | BC64: 0 | BD64: 0 | BE64: 0 | BF64: 0 | BG64: 0 | BH64: 0 | BI64: 0 | BJ64: 0.0015 | BK64: 0.0045 | BL64: 0.03 | BM64: 0 | BN64: 0 | BO64: 0 | BP64: 0 | BQ64: 0 | CB64: =(CB54+CB55) -> 200 | CC64: =(CC54+CC55) -> 168.6 | CG64: =SUM(CG62:CG63) -> 0 | CH64: =SUM(CH62:CH63) -> 0
K65: =SUM(K62:K64) -> 380.14 | M65: 3.56 | N65: 3.56 | O65: 0 | P65: 0 | Q65: 1 | R65: 0 | S65: 0.132 | T65: 0.312 | U65: 0.38 | V65: 0 | W65: 47.1 | X65: 30.24 | Y65: 0 | Z65: 0 | AA65: 14.46 | AB65: 0 | AC65: 0 | AD65: 0 | AE65: 1.36 | AF65: 0 | AG65: 0 | AH65: 0 | AI65: 0 | AJ65: 0.75 | AK65: 21.85 | AL65: 0.79 | AM65: 36 | AN65: 72.45 | AO65: 152 | AP65: 14.8 | AQ65: 0.36 | AR65: 0.07125 | AS65: 0 | AT65: 120 | AU65: 0 | AV65: 0 | AW65: 0 | AX65: 0 | AY65: 0 | AZ65: 0 | BA65: 0 | BB65: 0 | BC65: 0 | BD65: 0 | BE65: 0 | BF65: 0 | BG65: 0 | BH65: 0.256 | BI65: 0 | BJ65: 0.1295 | BK65: 0.0205 | BL65: 0.39 | BM65: 0 | BN65: 0.024 | BO65: 6.4 | BP65: 0 | BQ65: 0
K67: =(K65-($D$56-$D$57))/$D$57*100 -> 82.74740484 | M67: =M65/$D$57*100*M10 -> 1.23183391 | N67: 1.23183391 | O67: 0 | P67: 0 | Q67: 0.3460207612 | R67: 0 | S67: 0.04567474048 | T67: 0.1079584775 | U67: 0.1314878893 | V67: 0 | W67: 16.29757785 | X67: 10.46366782 | Y67: 0 | Z67: 0 | AA67: 5.003460208 | AB67: 0 | AC67: 0 | AD67: 0 | AE67: 0.4705882353 | AF67: 0 | AG67: 0 | AH67: 0 | AI67: 0 | AJ67: 0.2595155709 | AK67: 7.560553633 | AL67: 0.2733564014 | AM67: 12.4567474 | AN67: 25.06920415 | AO67: 52.59515571 | AP67: 5.121107266 | AQ67: 0.124567474 | AR67: =AR65/$D$57*100*AR10 -> 0.02465397924 | AS67: 0 | AT67: 41.52249135 | AU67: 0 | AV67: 0 | AW67: 0 | AX67: 0 | AY67: 0 | AZ67: 0 | BA67: 0 | BB67: 0 | BC67: 0 | BD67: 0 | BE67: 0 | BF67: 0 | BG67: 0 | BH67: 0.08858131488 | BI67: 0 | BJ67: 0.02688581315 | BK67: 0.004256055363 | BL67: 0.08096885813 | BM67: 0 | BN67: 0.004982698962 | BO67: 1.107266436 | BP67: 0 | BQ67: 0 | CB67: =CB64/2 -> 100 | CC67: =CC64 -> 168.6
A70: 011020 | F70: Hard porridge from yellow maize meal, boiled (Papa) | J70: =(M70*17)+(Q70*37)+(W70*17)+(AI70*29)+(AE70*8) -> 634.5219742 | K70: =+K84 -> 66.59862858 | M70: =+M84 -> 3.405648034 | N70: =+N84 -> 3.405648034 | O70: =+O84 -> 0 | P70: =+P84 -> 0 | Q70: =+Q84 -> 0.9566427063 | R70: =+R84 -> 0 | S70: 0.1262768372 | T70: 0.2984725244 | U70: 0.3635242284 | V70: 0 | W70: 31.22481793 | X70: 28.92887544 | Y70: 0 | Z70: 0 | AA70: 0 | AB70: 0 | AC70: 0 | AD70: 0 | AE70: 1.301034081 | AF70: 0 | AG70: 0 | AH70: 0 | AI70: 0 | AJ70: 0.3397994893 | AK70: 3.734733125 | AL70: 0.2678599578 | AM70: 29.80133359 | AN70: 66.58233236 | AO70: 96.04692771 | AP70: 4.882704373 | AQ70: 0.3443913743 | AR70: 0.04215350421 | AS70: 0 | AT70: 114.7971248 | AU70: 9.18376998 | AV70: 18.75019704 | AW70: 0 | AX70: 0 | AY70: 0 | AZ70: 0 | BA70: 0 | BB70: 0 | BC70: 0 | BD70: 0 | BE70: 0 | BF70: 0 | BG70: 0 | BH70: 0.2449005328 | BI70: 0 | BJ70: 0.07347015984 | BK70: 0.00918376998 | BL70: 0.2066348246 | BM70: 0 | BN70: 0.01377565497 | BO70: 3.06125666 | BP70: 0 | BQ70: 0 | CB70: =+CB84 -> 100 | CC70: =+CC84 -> 71.6 | CI70: Researched
A71: 130007 | D71: 720 | E71: =D71/D73*100 -> 74.22680412 | F71: Water, tab | I71: 1 | J71: 0 | K71: 99.9 | M71: 0 | P71: 0 | Q71: 0 | R71: 0 | S71: 0 | T71: 0 | U71: 0 | W71: 0 | X71: 0 | Z71: 0 | AA71: 0 | AD71: 0 | AE71: 0 | AF71: 0 | AG71: 0 | AH71: 0 | AI71: 0 | AJ71: 0.1 | AK71: 2 | AL71: 0 | AM71: 1 | AN71: 0 | AO71: 0 | AP71: 2 | AQ71: 0 | AR71: 0.007 | AS71: 0 | AT71: 0 | AV71: 0 | AW71: 0 | AX71: 0 | AY71: 0 | AZ71: 0 | BA71: 0 | BB71: 0 | BE71: 0 | BG71: 0 | BH71: 0 | BI71: 0 | BJ71: 0 | BK71: 0 | BL71: 0 | BM71: 0 | BN71: 0 | BO71: 0 | BP71: 0 | BQ71: 0 | BS71: 1 | BT71: 6.25 | BW71: US18 | BX71: 14429 | CC71: 0
A72: 011004 | D72: 250 | E72: =D72/D73*100 -> 25.77319588 | F72: Maize meal, yellow, refined, raw | I72: 1 | J72: 1488.2 | K72: 13 | M72: 8.9 | N72: 8.9 | O72: 0 | P72: 0 | Q72: 2.5 | S72: 0.33 | T72: 0.78 | U72: 0.95 | V72: 0 | W72: 81.6 | X72: 75.6 | AA72: 0 | AD72: 0 | AE72: 3.4 | AJ72: 0.6 | AK72: 4 | AL72: 0.7 | AM72: 75 | AN72: 174 | AO72: 251 | AP72: 7 | AQ72: 0.9 | AR72: 0.09 | AS72: 0 | AT72: 300 | AU72: 24 | AV72: 49 | AW72: 0 | BE72: 0 | BH72: 0.64 | BJ72: 0.32 | BK72: 0.04 | BL72: 0.9 | BN72: 0.06 | BO72: 16 | BP72: 0 | BQ72: 0 | BT72: 6.25 | BW72: SA91 | BX72: 4079 | BY72: 3275 | CB72: 100 | CC72: 71.6
D73: =SUM(D71:D72) -> 970 | E73: =SUM(E71:E72) -> 100 | F73: Sum of weight and NV of raw ingredients (a) | J73: =SUM(J71:J72) -> 1488.2 | K73: =SUM(K71:K72) -> 112.9 | M73: 8.9 | N73: 8.9 | O73: 0 | P73: 0 | Q73: 2.5 | R73: 0 | S73: 0.33 | T73: 0.78 | U73: 0.95 | V73: 0 | W73: 81.6 | X73: 75.6 | Y73: 0 | Z73: 0 | AA73: 0 | AB73: 0 | AC73: 0 | AD73: 0 | AE73: 3.4 | AF73: 0 | AG73: 0 | AH73: 0 | AI73: 0 | AJ73: 0.7 | AK73: 6 | AL73: 0.7 | AM73: 76 | AN73: 174 | AO73: 251 | AP73: 9 | AQ73: 0.9 | AR73: 0.097 | AS73: 0 | AT73: 300 | AU73: 24 | AV73: 49 | AW73: 0 | AX73: 0 | AY73: 0 | AZ73: 0 | BA73: 0 | BB73: 0 | BC73: 0 | BD73: 0 | BE73: 0 | BF73: 0 | BG73: 0 | BH73: 0.64 | BI73: 0 | BJ73: 0.32 | BK73: 0.04 | BL73: 0.9 | BM73: 0 | BN73: 0.06 | BO73: 16 | BP73: 0 | BQ73: 0
D74: =D73*D75 -> 653.3264676 | E74: =E73*D75 -> 67.35324408 | F74: Cooked weight (b): measurment or estimate (b) = (a) x (c) | K74: =K73-(D73-D74) -> -203.7735324
D75: 0.6735324408 | E75: 0.6735324408 | F75: Yield factor (c) =1-(a-b)/a or estimated from similar recipe
F76: NV of 100g cooked dish incl. retention factors(RF): (d) = NV(a)/b x 100 x RF | J76: =J73/$D$74*100*J10 -> 227.7881081 | M76: =M73/$D$74*100*M10 -> 1.362259214 | N76: 1.362259214 | O76: 0 | P76: 0 | Q76: 0.3826570825 | R76: 0 | S76: 0.05051073489 | T76: 0.1193890097 | U76: 0.1454096914 | V76: 0 | W76: 12.48992717 | X76: 11.57155017 | Y76: 0 | Z76: 0 | AA76: 0 | AB76: 0 | AC76: 0 | AD76: 0 | AE76: 0.5204136322 | AF76: 0 | AG76: 0 | AH76: 0 | AI76: 0 | AJ76: 0.1071439831 | AK76: 0.918376998 | AL76: 0.1071439831 | AM76: 11.63277531 | AN76: 26.63293294 | AO76: 38.41877108 | AP76: 1.377565497 | AQ76: 0.1377565497 | AR76: 0.0148470948 | AS76: =AS73/$D$74*100*AS10 -> 0 | AT76: 45.9188499 | AU76: 3.673507992 | AV76: 7.500078817 | AW76: 0 | AX76: 0 | AY76: 0 | AZ76: 0 | BA76: 0 | BB76: 0 | BC76: 0 | BD76: 0 | BE76: 0 | BF76: 0 | BG76: 0 | BH76: 0.09796021312 | BI76: 0 | BJ76: 0.02938806394 | BK76: 0.003673507992 | BL76: 0.08265392982 | BM76: 0 | BN76: 0.005510261988 | BO76: 1.224502664 | BP76: 0 | BQ76: 0
F77: Water of 100g cooked dish (e) = NV(a)-(a-b)/b x 100 | K77: =K73-(E73-E74) -> 80.25324408
J78: =J73/$E$74*100*J10 -> 2209.544648 | K78: =(K73-K77)/E74*100 -> 48.47094801
F80: Water, tab | K80: =+K71*$D$71/100 -> 719.28 | M80: 0 | N80: 0 | O80: 0 | P80: 0 | Q80: 0 | R80: 0 | S80: 0 | T80: 0 | U80: 0 | V80: 0 | W80: 0 | X80: 0 | Y80: 0 | Z80: 0 | AA80: 0 | AB80: 0 | AC80: 0 | AD80: 0 | AE80: 0 | AF80: 0 | AG80: 0 | AH80: 0 | AI80: 0 | AJ80: 0.72 | AK80: 14.4 | AL80: 0 | AM80: 7.2 | AN80: 0 | AO80: 0 | AP80: 14.4 | AQ80: =+AQ71*$D$71/100 -> 0 | AR80: 0.0504 | AS80: 0 | AT80: 0 | AU80: 0 | AV80: 0 | AW80: 0 | AX80: 0 | AY80: 0 | AZ80: 0 | BA80: 0 | BB80: 0 | BC80: 0 | BD80: 0 | BE80: 0 | BF80: 0 | BG80: 0 | BH80: 0 | BI80: 0 | BJ80: 0 | BK80: 0 | BL80: 0 | BM80: 0 | BN80: 0 | BO80: 0 | BP80: 0 | BQ80: 0 | CH80: =+CH72*$D$37/100 -> 0
F81: Maize meal, yellow, refined, raw | K81: =+K72*$D$72/100 -> 32.5 | M81: 22.25 | N81: 22.25 | O81: 0 | P81: 0 | Q81: 6.25 | R81: 0 | S81: 0.825 | T81: 1.95 | U81: 2.375 | V81: 0 | W81: 204 | X81: 189 | Y81: 0 | Z81: 0 | AA81: 0 | AB81: 0 | AC81: 0 | AD81: 0 | AE81: 8.5 | AF81: 0 | AG81: 0 | AH81: 0 | AI81: 0 | AJ81: 1.5 | AK81: 10 | AL81: 1.75 | AM81: 187.5 | AN81: 435 | AO81: 627.5 | AP81: 17.5 | AQ81: =+AQ72*$D$72/100 -> 2.25 | AR81: 0.225 | AS81: 0 | AT81: 750 | AU81: 60 | AV81: 122.5 | AW81: 0 | AX81: 0 | AY81: 0 | AZ81: 0 | BA81: 0 | BB81: 0 | BC81: 0 | BD81: 0 | BE81: 0 | BF81: 0 | BG81: 0 | BH81: 1.6 | BI81: 0 | BJ81: 0.8 | BK81: 0.1 | BL81: 2.25 | BM81: 0 | BN81: 0.15 | BO81: 40 | BP81: 0 | BQ81: 0 | CB81: =+CB72 -> 100 | CC81: =+CC72 -> 71.6 | CH81: =+CH73*$D$38/100 -> 0
K82: =SUM(K80:K81) -> 751.78 | M82: 22.25 | N82: 22.25 | O82: 0 | P82: 0 | Q82: 6.25 | R82: 0 | S82: 0.825 | T82: 1.95 | U82: 2.375 | V82: 0 | W82: 204 | X82: 189 | Y82: 0 | Z82: 0 | AA82: 0 | AB82: 0 | AC82: 0 | AD82: 0 | AE82: 8.5 | AF82: 0 | AG82: 0 | AH82: 0 | AI82: 0 | AJ82: 2.22 | AK82: 24.4 | AL82: 1.75 | AM82: 194.7 | AN82: 435 | AO82: 627.5 | AP82: 31.9 | AQ82: 2.25 | AR82: 0.2754 | AS82: 0 | AT82: 750 | AU82: 60 | AV82: 122.5 | AW82: 0 | AX82: 0 | AY82: 0 | AZ82: 0 | BA82: 0 | BB82: 0 | BC82: 0 | BD82: 0 | BE82: 0 | BF82: 0 | BG82: 0 | BH82: 1.6 | BI82: 0 | BJ82: 0.8 | BK82: 0.1 | BL82: 2.25 | BM82: 0 | BN82: 0.15 | BO82: 40 | BP82: 0 | BQ82: 0 | CB82: =(CB72+CB73) -> 100 | CC82: =(CC72+CC73) -> 71.6 | CH82: =SUM(CH80:CH81) -> 0
K84: =(K82-($D$73-$D$74))/$D$74*100 -> 66.59862858 | M84: =M82/$D$74*100*M10 -> 3.405648034 | N84: 3.405648034 | O84: 0 | P84: 0 | Q84: 0.9566427063 | R84: 0 | S84: 0.1262768372 | T84: 0.2984725244 | U84: 0.3635242284 | V84: 0 | W84: 31.22481793 | X84: 28.92887544 | Y84: 0 | Z84: 0 | AA84: 0 | AB84: 0 | AC84: 0 | AD84: 0 | AE84: 1.301034081 | AF84: 0 | AG84: 0 | AH84: 0 | AI84: 0 | AJ84: 0.3397994893 | AK84: 3.734733125 | AL84: 0.2678599578 | AM84: 29.80133359 | AN84: 66.58233236 | AO84: 96.04692771 | AP84: 4.882704373 | AQ84: 0.3443913743 | AR84: =AR82/$D$74*100*AR10 -> 0.04215350421 | AS84: 0 | AT84: 114.7971248 | AU84: 9.18376998 | AV84: 18.75019704 | AW84: 0 | AX84: 0 | AY84: 0 | AZ84: 0 | BA84: 0 | BB84: 0 | BC84: 0 | BD84: 0 | BE84: 0 | BF84: 0 | BG84: 0 | BH84: 0.2449005328 | BI84: 0 | BJ84: 0.07347015984 | BK84: 0.00918376998 | BL84: 0.2066348246 | BM84: 0 | BN84: 0.01377565497 | BO84: 3.06125666 | BP84: 0 | BQ84: 0 | CB84: =CB82/1 -> 100 | CC84: =CC82 -> 71.6 | CH84: =CH82/$D$40*100*CH195 -> 0
A87: 011024 | F87: Mealie meal and wheat bread (Mochahlama) | J87: =(M87*17)+(Q87*37)+(W87*17)+(AI87*29)+(AE87*8) -> 426.844857 | K87: =+K108 -> 73.57260871 | L87: =+L108 -> 0.4815214689 | M87: =+M108 -> 2.89535619 | N87: 2.716295732 | O87: 0 | P87: 0 | Q87: 0.4859099307 | R87: 0 | S87: 0.06851517031 | T87: 0.08459944354 | U87: 0.1697567952 | V87: 0 | W87: 20.67817492 | X87: 0.1790604587 | Y87: 6.938787576 | Z87: 18.71839865 | AA87: 1.886349875 | AB87: 6.766584089 | AC87: 0.1722034873 | AD87: 0 | AE87: 1.014520093 | AF87: 0 | AG87: 0.6482954816 | AH87: 0 | AI87: 0 | AJ87: 0.5475447535 | AK87: 15.62610287 | AL87: 0.5494927567 | AM87: 16.1855694 | AN87: 40.6415814 | AO87: 56.75702269 | AP87: 124.9994725 | AQ87: 0.3311605525 | AR87: 0.05807387289 | AS87: 0.517857184 | AT87: 224.2567055 | AU87: 0 | AV87: 1.87008312 | AW87: 0 | AX87: 0 | AY87: 0 | AZ87: 0 | BA87: 0 | BB87: 0 | BC87: 0 | BD87: 0 | BE87: 0 | BF87: 0 | BG87: 0 | BH87: 0.1243605275 | BI87: 0 | BJ87: 0.04493809737 | BK87: 0.0237968077 | BL87: 0.4449395263 | BM87: 0 | BN87: 0.0416561015 | BO87: 8.801078683 | BP87: 9.3504156e-05 | BQ87: 0.02384355978 | CB87: =+CB108 -> 100 | CC87: =+CC108 -> 262.93 | CI87: LM91-pg11
A88: 130007 | D88: 750 | F88: Water, tab | I88: 1 | J88: 0 | K88: 99.9 | M88: 0 | P88: 0 | Q88: 0 | R88: 0 | S88: 0 | T88: 0 | U88: 0 | W88: 0 | X88: 0 | Z88: 0 | AA88: 0 | AD88: 0 | AE88: 0 | AF88: 0 | AG88: 0 | AH88: 0 | AI88: 0 | AJ88: 0.1 | AK88: 2 | AL88: 0 | AM88: 1 | AN88: 0 | AO88: 0 | AP88: 2 | AQ88: 0 | AR88: 0.007 | AS88: 0 | AT88: 0 | AV88: 0 | AW88: 0 | AX88: 0 | AY88: 0 | AZ88: 0 | BA88: 0 | BB88: 0 | BE88: 0 | BG88: 0 | BH88: 0 | BI88: 0 | BJ88: 0 | BK88: 0 | BL88: 0 | BM88: 0 | BN88: 0 | BO88: 0 | BP88: 0 | BQ88: 0 | BT88: 6.25 | BW88: US18 | BX88: 14429 | CC88: 0
A89: 011002 | D89: 240 | F89: Maize meal, super, white, unfortified, raw | I89: 1 | J89: =(M89*17)+(Q89*37)+(CC89*17)+(AI89*29)+(AE89*8) -> 1471.4 | K89: 12 | L89: 1.23 | M89: 7.7 | N89: 7.7 | O89: 0 | Q89: 1.4 | S89: 0.189 | T89: 0.28 | U89: 0.42 | W89: 74 | Z89: 67.2 | AA89: 6.8 | AE89: 4.9 | AJ89: 0.5 | AK89: 3 | AL89: 0.7 | AM89: 36 | AN89: 60 | AO89: 108 | AP89: 3 | AQ89: 0.58 | AR89: 0.1 | AT89: 170 | AV89: 10 | BE89: 0 | BH89: 0.34 | BJ89: 0.13 | BK89: 0.02 | BL89: 0.8 | BN89: 0.17 | BO89: 8 | BQ89: 0.12 | BT89: 6.25 | BW89: MRC05 | BY89: 3397 | CB89: =CC89+K89+M89+Q89+AE89+AJ89 -> 100 | CC89: =100-(K89+M89+Q89+AJ89+AE89+AI89) -> 73.5
A90: 011031 | D90: 130 | F90: Wheat flour, for brown bread | I90: 1 | J90: =(M90*17)+(Q90*37)+(CC90*17)+(AI90*29)+(AE90*8) -> 1494.01 | K90: 14 | L90: 2.2 | M90: 12.6 | N90: 12.6 | O90: 0 | P90: 0 | Q90: 2 | S90: 0.3 | T90: 0.2 | U90: 0.9 | V90: 0 | W90: =Y90/1.1 -> 62.27272727 | Y90: 68.5 | Z90: =AB90/1.1 -> 60.72727273 | AA90: =AC90/1.05 -> 1.619047619 | AB90: 66.8 | AC90: 1.7 | AG90: 6.4 | AJ90: 0.47 | AK90: 130 | AL90: 3.2 | AM90: 80 | AN90: 230 | AO90: 250 | AP90: 4 | AQ90: 1.9 | AR90: 0.32 | AS90: 4 | AT90: 1900 | AW90: 0 | AX90: 0 | BF90: 0 | BH90: 0.6 | BJ90: 0.39 | BK90: 0.07 | BL90: 4 | BN90: 0.3 | BO90: 51 | BP90: 0 | BQ90: 0 | BT90: 6.25 | BW90: GB6 | BX90: 10 | CB90: =CC90+K90+M90+Q90+AE90+AJ90 -> 100 | CC90: =100-(K90+M90+Q90+AJ90+AE90+AI90) -> 70.93
A91: 110008 | D91: 6 | F91: Sugar, granulated, brown | I91: 1 | J91: =(M91*17)+(Q91*37)+(CC91*17)+(AI91*29)+(AE91*8) -> 1649 | K91: 2.1 | M91: 0 | N91: 0 | O91: 0 | P91: 0 | Q91: 0 | S91: 0 | T91: 0 | U91: 0 | W91: 96.4 | AA91: 96.4 | AE91: 0 | AJ91: 0.9 | AK91: 85 | AL91: 3.4 | AM91: 15 | AN91: 19 | AO91: 344 | AP91: 30 | AR91: 0.06 | AV91: 0 | BE91: 0 | BH91: 0 | BJ91: 0.01 | BK91: 0.03 | BL91: 0.2 | BN91: 0 | BO91: 0 | BP91: 0 | BQ91: 0 | BT91: 6.25 | BW91: SA91 | BX91: 9032 | CB91: =CC91+K91+M91+Q91+AE91+AJ91 -> 100 | CC91: =100-(K91+M91+Q91+AJ91+AE91+AI91) -> 97
A92: 150008 | D92: 6 | F92: Yeast, dried | I92: 1 | J92: =(M92*17)+(Q92*37)+(CC92*17)+(AI92*29)+(AE92*8) -> 1354.8 | K92: 7.6 | L92: =M92/BT92 -> 6.128 | M92: 38.3 | P92: 0 | Q92: 4.6 | S92: 0.595 | T92: 2.562 | U92: 0.01 | W92: =X92-AE92 -> 17.3 | X92: 38.3 | AA92: 0 | AE92: 21 | AJ92: 7 | AK92: 64 | AL92: 16.6 | AM92: 98 | AN92: 1290 | AO92: 2000 | AP92: 50 | AQ92: 6.4 | AR92: 0.5 | AS92: 24.1 | AT92: 0.55 | AU92: 0 | AW92: 0 | AY92: 0 | AZ92: 0 | BA92: 0 | BC92: 0 | BD92: 0 | BH92: 0 | BJ92: 2.36 | BK92: 5.47 | BL92: 39.75 | BN92: 1.55 | BO92: 2340 | BP92: 0.02 | BQ92: 0.3 | BT92: 6.25 | BW92: US18 | BX92: 18375 | CB92: =CC92+K92+M92+Q92+AE92+AJ92 -> 100 | CC92: =100-(K92+M92+Q92+AJ92+AE92+AI92) -> 21.5
A93: 150005 | D93: 4 | F93: Salt, iodated | I93: 1 | J93: =(M93*17)+(Q93*37)+(CC93*17)+(AI93*29)+(AE93*8) -> 0 | K93: 0.2 | L93: 0 | M93: 0 | N93: 0 | O93: 0 | P93: 0 | Q93: 0 | S93: 0 | T93: 0 | U93: 0 | V93: 0 | W93: =Y93/1.1 -> 0 | Y93: 0 | AB93: 0 | AC93: 0 | AG93: 0 | AJ93: 99.8 | AK93: 10 | AL93: 0.3 | AM93: 76 | AN93: 1 | AO93: 89 | AP93: 39300 | AQ93: 0.1 | AR93: 0.08 | AT93: tr | AW93: 0 | AX93: 0 | BF93: 0 | BH93: 0 | BJ93: 0 | BK93: 1 | BL93: 0 | BN93: 0 | BO93: 0 | BP93: 0 | BQ93: 0 | BT93: 6.25 | BW93: GB6 | BX93: 1226 | CB93: =CC93+K93+M93+Q93+AE93+AJ93 -> 100 | CC93: =100-(K93+M93+Q93+AJ93+AE93+AI93) -> 0
D94: =SUM(D88:D93) -> 1136 | F94: Sum of weight and NV of raw ingredients (a)
D95: =D94*D96 -> 1283.365415 | F95: Cooked weight (b): measurment or estimate (b) = (a) x (c)
D96: 1.129723077 | F96: Yield factor (c) =1- (a-b)/a or estimated from similar recipe
F97: NV of 100g cooked dish incl. retention factors(RF): (d) = NV(a)/b x 100 x RF
F98: Water of 100g cooked dish (e) = NV(a)-(a-b)/b x 100
F100: Water, tab | K100: =+K88*$D$88/100 -> 749.25 | M100: =+M88*$D$88/100 -> 0 | N100: 0 | O100: 0 | P100: 0 | Q100: 0 | R100: 0 | S100: 0 | T100: 0 | U100: 0 | V100: 0 | W100: 0 | X100: 0 | Y100: 0 | Z100: 0 | AA100: 0 | AB100: 0 | AC100: 0 | AD100: 0 | AE100: 0 | AF100: 0 | AG100: 0 | AH100: 0 | AI100: 0 | AJ100: 0.75 | AK100: 15 | AL100: 0 | AM100: 7.5 | AN100: 0 | AO100: 0 | AP100: 15 | AQ100: 0 | AR100: 0.0525 | AS100: 0 | AT100: 0 | AV100: 0 | AW100: 0 | AX100: 0 | AY100: 0 | AZ100: 0 | BA100: 0 | BB100: 0 | BE100: 0 | BG100: 0 | BH100: 0 | BI100: 0 | BJ100: 0 | BK100: 0 | BL100: 0 | BM100: 0 | BN100: 0 | BO100: 0 | BP100: 0 | BQ100: 0
F101: Maize meal, super, white, unfortified, raw | K101: =+K89*$D$89/100 -> 28.8 | L101: =+L89*$D$89/100 -> 2.952 | M101: =+M89*$D$89/100 -> 18.48 | N101: 18.48 | O101: 0 | P101: 0 | Q101: 3.36 | R101: 0 | S101: 0.4536 | T101: 0.672 | U101: 1.008 | V101: 0 | W101: 177.6 | X101: 0 | Y101: 0 | Z101: 161.28 | AA101: 16.32 | AB101: 0 | AC101: 0 | AD101: 0 | AE101: 11.76 | AF101: 0 | AG101: 0 | AH101: 0 | AI101: 0 | AJ101: 1.2 | AK101: 7.2 | AL101: 1.68 | AM101: 86.4 | AN101: 144 | AO101: 259.2 | AP101: 7.2 | AQ101: 1.392 | AR101: 0.24 | AS101: 0 | AT101: 408 | AV101: 24 | BE101: 0 | BH101: 0.816 | BJ101: 0.312 | BK101: 0.048 | BL101: 1.92 | BN101: 0.408 | BO101: 19.2 | BP101: 0 | BQ101: 0.288 | CB101: =+CB89 -> 100 | CC101: 73.5
F102: Wheat flour, for brown bread | K102: =+K90*$D$90/100 -> 18.2 | L102: =+L90*$D$90/100 -> 2.86 | M102: =+M90*$D$90/100 -> 16.38 | N102: 16.38 | O102: 0 | P102: 0 | Q102: 2.6 | R102: 0 | S102: 0.39 | T102: 0.26 | U102: 1.17 | V102: 0 | W102: 80.95454545 | X102: 0 | Y102: 89.05 | Z102: 78.94545455 | AA102: 2.104761905 | AB102: 86.84 | AC102: 2.21 | AD102: 0 | AE102: 0 | AF102: 0 | AG102: 8.32 | AH102: 0 | AI102: 0 | AJ102: 0.611 | AK102: 169 | AL102: 4.16 | AM102: 104 | AN102: 299 | AO102: 325 | AP102: 5.2 | AQ102: 2.47 | AR102: 0.416 | AS102: 5.2 | AT102: 2470 | AW102: 0 | AX102: 0 | BF102: 0 | BH102: 0.78 | BJ102: 0.507 | BK102: 0.091 | BL102: 5.2 | BN102: 0.39 | BO102: 66.3 | BP102: 0 | BQ102: 0 | CB102: 100 | CC102: 70.93
F103: Sugar, granulated, brown | K103: =+K91*$D$91/100 -> 0.126 | M103: =+M91*$D$91/100 -> 0 | N103: 0 | O103: 0 | P103: 0 | Q103: 0 | R103: 0 | S103: 0 | T103: 0 | U103: 0 | V103: 0 | W103: 5.784 | X103: 0 | Y103: 0 | Z103: 0 | AA103: 5.784 | AB103: 0 | AC103: 0 | AD103: 0 | AE103: 0 | AF103: 0 | AG103: 0 | AH103: 0 | AI103: 0 | AJ103: 0.054 | AK103: 5.1 | AL103: 0.204 | AM103: 0.9 | AN103: 1.14 | AO103: 20.64 | AP103: 1.8 | AQ103: 0 | AR103: 0.0036 | AS103: 0 | AV103: 0 | BE103: 0 | BH103: 0 | BJ103: 0.0006 | BK103: 0.0018 | BL103: 0.012 | BN103: 0 | BO103: 0 | BP103: 0 | BQ103: 0 | CB103: 100 | CC103: 97
F104: Yeast, dried | K104: =+K92*$D$92/100 -> 0.456 | L104: 0.36768 | M104: 2.298 | N104: 0 | O104: 0 | P104: 0 | Q104: 0.276 | R104: 0 | S104: 0.0357 | T104: 0.15372 | U104: 0.0006 | V104: 0 | W104: 1.038 | X104: 2.298 | Y104: 0 | Z104: 0 | AA104: 0 | AB104: 0 | AC104: 0 | AD104: 0 | AE104: 1.26 | AF104: 0 | AG104: 0 | AH104: 0 | AI104: 0 | AJ104: 0.42 | AK104: 3.84 | AL104: 0.996 | AM104: 5.88 | AN104: 77.4 | AO104: 120 | AP104: 3 | AQ104: 0.384 | AR104: 0.03 | AS104: 1.446 | AT104: 0.033 | AW104: =+AW92*$D$92/100 -> 0 | AY104: =+AY92*$D$92/100 -> 0 | AZ104: =+AZ92*$D$92/100 -> 0 | BA104: =+BA92*$D$92/100 -> 0 | BC104: =+BC92*$D$92/100 -> 0 | BD104: =+BD92*$D$92/100 -> 0 | BH104: =+BH92*$D$92/100 -> 0 | BJ104: =+BJ92*$D$92/100 -> 0.1416 | BK104: =+BK92*$D$92/100 -> 0.3282 | BL104: =+BL92*$D$92/100 -> 2.385 | BN104: =+BN92*$D$92/100 -> 0.093 | BO104: =+BO92*$D$92/100 -> 140.4 | BP104: =+BP92*$D$92/100 -> 0.0012 | BQ104: =+BQ92*$D$92/100 -> 0.018 | CB104: 100 | CC104: 21.5
F105: Salt, iodated | K105: =+K93*$D$93/100 -> 0.008 | L105: =+L93*$D$93/100 -> 0 | M105: =+M93*$D$93/100 -> 0 | N105: 0 | O105: 0 | P105: 0 | Q105: 0 | R105: 0 | S105: 0 | T105: 0 | U105: 0 | V105: 0 | W105: 0 | X105: 0 | Y105: 0 | Z105: 0 | AA105: 0 | AB105: 0 | AC105: 0 | AD105: 0 | AE105: 0 | AF105: 0 | AG105: 0 | AH105: 0 | AI105: 0 | AJ105: 3.992 | AK105: 0.4 | AL105: 0.012 | AM105: 3.04 | AN105: 0.04 | AO105: 3.56 | AP105: 1572 | AQ105: 0.004 | AR105: 0.0032 | AS105: 0 | AU105: 0 | AW105: 0 | AX105: 0 | BF105: 0 | BH105: 0 | BJ105: 0 | BK105: 0.04 | BL105: 0 | BN105: 0 | BO105: 0 | BP105: 0 | BQ105: 0 | CB105: 100 | CC105: 0
K106: =SUM(K100:K105) -> 796.84 | L106: =SUM(L100:L105) -> 6.17968 | M106: =SUM(M100:M105) -> 37.158 | N106: 34.86 | O106: 0 | P106: 0 | Q106: 6.236 | R106: 0 | S106: 0.8793 | T106: 1.08572 | U106: 2.1786 | V106: 0 | W106: 265.3765455 | X106: 2.298 | Y106: 89.05 | Z106: 240.2254545 | AA106: 24.2087619 | AB106: 86.84 | AC106: 2.21 | AD106: 0 | AE106: 13.02 | AF106: 0 | AG106: 8.32 | AH106: 0 | AI106: 0 | AJ106: 7.027 | AK106: 200.54 | AL106: 7.052 | AM106: 207.72 | AN106: 521.58 | AO106: 728.4 | AP106: 1604.2 | AQ106: 4.25 | AR106: 0.7453 | AS106: 6.646 | AT106: 2878.033 | AU106: 0 | AV106: 24 | AW106: 0 | AX106: 0 | AY106: 0 | AZ106: 0 | BA106: 0 | BB106: 0 | BC106: 0 | BD106: 0 | BE106: 0 | BF106: 0 | BG106: 0 | BH106: 1.596 | BI106: 0 | BJ106: 0.9612 | BK106: 0.509 | BL106: 9.517 | BM106: 0 | BN106: 0.891 | BO106: 225.9 | BP106: 0.0012 | BQ106: 0.306 | CB106: =SUM(CB101:CB105) -> 500 | CC106: =SUM(CC101:CC105) -> 262.93
K108: =(K106-($D$94-$D$95))/$D$95*100 -> 73.57260871 | L108: =L106/$D$95*100*L10 -> 0.4815214689 | M108: =M106/$D$95*100*M10 -> 2.89535619 | N108: 2.716295732 | O108: 0 | P108: 0 | Q108: 0.4859099307 | R108: 0 | S108: 0.06851517031 | T108: 0.08459944354 | U108: 0.1697567952 | V108: 0 | W108: 20.67817492 | X108: 0.1790604587 | Y108: 6.938787576 | Z108: 18.71839865 | AA108: 1.886349875 | AB108: 6.766584089 | AC108: 0.1722034873 | AD108: 0 | AE108: 1.014520093 | AF108: 0 | AG108: 0.6482954816 | AH108: 0 | AI108: 0 | AJ108: 0.5475447535 | AK108: 15.62610287 | AL108: 0.5494927567 | AM108: 16.1855694 | AN108: 40.6415814 | AO108: 56.75702269 | AP108: 124.9994725 | AQ108: 0.3311605525 | AR108: 0.05807387289 | AS108: 0.517857184 | AT108: 224.2567055 | AU108: 0 | AV108: 1.87008312 | AW108: 0 | AX108: 0 | AY108: 0 | AZ108: 0 | BA108: 0 | BB108: 0 | BC108: 0 | BD108: 0 | BE108: 0 | BF108: 0 | BG108: 0 | BH108: 0.1243605275 | BI108: 0 | BJ108: 0.04493809737 | BK108: 0.0237968077 | BL108: 0.4449395263 | BM108: 0 | BN108: 0.0416561015 | BO108: 8.801078683 | BP108: 9.3504156e-05 | BQ108: 0.02384355978 | CB108: =(CB106)/5 -> 100 | CC108: =CC106 -> 262.93
A111: 011026 | F111: Sorghum porridge, hard (Papa) | J111: =(M111*17)+(Q111*37)+(W111*17)+(AI111*29)+(AE111*8) -> 578.0401402 | K111: =+K124 -> 65.68051225 | M111: =+M124 -> 3.985900546 | N111: =+N124 -> 3.985900546 | O111: 0 | P111: 0 | Q111: 0.653426319 | R111: 0 | S111: 0 | T111: 0 | U111: 0 | V111: 0 | W111: 27.75140014 | X111: 0 | Y111: 0 | Z111: 27.4439054 | AA111: 0.1422163183 | AB111: 0 | AC111: 0 | AD111: 0 | AE111: 1.791156851 | AF111: 0 | AG111: 0 | AH111: 0 | AI111: 0 | AJ111: 0.7141565298 | AK111: 6.826383191 | AL111: 2.229336853 | AM111: 1.106981058 | AN111: 0 | AO111: 0 | AP111: 19.12617273 | AQ111: 0.8225484251 | AR111: 0.007748867406 | AS111: 0 | AT111: 0 | AU111: 0 | AV111: 0 | AW111: 0 | AX111: 0.3843684229 | AY111: 0 | AZ111: 0.3843684229 | BA111: 0 | BB111: 0 | BC111: 0 | BD111: 0 | BE111: 0 | BF111: 0 | BG111: 0 | BH111: 0 | BI111: 0 | BJ111: 0.04151178968 | BK111: 0.02767452645 | BL111: 0.2098651589 | BM111: 0 | BN111: 0 | BO111: 0 | BP111: 0 | BQ111: 0 | BR111: 0 | BS111: 0 | BU111: 0 | BV111: 0 | BZ111: =+BZ124 ->  | CA111: =+CA124 ->  | CB111: =+CB124 -> 100 | CC111: =+CC124 -> 70.7 | CI111: Researched
A112: 130007 | D112: 720 | F112: Water, tab | I112: 1 | J112: 0 | K112: 99.9 | M112: 0 | P112: 0 | Q112: 0 | R112: 0 | S112: 0 | T112: 0 | U112: 0 | W112: 0 | X112: 0 | Z112: 0 | AA112: 0 | AD112: 0 | AE112: 0 | AF112: 0 | AG112: 0 | AH112: 0 | AI112: 0 | AJ112: 0.1 | AK112: 2 | AL112: 0 | AM112: 1 | AN112: 0 | AO112: 0 | AP112: 2 | AQ112: 0 | AR112: 0.007 | AS112: 0 | AT112: 0 | AV112: 0 | AW112: 0 | AX112: 0 | AY112: 0 | AZ112: 0 | BA112: 0 | BB112: 0 | BE112: 0 | BG112: 0 | BH112: 0 | BI112: 0 | BJ112: 0 | BK112: 0 | BL112: 0 | BM112: 0 | BN112: 0 | BO112: 0 | BP112: 0 | BQ112: 0 | BR112: 0 | BS112: 1 | BT112: 6.25 | BW112: US18 | BX112: 14429 | CC112: 0
A113: 011025 | D113: 250 | F113: Sorghum flour | I113: 1 | J113: 1478.37 | K113: 11 | M113: 10.37 | N113: 10.37 | O113: 0 | P113: 0 | Q113: 1.7 | W113: 72.2 | Z113: 71.4 | AA113: 0.3700000048 | AE113: 4.66 | AJ113: 1.57 | AK113: 12 | AL113: 5.8 | AP113: 44 | AQ113: 2.14 | AU113: 0 | AW113: 0 | AX113: 1 | AZ113: 1 | BE113: 0 | BH113: tr | BJ113: 0.18 | BK113: 0.12 | BL113: 0.91 | BN113: ? | BP113: 0 | BQ113: 0 | BT113: 6.25 | BW113: MALI | BX113: 374 | BY113: Analysed | BZ113: checked other tables that data is similar and not more | CB113: 100 | CC113: 70.7
D114: =SUM(D112:D113) -> 970 | F114: Sum of weight and NV of raw ingredients (a) | J114: =SUM(J112:J113) -> 1478.37 | K114: =SUM(K112:K113) -> 110.9 | M114: 10.37 | N114: 10.37 | O114: 0 | P114: 0 | Q114: 1.7 | R114: 0 | S114: 0 | T114: 0 | U114: 0 | V114: 0 | W114: 72.2 | X114: 0 | Y114: 0 | Z114: 71.4 | AA114: 0.3700000048 | AB114: 0 | AC114: 0 | AD114: 0 | AE114: 4.66 | AF114: 0 | AG114: 0 | AH114: 0 | AI114: 0 | AJ114: 1.67 | AK114: 14 | AL114: 5.8 | AM114: 1 | AN114: 0 | AO114: 0 | AP114: 46 | AQ114: 2.14 | AR114: 0.007 | AS114: 0 | AT114: 0 | AU114: 0 | AV114: 0 | AW114: 0 | AX114: 1 | AY114: 0 | AZ114: 1 | BA114: 0 | BB114: 0 | BC114: 0 | BD114: 0 | BE114: 0 | BF114: 0 | BG114: 0 | BH114: 0 | BI114: 0 | BJ114: 0.18 | BK114: 0.12 | BL114: 0.91 | BM114: 0 | BN114: 0 | BO114: 0 | BP114: 0 | BQ114: 0
D115: =D114*D116 -> 650.4176334 | F115: Cooked weight (b): measurment or estimate (b) = (a) x (c) | K115: =K114-(D114-D115) -> -208.6823666
D116: 0.6705336427 | F116: Yield factor (c) =1- (a-b)/a or estimated from similar recipe | J116: =J114/$D$115*100*J10 -> 227.2954982 | M116: =M114/$D$115*100*M10 -> 1.594360218 | N116: 1.594360218 | O116: 0 | P116: 0 | Q116: 0.2613705276 | R116: 0 | S116: 0 | T116: 0 | U116: 0 | V116: 0 | W116: 11.10056005 | X116: 0 | Y116: 0 | Z116: 10.97756216 | AA116: 0.05688652733 | AB116: 0 | AC116: 0 | AD116: 0 | AE116: 0.7164627403 | AF116: 0 | AG116: 0 | AH116: 0 | AI116: 0 | AJ116: 0.2567581065 | AK116: 2.152463168 | AL116: 0.8917347412 | AM116: 0.1537473692 | AN116: 0 | AO116: 0 | AP116: 7.072378982 | AQ116: 0.32901937 | AR116: 0.001076231584 | AS116: =AS114/$D$115*100*AS10 -> 0 | AT116: 0 | AU116: 0 | AV116: 0 | AW116: 0 | AX116: 0.1537473692 | AY116: 0 | AZ116: 0.1537473692 | BA116: 0 | BB116: 0 | BC116: 0 | BD116: 0 | BE116: 0 | BF116: 0 | BG116: 0 | BH116: 0 | BI116: 0 | BJ116: 0.01660471587 | BK116: 0.01106981058 | BL116: 0.08394606357 | BM116: 0 | BN116: 0 | BO116: 0 | BP116: 0 | BQ116: 0
F117: NV of 100g cooked dish incl. retention factors(RF): (d) = NV(a)/b x 100 x RF
F118: Water of 100g cooked dish (e) = NV(a)-(a-b)/b x 100 | K118: =(K114-(D114-D115))/D115*100 -> -32.08436486
F120: Water, tab | K120: =+K112*$D$112/100 -> 719.28 | M120: 0 | N120: 0 | O120: 0 | P120: 0 | Q120: 0 | R120: 0 | S120: 0 | T120: 0 | U120: 0 | V120: 0 | W120: 0 | X120: 0 | Y120: 0 | Z120: 0 | AA120: 0 | AB120: 0 | AC120: 0 | AD120: 0 | AE120: 0 | AF120: 0 | AG120: 0 | AH120: 0 | AI120: 0 | AJ120: 0.72 | AK120: 14.4 | AL120: 0 | AM120: 7.2 | AN120: 0 | AO120: 0 | AP120: 14.4 | AQ120: =+AQ112*$D$112/100 -> 0 | AR120: 0.0504 | AS120: 0 | AT120: 0 | AU120: 0 | AV120: 0 | AW120: 0 | AX120: 0 | AY120: 0 | AZ120: 0 | BA120: 0 | BB120: 0 | BC120: 0 | BD120: 0 | BE120: 0 | BF120: 0 | BG120: 0 | BH120: 0 | BI120: 0 | BJ120: 0 | BK120: 0 | BL120: 0 | BM120: 0 | BN120: 0 | BO120: 0 | BP120: 0 | BQ120: 0 | CB120: =+CB112 -> 0 | CC120: =+CC112 -> 0 | CG120: =+CG112*$D$37/100 -> 0 | CH120: =+CH112*$D$37/100 -> 0
F121: Sorghum flour | K121: =+K113*$D$113/100 -> 27.5 | M121: 25.925 | N121: 25.925 | O121: 0 | P121: 0 | Q121: 4.25 | R121: 0 | S121: 0 | T121: 0 | U121: 0 | V121: 0 | W121: 180.5 | X121: 0 | Y121: 0 | Z121: 178.5 | AA121: 0.9250000119 | AB121: 0 | AC121: 0 | AD121: 0 | AE121: 11.65 | AF121: 0 | AG121: 0 | AH121: 0 | AI121: 0 | AJ121: 3.925 | AK121: 30 | AL121: 14.5 | AM121: 0 | AN121: 0 | AO121: 0 | AP121: 110 | AQ121: =+AQ113*$D$113/100 -> 5.35 | AR121: 0 | AS121: 0 | AT121: 0 | AU121: 0 | AV121: 0 | AW121: 0 | AX121: 2.5 | AY121: 0 | AZ121: 2.5 | BA121: 0 | BB121: 0 | BC121: 0 | BD121: 0 | BE121: 0 | BF121: 0 | BG121: 0 | BH121: tr | BI121: =+BI113*$D$113/100 -> 0 | BJ121: =+BJ113*$D$113/100 -> 0.45 | BK121: =+BK113*$D$113/100 -> 0.3 | BL121: =+BL113*$D$113/100 -> 2.275 | BM121: =+BM113*$D$113/100 -> 0 | BN121: ? | BO121: =+BO113*$D$113/100 -> 0 | BP121: =+BP113*$D$113/100 -> 0 | BQ121: =+BQ113*$D$113/100 -> 0 | CB121: =+CB113 -> 100 | CC121: =+CC113 -> 70.7 | CG121: =+CG113*$D$38/100 -> 0 | CH121: =+CH113*$D$38/100 -> 0
K122: =SUM(K120:K121) -> 746.78 | M122: 25.925 | N122: 25.925 | O122: 0 | P122: 0 | Q122: 4.25 | R122: 0 | S122: 0 | T122: 0 | U122: 0 | V122: 0 | W122: 180.5 | X122: 0 | Y122: 0 | Z122: 178.5 | AA122: 0.9250000119 | AB122: 0 | AC122: 0 | AD122: 0 | AE122: 11.65 | AF122: 0 | AG122: 0 | AH122: 0 | AI122: 0 | AJ122: 4.645 | AK122: 44.4 | AL122: 14.5 | AM122: 7.2 | AN122: 0 | AO122: 0 | AP122: 124.4 | AQ122: 5.35 | AR122: 0.0504 | AS122: 0 | AT122: 0 | AU122: 0 | AV122: 0 | AW122: 0 | AX122: 2.5 | AY122: 0 | AZ122: 2.5 | BA122: 0 | BB122: 0 | BC122: 0 | BD122: 0 | BE122: 0 | BF122: 0 | BG122: 0 | BH122: 0 | BI122: 0 | BJ122: 0.45 | BK122: 0.3 | BL122: 2.275 | BM122: 0 | BN122: 0 | BO122: 0 | BP122: 0 | BQ122: 0 | CB122: =(CB112+CB113) -> 100 | CC122: =(CC112+CC113) -> 70.7 | CG122: =SUM(CG120:CG121) -> 0 | CH122: =SUM(CH120:CH121) -> 0
K124: =(K122-($D$114-$D$115))/$D$115*100 -> 65.68051225 | M124: =M122/$D$115*100*M10 -> 3.985900546 | N124: 3.985900546 | O124: 0 | P124: 0 | Q124: 0.653426319 | R124: 0 | S124: 0 | T124: 0 | U124: 0 | V124: 0 | W124: 27.75140014 | X124: 0 | Y124: 0 | Z124: 27.4439054 | AA124: 0.1422163183 | AB124: 0 | AC124: 0 | AD124: 0 | AE124: 1.791156851 | AF124: 0 | AG124: 0 | AH124: 0 | AI124: 0 | AJ124: 0.7141565298 | AK124: 6.826383191 | AL124: 2.229336853 | AM124: 1.106981058 | AN124: 0 | AO124: 0 | AP124: 19.12617273 | AQ124: 0.8225484251 | AR124: =AR122/$D$115*100*AR10 -> 0.007748867406 | AS124: 0 | AT124: 0 | AU124: 0 | AV124: 0 | AW124: 0 | AX124: 0.3843684229 | AY124: 0 | AZ124: 0.3843684229 | BA124: 0 | BB124: 0 | BC124: 0 | BD124: 0 | BE124: 0 | BF124: 0 | BG124: 0 | BH124: 0 | BI124: 0 | BJ124: 0.04151178968 | BK124: 0.02767452645 | BL124: 0.2098651589 | BM124: 0 | BN124: 0 | BO124: 0 | BP124: 0 | BQ124: 0 | CB124: =CB122/1 -> 100 | CC124: =CC122 -> 70.7 | CG124: =CG122/$D$40*100*CG54 -> 0 | CH124: =CH122/$D$40*100*CH54 -> 0
A127: 011027 | F127: Sorghum porridge, soft (Lesheleshele) | J127: =(M127*17)+(Q127*37)+(W127*17)+(AI127*29)+(AE127*8) -> 410.4063023 | K127: =+K144 -> 76.41011992 | M127: =+M144 -> 2.479317438 | N127: =+N144 -> 1.694826753 | O127: 0.7844906859 | P127: 0.002451533393 | Q127: 1.111361805 | R127: 0 | S127: 0.4755974783 | T127: 0.2206380054 | U127: 0.02696686733 | V127: 0 | W127: 18.88497891 | X127: 0 | Y127: 0 | Z127: 11.66929895 | AA127: 7.145402665 | AB127: 0 | AC127: 0 | AD127: 0 | AE127: 0.7616097075 | AF127: 0 | AG127: 0 | AH127: 0 | AI127: 0 | AJ127: 0.5855078921 | AK127: 37.89662037 | AL127: 1.180821918 | AM127: 4.882637342 | AN127: 22.49281888 | AO127: 57.12072807 | AP127: 23.08527279 | AQ127: 0.4429103664 | AR127: 0.01327913921 | AS127: 0.4903066787 | AT127: 0.9806133573 | AU127: 0 | AV127: 9.806133573 | AW127: 9.070673555 | AX127: 4.821349007 | AY127: 0 | AZ127: 0.1634355596 | BA127: 0 | BB127: 0 | BC127: 0 | BD127: 0 | BE127: 0.00735460018 | BF127: 0 | BG127: 0 | BH127: 0.03432146751 | BI127: 0 | BJ127: 0.02096061051 | BK127: 0.03346343082 | BL127: 0.1112996161 | BM127: 0 | BN127: 0.003971484097 | BO127: 0.6128833483 | BP127: 0.09806133573 | BQ127: 0.2451533393 | CB127: =+CB144 -> 100 | CC127: =+CC144 -> 172.4 | CI127: Researched
A128: 130007 | D128: 250 | F128: Water, tab | I128: 1 | J128: 0 | K128: 99.9 | M128: 0 | P128: 0 | Q128: 0 | R128: 0 | S128: 0 | T128: 0 | U128: 0 | W128: 0 | X128: 0 | Z128: 0 | AA128: 0 | AD128: 0 | AE128: 0 | AF128: 0 | AG128: 0 | AH128: 0 | AI128: 0 | AJ128: 0.1 | AK128: 2 | AL128: 0 | AM128: 1 | AN128: 0 | AO128: 0 | AP128: 2 | AQ128: 0 | AR128: 0.007 | AS128: 0 | AT128: 0 | AV128: 0 | AW128: 0 | AX128: 0 | AY128: 0 | AZ128: 0 | BA128: 0 | BB128: 0 | BE128: 0 | BG128: 0 | BH128: 0 | BI128: 0 | BJ128: 0 | BK128: 0 | BL128: 0 | BM128: 0 | BN128: 0 | BO128: 0 | BP128: 0 | BQ128: 0 | BR128: 0 | BS128: 1 | BT128: 6.25 | BW128: US18 | BX128: 14429 | CC128: 0
A129: 011025 | D129: 40 | F129: Sorghum flour | I129: 1 | J129: 1478.37 | K129: 11 | M129: 10.37 | N129: 10.37 | O129: 0 | P129: 0 | Q129: 1.7 | W129: 72.2 | Z129: 71.4 | AA129: 0.3700000048 | AE129: 4.66 | AJ129: 1.57 | AK129: 12 | AL129: 5.8 | AP129: 44 | AQ129: 2.14 | AU129: 0 | AW129: 0 | AX129: 1 | AZ129: 1 | BE129: 0 | BH129: tr | BJ129: 0.18 | BK129: 0.12 | BL129: 0.91 | BN129: ? | BP129: 0 | BQ129: 0 | BT129: 6.25 | BW129: MALI | BX129: 374 | BY129: Analysed | BZ129: checked other tables that data is similar and not more | CB129: 100 | CC129: 70.7
A130: 030023 | D130: 60 | F130: Milk, full fat, 3.4 %fat, UHT | I130: 1 | J130: 260.1 | K130: 88 | L130: 0.5 | M130: 3.2 | N130: 0 | O130: 3.2 | P130: 0.01 | Q130: 3.4 | S130: 1.94 | T130: 0.9 | U130: 0.11 | W130: 4.8 | Z130: 0 | AA130: 4.8 | AE130: 0 | AJ130: 0.7 | AK130: 117 | AL130: 0.1 | AM130: 12 | AN130: 87 | AO130: 147 | AP130: 49 | AQ130: 0.38 | AR130: 0.01 | AS130: 2 | AT130: 4 | AV130: 40 | AW130: 37 | AX130: 19 | BE130: 0.03 | BH130: 0.14 | BJ130: 0.02 | BK130: 0.14 | BL130: 0.1 | BN130: 0.027 | BO130: 5 | BP130: 0.4 | BQ130: 1 | BT130: 6.38 | BW130: SA99 | BX130: 4308 | CB130: 100 | CC130: 4.7
A131: 110008 | D131: 15 | F131: Sugar, granulated, brown | I131: 1 | J131: 1649 | K131: 2.1 | M131: 0 | N131: 0 | O131: 0 | P131: 0 | Q131: 0 | S131: 0 | T131: 0 | U131: 0 | W131: 96.4 | AA131: 96.4 | AE131: 0 | AJ131: 0.9 | AK131: 85 | AL131: 3.4 | AM131: 15 | AN131: 19 | AO131: 344 | AP131: 30 | AR131: 0.06 | AV131: 0 | BE131: 0 | BH131: 0 | BJ131: 0.01 | BK131: 0.03 | BL131: 0.2 | BN131: 0 | BO131: 0 | BP131: 0 | BQ131: 0 | BT131: 6.25 | BW131: SA91 | BX131: 9032 | CB131: 100 | CC131: 97
D132: =SUM(D128:D131) -> 365 | F132: Sum of weight and NV of raw ingredients (a) | J132: =SUM(J128:J131) -> 3387.47 | K132: =SUM(K128:K131) -> 201 | L132: 0.5 | M132: 13.57 | N132: 10.37 | O132: 3.2 | P132: 0.01 | Q132: 5.1 | R132: 0 | S132: 1.94 | T132: 0.9 | U132: 0.11 | V132: 0 | W132: 173.4 | X132: 0 | Y132: 0 | Z132: 71.4 | AA132: 101.57 | AB132: 0 | AC132: 0 | AD132: 0 | AE132: 4.66 | AF132: 0 | AG132: 0 | AH132: 0 | AI132: 0 | AJ132: 3.27 | AK132: 216 | AL132: 9.3 | AM132: 28 | AN132: 106 | AO132: 491 | AP132: 125 | AQ132: 2.52 | AR132: 0.077 | AS132: 2 | AT132: 4 | AU132: 0 | AV132: 40 | AW132: 37 | AX132: 20 | AY132: 0 | AZ132: 1 | BA132: 0 | BB132: 0 | BC132: 0 | BD132: 0 | BE132: 0.03 | BF132: 0 | BG132: 0 | BH132: 0.14 | BI132: 0 | BJ132: 0.21 | BK132: 0.29 | BL132: 1.21 | BM132: 0 | BN132: 0.027 | BO132: 5 | BP132: 0.4 | BQ132: 1
D133: =D132*D134 -> 244.7447796 | F133: Cooked weight (b): measurment or estimate (b) = (a) x (c) | K133: =K132-(D132-D133) -> 80.74477958
D134: 0.6705336427 | F134: Yield factor (c) =1- (a-b)/a or estimated from similar recipe | J134: =J132/$D$133*100*J10 -> 1384.082637 | L134: =L132/$D$133*100*L10 -> 0.2042944494 | M134: 5.544551358 | N134: 4.237066882 | O134: 1.307484476 | P134: 0.004085888989 | Q134: 2.083803384 | R134: 0 | S134: 0.7926624639 | T134: 0.367730009 | U134: 0.04494477888 | V134: 0 | W134: 70.84931507 | X134: 0 | Y134: 0 | Z134: 29.17324738 | AA134: 41.50037446 | AB134: 0 | AC134: 0 | AD134: 0 | AE134: 1.904024269 | AF134: 0 | AG134: 0 | AH134: 0 | AI134: 0 | AJ134: 1.336085699 | AK134: 88.25520216 | AL134: 3.79987676 | AM134: 11.44048917 | AN134: 43.31042328 | AO134: 200.6171494 | AP134: 51.07361236 | AQ134: 1.029644025 | AR134: =AR132/$D$133*100*AR10 -> 0.03146134521 | AS134: 0.8171777978 | AT134: 1.634355596 | AU134: 0 | AV134: 16.34355596 | AW134: 15.11778926 | AX134: 8.171777978 | AY134: 0 | AZ134: 0.4085888989 | BA134: 0 | BB134: 0 | BC134: 0 | BD134: 0 | BE134: 0.01225766697 | BF134: 0 | BG134: 0 | BH134: 0.05720244585 | BI134: 0 | BJ134: 0.05148220126 | BK134: 0.07109446841 | BL134: 0.2966355406 | BM134: 0 | BN134: 0.006619140162 | BO134: 1.021472247 | BP134: 0.1634355596 | BQ134: 0.4085888989
F135: NV of 100g cooked dish incl. retention factors(RF): (d) = NV(a)/b x 100 x RF
F136: Water of 100g cooked dish (e) = NV(a)-(a-b)/b x 100 | K136: =(K132-(D132-D133))/D133*100 -> 32.99142058
F138: Water, tab | K138: =+K128*$D$128/100 -> 249.75 | M138: 0 | N138: 0 | O138: 0 | P138: 0 | Q138: 0 | R138: 0 | S138: 0 | T138: 0 | U138: 0 | V138: 0 | W138: 0 | X138: 0 | Y138: 0 | Z138: 0 | AA138: 0 | AB138: 0 | AC138: 0 | AD138: 0 | AE138: 0 | AF138: 0 | AG138: 0 | AH138: 0 | AI138: 0 | AJ138: 0.25 | AK138: 5 | AL138: 0 | AM138: 2.5 | AN138: 0 | AO138: 0 | AP138: 5 | AQ138: =+AQ128*$D$128/100 -> 0 | AR138: 0.0175 | AS138: 0 | AT138: 0 | AU138: 0 | AV138: 0 | AW138: 0 | AX138: 0 | AY138: 0 | AZ138: 0 | BA138: 0 | BB138: 0 | BC138: 0 | BD138: 0 | BE138: 0 | BF138: 0 | BG138: 0 | BH138: 0 | BI138: 0 | BJ138: 0 | BK138: 0 | BL138: 0 | BM138: 0 | BN138: 0 | BO138: 0 | BP138: 0 | BQ138: 0 | CG138: =+CG130*$D$37/100 -> 0 | CH138: =+CH130*$D$37/100 -> 0
F139: Sorghum flour | K139: =+K129*$D$129/100 -> 4.4 | M139: 4.148 | N139: 4.148 | O139: 0 | P139: 0 | Q139: 0.68 | R139: 0 | S139: 0 | T139: 0 | U139: 0 | V139: 0 | W139: 28.88 | X139: 0 | Y139: 0 | Z139: 28.56 | AA139: 0.1480000019 | AB139: 0 | AC139: 0 | AD139: 0 | AE139: 1.864 | AF139: 0 | AG139: 0 | AH139: 0 | AI139: 0 | AJ139: 0.628 | AK139: 4.8 | AL139: 2.32 | AM139: 0 | AN139: 0 | AO139: 0 | AP139: 17.6 | AQ139: =+AQ129*$D$129/100 -> 0.856 | AR139: 0 | AS139: 0 | AT139: 0 | AU139: 0 | AV139: 0 | AW139: 0 | AX139: 0.4 | AY139: 0 | AZ139: 0.4 | BA139: 0 | BB139: 0 | BC139: 0 | BD139: 0 | BE139: 0 | BF139: 0 | BG139: 0 | BH139: tr | BI139: =+BI129*$D$129/100 -> 0 | BJ139: =+BJ129*$D$129/100 -> 0.072 | BK139: =+BK129*$D$129/100 -> 0.048 | BL139: =+BL129*$D$129/100 -> 0.364 | BM139: =+BM129*$D$129/100 -> 0 | BN139: ? | BO139: =+BO129*$D$129/100 -> 0 | BP139: =+BP129*$D$129/100 -> 0 | BQ139: =+BQ129*$D$129/100 -> 0 | CB139: =+CB129 -> 100 | CC139: 70.7 | CG139: =+CG131*$D$38/100 -> 0 | CH139: =+CH131*$D$38/100 -> 0
F140: Milk, full fat, 3.4 %fat, UHT | K140: =+K130*$D$130/100 -> 52.8 | L140: 0.3 | M140: 1.92 | N140: 0 | O140: 1.92 | P140: 0.006 | Q140: 2.04 | R140: 0 | S140: 1.164 | T140: 0.54 | U140: 0.066 | V140: 0 | W140: 2.88 | X140: 0 | Y140: 0 | Z140: 0 | AA140: 2.88 | AB140: 0 | AC140: 0 | AD140: 0 | AE140: 0 | AF140: 0 | AG140: 0 | AH140: 0 | AI140: 0 | AJ140: 0.42 | AK140: 70.2 | AL140: 0.06 | AM140: 7.2 | AN140: 52.2 | AO140: 88.2 | AP140: 29.4 | AQ140: =+AQ130*$D$130/100 -> 0.228 | AR140: 0.006 | AS140: 1.2 | AT140: 2.4 | AU140: 0 | AV140: 24 | AW140: 22.2 | AX140: 11.4 | AY140: 0 | AZ140: 0 | BA140: 0 | BB140: 0 | BC140: 0 | BD140: 0 | BE140: 0.018 | BF140: 0 | BG140: 0 | BH140: 0.084 | BI140: 0 | BJ140: 0.012 | BK140: 0.084 | BL140: 0.06 | BM140: 0 | BN140: 0.0162 | BO140: 3 | BP140: 0.24 | BQ140: 0.6 | CB140: 100 | CC140: 4.7 | CG140: =SUM(CG138:CG139) -> 0 | CH140: =SUM(CH138:CH139) -> 0
F141: Sugar, granulated, brown | K141: =+K131*$D$131/100 -> 0.315 | M141: 0 | N141: 0 | O141: 0 | P141: 0 | Q141: 0 | R141: 0 | S141: 0 | T141: 0 | U141: 0 | V141: 0 | W141: 14.46 | X141: 0 | Y141: 0 | Z141: 0 | AA141: 14.46 | AB141: 0 | AC141: 0 | AD141: 0 | AE141: 0 | AF141: 0 | AG141: 0 | AH141: 0 | AI141: 0 | AJ141: 0.135 | AK141: 12.75 | AL141: 0.51 | AM141: 2.25 | AN141: 2.85 | AO141: 51.6 | AP141: 4.5 | AQ141: =+AQ131*$D$131/100 -> 0 | AR141: 0.009 | AS141: 0 | AT141: 0 | AU141: 0 | AV141: 0 | AW141: 0 | AX141: 0 | AY141: 0 | AZ141: 0 | BA141: 0 | BB141: 0 | BC141: 0 | BD141: 0 | BE141: 0 | BF141: 0 | BG141: 0 | BH141: 0 | BI141: 0 | BJ141: 0.0015 | BK141: 0.0045 | BL141: 0.03 | BM141: 0 | BN141: 0 | BO141: 0 | BP141: 0 | BQ141: 0 | CB141: 100 | CC141: 97
K142: =SUM(K138:K141) -> 307.265 | L142: =SUM(L138:L141) -> 0.3 | M142: =SUM(M138:M141) -> 6.068 | N142: =SUM(N138:N141) -> 4.148 | O142: 1.92 | P142: 0.006 | Q142: 2.72 | R142: 0 | S142: 1.164 | T142: 0.54 | U142: 0.066 | V142: 0 | W142: 46.22 | X142: 0 | Y142: 0 | Z142: 28.56 | AA142: 17.488 | AB142: 0 | AC142: 0 | AD142: 0 | AE142: 1.864 | AF142: 0 | AG142: 0 | AH142: 0 | AI142: 0 | AJ142: 1.433 | AK142: 92.75 | AL142: 2.89 | AM142: 11.95 | AN142: 55.05 | AO142: 139.8 | AP142: 56.5 | AQ142: 1.084 | AR142: 0.0325 | AS142: 1.2 | AT142: 2.4 | AU142: 0 | AV142: 24 | AW142: 22.2 | AX142: 11.8 | AY142: 0 | AZ142: 0.4 | BA142: 0 | BB142: 0 | BC142: 0 | BD142: 0 | BE142: 0.018 | BF142: 0 | BG142: 0 | BH142: 0.084 | BI142: 0 | BJ142: 0.0855 | BK142: 0.1365 | BL142: 0.454 | BM142: 0 | BN142: 0.0162 | BO142: 3 | BP142: 0.24 | BQ142: 0.6 | CB142: =(CB139+CB140+CB141) -> 300 | CC142: =(CC139+CC140+CC141) -> 172.4 | CG142: =CG140/$D$40*100*CG71 -> 0 | CH142: =CH140/$D$40*100*CH71 -> 0
K144: =(K142-($D$132-$D$133))/$D$133*100 -> 76.41011992 | L144: =L142/$D$133*100*L10 -> 0.1225766697 | M144: 2.479317438 | N144: 1.694826753 | O144: 0.7844906859 | P144: 0.002451533393 | Q144: 1.111361805 | R144: 0 | S144: 0.4755974783 | T144: 0.2206380054 | U144: 0.02696686733 | V144: 0 | W144: 18.88497891 | X144: 0 | Y144: 0 | Z144: 11.66929895 | AA144: 7.145402665 | AB144: 0 | AC144: 0 | AD144: 0 | AE144: 0.7616097075 | AF144: 0 | AG144: 0 | AH144: 0 | AI144: 0 | AJ144: 0.5855078921 | AK144: 37.89662037 | AL144: 1.180821918 | AM144: 4.882637342 | AN144: 22.49281888 | AO144: 57.12072807 | AP144: 23.08527279 | AQ144: 0.4429103664 | AR144: =AR142/$D$133*100*AR10 -> 0.01327913921 | AS144: 0.4903066787 | AT144: 0.9806133573 | AU144: 0 | AV144: 9.806133573 | AW144: 9.070673555 | AX144: 4.821349007 | AY144: 0 | AZ144: 0.1634355596 | BA144: 0 | BB144: 0 | BC144: 0 | BD144: 0 | BE144: 0.00735460018 | BF144: 0 | BG144: 0 | BH144: 0.03432146751 | BI144: 0 | BJ144: 0.02096061051 | BK144: 0.03346343082 | BL144: 0.1112996161 | BM144: 0 | BN144: 0.003971484097 | BO144: 0.6128833483 | BP144: 0.09806133573 | BQ144: 0.2451533393 | CB144: =CB142/3 -> 100 | CC144: =CC142 -> 172.4
A147: 011038 | E147: Maize samp with dried beans (Umngqusho) | J147: =(M147*17)+(Q147*37)+(W147*17)+(AI147*29)+(AE147*8) -> 649.5476974 | K147: =+K166 -> 62.37746711 | M147: =+M166 -> 5.283717105 | N147: 5.283717105 | O147: 0 | P147: 0 | Q147: 1.644736842 | R147: 0 | S147: 0.2136101974 | T147: 0.3010279605 | U147: 1.051233553 | V147: 0 | W147: 27.15871711 | X147: 15.93338816 | Y147: 0 | Z147: 0 | AA147: 0 | AB147: 0 | AC147: 0 | AD147: 0 | AE147: 4.646381579 | AF147: 0 | AG147: 0 | AH147: 0 | AI147: 0 | AJ147: 1.004523026 | AK147: 19.77796053 | AL147: 1.337582237 | AM147: 10.36595395 | AN147: 46.05674342 | AO147: 257.3560855 | AP147: 171.0526316 | AQ147: 0.6254111842 | AR147: 0.2013980263 | AS147: 0 | AT147: 289.8848684 | AU147: 0 | AV147: 0.03700657895 | AW147: 0 | AX147: 0 | AY147: 0 | AZ147: 0 | BA147: 0 | BB147: 0 | BC147: 0 | BD147: 0 | BE147: 0 | BF147: 0 | BG147: 0 | BH147: 0.5907072368 | BI147: 0 | BJ147: 0.07154605263 | BK147: 0.01973684211 | BL147: 0.3700657895 | BM147: 0 | BN147: 0.05699013158 | BO147: 39.0625 | BP147: 0 | BQ147: 0.6167763158 | BR147: 0 | CB147: =+CB166 -> 100 | CC147: =+CC166 -> 121.81
A148: 130007 | D148: 1000 | F148: Water, tab | I148: 1 | J148: 0 | K148: 99.9 | M148: 0 | P148: 0 | Q148: 0 | R148: 0 | S148: 0 | T148: 0 | U148: 0 | W148: 0 | X148: 0 | Z148: 0 | AA148: 0 | AD148: 0 | AE148: 0 | AF148: 0 | AG148: 0 | AH148: 0 | AI148: 0 | AJ148: 0.1 | AK148: 2 | AL148: 0 | AM148: 1 | AN148: 0 | AO148: 0 | AP148: 2 | AQ148: 0 | AR148: 0.007 | AS148: 0 | AT148: 0 | AV148: 0 | AW148: 0 | AX148: 0 | AY148: 0 | AZ148: 0 | BA148: 0 | BB148: 0 | BE148: 0 | BG148: 0 | BH148: 0 | BI148: 0 | BJ148: 0 | BK148: 0 | BL148: 0 | BM148: 0 | BN148: 0 | BO148: 0 | BP148: 0 | BQ148: 0 | BR148: 0 | BS148: 1 | BT148: 6.25 | BW148: US18 | BX148: 14429 | CC148: 0
A149: 011014 | D149: 250 | F149: Maize samp/rice , white, raw | I149: 1 | J149: =(M149*17)+(Q149*37)+(CC149*17)+(AI149*29)+(AE149*8) -> 1454 | K149: 13 | M149: 8.8 | N149: 8.8 | O149: 0 | P149: 0 | Q149: 0.7 | S149: 0.09 | T149: 0.21 | U149: 0.28 | V149: 0 | W149: 85.9 | X149: =100-K149-M149-Q149 -> 77.5 | AD149: 0 | AE149: 3.2 | AJ149: 0.6 | AK149: 3 | AL149: 0.6 | AM149: 28 | AN149: 60 | AO149: 110 | AP149: 3 | AQ149: 0.5 | AR149: 0.07 | AS149: 0 | AT149: 100 | AU149: 0 | AV149: 0 | AW149: 0 | BE149: 0 | BH149: 0.18 | BJ149: 0.13 | BK149: 0.01 | BL149: 0.5 | BN149: 0.025 | BO149: 10 | BP149: 0 | BQ149: 0 | BT149: 6.25 | BW149: SA91 | BX149: 4077 | BY149: 3274 | CB149: =CC149+K149+M149+Q149+AE149+AJ149 -> 100 | CC149: =100-(K149+M149+Q149+AJ149+AE149+AI149) -> 73.7
A150: 060005 | D150: 250 | F150: Beans, sugar, dried, raw | I150: 1 | J150: =(M150*17)+(Q150*37)+(CC150*17)+(AI150*29)+(AE150*8) -> 1308.47 | K150: 12.4 | M150: 16.9 | N150: 16.9 | O150: 0 | P150: 0 | Q150: 1.3 | S150: 0.19 | T150: 0.14 | U150: 0.98 | W150: 46.2 | AA150: 0 | AE150: 19.4 | AJ150: 1.89 | AK150: 85 | AL150: 5.9 | AM150: 16.9 | AN150: 164 | AO150: 1140 | AP150: 35 | AQ150: 2.54 | AR150: 0.88 | AT150: 1310 | AV150: 0 | BE150: 0 | BH150: 0.34 | BJ150: 0.45 | BK150: 0.13 | BL150: 2.5 | BN150: 0.437 | BO150: 370 | BP150: 0 | BQ150: 3 | BT150: 6.25 | BW150: SA91 | BX150: 3543 | CB150: =CC150+K150+M150+Q150+AE150+AJ150 -> 100 | CC150: =100-(K150+M150+Q150+AJ150+AE150+AI150) -> 48.11
A151: 090007 | D151: 15 | F151: Sunflower oil | I151: 1 | J151: =(M151*17)+(Q151*37)+(CC151*17)+(AI151*29)+(AE151*8) -> 3700 | K151: 0 | L151: tr | M151: 0 | N151: 0 | O151: 0 | P151: 0 | Q151: 100 | S151: 12.65 | T151: 18.57 | U151: 64.22 | W151: 0 | Z151: 0 | AE151: 0 | AJ151: 0 | AK151: 0 | AL151: 0 | AM151: 0 | AN151: 0 | AO151: 0 | AP151: 0 | AQ151: 0 | AR151: 0 | AV151: 3 | BG151: 0 | BH151: 39.22 | BJ151: 0 | BK151: 0 | BL151: 0 | BN151: 0 | BO151: 0 | BP151: 0 | BT151: 6.25 | BW151: SA91 | BX151: 6536 | CB151: =CC151+K151+M151+Q151+AE151+AJ151 -> 100 | CC151: =100-(K151+M151+Q151+AJ151+AE151+AI151) -> 0
A152: 150005 | D152: 5 | F152: Salt, iodated | I152: 1 | J152: =(M152*17)+(Q152*37)+(CC152*17)+(AI152*29)+(AE152*8) -> 0 | K152: 0.2 | M152: 0 | N152: 0 | O152: 0 | P152: 0 | Q152: 0 | S152: 0 | T152: 0 | U152: 0 | V152: 0 | W152: =Y152/1.1 -> 0 | Y152: 0 | AB152: 0 | AC152: 0 | AG152: 0 | AJ152: 99.8 | AK152: 10 | AL152: 0.3 | AM152: 76 | AN152: 1 | AO152: 89 | AP152: 39300 | AQ152: 0.1 | AR152: 0.08 | AT152: tr | AW152: 0 | AX152: 0 | BF152: 0 | BH152: 0 | BJ152: 0 | BK152: 1 | BL152: 0 | BN152: 0 | BO152: 0 | BP152: 0 | BQ152: 0 | BT152: 6.25 | BW152: GB6 | BX152: 1226 | CB152: =CC152+K152+M152+Q152+AE152+AJ152 -> 100 | CC152: =100-(K152+M152+Q152+AJ152+AE152+AI152) -> 0
D153: =SUM(D148:D152) -> 1520 | F153: Sum of weight and NV of raw ingredients (a)
D154: =D153*D155 -> 1216 | F154: Cooked weight (b): measurment or estimate (b) = (a) x (c)
D155: 0.8 | F155: Yield factor (c) =1- (a-b)/a or estimated from similar recipe
F156: NV of 100g cooked dish incl. retention factors(RF): (d) = NV(a)/b x 100 x RF
F157: Water of 100g cooked dish (e) = NV(a)-(a-b)/b x 100
F159: Water, tab | K159: =+K148*$D$148/100 -> 999 | M159: =+M148*$D$148/100 -> 0 | N159: =+N148*$D$148/100 -> 0 | O159: 0 | P159: 0 | Q159: 0 | R159: 0 | S159: 0 | T159: 0 | U159: 0 | V159: 0 | W159: 0 | X159: 0 | Y159: 0 | Z159: 0 | AA159: 0 | AB159: 0 | AC159: 0 | AD159: 0 | AE159: 0 | AF159: 0 | AG159: 0 | AH159: 0 | AI159: 0 | AJ159: 1 | AK159: 20 | AL159: 0 | AM159: 10 | AN159: 0 | AO159: 0 | AP159: 20 | AQ159: 0 | AR159: 0.07 | AS159: 0 | AT159: 0 | AU159: 0 | AV159: 0 | AW159: 0 | AX159: 0 | AY159: 0 | AZ159: 0 | BA159: 0 | BB159: 0 | BC159: 0 | BD159: 0 | BE159: 0 | BF159: 0 | BG159: 0 | BH159: 0 | BI159: 0 | BJ159: 0 | BK159: 0 | BL159: 0 | BM159: 0 | BN159: 0 | BO159: 0 | BP159: 0 | BQ159: 0 | BR159: 0
F160: Maize samp/rice , white, raw | K160: =+K149*$D$149/100 -> 32.5 | M160: =+M149*$D$149/100 -> 22 | N160: =+N149*$D$149/100 -> 22 | O160: 0 | P160: 0 | Q160: 1.75 | R160: 0 | S160: 0.225 | T160: 0.525 | U160: 0.7 | V160: 0 | W160: 214.75 | X160: 193.75 | Y160: 0 | Z160: 0 | AA160: 0 | AB160: 0 | AC160: 0 | AD160: 0 | AE160: 8 | AF160: 0 | AG160: 0 | AH160: 0 | AI160: 0 | AJ160: 1.5 | AK160: 7.5 | AL160: 1.5 | AM160: 70 | AN160: 150 | AO160: 275 | AP160: 7.5 | AQ160: 1.25 | AR160: 0.175 | AS160: 0 | AT160: 250 | AU160: 0 | AV160: 0 | AW160: 0 | AX160: 0 | AY160: 0 | AZ160: 0 | BA160: 0 | BB160: 0 | BC160: 0 | BD160: 0 | BE160: 0 | BF160: 0 | BG160: 0 | BH160: 0.45 | BI160: 0 | BJ160: 0.325 | BK160: 0.025 | BL160: 1.25 | BM160: 0 | BN160: 0.0625 | BO160: 25 | BP160: 0 | BQ160: 0 | BR160: 0 | CB160: =+CB149 -> 100 | CC160: 73.7
F161: Beans, sugar, dried, raw | K161: =+K150*$D$150/100 -> 31 | M161: =+M150*$D$150/100 -> 42.25 | N161: =+N150*$D$150/100 -> 42.25 | O161: 0 | P161: 0 | Q161: 3.25 | R161: 0 | S161: 0.475 | T161: 0.35 | U161: 2.45 | V161: 0 | W161: 115.5 | X161: 0 | Y161: 0 | Z161: 0 | AA161: 0 | AB161: 0 | AC161: 0 | AD161: 0 | AE161: 48.5 | AF161: 0 | AG161: 0 | AH161: 0 | AI161: 0 | AJ161: 4.725 | AK161: 212.5 | AL161: 14.75 | AM161: 42.25 | AN161: 410 | AO161: 2850 | AP161: 87.5 | AQ161: 6.35 | AR161: 2.2 | AS161: 0 | AT161: 3275 | AU161: 0 | AV161: 0 | AW161: 0 | AX161: 0 | AY161: 0 | AZ161: 0 | BA161: 0 | BB161: 0 | BC161: 0 | BD161: 0 | BE161: 0 | BF161: 0 | BG161: 0 | BH161: 0.85 | BI161: 0 | BJ161: 1.125 | BK161: 0.325 | BL161: 6.25 | BM161: 0 | BN161: 1.0925 | BO161: 925 | BP161: 0 | BQ161: 7.5 | BR161: 0 | CB161: 100 | CC161: 48.11
F162: Sunflower oil | K162: =+K151*$D$151/100 -> 0 | L162: tr | M162: =+M151*$D$151/100 -> 0 | N162: =+N151*$D$151/100 -> 0 | O162: 0 | P162: 0 | Q162: 15 | R162: 0 | S162: 1.8975 | T162: 2.7855 | U162: 9.633 | V162: 0 | W162: 0 | X162: 0 | Y162: 0 | Z162: 0 | AA162: 0 | AB162: 0 | AC162: 0 | AD162: 0 | AE162: 0 | AF162: 0 | AG162: 0 | AH162: 0 | AI162: 0 | AJ162: 0 | AK162: 0 | AL162: 0 | AM162: 0 | AN162: 0 | AO162: 0 | AP162: 0 | AQ162: 0 | AR162: 0 | AS162: 0 | AT162: 0 | AU162: 0 | AV162: 0.45 | AW162: 0 | AX162: 0 | AY162: 0 | AZ162: 0 | BA162: 0 | BB162: 0 | BC162: 0 | BD162: 0 | BE162: 0 | BF162: 0 | BG162: 0 | BH162: 5.883 | BI162: 0 | BJ162: 0 | BK162: 0 | BL162: 0 | BM162: 0 | BN162: 0 | BO162: 0 | BP162: 0 | BQ162: 0 | BR162: 0 | CB162: 100 | CC162: 0
F163: Salt, iodated | K163: =+K152*$D$152/100 -> 0.01 | M163: =+M152*$D$152/100 -> 0 | N163: =+N152*$D$152/100 -> 0 | O163: 0 | P163: 0 | Q163: 0 | R163: 0 | S163: 0 | T163: 0 | U163: 0 | V163: 0 | W163: 0 | X163: 0 | Y163: 0 | Z163: 0 | AA163: 0 | AB163: 0 | AC163: 0 | AD163: 0 | AE163: 0 | AF163: 0 | AG163: 0 | AH163: 0 | AI163: 0 | AJ163: 4.99 | AK163: 0.5 | AL163: 0.015 | AM163: 3.8 | AN163: 0.05 | AO163: 4.45 | AP163: 1965 | AQ163: 0.005 | AR163: 0.004 | AS163: 0 | AT163: tr | AU163: 0 | AV163: 0 | AW163: 0 | AX163: 0 | AY163: 0 | AZ163: 0 | BA163: 0 | BB163: 0 | BC163: 0 | BD163: 0 | BE163: 0 | BF163: 0 | BG163: 0 | BH163: 0 | BI163: 0 | BJ163: 0 | BK163: 0.05 | BL163: 0 | BM163: 0 | BN163: 0 | BO163: 0 | BP163: 0 | BQ163: 0 | BR163: 0 | CB163: 100 | CC163: 0
K164: =SUM(K159:K163) -> 1062.51 | M164: =SUM(M159:M163) -> 64.25 | N164: =SUM(N159:N163) -> 64.25 | O164: 0 | P164: 0 | Q164: 20 | R164: 0 | S164: 2.5975 | T164: 3.6605 | U164: 12.783 | V164: 0 | W164: 330.25 | X164: 193.75 | Y164: 0 | Z164: 0 | AA164: 0 | AB164: 0 | AC164: 0 | AD164: 0 | AE164: 56.5 | AF164: 0 | AG164: 0 | AH164: 0 | AI164: 0 | AJ164: 12.215 | AK164: 240.5 | AL164: 16.265 | AM164: 126.05 | AN164: 560.05 | AO164: 3129.45 | AP164: 2080 | AQ164: 7.605 | AR164: 2.449 | AS164: 0 | AT164: 3525 | AU164: 0 | AV164: 0.45 | AW164: 0 | AX164: 0 | AY164: 0 | AZ164: 0 | BA164: 0 | BB164: 0 | BC164: 0 | BD164: 0 | BE164: 0 | BF164: 0 | BG164: 0 | BH164: 7.183 | BI164: 0 | BJ164: 1.45 | BK164: 0.4 | BL164: 7.5 | BM164: 0 | BN164: 1.155 | BO164: 950 | BP164: 0 | BQ164: 7.5 | BR164: 0 | CB164: =(CB160+CB161+CB162+CB163) -> 400 | CC164: =(CC160+CC161+CC162+CC163) -> 121.81
K166: =(K164-($D$153-$D$154))/$D$154*100 -> 62.37746711 | M166: =M164/$D$154*100*M10 -> 5.283717105 | N166: =N164/$D$154*100*N10 -> 5.283717105 | O166: 0 | P166: 0 | Q166: 1.644736842 | R166: 0 | S166: 0.2136101974 | T166: 0.3010279605 | U166: 1.051233553 | V166: 0 | W166: 27.15871711 | X166: 15.93338816 | Y166: 0 | Z166: 0 | AA166: 0 | AB166: 0 | AC166: 0 | AD166: 0 | AE166: 4.646381579 | AF166: 0 | AG166: 0 | AH166: 0 | AI166: 0 | AJ166: 1.004523026 | AK166: 19.77796053 | AL166: 1.337582237 | AM166: 10.36595395 | AN166: 46.05674342 | AO166: 257.3560855 | AP166: 171.0526316 | AQ166: 0.6254111842 | AR166: 0.2013980263 | AS166: 0 | AT166: 289.8848684 | AU166: 0 | AV166: 0.03700657895 | AW166: 0 | AX166: 0 | AY166: 0 | AZ166: 0 | BA166: 0 | BB166: 0 | BC166: 0 | BD166: 0 | BE166: 0 | BF166: 0 | BG166: 0 | BH166: 0.5907072368 | BI166: 0 | BJ166: 0.07154605263 | BK166: 0.01973684211 | BL166: 0.3700657895 | BM166: 0 | BN166: 0.05699013158 | BO166: 39.0625 | BP166: 0 | BQ166: 0.6167763158 | BR166: 0 | CB166: =CB164/4 -> 100 | CC166: =CC164 -> 121.81
A168: 011040 | F168: Maize, whole, grain, white, dried, roasted (Machechisa) | I168: 1 | J168: =(M168*17)+(Q168*37)+(W168*17)+(AI168*29)+(AE168*8) -> 629.3632959 | K168: =+K180 -> 67.41573034 | M168: =+M180 -> 3.445692884 | N168: 3.445692884 | O168: 0 | P168: 0 | Q168: 1.610486891 | R168: 0 | S168: 0.1985018727 | T168: 0.4606741573 | U168: 0.7265917603 | V168: 0 | W168: 28.20224719 | X168: 27.52808989 | Y168: 0 | Z168: 0 | AA168: 0 | AB168: 0 | AC168: 0 | AD168: 0 | AE168: 3.970037453 | AF168: 0 | AG168: 0 | AH168: 0 | AI168: 0 | AJ168: 0.4232209738 | AK168: 3.745318352 | AL168: 1.123595506 | AM168: 46.06741573 | AN168: 90.26217228 | AO168: 129.588015 | AP168: 4.119850187 | AQ168: 0.861423221 | AR168: 0.07490636704 | AS168: 0 | AT168: 262.1722846 | AU168: 0 | AV168: 0 | AW168: 0 | AX168: 0 | AY168: 0 | AZ168: 0 | BA168: 0 | BB168: 0 | BC168: 0 | BD168: 0 | BE168: 0 | BF168: 0 | BG168: 0 | BH168: 0.4868913858 | BI168: 0 | BJ168: 0.15917603 | BK168: 0.03820224719 | BL168: 0.7827715356 | BM168: 0 | BN168: 0.08426966292 | BO168: 6.179775281 | BP168: 0 | BQ168: 0 | BR168: 0 | CB168: =+CB180 -> 100 | CC168: =+CC180 -> 61.77
A169: 011007 | D169: 100 | F169: Maize, whole grain, white, dried, raw | I169: 1 | J169: =(M169*17)+(Q169*37)+(CC169*17)+(AI169*29)+(AE169*8) -> 1450.39 | K169: 13 | M169: 9.2 | N169: 9.2 | O169: 0 | P169: 0 | Q169: 4.3 | S169: 0.53 | T169: 1.23 | U169: 1.94 | V169: 0 | W169: 75.3 | X169: =100-K169-M169-Q169 -> 73.5 | AA169: 0 | AD169: 0 | AE169: 10.6 | AJ169: 1.13 | AK169: 10 | AL169: 3 | AM169: 123 | AN169: 241 | AO169: 346 | AP169: 11 | AQ169: 2.3 | AR169: 0.2 | AS169: 0 | AT169: 700 | AU169: 0 | AV169: 0 | AW169: 0 | BE169: 0 | BH169: 1.3 | BJ169: 0.5 | BK169: 0.12 | BL169: 2.2 | BN169: 0.3 | BO169: 33 | BP169: 0 | BQ169: 0 | BT169: 6.25 | BW169: SA91 | BX169: 4073 | BY169: 3271 | CB169: =CC169+K169+M169+Q169+AE169+AJ169 -> 100 | CC169: =100-(K169+M169+Q169+AJ169+AE169+AI169) -> 61.77
D170: =SUM(D169:D169) -> 100 | F170: Sum of weight and NV of raw ingredients (a)
D171: 267 | F171: Cooked weight (b): measurment or estimate (b) = (a) x (c)
D172: =1-(D170-D171)/D170 -> 2.67 | F172: Yield factor (c) =1- (a-b)/a or estimated from similar recipe
F173: NV of 100g cooked dish incl. retention factors(RF): (d) = NV(a)/b x 100 x RF | J173: =J169-(D170-D171)/D171*100 -> 1512.936816
F174: Water of 100g cooked dish (e) = NV(a)-(a-b)/b x 100
F177: Maize, whole grain, white, dried, raw | K177: =+K169*$D$169/100 -> 13 | M177: =+M169*$D$169/100 -> 9.2 | N177: 9.2 | O177: 0 | P177: 0 | Q177: 4.3 | R177: 0 | S177: 0.53 | T177: 1.23 | U177: 1.94 | V177: 0 | W177: 75.3 | X177: 73.5 | Y177: 0 | Z177: 0 | AA177: 0 | AB177: 0 | AC177: 0 | AD177: 0 | AE177: 10.6 | AF177: 0 | AG177: 0 | AH177: 0 | AI177: 0 | AJ177: 1.13 | AK177: 10 | AL177: 3 | AM177: 123 | AN177: 241 | AO177: 346 | AP177: 11 | AQ177: 2.3 | AR177: 0.2 | AS177: 0 | AT177: 700 | AU177: 0 | AV177: 0 | AW177: 0 | AX177: 0 | AY177: 0 | AZ177: 0 | BA177: 0 | BB177: 0 | BC177: 0 | BD177: 0 | BE177: 0 | BF177: 0 | BG177: 0 | BH177: 1.3 | BI177: 0 | BJ177: 0.5 | BK177: 0.12 | BL177: 2.2 | BM177: 0 | BN177: 0.3 | BO177: 33 | BP177: 0 | BQ177: 0 | BR177: 0 | CB177: =+CB169 -> 100 | CC177: =+CC169 -> 61.77
K178: =SUM(K177:K177) -> 13 | M178: =SUM(M177:M177) -> 9.2 | N178: 9.2 | O178: 0 | P178: 0 | Q178: 4.3 | R178: 0 | S178: 0.53 | T178: 1.23 | U178: 1.94 | V178: 0 | W178: 75.3 | X178: 73.5 | Y178: 0 | Z178: 0 | AA178: 0 | AB178: 0 | AC178: 0 | AD178: 0 | AE178: 10.6 | AF178: 0 | AG178: 0 | AH178: 0 | AI178: 0 | AJ178: 1.13 | AK178: 10 | AL178: 3 | AM178: 123 | AN178: 241 | AO178: 346 | AP178: 11 | AQ178: 2.3 | AR178: 0.2 | AS178: 0 | AT178: 700 | AU178: 0 | AV178: 0 | AW178: 0 | AX178: 0 | AY178: 0 | AZ178: 0 | BA178: 0 | BB178: 0 | BC178: 0 | BD178: 0 | BE178: 0 | BF178: 0 | BG178: 0 | BH178: 1.3 | BI178: 0 | BJ178: 0.5 | BK178: 0.12 | BL178: 2.2 | BM178: 0 | BN178: 0.3 | BO178: 33 | BP178: 0 | BQ178: 0 | BR178: 0 | CB178: =(CB177) -> 100 | CC178: =(CC177) -> 61.77
K180: =(K178-($D$170-$D$171))/$D$171*100 -> 67.41573034 | M180: =M178/$D$171*100*M11 -> 3.445692884 | N180: 3.445692884 | O180: 0 | P180: 0 | Q180: 1.610486891 | R180: 0 | S180: 0.1985018727 | T180: 0.4606741573 | U180: 0.7265917603 | V180: 0 | W180: =W178/$D$171*100*W11 -> 28.20224719 | X180: 27.52808989 | Y180: 0 | Z180: 0 | AA180: 0 | AB180: 0 | AC180: 0 | AD180: 0 | AE180: 3.970037453 | AF180: 0 | AG180: 0 | AH180: 0 | AI180: 0 | AJ180: 0.4232209738 | AK180: 3.745318352 | AL180: 1.123595506 | AM180: 46.06741573 | AN180: 90.26217228 | AO180: 129.588015 | AP180: 4.119850187 | AQ180: 0.861423221 | AR180: 0.07490636704 | AS180: 0 | AT180: 262.1722846 | AU180: 0 | AV180: 0 | AW180: 0 | AX180: 0 | AY180: 0 | AZ180: 0 | BA180: 0 | BB180: 0 | BC180: 0 | BD180: 0 | BE180: 0 | BF180: 0 | BG180: 0 | BH180: 0.4868913858 | BI180: 0 | BJ180: 0.15917603 | BK180: 0.03820224719 | BL180: 0.7827715356 | BM180: 0 | BN180: 0.08426966292 | BO180: 6.179775281 | BP180: 0 | BQ180: 0 | BR180: 0 | CB180: =CB178/1 -> 100 | CC180: =CC178 -> 61.77
A183: 011041 | F183: Wheat, sorghum, dried beans, boiled (Likhobe) | J183: =(M183*17)+(Q183*37)+(W183*17)+(AI183*29)+(AE183*8) -> 401.3745247 | K183: =+K204 -> 73.1730038 | M183: =+M204 -> 3.664448669 | N183: 3.664448669 | O183: 0 | P183: 0 | Q183: 0.680608365 | R183: 0 | S183: 0.1009980989 | T183: 0.1422718631 | U183: 0.3467870722 | V183: 0 | W183: 16.75570342 | X183: 14.15114068 | Y183: 0 | Z183: 5.826045627 | AA183: 0.03897338403 | AB183: 0 | AC183: 0 | AD183: 0 | AE183: 3.631178707 | AF183: 0 | AG183: 0 | AH183: 0 | AI183: 0 | AJ183: 1.913498099 | AK183: 32.36692015 | AL183: 1.285646388 | AM183: 23.45057034 | AN183: 89.73859316 | AO183: 179.7956274 | AP183: 209.8859316 | AQ183: 0.4919201521 | AR183: 0.1933460076 | AS183: 0 | AT183: 124.9421103 | AU183: 0 | AV183: 0.002851711027 | AW183: 0 | AX183: 0 | AY183: 0 | AZ183: 0 | BA183: 0 | BB183: 0 | BC183: 0 | BD183: 0 | BE183: 0 | BF183: 0 | BG183: 0 | BH183: 0.1656083641 | BI183: 0 | BJ183: 0.0616539924 | BK183: 0.02384030418 | BL183: 0.5832889734 | BM183: 0 | BN183: 0.04043726236 | BO183: 19.53422053 | BP183: 0 | BQ183: 0.2851711027 | BR183: 0 | CB183: =+CB204 -> 100 | CC183: =+CC204 -> 268.18 | CI183: Researched
A184: 130011 | D184: 1000 | F184: Water, tab | J184: 0 | K184: 99.9 | M184: 0 | N184: 0 | O184: 0 | P184: 0 | Q184: 0 | R184: 0 | S184: 0 | T184: 0 | U184: 0 | V184: 0 | W184: 0 | X184: 0 | Y184: 0 | Z184: 0 | AA184: 0 | AB184: 0 | AC184: 0 | AD184: 0 | AE184: 0 | AF184: 0 | AG184: 0 | AH184: 0 | AJ184: 1 | AK184: 20 | AL184: 0 | AM184: 10 | AN184: 0 | AO184: 0 | AP184: 20 | AQ184: 0 | AR184: 0.07 | AS184: 0 | AT184: 0 | AU184: 0 | AV184: 0 | AW184: 0 | AX184: 0 | AY184: 0 | AZ184: 0 | BA184: 0 | BB184: 0 | BC184: 0 | BD184: 0 | BE184: 0 | BF184: 0 | BG184: 0 | BH184: 0 | BI184: 0 | BJ184: 0 | BK184: 0 | BL184: 0 | BM184: 0 | BN184: 0 | BO184: 0 | BP184: 0 | BQ184: 0 | BR184: 0 | BT184: 6.25 | CC184: 0
A185: 011037 | D185: 100 | F185: Wheat, whole grain, raw | I185: 1 | J185: =((M185*17)+(Q185*37)+(CC185*17)+(AI185*29)+(AE185*8))*D185/100 -> 1383.25 | K185: 12.17 | M185: 10.35 | N185: 10.35 | O185: 0 | P185: 0 | Q185: 1.56 | S185: 0.289 | T185: 0.178 | U185: 0.656 | W185: 61.74 | X185: 74.24 | Z185: 61.29 | AA185: 0.41 | AE185: 12.5 | AJ185: 1.68 | AK185: 27 | AL185: 3.21 | AM185: 126 | AN185: 493 | AO185: 397 | AP185: 2 | AQ185: 2.63 | AR185: 0.45 | AT185: 4.391 | AU185: 0 | AW185: 0 | BE185: 0 | BH185: 1.00999999 | BJ185: 0.394 | BK185: 0.096 | BL185: 4.8 | BN185: 0.272 | BO185: 41 | BP185: 0 | BQ185: 0 | BT185: 5.829999924 | BW185: US18 | BX185: 20073 | CB185: =CC185+K185+M185+Q185+AE185+AJ185 -> 100 | CC185: 61.74
A186: 011030 | D186: 100 | F186: Sorghum, whole grain, raw | I186: 1 | J186: =((M186*17)+(Q186*37)+(CC186*17)+(AI186*29)+(AE186*8))*D186/100 -> 1526.21 | K186: 9.2 | M186: 11.3 | N186: 11.3 | O186: 0 | P186: 0 | Q186: 3.3 | S186: 0.457 | T186: 0.993 | U186: 1.37 | W186: 68.33 | X186: 74.63 | AE186: 6.3 | AJ186: 1.57 | AK186: 28 | AL186: 4.4 | AN186: 287 | AO186: 350 | AP186: 6 | AU186: 0 | AW186: 0 | BE186: 0 | BH186: tr | BJ186: 0.237 | BK186: 0.142 | BL186: 2.927 | BN186: ? | BO186: ? | BP186: 0 | BQ186: 0 | BT186: 6.25 | BW186: US18 | BX186: 20067 | CB186: =CC186+K186+M186+Q186+AE186+AJ186 -> 100 | CC186: 68.33
A187: 060005 | D187: 100 | F187: Beans, sugar, dried, raw | I187: 1 | J187: =((M187*17)+(Q187*37)+(CC187*17)+(AI187*29)+(AE187*8))*D187/100 -> 1308.47 | K187: 12.4 | M187: 16.9 | N187: 16.9 | O187: 0 | P187: 0 | Q187: 1.3 | S187: 0.19 | T187: 0.14 | U187: 0.98 | W187: 46.2 | AA187: 0 | AE187: 19.4 | AJ187: 1.89 | AK187: 85 | AL187: 5.9 | AM187: 16.9 | AN187: 164 | AO187: 1140 | AP187: 35 | AQ187: 2.54 | AR187: 0.88 | AT187: 1310 | AV187: 0 | BE187: 0 | BH187: 0.34 | BJ187: 0.45 | BK187: 0.13 | BL187: 2.5 | BN187: 0.437 | BO187: 370 | BP187: 0 | BQ187: 3 | BT187: 6.25 | BW187: SA91 | BX187: 3543 | CB187: =CC187+K187+M187+Q187+AE187+AJ187 -> 100 | CC187: 48.11
A188: 090007 | D188: 10 | F188: Sunflower oil | I188: 1 | J188: =((M188*17)+(Q188*37)+(CC188*17)+(AI188*29)+(AE188*8))*D188/100 -> 190 | K188: 0 | M188: 0 | N188: 0 | O188: 0 | P188: 0 | Q188: 10 | R188: 0 | S188: 1.265 | T188: 1.857 | U188: 6.422 | V188: 0 | W188: 0 | X188: 0 | Y188: 0 | Z188: 0 | AA188: 0 | AB188: 0 | AC188: 0 | AD188: 0 | AE188: 0 | AF188: 0 | AG188: 0 | AH188: 0 | AJ188: 0 | AK188: 0 | AL188: 0 | AM188: 0 | AN188: 0 | AO188: 0 | AP188: 0 | AQ188: 0 | AR188: 0 | AS188: 0 | AT188: 0 | AU188: 0 | AV188: 0.3 | AW188: 0 | AX188: 0 | AY188: 0 | AZ188: 0 | BA188: 0 | BB188: 0 | BC188: 0 | BD188: 0 | BE188: 0 | BF188: 0 | BG188: 0 | BH188: 3.922 | BI188: 0 | BJ188: 0 | BK188: 0 | BL188: 0 | BM188: 0 | BN188: 0 | BO188: 0 | BP188: 0 | BQ188: 0 | BR188: 0 | BT188: 6.25 | CB188: =CC188+K188+M188+Q188+AE188+AJ188 -> 100 | CC188: =100-(K188+M188+Q188+AJ188+AE188+AI188) -> 90
A189: 150005 | D189: 5 | F189: Salt, iodated | I189: 1 | J189: 0 | K189: 0.2 | M189: 0 | N189: 0 | O189: 0 | P189: 0 | Q189: 0 | S189: 0 | T189: 0 | U189: 0 | V189: 0 | W189: 0 | Y189: 0 | AB189: 0 | AC189: 0 | AG189: 0 | AJ189: 99.8 | AK189: 10 | AL189: 0.3 | AM189: 76 | AN189: 1 | AO189: 89 | AP189: 39300 | AQ189: 0.1 | AR189: 0.08 | AT189: tr | AW189: 0 | AX189: 0 | BF189: 0 | BH189: 0 | BJ189: 0 | BK189: 1 | BL189: 0 | BN189: 0 | BO189: 0 | BP189: 0 | BQ189: 0 | BT189: 6.25 | BW189: GB6 | BX189: 1226 | CB189: =CC189+K189+M189+Q189+AE189+AJ189 -> 100 | CC189: =100-(K189+M189+Q189+AJ189+AE189+AI189) -> 0
D190: =SUM(D184:D189) -> 1315 | F190: Sum of weight and NV of raw ingredients (a) | J190: =SUM(J184:J189) -> 4407.93 | K190: =SUM(K184:K189) -> 133.87 | M190: 38.55 | N190: 38.55 | O190: 0 | P190: 0 | Q190: 16.16 | R190: 0 | S190: 2.201 | T190: 3.168 | U190: 9.428 | V190: 0 | W190: 176.27 | X190: 148.87 | Y190: 0 | Z190: 61.29 | AA190: 0 | AB190: 0 | AC190: 0 | AD190: 0 | AE190: 38.2 | AF190: 0 | AG190: 0 | AH190: 0 | AI190: 0 | AJ190: 105.94 | AK190: 170 | AL190: 13.81 | AM190: 228.9 | AN190: 945 | AO190: 1976 | AP190: 39363 | AQ190: 5.27 | AR190: 1.48 | AS190: 0 | AT190: 1314.391 | AU190: 0 | AV190: 0.3 | AW190: 0 | AX190: 0 | AY190: 0 | AZ190: 0 | BA190: 0 | BB190: 0 | BC190: 0 | BD190: 0 | BE190: 0 | BF190: 0 | BG190: 0 | BH190: 5.27199999 | BI190: 0 | BJ190: 1.081 | BK190: 1.368 | BL190: 10.227 | BM190: 0 | BN190: 0.709 | BO190: 411 | BP190: 0 | BQ190: 3
D191: =D190*D192 -> 1052 | F191: Cooked weight (b): measurment or estimate (b) = (a) x (c) | K191: =K190-(D190-D191) -> -129.13
D192: 0.8 | F192: Yield factor (c) =1- (a-b)/a or estimated from similar recipe
F193: NV of 100g cooked dish incl. retention factors(RF): (d) = NV(a)/b x 100 x RF | J193: =J190/$D$191*100*J10 -> 419.0047529 | M193: =M190/$D$191*100*M10 -> 3.664448669 | N193: 3.664448669 | O193: 0 | P193: 0 | Q193: 1.536121673 | R193: 0 | S193: 0.2092205323 | T193: 0.3011406844 | U193: 0.8961977186 | V193: 0 | W193: 16.75570342 | X193: 14.15114068 | Y193: 0 | Z193: 5.826045627 | AA193: 0 | AB193: 0 | AC193: 0 | AD193: 0 | AE193: 3.631178707 | AF193: 0 | AG193: 0 | AH193: 0 | AI193: 0 | AJ193: 10.07034221 | AK193: 16.15969582 | AL193: 1.312737643 | AM193: 21.75855513 | AN193: 89.82889734 | AO193: 187.8326996 | AP193: 3741.730038 | AQ193: 0.5009505703 | AR193: 0.1406844106 | AS193: =AS190/$D$191*100*AS10 -> 0 | AT193: 124.9421103 | AU193: 0 | AV193: 0.02851711027 | AW193: 0 | AX193: 0 | AY193: 0 | AZ193: 0 | BA193: 0 | BB193: 0 | BC193: 0 | BD193: 0 | BE193: 0 | BF193: 0 | BG193: 0 | BH193: 0.5011406835 | BI193: 0 | BJ193: 0.0616539924 | BK193: 0.07802281369 | BL193: 0.5832889734 | BM193: 0 | BN193: 0.04043726236 | BO193: 19.53422053 | BP193: 0 | BQ193: 0.2851711027
F194: Water of 100g cooked dish (e) = NV(a)-(a-b)/b x 100 | K194: =(K190-(D190-D191))/D191*100 -> -12.27471483
F196: Water, tab | K196: =+K184*$D$184/100 -> 999 | M196: =+M184*$D$184/100 -> 0 | N196: =+N184*$D$184/100 -> 0 | O196: 0 | P196: 0 | Q196: 0 | R196: 0 | S196: 0 | T196: 0 | U196: 0 | V196: 0 | W196: 0 | X196: 0 | Y196: 0 | Z196: 0 | AA196: 0 | AB196: 0 | AC196: 0 | AD196: 0 | AE196: 0 | AF196: 0 | AG196: 0 | AH196: 0 | AI196: 0 | AJ196: 10 | AK196: 200 | AL196: 0 | AM196: 100 | AN196: 0 | AO196: 0 | AP196: 200 | AQ196: 0 | AR196: 0.7 | AS196: 0 | AT196: 0 | AU196: 0 | AV196: 0 | AW196: 0 | AX196: 0 | AY196: 0 | AZ196: 0 | BA196: 0 | BB196: 0 | BC196: 0 | BD196: 0 | BE196: 0 | BF196: 0 | BG196: 0 | BH196: 0 | BI196: 0 | BJ196: 0 | BK196: 0 | BL196: 0 | BM196: 0 | BN196: 0 | BO196: 0 | BP196: 0 | BQ196: 0 | BR196: 0 | BS196: 0
F197: Wheat, whole grain, raw | K197: =+K185*$D$185/100 -> 12.17 | M197: =+M185*$D$185/100 -> 10.35 | N197: =+N185*$D$185/100 -> 10.35 | O197: 0 | P197: 0 | Q197: 1.56 | R197: 0 | S197: 0.289 | T197: 0.178 | U197: 0.656 | V197: 0 | W197: 61.74 | X197: 74.24 | Y197: 0 | Z197: 61.29 | AA197: 0.41 | AB197: 0 | AC197: 0 | AD197: 0 | AE197: 12.5 | AF197: 0 | AG197: 0 | AH197: 0 | AI197: 0 | AJ197: 1.68 | AK197: 27 | AL197: 3.21 | AM197: 126 | AN197: 493 | AO197: 397 | AP197: 2 | AQ197: 2.63 | AR197: 0.45 | AS197: 0 | AT197: 4.391 | AU197: 0 | AV197: 0 | AW197: 0 | AX197: 0 | AY197: 0 | AZ197: 0 | BA197: 0 | BB197: 0 | BC197: 0 | BD197: 0 | BE197: 0 | BF197: 0 | BG197: 0 | BH197: 1.00999999 | BI197: 0 | BJ197: 0.394 | BK197: 0.096 | BL197: 4.8 | BM197: 0 | BN197: 0.272 | BO197: 41 | BP197: 0 | BQ197: 0 | BR197: 0 | BS197: 0 | BT197: =+BT185*$D$185/100 -> 5.829999924 | CB197: =+CB185 -> 100 | CC197: 61.74
F198: Sorghum, whole grain, raw | K198: =+K186*$D$186/100 -> 9.2 | M198: =+M186*$D$186/100 -> 11.3 | N198: =+N186*$D$186/100 -> 11.3 | O198: 0 | P198: 0 | Q198: 3.3 | R198: 0 | S198: 0.457 | T198: 0.993 | U198: 1.37 | V198: 0 | W198: 68.33 | X198: 74.63 | Y198: 0 | Z198: 0 | AA198: 0 | AB198: 0 | AC198: 0 | AD198: 0 | AE198: 6.3 | AF198: 0 | AG198: 0 | AH198: 0 | AI198: 0 | AJ198: 1.57 | AK198: 28 | AL198: 4.4 | AM198: 0 | AN198: 287 | AO198: 350 | AP198: 6 | AQ198: 0 | AR198: 0 | AS198: 0 | AT198: 0 | AU198: 0 | AV198: 0 | AW198: 0 | AX198: 0 | AY198: 0 | AZ198: 0 | BA198: 0 | BB198: 0 | BC198: 0 | BD198: 0 | BE198: 0 | BF198: 0 | BG198: 0 | BH198: tr | BI198: 0 | BJ198: 0.237 | BK198: 0.142 | BL198: 2.927 | BM198: 0 | BN198: ? | BO198: ? | BP198: 0 | BQ198: 0 | BR198: 0 | BS198: 0 | BT198: =+BT186*$D$186/100 -> 6.25 | CB198: 100 | CC198: 68.33
F199: Beans, sugar, dried, raw | K199: =+K187*$D$187/100 -> 12.4 | M199: =+M187*$D$187/100 -> 16.9 | N199: =+N187*$D$187/100 -> 16.9 | O199: 0 | P199: 0 | Q199: 1.3 | R199: 0 | S199: 0.19 | T199: 0.14 | U199: 0.98 | V199: 0 | W199: 46.2 | X199: 0 | Y199: 0 | Z199: 0 | AA199: 0 | AB199: 0 | AC199: 0 | AD199: 0 | AE199: 19.4 | AF199: 0 | AG199: 0 | AH199: 0 | AI199: 0 | AJ199: 1.89 | AK199: 85 | AL199: 5.9 | AM199: 16.9 | AN199: 164 | AO199: 1140 | AP199: 35 | AQ199: 2.54 | AR199: 0.88 | AS199: 0 | AT199: 1310 | AU199: 0 | AV199: 0 | AW199: 0 | AX199: 0 | AY199: 0 | AZ199: 0 | BA199: 0 | BB199: 0 | BC199: 0 | BD199: 0 | BE199: 0 | BF199: 0 | BG199: 0 | BH199: 0.34 | BI199: 0 | BJ199: 0.45 | BK199: 0.13 | BL199: 2.5 | BM199: 0 | BN199: 0.437 | BO199: 370 | BP199: 0 | BQ199: 3 | BR199: 0 | BS199: 0 | CB199: 100 | CC199: 48.11
F200: Sunflower oil | K200: =+K188*$D$188/100 -> 0 | M200: =+M188*$D$188/100 -> 0 | N200: =+N188*$D$188/100 -> 0 | O200: 0 | P200: 0 | Q200: 1 | R200: 0 | S200: 0.1265 | T200: 0.1857 | U200: 0.6422 | V200: 0 | W200: 0 | X200: 0 | Y200: 0 | Z200: 0 | AA200: 0 | AB200: 0 | AC200: 0 | AD200: 0 | AE200: 0 | AF200: 0 | AG200: 0 | AH200: 0 | AI200: 0 | AJ200: 0 | AK200: 0 | AL200: 0 | AM200: 0 | AN200: 0 | AO200: 0 | AP200: 0 | AQ200: 0 | AR200: 0 | AS200: 0 | AT200: 0 | AU200: 0 | AV200: 0.03 | AW200: 0 | AX200: 0 | AY200: 0 | AZ200: 0 | BA200: 0 | BB200: 0 | BC200: 0 | BD200: 0 | BE200: 0 | BF200: 0 | BG200: 0 | BH200: 0.3922 | BI200: 0 | BJ200: 0 | BK200: 0 | BL200: 0 | BM200: 0 | BN200: 0 | BO200: 0 | BP200: 0 | BQ200: 0 | BR200: 0 | BS200: 0 | CB200: 100 | CC200: 90
F201: Salt, iodated | K201: =+K189*$D$189/100 -> 0.01 | M201: =+M189*$D$189/100 -> 0 | N201: =+N189*$D$189/100 -> 0 | O201: 0 | P201: 0 | Q201: 0 | R201: 0 | S201: 0 | T201: 0 | U201: 0 | V201: 0 | W201: 0 | X201: 0 | Y201: 0 | Z201: 0 | AA201: 0 | AB201: 0 | AC201: 0 | AD201: 0 | AE201: 0 | AF201: 0 | AG201: 0 | AH201: 0 | AI201: 0 | AJ201: 4.99 | AK201: 0.5 | AL201: 0.015 | AM201: 3.8 | AN201: 0.05 | AO201: 4.45 | AP201: 1965 | AQ201: 0.005 | AR201: 0.004 | AS201: 0 | AT201: tr | AU201: 0 | AV201: 0 | AW201: 0 | AX201: 0 | AY201: 0 | AZ201: 0 | BA201: 0 | BB201: 0 | BC201: 0 | BD201: 0 | BE201: 0 | BF201: 0 | BG201: 0 | BH201: 0 | BI201: 0 | BJ201: 0 | BK201: 0.05 | BL201: 0 | BM201: 0 | BN201: 0 | BO201: 0 | BP201: 0 | BQ201: 0 | BR201: 0 | BS201: 0 | CB201: 100 | CC201: 0
K202: =SUM(K196:K201) -> 1032.78 | M202: 38.55 | N202: 38.55 | O202: 0 | P202: 0 | Q202: 7.16 | R202: 0 | S202: 1.0625 | T202: 1.4967 | U202: 3.6482 | V202: 0 | W202: 176.27 | X202: 148.87 | Y202: 0 | Z202: 61.29 | AA202: 0.41 | AB202: 0 | AC202: 0 | AD202: 0 | AE202: 38.2 | AF202: 0 | AG202: 0 | AH202: 0 | AI202: 0 | AJ202: 20.13 | AK202: 340.5 | AL202: 13.525 | AM202: 246.7 | AN202: 944.05 | AO202: 1891.45 | AP202: 2208 | AQ202: 5.175 | AR202: 2.034 | AS202: 0 | AT202: 1314.391 | AU202: 0 | AV202: 0.03 | AW202: 0 | AX202: 0 | AY202: 0 | AZ202: 0 | BA202: 0 | BB202: 0 | BC202: 0 | BD202: 0 | BE202: 0 | BF202: 0 | BG202: 0 | BH202: 1.74219999 | BI202: 0 | BJ202: 1.081 | BK202: 0.418 | BL202: 10.227 | BM202: 0 | BN202: 0.709 | BO202: 411 | BP202: 0 | BQ202: 3 | BR202: 0 | BS202: 0 | CB202: =(CB197+CB198+CB199+CB200+CB201) -> 500 | CC202: =(CC197+CC198+CC199+CC200+CC201) -> 268.18
K204: =(K202-($D$190-$D$191))/$D$191*100 -> 73.1730038 | M204: =M202/$D$191*100*M10 -> 3.664448669 | N204: 3.664448669 | O204: 0 | P204: 0 | Q204: 0.680608365 | R204: 0 | S204: 0.1009980989 | T204: 0.1422718631 | U204: 0.3467870722 | V204: 0 | W204: 16.75570342 | X204: 14.15114068 | Y204: 0 | Z204: 5.826045627 | AA204: 0.03897338403 | AB204: 0 | AC204: 0 | AD204: 0 | AE204: 3.631178707 | AF204: 0 | AG204: 0 | AH204: 0 | AI204: 0 | AJ204: 1.913498099 | AK204: 32.36692015 | AL204: 1.285646388 | AM204: 23.45057034 | AN204: 89.73859316 | AO204: 179.7956274 | AP204: 209.8859316 | AQ204: 0.4919201521 | AR204: =AR202/$D$191*100*AR10 -> 0.1933460076 | AS204: 0 | AT204: 124.9421103 | AU204: 0 | AV204: 0.002851711027 | AW204: 0 | AX204: 0 | AY204: 0 | AZ204: 0 | BA204: 0 | BB204: 0 | BC204: 0 | BD204: 0 | BE204: 0 | BF204: 0 | BG204: 0 | BH204: 0.1656083641 | BI204: 0 | BJ204: 0.0616539924 | BK204: 0.02384030418 | BL204: 0.5832889734 | BM204: 0 | BN204: 0.04043726236 | BO204: 19.53422053 | BP204: 0 | BQ204: 0.2851711027 | BR204: 0 | BS204: =BS202/$D$20*100*BS33 -> 0 | CB204: =CB202/5 -> 100 | CC204: =CC202 -> 268.18
A207: 012001 | F207: Bread, brown, coated | J207: =(M207*17)+(Q207*37)+(W207*17)+(AI207*29)+(AE207*8) -> 856.6976744 | K207: =+K224 -> 22.62093023 | L207: =+L224 -> 1.662790698 | M207: =+M224 -> 10.3255814 | N207: =+N224 -> 3 | O207: =+O224 -> 7.325581395 | P207: 0.2436046512 | Q207: 10.52325581 | R207: 0 | S207: 2.379593023 | T207: 3.106755814 | U207: 3.544488372 | V207: 0 | W207: 16.08139535 | X207: 0 | Y207: 0 | Z207: 0 | AA207: 0.6976744186 | AB207: 0 | AC207: 0 | AD207: 0 | AE207: 2.302325581 | AF207: 0 | AG207: 0 | AH207: 0 | AI207: 0 | AJ207: 3.541860465 | AK207: 42.09302326 | AL207: 1.576744186 | AM207: 32.81395349 | AN207: 172.3488372 | AO207: 136.4883721 | AP207: 1144.534884 | AQ207: 1.159302326 | AR207: 0.1379069767 | AS207: 19.30232558 | AT207: 35.32325581 | AU207: 0 | AV207: 38.4872093 | AW207: 38.37209302 | AX207: 0 | AY207: 0 | AZ207: 0 | BA207: 0 | BB207: 0 | BC207: 0 | BD207: 0 | BE207: 4.61627907 | BF207: 0 | BG207: 0 | BH207: 3.528209302 | BI207: 0 | BJ207: 0.0788372093 | BK207: 0.1660465116 | BL207: 0.5790697674 | BM207: 0 | BN207: 0.04311627907 | BO207: 20.69767442 | BP207: 1.104651163 | BQ207: 0 | BR207: 0 | CB207: =+CB224 -> 100 | CC207: =+CC224 -> 45.5 | CD207: =+CD224 -> 0 | CI207: researched
A208: 012002 | D208: 30 | F208: Bread, brown, baked | I208: 1 | J208: 1026.1 | K208: 36.5 | L208: 1.4 | M208: 8.6 | N208: 8.6 | O208: 0 | P208: 0 | Q208: 2 | S208: 0.38 | T208: 0.18 | U208: 0.83 | V208: tr | W208: 44.1 | AA208: 0 | AE208: 6.6 | AJ208: 2 | AK208: 55 | AL208: 1.5 | AM208: 74 | AN208: 174 | AO208: 222 | AP208: 451 | AQ208: 1.4 | AR208: 0.19 | AS208: 4 | AT208: 1.26 | AV208: 0 | AW208: 0 | AX208: 0 | BE208: 0 | BH208: 0 | BJ208: 0.16 | BK208: 0.06 | BL208: 2.6 | BN208: 0.136 | BO208: 42 | BP208: 0 | BQ208: 0 | BT208: 6.25 | BW208: SA91 | BX208: 4002 | CB208: 100 | CC208: 44.3
A209: 040002 | D209: 50 | F209: Egg, chicken, whole, raw | I209: 1 | J209: 615.7 | K209: 75 | L209: 2.02 | M209: 12.6 | N209: 0 | O209: 12.6 | P209: 0.419 | Q209: 10.3 | S209: 3.03 | T209: 4.01 | U209: 1.36 | W209: 1.2 | Z209: 0 | AA209: 1.2 | AE209: 0 | AJ209: 0.9 | AK209: 39 | AL209: 1.8 | AM209: 9 | AN209: 192 | AO209: 98 | AP209: 126 | AQ209: 1.15 | AR209: 0.12 | AS209: 30.8 | AT209: 60 | AV209: 66 | AW209: 66 | AX209: Tr | BE209: 7.94 | BH209: 3.48 | BJ209: 0.13 | BK209: 0.4 | BL209: 0.1 | BN209: 0.042 | BO209: 46 | BP209: 1.9 | BQ209: 0 | BT209: 6.25 | BW209: SA99 | BX209: 2901 | CB209: 100 | CC209: 1.2
A210: 090007 | D210: 33 | F210: Sunflower oil | J210: 90 | K210: 0 | M210: 0 | N210: 0 | O210: 0 | P210: 0 | Q210: 10 | R210: 0 | S210: 1.265 | T210: 1.857 | U210: 6.422 | V210: 0 | W210: 0 | X210: 0 | Y210: 0 | Z210: 0 | AA210: 0 | AB210: 0 | AC210: 0 | AD210: 0 | AE210: 0 | AF210: 0 | AG210: 0 | AH210: 0 | AI210: 0 | AJ210: 0 | AK210: 0 | AL210: 0 | AM210: 0 | AN210: 0 | AO210: 0 | AP210: 0 | AQ210: 0 | AR210: 0 | AS210: 0 | AT210: 0 | AU210: 0 | AV210: 0.3 | AW210: 0 | AX210: 0 | AY210: 0 | AZ210: 0 | BA210: 0 | BB210: 0 | BC210: 0 | BD210: 0 | BE210: 0 | BF210: 0 | BG210: 0 | BH210: 3.922 | BI210: 0 | BJ210: 0 | BK210: 0 | BL210: 0 | BM210: 0 | BN210: 0 | BO210: 0 | BP210: 0 | BQ210: 0 | BR210: 0 | BT210: 6.25 | CC210: 0
A211: 150005 | D211: 2 | F211: Salt, iodated | I211: 1 | J211: 0 | K211: 0.2 | M211: 0 | N211: 0 | O211: 0 | P211: 0 | Q211: 0 | S211: 0 | T211: 0 | U211: 0 | V211: 0 | W211: 0 | Y211: 0 | AB211: 0 | AC211: 0 | AG211: 0 | AJ211: 99.8 | AK211: 10 | AL211: 0.3 | AM211: 76 | AN211: 1 | AO211: 89 | AP211: 39300 | AQ211: 0.1 | AR211: 0.08 | AT211: tr | AW211: 0 | AX211: 0 | BF211: 0 | BH211: 0 | BJ211: 0 | BK211: 1 | BL211: 0 | BN211: 0 | BO211: 0 | BP211: 0 | BQ211: 0 | BT211: 6.25 | BW211: GB6 | BX211: 1226 | CB211: 100 | CC211: 0
D212: =SUM(D208:D211) -> 115 | F212: Sum of weight and NV of raw ingredients (a) | J212: =SUM(J208:J211) -> 1731.8 | K212: 111.7 | L212: 3.42 | M212: 21.2 | N212: 8.6 | O212: 12.6 | P212: 0.419 | Q212: 22.3 | R212: 0 | S212: 4.675 | T212: 6.047 | U212: 8.612 | V212: 0 | W212: 45.3 | X212: 0 | Y212: 0 | Z212: 0 | AA212: 1.2 | AB212: 0 | AC212: 0 | AD212: 0 | AE212: 6.6 | AF212: 0 | AG212: 0 | AH212: 0 | AI212: 0 | AJ212: 102.7 | AK212: 104 | AL212: 3.6 | AM212: 159 | AN212: 367 | AO212: 409 | AP212: =SUM(AP208:AP211) -> 39877 | AQ212: 2.65 | AR212: 0.39 | AS212: 34.8 | AT212: 61.26 | AU212: 0 | AV212: 66.3 | AW212: 66 | AX212: 0 | AY212: 0 | AZ212: 0 | BA212: 0 | BB212: 0 | BC212: 0 | BD212: 0 | BE212: 7.94 | BF212: 0 | BG212: 0 | BH212: 7.402 | BI212: 0 | BJ212: 0.29 | BK212: 1.46 | BL212: 2.7 | BM212: 0 | BN212: 0.178 | BO212: 88 | BP212: 1.9 | BQ212: 0
D213: =D212-29 -> 86 | F213: Cooked weight (b): measurment or estimate (b) = (a) x (c) | K213: =K212-(D212-D213) -> 82.7
D214: =1-(D212-D213)/D212 -> 0.747826087 | F214: Yield factor (c) =1-(a-b)/a or estimated from similar recipe
F215: NV of 100g cooked dish incl. retention factors(RF): (d) = NV(a)/b x 100 x RF | J215: =J212/$D$213*100*J11 -> 2013.72093 | L215: =L212/$D$213*100*L11 -> 3.976744186 | M215: 24.65116279 | N215: 10 | O215: 14.65116279 | P215: 0.4872093023 | Q215: 25.93023256 | R215: 0 | S215: 5.436046512 | T215: 7.031395349 | U215: 10.01395349 | V215: 0 | W215: 52.6744186 | X215: 0 | Y215: 0 | Z215: 0 | AA215: 1.395348837 | AB215: 0 | AC215: 0 | AD215: 0 | AE215: 7.674418605 | AF215: 0 | AG215: 0 | AH215: 0 | AI215: 0 | AJ215: 119.4186047 | AK215: 120.9302326 | AL215: 4.186046512 | AM215: 184.8837209 | AN215: 426.744186 | AO215: 475.5813953 | AP215: 46368.60465 | AQ215: 3.081395349 | AR215: =AR212/$D$213*100*AR11 -> 0.4534883721 | AS215: 40.46511628 | AT215: 71.23255814 | AU215: 0 | AV215: 77.09302326 | AW215: 76.74418605 | AX215: 0 | AY215: 0 | AZ215: 0 | BA215: 0 | BB215: 0 | BC215: 0 | BD215: 0 | BE215: 9.23255814 | BF215: 0 | BG215: 0 | BH215: 8.606976744 | BI215: 0 | BJ215: 0.286627907 | BK215: 1.443023256 | BL215: 2.98255814 | BM215: 0 | BN215: 0.1552325581 | BO215: 51.1627907 | BP215: 2.209302326 | BQ215: 0
F216: Water of 100g cooked dish (e) = NV(a)-(a-b)/b x 100 | K216: =(K212-(D212-D213))/D213*100 -> 96.1627907
F218: Bread, brown, baked | K218: =+K208*$D$208/100 -> 10.95 | L218: 0.42 | M218: 2.58 | N218: 2.58 | O218: 0 | P218: 0 | Q218: 0.6 | R218: 0 | S218: 0.114 | T218: 0.054 | U218: 0.249 | V218: tr | W218: =+W208*$D$208/100 -> 13.23 | X218: 0 | Y218: 0 | Z218: 0 | AA218: 0 | AB218: 0 | AC218: 0 | AD218: 0 | AE218: 1.98 | AF218: 0 | AG218: 0 | AH218: 0 | AI218: 0 | AJ218: 0.6 | AK218: 16.5 | AL218: 0.45 | AM218: 22.2 | AN218: 52.2 | AO218: 66.6 | AP218: 135.3 | AQ218: 0.42 | AR218: 0.057 | AS218: 1.2 | AT218: 0.378 | AU218: 0 | AV218: 0 | AW218: 0 | AX218: 0 | AY218: 0 | AZ218: 0 | BA218: 0 | BB218: 0 | BC218: 0 | BD218: 0 | BE218: 0 | BF218: 0 | BG218: 0 | BH218: 0 | BI218: 0 | BJ218: 0.048 | BK218: 0.018 | BL218: 0.78 | BM218: 0 | BN218: 0.0408 | BO218: 12.6 | BP218: 0 | BQ218: 0 | CB218: =+CB208 -> 100 | CC218: 44.3
F219: Egg, chicken, whole, raw | K219: =+K209*$D$209/100 -> 37.5 | L219: 1.01 | M219: 6.3 | N219: 0 | O219: 6.3 | P219: 0.2095 | Q219: 5.15 | R219: 0 | S219: 1.515 | T219: 2.005 | U219: 0.68 | V219: 0 | W219: 0.6 | X219: 0 | Y219: 0 | Z219: 0 | AA219: 0.6 | AB219: 0 | AC219: 0 | AD219: 0 | AE219: 0 | AF219: 0 | AG219: 0 | AH219: 0 | AI219: 0 | AJ219: 0.45 | AK219: 19.5 | AL219: 0.9 | AM219: 4.5 | AN219: 96 | AO219: 49 | AP219: 63 | AQ219: 0.575 | AR219: 0.06 | AS219: 15.4 | AT219: 30 | AU219: 0 | AV219: 33 | AW219: 33 | AX219: tr | AY219: =+AY209*$D$209/100 -> 0 | AZ219: 0 | BA219: 0 | BB219: 0 | BC219: 0 | BD219: 0 | BE219: 3.97 | BF219: 0 | BG219: 0 | BH219: 1.74 | BI219: 0 | BJ219: 0.065 | BK219: 0.2 | BL219: 0.05 | BM219: 0 | BN219: 0.021 | BO219: 23 | BP219: 0.95 | BQ219: 0 | CB219: 100 | CC219: 1.2
F220: Sunflower oil | K220: =+K210*$D$210/100 -> 0 | M220: 0 | N220: 0 | O220: 0 | P220: 0 | Q220: 3.3 | R220: 0 | S220: 0.41745 | T220: 0.61281 | U220: 2.11926 | V220: 0 | W220: 0 | X220: 0 | Y220: 0 | Z220: 0 | AA220: 0 | AB220: 0 | AC220: 0 | AD220: 0 | AE220: 0 | AF220: 0 | AG220: 0 | AH220: 0 | AI220: 0 | AJ220: 0 | AK220: 0 | AL220: 0 | AM220: 0 | AN220: 0 | AO220: 0 | AP220: 0 | AQ220: =+AQ210*$D$210/100 -> 0 | AR220: 0 | AS220: 0 | AT220: 0 | AU220: 0 | AV220: 0.099 | AW220: 0 | AX220: 0 | AY220: 0 | AZ220: 0 | BA220: 0 | BB220: 0 | BC220: 0 | BD220: 0 | BE220: 0 | BF220: 0 | BG220: 0 | BH220: 1.29426 | BI220: 0 | BJ220: 0 | BK220: 0 | BL220: 0 | BM220: 0 | BN220: 0 | BO220: 0 | BP220: 0 | BQ220: 0 | CB220: 0 | CC220: 0
F221: Salt, iodated | K221: =+K211*$D$211/100 -> 0.004 | M221: 0 | N221: 0 | O221: 0 | P221: 0 | Q221: 0 | R221: 0 | S221: 0 | T221: 0 | U221: 0 | V221: 0 | W221: 0 | X221: 0 | Y221: 0 | Z221: 0 | AA221: 0 | AB221: 0 | AC221: 0 | AD221: 0 | AE221: 0 | AF221: 0 | AG221: 0 | AH221: 0 | AI221: 0 | AJ221: 1.996 | AK221: 0.2 | AL221: 0.006 | AM221: 1.52 | AN221: 0.02 | AO221: 1.78 | AP221: 786 | AQ221: 0.002 | AR221: 0.0016 | AS221: 0 | AT221: tr | AU221: =+AU211*$D$211/100 -> 0 | AV221: 0 | AW221: 0 | AX221: 0 | AY221: 0 | AZ221: 0 | BA221: 0 | BB221: 0 | BC221: 0 | BD221: 0 | BE221: 0 | BF221: 0 | BG221: 0 | BH221: 0 | BI221: 0 | BJ221: 0 | BK221: 0.02 | BL221: 0 | BM221: 0 | BN221: 0 | BO221: 0 | BP221: 0 | BQ221: 0 | CB221: 100 | CC221: 0
K222: =SUM(K218:K221) -> 48.454 | L222: =SUM(L218:L221) -> 1.43 | M222: =SUM(M218:M221) -> 8.88 | N222: =SUM(N218:N221) -> 2.58 | O222: 6.3 | P222: 0.2095 | Q222: 9.05 | R222: 0 | S222: 2.04645 | T222: 2.67181 | U222: 3.04826 | V222: 0 | W222: 13.83 | X222: 0 | Y222: 0 | Z222: 0 | AA222: 0.6 | AB222: 0 | AC222: 0 | AD222: 0 | AE222: 1.98 | AF222: 0 | AG222: 0 | AH222: 0 | AI222: 0 | AJ222: 3.046 | AK222: 36.2 | AL222: 1.356 | AM222: 28.22 | AN222: 148.22 | AO222: 117.38 | AP222: 984.3 | AQ222: 0.997 | AR222: 0.1186 | AS222: 16.6 | AT222: 30.378 | AU222: 0 | AV222: 33.099 | AW222: 33 | AX222: 0 | AY222: 0 | AZ222: 0 | BA222: 0 | BB222: 0 | BC222: 0 | BD222: 0 | BE222: 3.97 | BF222: 0 | BG222: 0 | BH222: 3.03426 | BI222: 0 | BJ222: 0.113 | BK222: 0.238 | BL222: 0.83 | BM222: 0 | BN222: 0.0618 | BO222: 35.6 | BP222: 0.95 | BQ222: 0 | CB222: =(CB218+CB219+CB220+CB221) -> 300 | CC222: =(CC218+CC219+CC220+CC221) -> 45.5
K224: =(K222-($D$212-$D$213))/$D$213*100 -> 22.62093023 | L224: =L222/$D$213*100*L10 -> 1.662790698 | M224: 10.3255814 | N224: 3 | O224: 7.325581395 | P224: 0.2436046512 | Q224: 10.52325581 | R224: 0 | S224: 2.379593023 | T224: 3.106755814 | U224: 3.544488372 | V224: 0 | W224: 16.08139535 | X224: 0 | Y224: 0 | Z224: 0 | AA224: 0.6976744186 | AB224: 0 | AC224: 0 | AD224: 0 | AE224: 2.302325581 | AF224: 0 | AG224: 0 | AH224: 0 | AI224: 0 | AJ224: 3.541860465 | AK224: 42.09302326 | AL224: 1.576744186 | AM224: 32.81395349 | AN224: 172.3488372 | AO224: 136.4883721 | AP224: 1144.534884 | AQ224: 1.159302326 | AR224: =AR222/$D$213*100*AR10 -> 0.1379069767 | AS224: 19.30232558 | AT224: 35.32325581 | AU224: 0 | AV224: 38.4872093 | AW224: 38.37209302 | AX224: 0 | AY224: 0 | AZ224: 0 | BA224: 0 | BB224: 0 | BC224: 0 | BD224: 0 | BE224: 4.61627907 | BF224: 0 | BG224: 0 | BH224: 3.528209302 | BI224: 0 | BJ224: 0.0788372093 | BK224: 0.1660465116 | BL224: 0.5790697674 | BM224: 0 | BN224: 0.04311627907 | BO224: 20.69767442 | BP224: 1.104651163 | BQ224: 0 | CB224: =CB222/3 -> 100 | CC224: =CC222 -> 45.5
A227: 012003 | F227: Bread, brown, steamed | I227: 1 | J227: 1455.837514 | K227: =+K246 -> 51.8146937 | L227: =+L246 -> 1.212400262 | M227: =+M246 -> 6.950730325 | N227: =+N246 -> 6.867233486 | O227: 0 | P227: 0 | Q227: 1.100065402 | R227: 0 | S227: 0.1648027033 | T227: 0.114589056 | U227: 0.4905384783 | V227: 0 | W227: 34.39782389 | X227: 0.08349683889 | Y227: 37.33376935 | Z227: 33.09748895 | AA227: 1.302729245 | AB227: 36.40723785 | AC227: 0.9265315021 | AD227: 0 | AE227: 0.04578155657 | AF227: 0 | AG227: 3.488118596 | AH227: 0 | AI227: 0 | AJ227: 0.9607586658 | AK227: 72.08197079 | AL227: 1.797035099 | AM227: 44.70459996 | AN227: 128.2559407 | AO227: 142.6967517 | AP227: 260.1046436 | AQ227: 1.050141705 | AR227: 0.1785698714 | AS227: 2.232613909 | AT227: 1035.536407 | AU227: 0 | AV227: 0 | AW227: 0 | AX227: 0 | AY227: 0 | AZ227: 0 | BA227: 0 | BB227: 0 | BC227: 0 | BD227: 0 | BE227: 0 | BF227: 0 | BG227: 0 | BH227: 0.3270111184 | BI227: 0 | BJ227: 0.130647482 | BK227: 0.03404839765 | BL227: 1.360562459 | BM227: 0 | BN227: 0.1001308044 | BO227: 16.44865925 | BP227: 4.360148245e-05 | BQ227: 0.0006540222368 | BR227: 0 | CB227: =+CB246 -> 100 | CC227: =+CC246 -> 189.43 | CD227: =+CD246 -> 0 | CI227: F&C91-pg27
A228: 130007 | D228: 150 | F228: Water, tab | I228: 1 | J228: 0 | K228: 99.9 | M228: 0 | N228: 0 | O228: 0 | P228: 0 | Q228: 0 | R228: 0 | S228: 0 | T228: 0 | U228: 0 | W228: 0 | X228: 0 | Z228: 0 | AA228: 0 | AD228: 0 | AE228: 0 | AG228: 0 | AJ228: 0.1 | AK228: 2 | AL228: 0 | AM228: 1 | AN228: 0 | AO228: 0 | AP228: 2 | AQ228: 0 | AR228: 0.007 | AS228: 0 | AT228: 0 | AV228: 0 | AW228: 0 | AX228: 0 | AY228: 0 | AZ228: 0 | BA228: 0 | BB228: 0 | BE228: 0 | BG228: 0 | BH228: 0 | BI228: 0 | BJ228: 0 | BK228: 0 | BL228: 0 | BM228: 0 | BN228: 0 | BO228: 0 | BP228: 0 | BQ228: 0 | BR228: 0 | BS228: 1 | BT228: 6.25 | BW228: US18 | BX228: 14429 | CB228: 100 | CC228: 0
A229: 011031 | D229: 250 | F229: Wheat flour, for brown bread | I229: 1 | J229: 1494.01 | K229: 14 | L229: 2.2 | M229: 12.6 | N229: 12.6 | O229: 0 | P229: 0 | Q229: 2 | S229: 0.3 | T229: 0.2 | U229: 0.9 | V229: 0 | W229: 62.27272727 | Y229: 68.5 | Z229: 60.72727273 | AA229: 1.619047619 | AB229: 66.8 | AC229: 1.7 | AG229: 6.4 | AJ229: 0.47 | AK229: 130 | AL229: 3.2 | AM229: 80 | AN229: 230 | AO229: 250 | AP229: 4 | AQ229: 1.9 | AR229: 0.32 | AS229: 4 | AT229: 1900 | AW229: 0 | AX229: 0 | BF229: 0 | BH229: 0.6 | BJ229: 0.39 | BK229: 0.07 | BL229: 4 | BN229: 0.3 | BO229: 51 | BP229: 0 | BQ229: 0 | BT229: 5.83 | BW229: GB6 | BX229: 10 | CB229: 100 | CC229: 70.93
A230: 110008 | D230: 2 | F230: Sugar, granulated, brown | I230: 1 | J230: 1649 | K230: 2.1 | M230: 0 | N230: 0 | O230: 0 | P230: 0 | Q230: 0 | S230: 0 | T230: 0 | U230: 0 | W230: 96.4 | AA230: 96.4 | AE230: 0 | AJ230: 0.9 | AK230: 85 | AL230: 3.4 | AM230: 15 | AN230: 19 | AO230: 344 | AP230: 30 | AR230: 0.06 | AV230: 0 | BE230: 0 | BH230: 0 | BJ230: 0.01 | BK230: 0.03 | BL230: 0.2 | BN230: 0 | BO230: 0 | BP230: 0 | BQ230: 0 | BT230: 6.25 | BW230: SA91 | BX230: 9032 | CB230: 100 | CC230: 97
A231: 150008 | D231: 1 | F231: Yeast, dried | I231: 1 | J231: 1354.8 | K231: 7.6 | L231: =M231/BT231 -> 6.128 | M231: 38.3 | N231: 0 | O231: 0 | P231: 0 | Q231: 4.6 | S231: 0.595 | T231: 2.562 | U231: 0.01 | W231: 17.3 | X231: 38.3 | AA231: 0 | AE231: 21 | AJ231: 7 | AK231: 64 | AL231: 16.6 | AM231: 98 | AN231: 1290 | AO231: 2000 | AP231: 50 | AQ231: 6.4 | AR231: 0.5 | AS231: 24.1 | AT231: 0.55 | AU231: 0 | AW231: 0 | AY231: 0 | AZ231: 0 | BA231: 0 | BC231: 0 | BD231: 0 | BH231: 0 | BJ231: 2.36 | BK231: 5.47 | BL231: 39.75 | BN231: 1.55 | BO231: 2340 | BP231: 0.02 | BQ231: 0.3 | BT231: 6.25 | BW231: US18 | BX231: 18375 | CB231: 100 | CC231: 21.5
A232: 150005 | D232: 3 | F232: Salt, iodated | I232: 1 | J232: 0 | K232: 0.2 | M232: 0 | N232: 0 | O232: 0 | P232: 0 | Q232: 0 | S232: 0 | T232: 0 | U232: 0 | V232: 0 | W232: 0 | Y232: 0 | AB232: 0 | AC232: 0 | AG232: 0 | AJ232: 99.8 | AK232: 10 | AL232: 0.3 | AM232: 76 | AN232: 1 | AO232: 89 | AP232: 39300 | AQ232: 0.1 | AR232: 0.08 | AT232: tr | AW232: 0 | AX232: 0 | BF232: 0 | BH232: 0 | BJ232: 0 | BK232: 1 | BL232: 0 | BN232: 0 | BO232: 0 | BP232: 0 | BQ232: 0 | BT232: 6.25 | BW232: GB6 | BX232: 1226 | CB232: 100 | CC232: 0
D233: =SUM(D228:D232) -> 406 | F233: Sum of weight and NV of raw ingredients (a) | J233: =SUM(J227:J232) -> 5953.647514 | K233: =SUM(K228:K232) -> 123.8 | L233: =SUM(L227:L232) -> 9.540400262 | M233: 57.85073032 | N233: 19.46723349 | O233: 0 | P233: 0 | Q233: 7.700065402 | R233: 0 | S233: 1.059802703 | T233: 2.876589056 | U233: 1.400538478 | V233: 0 | W233: 210.3705512 | X233: 38.38349684 | Y233: 105.8337693 | Z233: 93.82476168 | AA233: 99.32177686 | AB233: 103.2072378 | AC233: 2.626531502 | AD233: 0 | AE233: 21.04578156 | AG233: =SUM(AG227:AG232) -> 9.888118596 | AJ233: =SUM(AJ227:AJ232) -> 109.2307587 | AK233: 363.0819708 | AL233: 25.2970351 | AM233: 314.7046 | AN233: 1668.255941 | AO233: 2825.696752 | AP233: 39646.10464 | AQ233: 9.450141705 | AR233: 1.145569871 | AS233: 30.33261391 | AT233: 2936.086407 | AU233: 0 | AV233: 0 | AW233: 0 | AX233: 0 | AY233: 0 | AZ233: 0 | BA233: 0 | BB233: 0 | BC233: 0 | BD233: 0 | BE233: 0 | BF233: 0 | BG233: 0 | BH233: 0.9270111184 | BI233: 0 | BJ233: 2.890647482 | BK233: 6.604048398 | BL233: 45.31056246 | BM233: 0 | BN233: 1.950130804 | BO233: 2407.448659 | BP233: 0.02004360148 | BQ233: 0.3006540222 | BR233: 0
D234: =D233+52.7 -> 458.7 | F234: Cooked weight (b): measurment or estimate (b) = (a) x (c) | K234: =K233-(D233-D234) -> 176.5
D235: =1-(D233-D234)/D233 -> 1.129802956 | F235: Yield factor (c) =(a-b)/a or estimated from similar recipe
F236: NV of 100g cooked dish incl. retention factors(RF): (d) = NV(a)/b x 100 x RF | I236: 1 | J236: =J233/$D$234*100*J10 -> 1297.939288 | L236: =L233/$D$234*100*L10 -> 2.079877973 | M236: 12.61188802 | N236: 4.244001196 | O236: 0 | P236: 0 | Q236: 1.678671333 | R236: 0 | S236: 0.2310448448 | T236: 0.6271177362 | U236: 0.3053277694 | V236: 0 | W236: 45.86233947 | X236: 8.367886819 | Y236: 23.07254618 | Z236: 20.4544935 | AA236: 21.65288355 | AB236: 22.49994285 | AC236: 0.572603336 | AD236: 0 | AE236: 4.588136376 | AG236: =AG233/$D$234*100*AG10 -> 2.155683147 | AJ236: =AJ233/$D$234*100*AJ10 -> 23.81311504 | AK236: 79.15456089 | AL236: 5.51494116 | AM236: 68.60793546 | AN236: 363.6921606 | AO236: 616.0228366 | AP236: 8643.144679 | AQ236: 2.060200938 | AR236: 0.2497427232 | AS236: 6.612734665 | AT236: 640.0885998 | AU236: 0 | AV236: 0 | AW236: 0 | AX236: 0 | AY236: 0 | AZ236: 0 | BA236: 0 | BB236: 0 | BC236: 0 | BD236: 0 | BE236: 0 | BF236: 0 | BG236: 0 | BH236: 0.202095295 | BI236: 0 | BJ236: 0.3781095464 | BK236: 0.8638389009 | BL236: 5.926823082 | BM236: 0 | BN236: 0.2550857821 | BO236: 262.4208262 | BP236: 0.004369653691 | BQ236: 0.06554480537 | BR236: 0
F237: Water of 100g cooked dish (e) = NV(a)-(a-b)/b x 100 | K237: =(K233-(D233-D234))/D234*100 -> 38.47830826
F239: Water, tab | K239: =+K228*$D$228/100 -> 149.85 | M239: =+M228*$D$228/100 -> 0 | N239: 0 | O239: 0 | P239: 0 | Q239: 0 | R239: 0 | S239: 0 | T239: 0 | U239: 0 | V239: 0 | W239: 0 | X239: 0 | Y239: 0 | Z239: 0 | AA239: 0 | AB239: 0 | AC239: 0 | AD239: 0 | AE239: 0 | AF239: 0 | AG239: 0 | AH239: 0 | AI239: 0 | AJ239: 0.15 | AK239: 3 | AL239: 0 | AM239: 1.5 | AN239: 0 | AO239: 0 | AP239: 3 | AQ239: 0 | AR239: 0.0105 | AS239: 0 | AT239: 0 | AU239: 0 | AV239: 0 | AW239: 0 | AX239: 0 | AY239: 0 | AZ239: 0 | BA239: 0 | BB239: 0 | BC239: 0 | BD239: 0 | BE239: 0 | BF239: 0 | BG239: 0 | BH239: 0 | BI239: 0 | BJ239: 0 | BK239: 0 | BL239: 0 | BM239: 0 | BN239: 0 | BO239: 0 | BP239: 0 | BQ239: 0 | BR239: 0 | BS239: 1.5 | BT239: 9.375 | BU239: 0 | BV239: 0 | CI239: =+CI228*$D$228/100 -> 0 | CJ239: =+CJ228*$D$228/100 -> 0 | CK239: =+CK228*$D$228/100 -> 0 | CL239: =+CL228*$D$228/100 -> 0 | CM239: =+CM228*$D$228/100 -> 0
F240: Wheat flour, for brown bread | K240: =+K229*$D$229/100 -> 35 | L240: =+L229*$D$229/100 -> 5.5 | M240: =+M229*$D$229/100 -> 31.5 | N240: 31.5 | O240: 0 | P240: 0 | Q240: 5 | R240: 0 | S240: 0.75 | T240: 0.5 | U240: 2.25 | V240: 0 | W240: 155.6818182 | X240: 0 | Y240: 171.25 | Z240: 151.8181818 | AA240: 4.047619048 | AB240: 167 | AC240: 4.25 | AD240: 0 | AE240: 0 | AF240: 0 | AG240: 16 | AH240: 0 | AI240: 0 | AJ240: 1.175 | AK240: 325 | AL240: 8 | AM240: 200 | AN240: 575 | AO240: 625 | AP240: 10 | AQ240: 4.75 | AR240: 0.8 | AS240: 10 | AT240: 4750 | AU240: 0 | AV240: 0 | AW240: 0 | AX240: 0 | AY240: 0 | AZ240: 0 | BA240: 0 | BB240: 0 | BC240: 0 | BD240: 0 | BE240: 0 | BF240: 0 | BG240: 0 | BH240: 1.5 | BI240: 0 | BJ240: 0.975 | BK240: 0.175 | BL240: 10 | BM240: 0 | BN240: 0.75 | BO240: 127.5 | BP240: 0 | BQ240: 0 | BR240: 0 | BS240: 0 | BT240: 14.575 | BU240: 0 | BV240: 0 | CB240: =+CB229 -> 100 | CC240: 70.93 | CI240: =+CI229*$D$229/100 -> 0 | CJ240: =+CJ229*$D$229/100 -> 0 | CK240: =+CK229*$D$229/100 -> 0 | CL240: =+CL229*$D$229/100 -> 0
F241: Sugar, granulated, brown | K241: =+K230*$D$230/100 -> 0.042 | M241: =+M230*$D$230/100 -> 0 | N241: 0 | O241: 0 | P241: 0 | Q241: 0 | R241: 0 | S241: 0 | T241: 0 | U241: 0 | V241: 0 | W241: 1.928 | X241: 0 | Y241: 0 | Z241: 0 | AA241: 1.928 | AB241: 0 | AC241: 0 | AD241: 0 | AE241: 0 | AF241: 0 | AG241: 0 | AH241: 0 | AI241: 0 | AJ241: 0.018 | AK241: 1.7 | AL241: 0.068 | AM241: 0.3 | AN241: 0.38 | AO241: 6.88 | AP241: 0.6 | AQ241: 0 | AR241: 0.0012 | AS241: 0 | AT241: 0 | AU241: 0 | AV241: 0 | AW241: 0 | AX241: 0 | AY241: 0 | AZ241: 0 | BA241: 0 | BB241: 0 | BC241: 0 | BD241: 0 | BE241: 0 | BF241: 0 | BG241: 0 | BH241: 0 | BI241: 0 | BJ241: 0.0002 | BK241: 0.0006 | BL241: 0.004 | BM241: 0 | BN241: 0 | BO241: 0 | BP241: 0 | BQ241: 0 | BR241: 0 | BS241: 0 | BT241: 0.125 | BU241: 0 | BV241: 0 | CB241: 100 | CC241: 97 | CI241: =+CI230*$D$230/100 -> 0 | CJ241: =+CJ230*$D$230/100 -> 0 | CK241: =+CK230*$D$230/100 -> 0 | CL241: =+CL230*$D$230/100 -> 0
F242: Yeast, dried | K242: =+K231*$D$231/100 -> 0.076 | L242: =+L231*$D$231/100 -> 0.06128 | M242: =+M231*$D$231/100 -> 0.383 | N242: 0 | O242: 0 | P242: 0 | Q242: 0.046 | R242: 0 | S242: 0.00595 | T242: 0.02562 | U242: 0.0001 | V242: 0 | W242: 0.173 | X242: 0.383 | Y242: 0 | Z242: 0 | AA242: 0 | AB242: 0 | AC242: 0 | AD242: 0 | AE242: 0.21 | AF242: 0 | AG242: 0 | AH242: 0 | AI242: 0 | AJ242: 0.07 | AK242: 0.64 | AL242: 0.166 | AM242: 0.98 | AN242: 12.9 | AO242: 20 | AP242: 0.5 | AQ242: 0.064 | AR242: 0.005 | AS242: 0.241 | AT242: 0.0055 | AU242: 0 | AV242: 0 | AW242: 0 | AX242: 0 | AY242: 0 | AZ242: 0 | BA242: 0 | BB242: 0 | BC242: 0 | BD242: 0 | BE242: 0 | BF242: 0 | BG242: 0 | BH242: 0 | BI242: 0 | BJ242: 0.0236 | BK242: 0.0547 | BL242: 0.3975 | BM242: 0 | BN242: 0.0155 | BO242: 23.4 | BP242: 0.0002 | BQ242: 0.003 | BR242: 0 | BS242: 0 | BT242: 0.0625 | BU242: 0 | BV242: 0 | CB242: 100 | CC242: 21.5 | CI242: =+CI231*$D$231/100 -> 0 | CJ242: =+CJ231*$D$231/100 -> 0 | CK242: =+CK231*$D$231/100 -> 0 | CL242: =+CL231*$D$231/100 -> 0
F243: Salt, iodated | K243: =+K232*$D$232/100 -> 0.006 | M243: =+M232*$D$232/100 -> 0 | N243: 0 | O243: 0 | P243: 0 | Q243: 0 | R243: 0 | S243: 0 | T243: 0 | U243: 0 | V243: 0 | W243: 0 | X243: 0 | Y243: 0 | Z243: 0 | AA243: 0 | AB243: 0 | AC243: 0 | AD243: 0 | AE243: 0 | AF243: 0 | AG243: 0 | AH243: 0 | AI243: 0 | AJ243: 2.994 | AK243: 0.3 | AL243: 0.009 | AM243: 2.28 | AN243: 0.03 | AO243: 2.67 | AP243: 1179 | AQ243: 0.003 | AR243: 0.0024 | AS243: 0 | AT243: tr | AU243: 0 | AV243: 0 | AW243: 0 | AX243: 0 | AY243: 0 | AZ243: 0 | BA243: 0 | BB243: 0 | BC243: 0 | BD243: 0 | BE243: 0 | BF243: 0 | BG243: 0 | BH243: 0 | BI243: 0 | BJ243: 0 | BK243: 0.03 | BL243: 0 | BM243: 0 | BN243: 0 | BO243: 0 | BP243: 0 | BQ243: 0 | BR243: 0 | BS243: 0 | BT243: 0.1875 | BU243: 0 | BV243: 0 | CB243: 100 | CC243: 0 | CI243: =+CI232*$D$232/100 -> 0 | CJ243: =+CJ232*$D$232/100 -> 0 | CK243: =+CK232*$D$232/100 -> 0 | CL243: =+CL232*$D$232/100 -> 0
K244: =SUM(K239:K243) -> 184.974 | L244: =SUM(L239:L243) -> 5.56128 | M244: =SUM(M239:M243) -> 31.883 | N244: 31.5 | O244: 0 | P244: 0 | Q244: 5.046 | R244: 0 | S244: 0.75595 | T244: 0.52562 | U244: 2.2501 | V244: 0 | W244: 157.7828182 | X244: 0.383 | Y244: 171.25 | Z244: 151.8181818 | AA244: 5.975619048 | AB244: 167 | AC244: 4.25 | AD244: 0 | AE244: 0.21 | AF244: 0 | AG244: 16 | AH244: 0 | AI244: 0 | AJ244: 4.407 | AK244: 330.64 | AL244: 8.243 | AM244: 205.06 | AN244: 588.31 | AO244: 654.55 | AP244: 1193.1 | AQ244: 4.817 | AR244: 0.8191 | AS244: 10.241 | AT244: 4750.0055 | AU244: 0 | AV244: 0 | AW244: 0 | AX244: 0 | AY244: 0 | AZ244: 0 | BA244: 0 | BB244: 0 | BC244: 0 | BD244: 0 | BE244: 0 | BF244: 0 | BG244: 0 | BH244: 1.5 | BI244: 0 | BJ244: 0.9988 | BK244: 0.2603 | BL244: 10.4015 | BM244: 0 | BN244: 0.7655 | BO244: 150.9 | BP244: 0.0002 | BQ244: 0.003 | BR244: 0 | BS244: 1.5 | BT244: 24.325 | BU244: 0 | BV244: 0 | CB244: =(CB240+CB241+CB242+CB243) -> 400 | CC244: =(CC240+CC241+CC242+CC243) -> 189.43 | CI244: =SUM(CI239:CI243) -> 0 | CJ244: =SUM(CJ239:CJ243) -> 0 | CK244: =SUM(CK239:CK243) -> 0 | CL244: =SUM(CL239:CL243) -> 0
K246: =(K244-($D$233-$D$234))/$D$234*100 -> 51.8146937 | L246: =L244/$D$234*100*L10 -> 1.212400262 | M246: 6.950730325 | N246: 6.867233486 | O246: 0 | P246: 0 | Q246: 1.100065402 | R246: 0 | S246: 0.1648027033 | T246: 0.114589056 | U246: 0.4905384783 | V246: 0 | W246: 34.39782389 | X246: 0.08349683889 | Y246: 37.33376935 | Z246: 33.09748895 | AA246: 1.302729245 | AB246: 36.40723785 | AC246: 0.9265315021 | AD246: 0 | AE246: 0.04578155657 | AF246: 0 | AG246: 3.488118596 | AH246: 0 | AI246: 0 | AJ246: 0.9607586658 | AK246: 72.08197079 | AL246: 1.797035099 | AM246: 44.70459996 | AN246: 128.2559407 | AO246: 142.6967517 | AP246: 260.1046436 | AQ246: 1.050141705 | AR246: =AR244/$D$234*100*AR10 -> 0.1785698714 | AS246: 2.232613909 | AT246: 1035.536407 | AU246: 0 | AV246: 0 | AW246: 0 | AX246: 0 | AY246: 0 | AZ246: 0 | BA246: 0 | BB246: 0 | BC246: 0 | BD246: 0 | BE246: 0 | BF246: 0 | BG246: 0 | BH246: 0.3270111184 | BI246: 0 | BJ246: 0.130647482 | BK246: 0.03404839765 | BL246: 1.360562459 | BM246: 0 | BN246: 0.1001308044 | BO246: 16.44865925 | BP246: 4.360148245e-05 | BQ246: 0.0006540222368 | BR246: 0 | BS246: 0 | BT246: 0 | BU246: 0 | BV246: 0 | CB246: =CB244/4 -> 100 | CC246: =CC244 -> 189.43 | CI246: =CI244/$D$234*100*CI10 -> 0 | CJ246: =CJ244/$D$234*100*CJ10 -> 0 | CK246: =CK244/$D$234*100*CK10 -> 0 | CL246: =CL244/$D$234*100*CL10 -> 0
A248: 012005 | F248: Bread, white, steamed | J248: =(M248*17)+(Q248*37)+(W248*17)+(AI248*29)+(AE248*8) -> 779.0344078 | K248: =+K267 -> 51.81128669 | L248: =+L267 -> 1.114375714 | M248: =+M267 -> 6.351659013 | N248: =+N267 -> 6.26815627 | O248: 0 | P248: 0 | Q248: 0.7731089438 | R248: 0 | S248: 0.1103086492 | T248: 0.06009145152 | U248: 0.3270560425 | V248: 0 | W248: 37.76969973 | X248: 0.08350274266 | Y248: 41.04279714 | Z248: 36.61792477 | AA248: 1.147090766 | AB248: 40.27971725 | AC248: 0.7630798938 | AD248: 0 | AE248: 0.04578479363 | AF248: 0 | AG248: 1.689676908 | AH248: 0 | AI248: 0 | AJ248: 0.9608265977 | AK248: 77.53763812 | AL248: 1.197599388 | AM248: 17.99996458 | AN248: 68.30873186 | AO248: 77.29999324 | AP248: 259.5779776 | AQ248: 0.5051588897 | AR248: 0.102274508 | AS248: 1.687714702 | AT248: 381.541146 | AU248: 0 | AV248: 0 | AW248: 0 | AX248: 0 | AY248: 0 | AZ248: 0 | BA248: 0 | BB248: 0 | BC248: 0 | BD248: 0 | BE248: 0 | BF248: 0 | BG248: 0 | BH248: 0.1635171201 | BI248: 0 | BJ248: 0.1077643228 | BK248: 0.02096943548 | BL248: 0.7065901793 | BM248: 0 | BN248: 0.05108274832 | BO248: 10.99925161 | BP248: 4.360456536e-05 | BQ248: 0.0006540684804 | BR248: 0 | BS248: 0 | CB248: =+CB267 -> 100 | CC248: =+CC267 -> 191.13 | CI248: F&C91-pg27
A249: 130007 | D249: 150 | F249: Water, tab | I249: 1 | J249: 0 | K249: 99.9 | M249: 0 | N249: 0 | O249: 0 | P249: 0 | Q249: 0 | R249: 0 | S249: 0 | T249: 0 | U249: 0 | W249: 0 | X249: 0 | Z249: 0 | AA249: 0 | AD249: 0 | AE249: 0 | AF249: 0 | AG249: 0 | AJ249: 0.1 | AK249: 2 | AL249: 0 | AM249: 1 | AN249: 0 | AO249: 0 | AP249: 2 | AQ249: 0 | AR249: 0.007 | AS249: 0 | AT249: 0 | AV249: 0 | AW249: 0 | AX249: 0 | AY249: 0 | AZ249: 0 | BA249: 0 | BB249: 0 | BE249: 0 | BG249: 0 | BH249: 0 | BI249: 0 | BJ249: 0 | BK249: 0 | BL249: 0 | BM249: 0 | BN249: 0 | BO249: 0 | BP249: 0 | BQ249: 0 | BR249: 0 | BS249: 1 | BT249: 6.25 | BW249: US18 | BX249: 14429 | CB249: 100 | CC249: 0
... 842 more rows

Sheet recipe.methods
A1: CODES | B1: QUANTITY (g) | C1: INGREDIENTS
A2: 01 CEREAL AND CEREAL PRODUCTS
A3: 011001 | B3: gram | C3: Maize, sorghum and wheat grains, boiled (Likhobe)
A4: 130011 | B4: 1000 | C4: Water, tab
A5: 011007 | B5: 100 | C5: Maize, white, grain, dried, raw
A6: 011037 | B6: 100 | C6: Wheat, whole grain, raw
A7: 011030 | B7: 100 | C7: Sorghum, whole grain, raw
A8: 090007 | B8: 10 | C8: Sunflower oil
A9: 150005 | B9: 5 | C9: Salt, iodated
A11: Method | B11: Wash maize, sorghum and wheat grains. Boil maize in 500g water for 1 hour. Add sorghum, wheat and remaining water, simmer for 30 minutes, add salt and sunflower oil let it simmer for 30 minutes.
A15: 011018 | B15: gram | C15: Hard porridge from white maize meal, boiled (Papa)
A16: 130007 | B16: 250 | C16: Water, tab
A17: 011006 | B17: 720 | C17: Maize meal, special, white, fortified, raw
A19: Method | B19: Add maize meal to boiling water, do not stir. Cover the saucepan for 10 minutes. Stir with cutting movement to mix the dry maize meal with water. Replace the lid and allow to cook further over low heat for approximatley 30 minutes.
A22: 011019 | B22: gram | C22: Soft porridge from white maize meal, boiled (Lesheleshele)
A23: 130007 | B23: 375 | C23: Water, tab
A24: 011006 | B24: 40 | C24: Maize meal, special, white, refined, raw
A25: 110008 | B25: 15 | C25: Sugar, granulated, brown
A27: Method | B27: Measure 280g of water and bring to boil in a saucepan. Moisten the maize meal with the remaining 95g of water, then add gradually to the boiling water, stirring until it boils again. Cover the saucepan and let it simmer for 20 minutes. Serve with milk and sugar (optional).
A30: 011020 | B30: gram | C30: Hard porridge from yellow maize meal, boiled (Papa)
A31: 130007 | B31: 720 | C31: Water, tab
A32: 011004 | B32: 250 | C32: Maize meal, yellow, refined, raw
A34: Method | B34: Add maize meal to boiling water, do not stir. Cover the saucepan for 10 minutes. Stir with cutting movement to mix the dry maize meal with water. Replace the lid and allow to cook further over low heat for approximatley 30 minutes.
A36: 011024 | B36: gram | C36: Mealie meal and wheat bread (Mochahlama)
A37: 130007 | B37: 750 | C37: Water, tab
A38: 011002 | B38: 240 | C38: Maize meal, super, white, unfortified, raw
A39: 011031 | B39: 130 | C39: Wheat flour, for brown bread
A40: 110008 | B40: 6 | C40: Sugar, granulated, brown
A41: 150008 | B41: 6 | C41: Yeast, dried
A42: 150005 | B42: 4 | C42: Salt, iodated
A44: Method | B44: In a mixing bowl, mix mealie meal and boiling water. Stir thoroughly. Let the mixture to cool down. In a small bowl, mix yeast and lukewarm water. Stir to dissolve. Let stand for 5 miniutes. Add to the corn meal mixture. Add flour, mixing thorougly. Let rise and make into balls. Steam in pot for 30 minutes
A47: 011026 | B47: gram | C47: Sorghum porridge, hard (Papa)
A48: 130007 | B48: 720 | C48: Water, tab
A49: 011025 | B49: 250 | C49: Sorghum flour
A51: Method | B51: Add sorghum flour to boiling water, do not stir. Cover the saucepan for 10 minutes. Stir with cutting movement to mix the dry maize meal with water. Replace the lid and allow to cook further over low heat for approximatley 30 minutes.
A54: 011027 | B54: gram | C54: Sorghum porridge, soft (Lesheleshele)
A55: 130007 | B55: 250 | C55: Water, tab
A56: 011025 | B56: 40 | C56: Sorghum flour
A57: 030023 | B57: 60 | C57: Milk, full fat, 3.4 %fat, UHT
A58: 110008 | B58: 15 | C58: Sugar, granulated, brown
A60: Method | B60: Measure 180g of water and bring to boil in a saucepan. Moisten the sorghum flour with the remaining 70g of water, then add gradually to the boiling water, stirring until it boils again. Cover the saucepan and let it simmer for 20 minutes. Serve with milk and sugar.
A63: 011038 | B63: gram | C63: Maize samp with dried beans (Umngqusho)
A64: 130007 | B64: 1000 | C64: Water, tab
A65: 011014 | B65: 250 | C65: Maize samp/rice , white, raw
A66: 060005 | B66: 250 | C66: Beans, sugar, dried, raw
A67: 090007 | B67: 15 | C67: Sunflower oil
A68: 150005 | B68: 5 | C68: Salt, iodated
A70: Method | B70: Wash beans and samp. Add both to boiling water in a saucepan. Simmer for 1 hour 30 minutes, replenishing water if necessary, to obtain a soft but not watery consistancy. Add salt and sunflower oil, let it simmer for 30 minutes.
A73: 011040 | B73: gram | C73: Maize, whole, grain, white, dried, roasted (Machechisa)
A74: 011007 | B74: 100 | C74: Maize, whole grain, white, dried, raw
A76: Method | B76: Roast maize, turning sides, untill golden brown
A79: 011041 | B79: gram | C79: Wheat, sorghum, dried beans, boiled (Likhobe)
A80: 130011 | B80: 1000 | C80: Water, tab
A81: 011037 | B81: 100 | C81: Wheat, whole grain, raw
A82: 011030 | B82: 100 | C82: Sorghum, whole grain, raw
A83: 060005 | B83: 100 | C83: Beans, sugar, dried, raw
A84: 090007 | B84: 10 | C84: Sunflower oil
A85: 150005 | B85: 5 | C85: Salt, iodated
A87: Method | B87: Wash wheat, sorghum and dry beans. Add 1000g of water in a saucepan with grains. Simmer for 1 hour 30 minutes. Add salt and sunflower oil, let it simmer for 30 minutes.
A90: 012001 | B90: gram | C90: Bread, brown, coated
A91: 012002 | B91: 30 | C91: Bread, brown, baked
A92: 040002 | B92: 50 | C92: Egg, chicken, whole, raw
A93: 090007 | B93: 30 | C93: Sunflower oil
A94: 150005 | B94: 2 | C94: Salt, iodated
A96: Method | B96: Beat the egg, add salt. Dip the bread in egg. Saute' bread in hot sunflower oil. Serve warm.
A99: 012003 | B99: gram | C99: Bread, brown, steamed
A100: 130007 | B100: 150 | C100: Water, tab
A101: 011031 | B101: 250 | C101: Wheat flour, for brown bread
A102: 110008 | B102: 2 | C102: Sugar, granulated, brown
A103: 150008 | B103: 1 | C103: Yeast, dried
A104: 150005 | B104: 3 | C104: Salt, iodated
A107: Method | B107: Soak the yeast for about 5 minutes in 20g lukewarm water to which sugar is add. Add the rest of the ingredients and sufficient flour to make an easily manageable dough.Knead until the dough is smooth and elastic and no longer sticks to the hands.Brush over with a little shortening, cover warmly and allow to rise to double its bulk in a warmish place for about 6 to 8 hours.Punch down the dough lightly and divide it into balls, flour them and place on a rack over boiling water. Steam for 1hour 30 minutes.
A110: 012005 | B110: gram | C110: Bread, white, steamed
A111: 130007 | B111: 150 | C111: Water, tab
A112: 011032 | B112: 250 | C112: Wheat flour, for brown bread
A113: 110008 | B113: 2 | C113: Sugar, granulated, brown
A114: 150008 | B114: 1 | C114: Yeast, dried
A115: 150005 | B115: 3 | C115: Salt, iodated
A117: Method | B117: Soak the yeast for about 5 minutes in 20g lukewarm water to which sugar is add. Add the rest of the ingredients and sufficient flour to make an easily manageable dough.Knead until the dough is smooth and elastic and no longer sticks to the hands.Brush over with a little shortening, cover warmly and allow to rise to double its bulk in a warmish place for about 6 to 8 hours.Punch down the dough lightly and divide it into balls, flour them and place on a rack over boiling water. Steam for 1hour 30 minutes.
A120: 013005 | B120: gram | C120: Noodles, egg, boiled | BX120: FC91-pa16 | CH120: F&C91-pg16
A121: 130007 | B121: 500 | C121: Water, tab
A122: 013004 | B122: 250 | C122: Noodles, egg, raw
A123: 150005 | B123: 5 | C123: Salt, iodated
A125: Method | B125: Put noodles and hot water in a pot. Add salt and boil for 10 minutes. Drain out water.
A128: 013006 | B128: gram | C128: Spaghetti bolognaise | CH128: F&C91-pg17
A129: 130007 | B129: 2000 | C129: Water, tab
A130: 013007 | B130: 250 | C130: Spaghetti, white, raw
A131: 020014 | B131: 250 | C131: Beef, mince, fatty, raw
A132: 050064 | B132: 30 | C132: Onion
A133: 050093 | B133: 40 | C133: Tomato
A134: 090007 | B134: 12 | C134: Sunflower oil
A135: 150005 | B135: 5 | C135: Salt, iodated
A136: Method | B136: Boil spaghetti in water (refer to recipe 013005). Clean tomato and onion, chop them and put them in a pot with sunflower oil. Add mince and stew for 20 minutes, stiring every 5 minutes. Add boiled spaghetti and mix.
A139: 014007 | B139: gram | C139: Fat cakes, homemade, white
A140: 130007 | B140: 150 | C140: Water, tab
A141: 090007 | B141: 500 | C141: Sunflower oil
A142: 110008 | B142: 2 | C142: Sugar, granulated, brown
A143: 150008 | B143: 1 | C143: Yeast, dried
A144: 150005 | B144: 3 | C144: Salt, iodated
A146: Method | B146: We shape bread dough into small balls(see recipe 012003). Roll into long shapes, and press out to a 10 mm. Allow to rise for 5 to 10 minutes in a fairly warm place. Brown on both sides in hot sunflower oil, drain on the absorbent paper and serve hot with butter for breakfast.
A149: 014009 | B149: gram | C149: Scones, plain
A150: 011033 | B150: 200 | C150: Wheat flour, white, self raising flour
A151: 030023 | B151: 125 | C151: Milk, full fat, 3.4 %fat, UHT
A152: 090004 | B152: 50 | C152: Hard margarine
A153: 150005 | B153: 2 | C153: Salt, iodated
A154: 110008 | B154: 10 | C154: Sugar, granulated, brown
A156: Method | B156: Sift flour and sugar and rub in margarine. Mix in the milk. Roll out and cut into rounds. Bake in a hot oven at 220°C for about 10 minutes.
A159: 02 MEATS, POULTRY, FISH AND THEIR PRODUCTS
A160: 020002 | B160: gram | C160: Beef and pork, sausage/boerwors, grilled/braai (Mmeso) | CH160: F&C91-pg 234
A161: 020010 | B161: 3000 | C161: Beef, fatty, raw
A162: 020096 | B162: 2000 | C162: Pork, fatty , raw
A163: 020094 | B163: 250 | C163: Pork, bacon, fatty, pan-fried
A164: 150007 | B164: 125 | C164: Vinegar
A165: 150005 | B165: 55 | C165: Salt, iodated
A167: Method | B167: Ground meat products.Mix all the ingredients and stuff into casing. Grill on fire.
A170: 020007 | B170: gram | C170: Beef, meat, roasted | CH170: F&C91-pg99
A171: 020010 | B171: 500 | C171: Beef, fatty, raw
A172: 090007 | B172: 3 | C172: Sunflower oil
A173: 150005 | B173: 2.5 | C173: Salt, iodated
A175: Method | B175: Pre-heat oven to 140 ºC .Salt the meat, place it on a roasting pan and dot with oil.Roast slowly in an oven. Baste occassionally. Roast for 30 minutes for 500g meat.
A178: 020008 | B178: gram | C178: Beef, sausage, grilled/braai (Mmeso) | CH178: F&C91-pg106
A179: 020010 | B179: 500 | C179: Beef, fatty, raw
B180: 83 | C180: Animal fat
A181: 150007 | B181: 4 | C181: Vinegar
A182: 150005 | B182: 4 | C182: Salt, iodated
A184: Method | B184: Ground meat. Mix with other ingredients. Stuff in casing, then grill on fire.
A187: 020016 | B187: gram | C187: Beef, mince savoury onion, tomato, green sweet pepper
A188: 020014 | B188: 250 | C188: Beef, mince, fatty, raw
A189: 050064 | B189: 30 | C189: Onion, raw
A190: 050093 | B190: 40 | C190: Tomato, flesh and skin, raw
A191: 050084 | B191: 60 | C191: Sweet green pepper, raw
A192: 150005 | B192: 5 | C192: Salt, iodated
A194: Method | B194: Saute' the onion and green pepper in oil. Add beef mince and tomato. Simmer for 10 minutes. Add salt and simmer another 10 minutes.
A197: 020022 | B197: gram | C197: Beef, meat, stewed with vegetables | CH197: F&C91-pg100
A198: 130007 | B198: 50 | C198: Water, tab
A199: 020014 | B199: 1000 | C199: Beef, fatty, raw
A200: 050064 | B200: 90 | C200: Onion
A201: 050021 | B201: 80 | C201: Carrot, flesh only, raw
A202: 050093 | B202: 80 | C202: Tomato, flesh and skin, raw
A203: 090007 | B203: 12.5 | C203: Sunflower oil
A204: 150005 | B204: 10 | C204: Salt, iodated
A206: Method | B206: Boil beef until a bit tender. Add lightly fried vegetables ans salt into the meat and let simmer for 20 minutes.
A209: 020029 | B209: gram | C209: Chicken, heads and feet, boiled
A210: 130007 | B210: 500 | C210: Water, tab
A211: 020028 | B211: 100 | C211: Chicken, feet, raw
A212: 020041 | B212: 100 | C212: Chicken, heads, raw
A213: 150005 | B213: 5 | C213: Salt, iodated
A215: Method | B215: Dress the feet and heads. Cook for 20 minutes. Add salt and simmer for 10-15 minutes.
A218: 020030 | B218: gram | C218: Beef, tripe, boiled
A219: 130007 | B219: 350 | C219: Water, tab
A220: 020043 | B220: 250 | C220: Beef, tripe, raw
A221: 150005 | B221: 5 | C221: Salt, iodated
A223: Method | B223: Wash the tripe. Cook for 1hour. Add salt simmer for 15 minutes.
A226: 020035 | B226: gram | C226: Chicken curry, boiled | CH226: F&C91-pg113
A227: 130007 | B227: 250 | C227: Water, tab
A228: 020034 | B228: 1000 | C228: Chicken, meat and skin, raw
A229: 050064 | B229: 60 | C229: Onion
A230: 150007 | B230: 25 | C230: Vinegar
A231: 150002 | B231: 12.5 | C231: Curry powder
A232: 090007 | B232: 25 | C232: Sunflower oil
A233: 150005 | B233: 10 | C233: Salt, iodated
A235: Method | B235: Cook chicken for 30 minutes. Add chopped onion, vinegar, oil, curry powder and salt. Simmer for 30 minutes.
A238: 020038 | B238: gram | C238: Chicken, feet, boiled | CH238: Researched
A239: 130007 | B239: 250 | C239: Water, tab
A240: 020028 | B240: 100 | C240: Chicken, feet, raw
A241: 150005 | B241: 3 | C241: Salt, iodated
A243: Method | B243: Undress the feet and clean them. Cook for 20 minutes. Add salt and simmer fro 10-15 minutes.
A246: 020042 | B246: gram | C246: Chicken, heads, boiled | CH246: Researched
A247: 130007 | B247: 250 | C247: Water, tab
A248: 020041 | B248: 100 | C248: Chicken, heads, raw
A249: 150005 | B249: 3 | C249: Salt, iodated
A251: Method | B251: Clean the heads. Cook for 20 minutes. Add salt and simmer fro 10-15 minutes.
A254: 020046 | B254: gram | C254: Chicken, meat and skin, stewed with vegetable
A255: 130007 | B255: 250 | C255: Water, tab
A256: 020050 | B256: 1000 | C256: Chicken, meat and skin, boiled
A257: 050064 | B257: 30 | C257: Onion, raw
A258: 050021 | B258: 60 | C258: Carrot, flesh and skin, raw
A259: 050093 | B259: 40 | C259: Tomato, flesh and skin, raw
A260: 150005 | B260: 10 | C260: Salt, iodated
A262: Method | B262: Cut the chicken into small pieces. Add water and carrots, simmer for 15 minutes. Add onion, tomato and salt. Simmer for 30 minutes or until the chicken is tender. Add a little more boiling water if the chicken boils dry.
A265: 020066 | B265: gram | C265: Mutton curry | CH265: F&C91-pg97
A266: 130007 | B266: 400 | C266: Water, tab
A267: 020070 | B267: 750 | C267: Mutton, meat, raw
A268: 050064 | B268: 60 | C268: Onion
A269: 150007 | B269: 25 | C269: Vinegar
A270: 150002 | B270: 12.5 | C270: Curry powder
A271: 090007 | B271: 25 | C271: Sunflower oil
A272: 150005 | B272: 10 | C272: Salt, iodated
A274: Method | B274: Cook mutton for 1 hour. Add chopped onion, vinegar, oil, curry powder and salt. Simmer for 30 minutes.
A277: 020075 | B277: gram | C277: Mutton, stewed with vegetables | CH277: F&C91-pg98
A278: 130007 | B278: 400 | C278: Water, tab
A279: 020070 | B279: 750 | C279: Mutton, meat, raw
A280: 050064 | B280: 60 | C280: Onion
A281: 050096 | B281: 120 | C281: Carrot, flesh only, raw
A282: 070001 | B282: 100 | C282: Potato, without skin, raw
A283: 090007 | B283: 25 | C283: Sunflower oil
A284: 150005 | B284: 10 | C284: Salt, iodated
A286: Method | B286: Cook mutton for 1 hour. Add chopped vegetables, oil and salt. Simmer for 30 minutes.
A288: 020078 | B288: gram | C288: Offals, sheep, boiled
A289: 130007 | B289: 1000 | C289: Water, tab
... 170 more rows

Sheet source DB original
A1: code | B1: progress | C1: type | D1: type | E1: priorityclass | F1: foodname | G1: LONG FOODNAME | H1: scientific name | I1: EDIBLE | J1: ENERC-kJ | K1: WATER-g | L1: NT-g | M1: PROTCNT-g | N1: PROPLA-g | O1: PROANI-g | P1: CHOL--g | Q1: FAT-g | R1: FATCE-g | S1: FASAT-g | T1: FAMS-g | U1: FAPU-g | V1: FATRN-g | W1: CHOAVLDF-g | X1: CHOCDF-g | Y1: CHOAVLM-g | Z1: STARCH-g | AA1: SUGAR-g | AB1: STARCHM-g | AC1: SUGARM-g | AD1: ADSUGAR-g | AE1: FIBTG-g | AF1: FIBTS-g | AG1: PSACNS-g | AH1: FIBC-g | AI1: ALC-g | AJ1: ASH-g | AK1: CA-mg | AL1: FE-mg | AM1: MG-mg | AN1: P-mg | AO1: K-mg | AP1: NA-mg | AQ1: ZN-mg | AR1: CU-mg | AS1: SE-mcg | AT1: MN-mcg | AU1: VITA_12-mcg | AV1: VITA_6-mcg | AW1: RETOL-mcg | AX1: CARTBEQ-mcg | AY1: CAROTA-mcg | AZ1: CAROTB-mcg | BA1: CRYPX-mcg | BB1: CARTG-mcg | BC1: LYCPN-mcg | BD1: LUTNZEA-mcg | BE1: VITD-mcg | BF1: VITDbr-mcg | BG1: VITD--mcg | BH1: VITE-mg | BI1: TOCPHA-mg | BJ1: THIA-mg | BK1: RIBF-mg | BL1: NIA-mg | BM1: NIAEQ-mg | BN1: VITB6-mg | BO1: FOL-mcg | BP1: VITB12-mcg | BQ1: VITC-mg | BR1: ASCL-mg | BS1: DEN | BT1: XN | BU1: XFA | BV1: yield | BW1: FCT SOURCE | BX1: FDNUMBER SOURCE | BZ1: comments
A2: 01 Cereals and cereal products
E3: 011 GRAINS
A4: 011001 | B4: a | C4: R | D4: R | E4: 1 | F4: Maize, sorghum and wheat grains, boiled (Likhobe) | G4: Maize, sorghum and wheat grains, boiled (Likhobe) | I4: 1 | K4: 73.24809886 | L4: =M4/BT4 -> 0.4692015209 | M4: 2.932509506 | N4: 2.932509506 | O4: 0 | P4: 0 | Q4: 1.821292776 | R4: 0.3517110266 | S4: 0.241539924 | T4: 0.4047528517 | U4: 0.9874524715 | V4: 0 | W4: 19.52186312 | X4: 21.1378327 | Y4: 0 | Z4: 5.826045627 | AA4: 0.03897338403 | AB4: 0 | AC4: 0 | AD4: 0 | AE4: 2.794676806 | AF4: 0 | AG4: 0 | AH4: 0 | AI4: 0 | AJ4: 1.841254753 | AK4: 25.23764259 | AL4: 1.009980989 | AM4: 33.53612167 | AN4: 97.05798479 | AO4: 104.3203422 | AP4: 207.6045627 | AQ4: 0.4691064639 | AR4: 0.1287072243 | AS4: 0 | AT4: 66.95731939 | AU4: 0 | AV4: 0.02851711027 | AW4: 0 | AX4: 0 | BE4: 0 | BF4: 0 | BG4: 0 | BH4: 0.5923954364 | BI4: 0 | BJ4: 0.06450570342 | BK4: 0.02326996198 | BL4: 0.5661787072 | BN4: 0.03262357414 | BO4: 3.517110266 | BP4: 0 | BQ4: 0 | BR4: 0 | BT4: 6.25 | CB4: 100 | CC4: 17.3621673
A5: 011002 | B5: a | C5: F | D5: F | E5: 1 | F5: Maize meal, super, white, unfortified, raw | G5: Maize meal, super, white, refined, raw | H5: Zea mays | I5: 1 | K5: 12 | L5: 1.23 | M5: 7.7 | Q5: 1.4 | S5: 0.189 | T5: 0.28 | U5: 0.42 | W5: 74 | Z5: 67.2 | AA5: 0 | AE5: 4.9 | AJ5: 0.5 | AK5: 3 | AL5: 0.7 | AM5: 36 | AN5: 60 | AO5: 108 | AP5: 3 | AQ5: 0.58 | AR5: 0.1 | AT5: 170 | AV5: 10 | BE5: 0 | BH5: 0.34 | BJ5: 0.13 | BK5: 0.02 | BL5: 0.8 | BN5: 0.17 | BO5: 8 | BQ5: 0.12 | BT5: 6.25 | BW5: MRC05 | BY5: 3397
A6: 011042 | B6: a | D6: F | E6: 1 | F6: Maize meal, super, white, fortified, raw | I6: 1 | K6: 12.1 | L6: 1.22 | M6: 7.6 | Q6: 1.7 | S6: 0.195 | T6: 0.32 | U6: 0.491 | W6: 74 | Z6: 74.6 | AE6: 4.1 | AJ6: 0.5 | AK6: 5 | AL6: 2.6 | AM6: 38 | AN6: 60 | AO6: 98 | AP6: 3 | AQ6: 2.07 | AR6: 0.1 | AT6: 190 | AV6: 184 | BH6: 0.36 | BJ6: 0.43 | BK6: 0.19 | BL6: 3.5 | BN6: 0.63 | BO6: 210 | BQ6: 0.12 | BW6: MRC05
A7: 011003 | B7: a | C7: F | D7: F | E7: 1 | F7: Maize meal, white, sifted, unfortified, raw | G7: Maize meal, white, unsifted, raw | H7: Zea mays | I7: 1 | K7: 11.9 | L7: 1.33 | M7: 8.3 | Q7: 3.3 | S7: 0.43 | T7: 1.05 | U7: 1.57 | V7: 0 | W7: 78.3 | Z7: 68.4 | AE7: 7.3 | AJ7: 0.9 | AK7: 3 | AL7: 1.5 | AM7: 98 | AN7: 190 | AO7: 196 | AP7: 3 | AQ7: 1.67 | AR7: 0.16 | AT7: 360 | AV7: 12 | BH7: 0.56 | BJ7: 0.38 | BK7: 0.05 | BL7: 1.7 | BN7: 0.31 | BO7: 29 | BQ7: 128 | BW7: MRC05 | BY7: 3269
A8: 011043 | B8: a | D8: F | E8: 1 | F8: Maize meal, white, sifted, fortified, raw | I8: 1 | K8: 11.8 | L8: 1.35 | M8: 8.4 | Q8: 3.2 | S8: 0.421 | T8: 0.825 | U8: 1.376 | W8: 69 | Z8: 68.5 | AE8: 6.7 | AJ8: 0.9 | AK8: 12 | AL8: 3.2 | AM8: 98 | AN8: 90 | AO8: 197 | AP8: 4 | AQ8: 2.98 | AR8: 0.16 | AT8: 330 | AV8: 196 | BH8: 0.62 | BJ8: 0.68 | BK8: 0.23 | BL8: 4.6 | BN8: 0.75 | BO8: 225 | BQ8: 125 | BW8: MRC05
A9: 011004 | B9: a | C9: F | D9: F | E9: 1 | F9: Maize meal, yellow, refined, raw | G9: Maize meal, yellow, refined, raw | H9: Zea mays | I9: 1 | K9: 13 | L9: 1.4 | M9: 8.9 | N9: 8.9 | O9: 0 | Q9: 2.5 | S9: 0.33 | T9: 0.78 | U9: 0.95 | V9: 0 | W9: 81.6 | AA9: 0 | AD9: 0 | AE9: 3.4 | AK9: 4 | AL9: 0.7 | AM9: 75 | AN9: 174 | AO9: 251 | AP9: 7 | AQ9: 0.9 | AR9: 0.09 | AS9: 0 | AT9: 300 | AV9: 49 | BE9: 0 | BH9: 0.64 | BJ9: 0.32 | BK9: 0.04 | BL9: 0.9 | BN9: 0.06 | BO9: 16 | BP9: 0 | BQ9: 0 | BT9: 6.25 | BW9: SA91 | BX9: 4079 | BY9: 3275
A10: 011006 | B10: a | C10: F | D10: F | E10: 1 | F10: Maize meal, special, white, unfortified, raw | G10: Maize meal, special, white, refined, raw | H10: Zea mays | I10: 1 | K10: 11.6 | L10: 1.23 | M10: 7.6 | Q10: 2.9 | T10: 0.392 | U10: 0.78 | V10: 1.255 | W10: 71.5 | Z10: 69.9 | AE10: 5.5 | AJ10: 0.8 | AK10: 6 | AL10: 1.2 | AM10: 83 | AN10: 105 | AO10: 180 | AP10: 7 | AQ10: 1.53 | AR10: 0.22 | AS10: 0 | AT10: 540 | AV10: 23 | BE10: 0 | BH10: 0.49 | BJ10: 0.38 | BK10: 0.05 | BL10: 1.6 | BN10: 0.37 | BO10: 42 | BP10: 0 | BQ10: 0.13 | BT10: 6.25 | BW10: MRC05 | BY10: 3270
A11: 011005 | B11: a | C11: F | D11: F | E11: 1 | F11: Maize meal, special, white, fortified, raw | G11: Maize meal, special, white, enriched, raw | H11: Zea mays | I11: 1 | K11: 12 | L11: 1.24 | M11: 7.7 | Q11: 2.9 | S11: 0.392 | T11: 0.78 | U11: 1.255 | W11: 71.5 | Z11: 70.3 | AA11: 0 | AD11: 0 | AE11: 5.2 | AJ11: 0.8 | AK11: 9 | AL11: 2.9 | AM11: 88 | AN11: 175 | AO11: 186 | AP11: 4 | AQ11: 2.91 | AR11: 0.14 | AT11: 290 | AV11: 235 | BH11: 0.62 | BJ11: 0.77 | BK11: 0.21 | BL11: 4.6 | BN11: 0.72 | BO11: 265 | BP11: 0 | BQ11: 0.13 | BT11: 6.25 | BW11: MRC05 | BY11: 3377
A12: 011007 | B12: a | C12: F | D12: F | E12: 1 | F12: Maize, whole grain, white, dried, raw | G12: Maize, whole grain, white, dried, raw | H12: Zea mays | I12: 1 | K12: 13 | L12: 1.5 | M12: 9.2 | N12: 9.2 | O12: 0 | Q12: 4.3 | S12: 0.53 | T12: 1.23 | U12: 1.94 | V12: 0 | W12: 75.3 | AA12: 0 | AD12: 0 | AE12: 10.6 | AK12: 10 | AL12: 3 | AM12: 123 | AN12: 241 | AO12: 346 | AP12: 11 | AQ12: 2.3 | AR12: 0.2 | AS12: 0 | AT12: 700 | AV12: 0 | BE12: 0 | BH12: 1.3 | BJ12: 0.5 | BK12: 0.12 | BL12: 2.2 | BN12: 0.3 | BO12: 33 | BP12: 0 | BQ12: 0 | BT12: 6.25 | BW12: SA91 | BX12: 4073 | BY12: 3271
A13: 011040 | B13: a | C13: R | D13: R | E13: 1 | F13: Maize, whole, grain, white, dried, roasted (Machechisa) | I13: 1 | K13: 4.850261667 | L13: 0.5491988596 | M13: 3.432492872 | N13: 3.432492872 | O13: 0 | P13: 0 | Q13: 1.604317321 | R13: 0 | S13: 0.1977414372 | T13: 0.4589093732 | U13: 0.7238082796 | V13: 0 | W13: 28.09420797 | X13: 27.42263327 | Y13: 0 | Z13: 0 | AA13: 0 | AD13: 0 | AE13: 3.954828744 | AJ13: 0.421599668 | AK13: 3.730970513 | AL13: 1.119291154 | AM13: 45.89093732 | AN13: 89.91638937 | AO13: 129.0915798 | AP13: 4.104067565 | AQ13: 0.8581232181 | AR13: 0.07461941027 | AS13: 0 | AT13: 261.1679359 | AU13: 0 | AV13: 0 | AW13: 0 | AX13: 0 | BE13: 0 | BF13: 0 | BG13: 0 | BH13: 0.4850261667 | BI13: 0 | BJ13: 0.1585662468 | BK13: 0.03805589924 | BL13: 0.7797728373 | BM13: 0 | BN13: 0.08394683655 | BO13: 6.156101347 | BP13: 0 | BQ13: 0 | BR13: 0 | BT13: 6.25 | BW13: Recipe
A14: 011010 | B14: a | C14: F | D14: F | E14: 1 | F14: Maize, whole grain, yellow, dried, raw | G14: Maize, whole grain, yellow, dried, raw | H14: Zea mays | I14: 1 | K14: 13 | L14: 13 | M14: 9.2 | N14: 9.2 | O14: 0 | Q14: 4.3 | S14: 0.53 | T14: 1.23 | U14: 1.94 | V14: 0 | W14: 75.3 | AA14: 0 | AD14: 0 | AE14: 10.6 | AK14: 10 | AL14: 3 | AM14: 123 | AN14: 241 | AO14: 346 | AP14: 11 | AQ14: 2.3 | AR14: 0.2 | AS14: 0 | AT14: 700 | AV14: 49 | BE14: 0 | BH14: 1.3 | BJ14: 0.5 | BK14: 0.12 | BL14: 2.2 | BN14: 0.3 | BO14: 33 | BP14: 0 | BQ14: 0 | BT14: 6.25 | BW14: SA91 | BX14: 4080 | BY14: 3276
A15: 011014 | B15: a | C15: F | D15: F | E15: 1 | F15: Maize samp/rice , white, raw | G15: Maize samp/rice , white, raw | H15: Zea mays | I15: 1 | K15: 13 | L15: 13 | M15: 8.8 | N15: 8.8 | O15: 0 | Q15: 0.7 | S15: 0.09 | T15: 0.21 | U15: 0.28 | V15: 0 | W15: 85.9 | AD15: 0 | AE15: 3.2 | AK15: 3 | AL15: 0.6 | AM15: 28 | AN15: 60 | AO15: 110 | AP15: 3 | AQ15: 0.5 | AR15: 0.07 | AS15: 0 | AT15: 100 | AV15: 0 | BE15: 0 | BH15: 0.18 | BJ15: 0.13 | BK15: 0.01 | BL15: 0.5 | BN15: 0.025 | BO15: 10 | BP15: 0 | BQ15: 0 | BT15: 6.25 | BW15: SA91 | BX15: 4077 | BY15: 3274
A16: 011015 | B16: a | C16: F | D16: F | E16: 1 | F16: Maize samp/rice, white, boiled | G16: Maize samp/rice, white, boiled | H16: Zea mays | I16: 1 | K16: 78.2 | L16: 0.4 | M16: 2.2 | N16: 2.2 | O16: 0 | Q16: 0.2 | S16: 0.03 | T16: 0.05 | U16: 0.07 | V16: 0 | W16: 21.5 | AD16: 0 | AE16: 0.8 | AK16: 1 | AL16: 0.2 | AM16: 7 | AN16: 15 | AO16: 28 | AP16: 1 | AQ16: 0.13 | AR16: 0.02 | AS16: 0 | AT16: 30 | AV16: 0 | BE16: 0 | BH16: 0.05 | BJ16: 0.03 | BK16: 0 | BL16: 0.1 | BN16: 0.006 | BO16: 3 | BP16: 0 | BQ16: 0 | BT16: 6.25 | BW16: SA91 | BX16: 4073 | BY16: 3250
A17: 011038 | B17: a | C17: R | D17: R | E17: 1 | F17: Maize samp, with dried beans (Umngdusho) | G17: Maize samp with dried Beans (Umngdusho) | I17: 1 | K17: 62.37746711 | L17: 0.8453947368 | M17: 5.283717105 | N17: 5.283717105 | O17: 0 | P17: 0 | Q17: 1.644736842 | S17: 0.2136101974 | T17: 0.3010279605 | U17: 1.051233553 | V17: 0 | W17: 27.15871711 | X17: 15.93338816 | Z17: 0 | AA17: 0 | AE17: 4.646381579 | AJ17: 1.004523026 | AK17: 19.77796053 | AL17: 1.337582237 | AM17: 10.36595395 | AN17: 46.05674342 | AO17: 257.3560855 | AP17: 171.0526316 | AQ17: 0.6254111842 | AR17: 0.2013980263 | AS17: 0 | AT17: 289.8848684 | AU17: 0 | AV17: 0.03700657895 | AW17: 0 | AX17: 0 | BE17: 0 | BG17: 0 | BH17: 0.5907072368 | BJ17: 0.07154605263 | BK17: 0.01973684211 | BL17: 0.3700657895 | BM17: 0 | BN17: 0.05699013158 | BO17: 39.0625 | BP17: 0 | BQ17: 0.01 | BW17: Recipe
A18: 011016 | C18: F | D18: F | E18: 3 | F18: Oat bran, raw | G18: Oat bran, raw | BT18: 6.25 | BW18: SA91 | BX18: 4258
A19: 011039 | C19: F | D19: F | E19: 3 | F19: Oatmeal, raw | G19: Oatmeal
A20: 011017 | C20: R | D20: R | E20: 3 | F20: Oatmeal porridge, boiled with sugar, fresh milk | G20: Oatmeal porridge, boiled with sugar, fresh Milk | BW20: Recipe
A21: 011018 | B21: a | C21: R | D21: R | E21: 1 | F21: Hard porridge from white maize meal, boiled (Papa) | G21: Papa Hard porridge from white maize meal, boiled | I21: 1 | K21: 66.63287462 | L21: 0.5443425076 | M21: 3.402140673 | N21: 3.402140673 | O21: 0 | P21: 0 | Q21: 0.9556574924 | R21: 0 | S21: 0.126146789 | T21: 0.2981651376 | U21: 0.3631498471 | V21: 0 | W21: 31.19266055 | X21: 28.89908257 | Z21: 0 | AA21: 0 | AE21: 1.29969419 | AJ21: 0.3396024465 | AK21: 3.733944954 | AL21: 0.2675840979 | AM21: 29.77217125 | AN21: 66.51376147 | AO21: 95.94801223 | AP21: 4.880733945 | AQ21: 0.3440366972 | AR21: 0.04212079511 | AS21: 0 | AT21: 114.6788991 | AU21: 0 | AV21: 0 | AW21: 0 | AX21: 0 | BE21: 0 | BG21: 0 | BH21: 0.244648318 | BI21: 0 | BJ21: 0.07339449541 | BK21: 0.009174311927 | BL21: 0.2064220183 | BN21: 0.01376146789 | BO21: 3.058103976 | BP21: 0 | BQ21: 0 | BW21: Recipe
A22: 011019 | B22: a | C22: R | D22: R | E22: 1 | F22: Soft porridge from white maize meal, boiled (Lesheleshele) | G22: Papa Soft porridge from white maize meal, boiled | I22: 1 | K22: 82.74705882 | L22: 0.1970934256 | M22: 1.23183391 | N22: 1.23183391 | O22: 0 | P22: 0 | Q22: 0.3460207612 | R22: 0 | S22: 0.04567474048 | T22: 0.1079584775 | U22: 0.1314878893 | V22: 0 | W22: 16.29757785 | X22: 10.46366782 | Y22: 0 | Z22: 0 | AA22: 5.003460208 | AD22: 0 | AE22: 0.4705882353 | AJ22: 0.2598615917 | AK22: 7.567474048 | AL22: 0.2733564014 | AM22: 12.46020761 | AN22: 25.06920415 | AO22: 52.59515571 | AP22: 5.128027682 | AQ22: 0.124567474 | AR22: 0.02467820069 | AS22: 0 | AT22: 41.52249135 | AU22: 0 | AV22: 0 | AW22: 0 | AX22: 0 | BE22: 0 | BF22: 0 | BG22: 0 | BH22: 0.08858131488 | BI22: 0 | BJ22: 0.02688581315 | BK22: 0.004256055363 | BL22: 0.08096885813 | BN22: 0.004982698962 | BO22: 1.107266436 | BP22: 0 | BQ22: 0 | BR22: 0 | BT22: 0 | BW22: Recipe
A23: 011020 | B23: a | C23: R | D23: R | E23: 1 | F23: Hard porridge from yellow maize meal, boiled (Papa) | G23: Papa Hard porridge from yellow maize meal, boiled | I23: 1 | K23: 66.63287462 | L23: 0.5443425076 | M23: 3.402140673 | N23: 3.402140673 | O23: 0 | P23: 0 | Q23: 0.9556574924 | R23: 0 | S23: 0.126146789 | T23: 0.2981651376 | U23: 0.3631498471 | V23: 0 | W23: 31.19266055 | X23: 28.89908257 | Y23: 0 | Z23: 0 | AA23: 0 | AD23: 0 | AE23: 1.29969419 | AJ23: 0.3396024465 | AK23: 3.733944954 | AL23: 0.2675840979 | AM23: 29.77217125 | AN23: 66.51376147 | AO23: 95.94801223 | AP23: 4.880733945 | AQ23: 0.3440366972 | AR23: 0.04212079511 | AS23: 0 | AT23: 114.6788991 | AU23: 9.174311927 | AV23: 18.73088685 | AW23: 0 | AX23: 0 | BE23: 0 | BF23: 0 | BG23: 0 | BH23: 0.244648318 | BI23: 0 | BJ23: 0.07339449541 | BK23: 0.009174311927 | BL23: 0.2064220183 | BN23: 0.01376146789 | BO23: 3.058103976 | BP23: 0 | BQ23: 0 | BR23: 0 | BT23: 0 | BW23: Recipe
A24: 011021 | B24: a | C24: F | D24: F | E24: 2 | F24: Popped corn, plain, salted | G24: Popped corn, plain, salted | H24: Zea mays | I24: 1 | K24: 0.9 | L24: 0.99 | M24: 6.2 | P24: 0 | Q24: 42.8 | S24: 4.3 | T24: 14.5 | U24: 19.7 | Y24: 48.7 | AB24: 47.6 | AC24: 1.1 | AK24: 10 | AL24: 1.1 | AM24: 81 | AN24: 170 | AO24: 220 | AP24: 4 | AQ24: 1.7 | AT24: 0.01 | AW24: 0 | AX24: 230 | BF24: 0 | BH24: 11.03 | BJ24: 0.18 | BK24: 0.11 | BL24: 1 | BN24: 0.2 | BO24: 9 | BP24: 0 | BQ24: 0 | BT24: 6.25 | BW24: GB6 | BX24: 1077
A25: 011022 | B25: a | C25: F | D25: F | E25: 1 | F25: Rice, white, raw | G25: Rice, white, raw | H25: Oryza sativa | I25: 1 | K25: 13.29 | L25: =M25/BT25 -> 1.09243701 | M25: 6.5 | P25: 0 | Q25: 0.52 | S25: 0.14 | T25: 0.161 | U25: 0.138 | X25: 79.15 | AE25: 2.8 | AJ25: 0.54 | AK25: 3 | AL25: 4.23 | AM25: 23 | AN25: 95 | AO25: 76 | AP25: 1 | AQ25: 1.1 | AR25: 0.21 | AS25: 15.1 | AT25: 1.037 | AU25: 0 | AW25: 0 | BJ25: 0.565 | BK25: 0.048 | BL25: 4.113 | BN25: 0.171 | BO25: 6 | BP25: 0 | BQ25: 0 | BT25: 5.949999809 | BW25: US18 | BX25: 20052
A26: 011023 | B26: a | C26: F | D26: F | E26: 1 | F26: Rice, white, boiled | G26: Rice, white, boiled | H26: Oryza sativa | I26: 1 | K26: 68.53 | L26: =M26/BT26 -> 0.3966386682 | M26: 2.36 | P26: 0 | Q26: 0.19 | S26: 0.051 | T26: 0.058 | U26: 0.05 | X26: 28.73 | AJ26: 0.2 | AK26: 1 | AL26: 1.46 | AM26: 8 | AN26: 33 | AO26: 26 | AP26: 0 | AQ26: 0.4 | AR26: 0.072 | AS26: 7.5 | AT26: 0.357 | AU26: 0 | AW26: 0 | BJ26: 0.164 | BK26: 0.016 | BL26: 1.493 | BN26: 0.059 | BO26: 2 | BP26: 0 | BQ26: 0 | BT26: 5.949999809 | BW26: US18 | BX26: 20053
A27: 011024 | B27: a | C27: R | D27: R | E27: 1 | F27: Mealie meal and wheat bread (Mochahlama) | G27: Sorghum grain, half mature, grounded and fermented into bread (Senkhoane) | I27: 1 | K27: 73.57260871 | L27: 0.4815214689 | M27: 2.89535619 | N27: 2.716295732 | O27: 0 | P27: 0 | Q27: 0.4859099307 | R27: 0 | S27: 0.06851517031 | T27: 0.08459944354 | U27: 0.1697567952 | V27: 0 | W27: 20.67817492 | X27: 0.1790604587 | Y27: 6.938787576 | Z27: 18.71839865 | AA27: 1.886349875 | AB27: 6.766584089 | AC27: 0.1722034873 | AD27: 0 | AE27: 1.014520093 | AF27: 0 | AG27: 0.6482954816 | AH27: 0 | AI27: 0 | AJ27: 0.5475447535 | AK27: 15.62610287 | AL27: 0.5494927567 | AM27: 16.1855694 | AN27: 40.6415814 | AO27: 56.75702269 | AP27: 124.9994725 | AQ27: 0.3311605525 | AR27: 0.05807387289 | AS27: 0.517857184 | AT27: 0 | AU27: 0 | AV27: 1.87008312 | AW27: 0 | AX27: 0 | AY27: 0 | AZ27: 0 | BA27: 0 | BB27: 0 | BC27: 0 | BD27: 0 | BE27: 0 | BF27: 0 | BG27: 0 | BH27: 0.1243605275 | BI27: 0 | BJ27: 0.04493809737 | BK27: 0.0237968077 | BL27: 0.4449395263 | BN27: 0.0416561015 | BO27: 8.801078683 | BP27: 9.3504156e-05 | BQ27: 0.02384355978 | BR27: 0 | BW27: Recipe
A28: 011030 | B28: a | C28: F | D28: F | E28: 1 | F28: Sorghum, whole grain, raw | G28: Sorghum, whole grain, raw | H28: Sorghum bicolor | I28: 1 | K28: 9.2 | L28: =M28/BT28 -> 1.808 | M28: 11.3 | P28: 0 | Q28: 3.3 | S28: 0.457 | T28: 0.993 | U28: 1.37 | X28: 74.63 | AE28: 6.3 | AJ28: 1.57 | AK28: 28 | AL28: 4.4 | AN28: 287 | AO28: 350 | AP28: 6 | AU28: 0 | AW28: 0 | BJ28: 0.237 | BK28: 0.142 | BL28: 2.927 | BP28: 0 | BQ28: 0 | BT28: 6.25 | BW28: US18 | BX28: 20067
A29: 011025 | B29: a | C29: F | D29: F | E29: 1 | F29: Sorghum flour | G29: Sorghum flour | H29: Sorghum bicolor | I29: 1 | K29: 11 | L29: =M29/BT29 -> 1.6592 | M29: 10.37 | Q29: 1.7 | W29: 72.2 | Z29: 71.4 | AA29: 0.3700000048 | AE29: 4.66 | AK29: 12 | AL29: 5.8 | AP29: 44 | AQ29: 2.14 | AU29: 0 | AW29: 0 | AX29: 1 | BJ29: 0.18 | BK29: 0.12 | BL29: 0.91 | BP29: 0 | BQ29: 0 | BT29: 6.25 | BW29: MALI | BX29: 374 | BY29: Analysed | BZ29: checked other tables and data are similar and not more
A30: 011026 | B30: a | C30: R | D30: R | E30: 1 | F30: Sorghum porridge, hard (Papa) | G30: Sorghum porridge, hard | H30: Sorghum bicolor | I30: 1 | K30: 65.71570314 | L30: 0.6370872963 | M30: 3.981795602 | N30: 3.981795602 | O30: 0 | P30: 0 | Q30: 0.6527533774 | R30: 0 | S30: 0 | T30: 0 | U30: 0 | V30: 0 | W30: 27.72281991 | X30: 0 | Y30: 0 | Z30: 27.41564185 | AA30: 0.1420698545 | AB30: 0 | AC30: 0 | AD30: 0 | AE30: 1.789312199 | AF30: 0 | AG30: 0 | AH30: 0 | AI30: 0 | AJ30: 0.7135746332 | AK30: 6.822424711 | AL30: 2.227040935 | AM30: 1.107376906 | AN30: 0 | AO30: 0 | AP30: 19.10954711 | AQ30: 0.8217013103 | AR30: 0.007751638342 | AS30: 0 | AT30: 0 | AU30: 0 | AV30: 0 | AW30: 0 | AX30: 0.3839725749 | AY30: 0 | AZ30: 0.3839725749 | BA30: 0 | BB30: 0 | BC30: 0 | BD30: 0 | BE30: 0 | BF30: 0 | BG30: 0 | BH30: 0 | BI30: 0 | BJ30: 0.04146903809 | BK30: 0.02764602539 | BL30: 0.2096490259 | BN30: 0 | BO30: 0 | BP30: 0 | BQ30: 0 | BR30: 0 | BT30: 6.25 | BW30: Recipe
A31: 011027 | B31: a | C31: R | D31: R | E31: 1 | F31: Sorghum porridge, soft (Lesheleshele) | G31: Sorghum porridge, soft | H31: Sorghum bicolor | I31: 1 | K31: 82.42546389 | L31: 0.2948923389 | M31: 1.843077118 | N31: 1.259901761 | O31: 0.5831753571 | P31: 0.001822422991 | Q31: 0.8261650893 | R31: 0 | S31: 0.3535500603 | T31: 0.1640180692 | U31: 0.0200466529 | V31: 0 | W31: 14.03873177 | X31: 0 | Y31: 0 | Z31: 8.674733437 | AA31: 5.311755545 | AB31: 0 | AC31: 0 | AD31: 0 | AE31: 0.5661660759 | AF31: 0 | AG31: 0 | AH31: 0 | AI31: 0 | AJ31: 0.4735262405 | AK31: 28.93703973 | AL31: 0.8778004073 | AM31: 4.012367952 | AN31: 16.72073094 | AO31: 42.46245569 | AP31: 17.92656749 | AQ31: 0.329251087 | AR31: 0.01255041966 | AS31: 0.3644845982 | AT31: 0.7289691964 | AU31: 0 | AV31: 7.289691964 | AW31: 6.742965067 | AX31: 3.584098549 | AY31: 0 | AZ31: 0.1214948661 | BA31: 0 | BB31: 0 | BC31: 0 | BD31: 0 | BE31: 0.005467268973 | BF31: 0 | BG31: 0 | BH31: 0.02551392187 | BI31: 0 | BJ31: 0.01558171657 | BK31: 0.02487607383 | BL31: 0.08273800379 | BN31: 0.002952325245 | BO31: 0.4556057478 | BP31: 0.07289691964 | BQ31: 0.1822422991 | BW31: Recipe
A32: 011029 | C32: F | D32: F | E32: 1 | F32: Sorghum, whole grain, half mature, raw | G32: Sorghum, whole grain, half mature, raw | H32: Sorghum bicolor | BT32: 6.25
A33: 011028 | C33: F | D33: F | E33: 1 | F33: Sorghum, whole grain, half mature, boiled | G33: Sorghum, whole grain, half mature, boiled | H33: Sorghum bicolor | BT33: 6.25
A34: 011037 | B34: a | C34: F | D34: F | E34: 1 | F34: Wheat, whole grain, raw | G34: Wheat, whole grain, raw | H34: Triticum aestivum | I34: 1 | K34: 12.17 | L34: =M34/BT34 -> 1.775300195 | M34: 10.35 | P34: 0 | Q34: 1.56 | S34: 0.289 | T34: 0.178 | U34: 0.656 | X34: 74.24 | AA34: 0.41 | AE34: 12.5 | AJ34: 1.68 | AK34: 27 | AL34: 3.21 | AM34: 126 | AN34: 493 | AO34: 397 | AP34: 2 | AQ34: 2.63 | AR34: 0.45 | AT34: 4.391 | AU34: 0 | AW34: 0 | BH34: 1.00999999 | BJ34: 0.394 | BK34: 0.096 | BL34: 4.8 | BN34: 0.272 | BO34: 41 | BP34: 0 | BQ34: 0 | BT34: 5.829999924 | BW34: US18 | BX34: 20073
A35: 011031 | B35: a | C35: F | D35: F | E35: 2 | F35: Wheat flour, for brown bread | G35: Wheat flour, for brown bread | H35: Triticum aestivum | I35: 1 | K35: 14 | L35: 2.2 | M35: 12.6 | P35: 0 | Q35: 2 | S35: 0.3 | T35: 0.2 | U35: 0.9 | V35: 0 | Y35: 68.5 | AB35: 66.8 | AC35: 1.7 | AG35: 6.4 | AK35: 130 | AL35: 3.2 | AM35: 80 | AN35: 230 | AO35: 250 | AP35: 4 | AQ35: 1.9 | AR35: 0.32 | AS35: 4 | AT35: 1900 | AW35: 0 | AX35: 0 | BF35: 0 | BH35: 0.6 | BJ35: 0.39 | BK35: 0.07 | BL35: 4 | BN35: 0.3 | BO35: 51 | BP35: 0 | BQ35: 0 | BW35: GB6 | BX35: 10
A36: 011032 | B36: a | C36: F | D36: F | E36: 2 | F36: Wheat flour, for white bread | G36: Wheat flour, for white bread | H36: Triticum aestivum | I36: 1 | K36: 14 | L36: 2.02 | M36: 11.5 | P36: 0 | Q36: 1.4 | S36: 0.2 | T36: 0.1 | U36: 0.6 | Y36: 75.3 | AB36: 73.9 | AC36: 1.4 | AG36: 3.1 | AK36: 140 | AL36: 2.1 | AM36: 31 | AN36: 120 | AO36: 130 | AP36: 3 | AQ36: 0.9 | AR36: 0.18 | AS36: 3 | AT36: 700 | AW36: 0 | AX36: 0 | BF36: 0 | BH36: 0.3 | BJ36: 0.32 | BK36: 0.03 | BL36: 2 | BN36: 0.15 | BO36: 31 | BP36: 0 | BQ36: 0 | BW36: GB6 | BX36: 11
A37: 011033 | B37: a | C37: F | D37: F | E37: 1 | F37: Wheat flour, white, self raising flour | G37: Wheat flour, white, self raising flour | H37: Triticum aestivum | I37: 1 | K37: 10.6 | L37: =M37/BT37 -> 1.584 | M37: 9.9 | N37: 9.9 | O37: 0 | Q37: 1 | S37: 0.15 | T37: 0.09 | U37: 0.41 | W37: 71.5 | AD37: 0 | AE37: 2.7 | AK37: 338 | AL37: 1.6 | AM37: 19 | AN37: 595 | AO37: 124 | AP37: 1270 | AQ37: 0.62 | AR37: 0.11 | AT37: 1000 | AV37: 0 | BE37: 0 | BH37: 0.004 | BJ37: 0.1 | BK37: 0.03 | BL37: 0.7 | BN37: 0.05 | BO37: 42 | BP37: 0 | BQ37: 0 | BT37: 6.25 | BW37: SA91 | BX37: 4273 | BY37: 3415
A38: 011034 | B38: a | C38: F | D38: F | E38: 2 | F38: Wheat flour, white, cake, sifted | G38: Wheat flour, white, for cake, sifted | H38: Triticum aestivum | I38: 1 | K38: 14 | L38: 1.56 | M38: 8.9 | P38: 0 | Q38: 1.2 | S38: 0.2 | T38: 0.1 | U38: 0.5 | V38: 0 | Y38: 75.6 | AB38: 74.3 | AC38: 1.3 | AG38: 3.1 | AK38: 350 | AL38: 2 | AM38: 20 | AN38: 450 | AO38: 150 | AP38: 360 | AQ38: 0.6 | AR38: 0.17 | AS38: 2 | AT38: 600 | AW38: 0 | AX38: 0 | BF38: 0 | BH38: 0.3 | BJ38: 0.3 | BK38: 0.3 | BL38: 1.5 | BN38: 0.15 | BO38: 19 | BP38: 0 | BQ38: 0 | BW38: BG6 | BX38: 13
A39: 011035 | B39: a | C39: F | D39: F | E39: 2 | F39: Wheat flour, whole meal | G39: Wheat flour, whole meal | H39: Triticum aestivum | I39: 1 | K39: 14 | L39: 2.18 | M39: 12.7 | P39: 0 | Q39: 2.2 | S39: 0.3 | T39: 0.3 | U39: 1 | V39: 0 | Y39: 63.9 | AB39: 61.8 | AC39: 2.1 | AG39: 9 | AK39: 38 | AL39: 3.9 | AM39: 120 | AN39: 320 | AO39: 340 | AP39: 3 | AQ39: 2.9 | AR39: 0.45 | AS39: 6 | AT39: 3100 | AW39: 0 | AX39: 0 | BF39: 0 | BH39: 1.4 | BJ39: 0.47 | BK39: 0.09 | BL39: 5.7 | BN39: 0.5 | BO39: 57 | BP39: 0 | BQ39: 0 | BW39: GB6 | BX39: 14
A40: 011036 | B40: a | C40: F | D40: F | E40: 1 | F40: Wheat, bran, crude | G40: Wheat, bran, crude | H40: Triticum aestivum | I40: 1 | K40: 9.89 | L40: =M40/BT40 -> 2.464342336 | M40: 15.55 | P40: 0 | Q40: 4.25 | S40: 0.63 | T40: 0.637 | U40: 2.212 | X40: 64.51 | AA40: 0.41 | AE40: 42.8 | AJ40: 5.79 | AK40: 73 | AL40: 10.57 | AM40: 611 | AN40: 1013 | AO40: 1182 | AP40: 2 | AQ40: 7.27 | AR40: 0.998 | AS40: 77.6 | AT40: 11500 | AU40: 0 | AW40: 0 | AX40: 0 | AY40: 6 | AZ40: 0 | BC40: 0 | BD40: 240 | BH40: 1.49000001 | BJ40: 0.523 | BK40: 0.577 | BL40: 13.578 | BN40: 1.303 | BO40: 79 | BP40: 0 | BQ40: 0 | BT40: 6.309999943 | BW40: US18 | BX40: 20077
A41: 011041 | B41: a | D41: R | E41: 1 | F41: Wheat, sorghum, dried beans, boiled (Likhobe) | I41: 1 | K41: 73.1730038 | L41: 0.5863117871 | M41: 3.664448669 | N41: 3.664448669 | O41: 0 | P41: 0 | Q41: 0.680608365 | R41: 0 | S41: 0.1009980989 | T41: 0.1422718631 | U41: 0.3467870722 | V41: 0 | W41: 16.75570342 | X41: 14.15114068 | Y41: 0 | Z41: 5.826045627 | AA41: 0.03897338403 | AB41: 0 | AC41: 0 | AD41: 0 | AE41: 3.631178707 | AF41: 0 | AG41: 0 | AH41: 0 | AI41: 0 | AJ41: 1.913498099 | AK41: 32.36692015 | AL41: 1.285646388 | AM41: 23.45057034 | AN41: 89.73859316 | AO41: 179.7956274 | AP41: 209.8859316 | AQ41: 0.4919201521 | AR41: 0.1933460076 | AS41: 0 | AT41: 124.9421103 | AU41: 0 | AV41: 0.002851711027 | AW41: 0 | AX41: 0 | AY41: 0 | AZ41: 0 | BA41: 0 | BB41: 0 | BC41: 0 | BD41: 0 | BE41: 0 | BF41: 0 | BG41: 0 | BH41: 0.1656083641 | BI41: 0 | BJ41: 0.0616539924 | BK41: 0.02384030418 | BL41: 0.5832889734 | BN41: 0.04043726236 | BO41: 19.53422053 | BP41: 0 | BQ41: 0.2851711027 | BR41: 0 | BT41: 6.25 | BW41: 0 | BX41: 0 | BY41: 0 | BZ41: 0
C42: 012 Bread | E42: 012 BREADS
A43: 012001 | B43: a | C43: R | D43: R | E43: 2 | F43: Bread, brown, coated | G43: Bread, brown coated with scambled egg, deep fried in sunflower oil | I43: 1 | K43: 22.62093023 | L43: 1.662790698 | M43: 10.3255814 | N43: 3 | O43: 7.325581395 | P43: 0.2436046512 | Q43: 10.52325581 | R43: 0 | S43: 2.379593023 | T43: 3.106755814 | U43: 3.544488372 | V43: 0 | W43: 16.08139535 | X43: 0 | Y43: 0 | Z43: 0 | AA43: 0.6976744186 | AB43: 0 | AC43: 0 | AD43: 0 | AE43: 2.302325581 | AF43: 0 | AG43: 0 | AH43: 0 | AI43: 0 | AJ43: 3.541860465 | AK43: 42.09302326 | AL43: 1.576744186 | AM43: 32.81395349 | AN43: 172.3488372 | AO43: 136.4883721 | AP43: 1144.534884 | AQ43: 1.159302326 | AR43: 0.1379069767 | AS43: 19.30232558 | AT43: 35.32325581 | AU43: 0 | AV43: 38.4872093 | AW43: 38.37209302 | AX43: 0 | AY43: 0 | AZ43: 0 | BA43: 0 | BB43: 0 | BC43: 0 | BD43: 0 | BE43: 4.61627907 | BF43: 0 | BG43: 0 | BH43: 3.528209302 | BI43: 0 | BJ43: 0.0788372093 | BK43: 0.1660465116 | BL43: 0.5790697674 | BN43: 0.04311627907 | BO43: 20.69767442 | BP43: 1.104651163 | BQ43: 0 | BR43: 0 | BT43: 6.25 | BU43: 0
A44: 012002 | B44: a | C44: F | D44: F | E44: 1 | F44: Bread, brown, baked | G44: Brown, bread, baked Ingredients: brown bread flour, water, raising agent yeast, sugar,salt, baked | I44: 1 | K44: 36.5 | L44: 1.4 | M44: 8.6 | N44: 8.6 | O44: 0 | P44: 0 | Q44: 2 | S44: 0.38 | T44: 0.18 | U44: 0.83 | W44: 44.1 | AA44: 0 | AE44: 6.6 | AK44: 55 | AL44: 1.5 | AM44: 74 | AN44: 174 | AO44: 222 | AP44: 451 | AQ44: 1.4 | AR44: 0.19 | AT44: 1260 | AV44: 0 | BE44: 0 | BH44: 0 | BJ44: 0.16 | BK44: 0.06 | BL44: 2.6 | BN44: 0.136 | BO44: 42 | BP44: 0 | BQ44: 0 | BW44: SA91 | BX44: 4002
A45: 012003 | B45: a | C45: F | D45: R | E45: 1 | F45: Bread, brown, steamed | G45: Brown bread Ingredients: brown bread flour, water, raising agent yeast, sugar, salt, steamed | I45: 1 | K45: 51.790609 | L45: 1.215077895 | M45: 6.967806951 | N45: 6.863492755 | O45: 0 | P45: 0 | Q45: 1.101971892 | R45: 0 | S45: 0.1650370411 | T45: 0.1159222137 | U45: 0.4902767186 | V45: 0 | W45: 34.38851033 | X45: 0.1043141954 | Y45: 37.31343284 | Z45: 33.07946003 | AA45: 1.30201962 | AB45: 36.38740604 | AC45: 0.9260268003 | AD45: 0 | AE45: 0.05719577296 | AF45: 0 | AG45: 3.486218542 | AH45: 0 | AI45: 0 | AJ45: 0.9640483713 | AK45: 72.07756836 | AL45: 1.805098595 | AM45: 44.73363111 | AN45: 128.8887678 | AO45: 143.708465 | AP45: 259.990195 | AQ45: 1.053055888 | AR45: 0.1787449613 | AS45: 2.244525547 | AT45: 1034.972628 | AU45: 0 | AV45: 0 | AW45: 0 | AX45: 0 | AY45: 0 | AZ45: 0 | BA45: 0 | BB45: 0 | BC45: 0 | BD45: 0 | BE45: 0 | BF45: 0 | BG45: 0 | BH45: 0.3268329883 | BI45: 0 | BJ45: 0.1313476414 | BK45: 0.03581762719 | BL45: 1.372812943 | BN45: 0.1005828522 | BO45: 17.07702364 | BP45: 5.447216472e-05 | BQ45: 0.0008170824709 | BR45: 0 | BT45: 6.25 | BU45: 0
A46: 012004 | B46: a | C46: F | D46: F | E46: 1 | F46: Bread, white, baked | G46: White bread Ingredients: white bread flour, water, raising agent yeast, sugar,salt, baked | I46: 1 | K46: 35.4 | L46: 1.4 | M46: 8.5 | N46: 8.5 | O46: 0 | P46: 0 | Q46: 1.8 | S46: 0.32 | T46: 0.15 | U46: 0.72 | W46: 49.3 | AA46: 0 | AE46: 3.1 | AK46: 56 | AL46: 1.2 | AM46: 29 | AN46: 103 | AO46: 138 | AP46: 490 | AQ46: 1 | AR46: 0.3 | AT46: 460 | AV46: 0 | BE46: 0 | BH46: 0 | BJ46: 0.15 | BK46: 0.04 | BL46: 1.2 | BN46: 0.072 | BO46: 30 | BP46: 0 | BQ46: 0 | BW46: SA91 | BX46: 4001
A47: 012005 | B47: a | C47: F | D47: R | E47: 1 | F47: Bread, white, steamed | G47: White bread Ingredients: white bread flour, water, raising agent yeast, sugar,salt, steamed | I47: 1 | K47: 51.790609 | L47: 1.117027999 | M47: 6.368613139 | N47: 6.264298943 | O47: 0 | P47: 0 | Q47: 0.775138904 | R47: 0 | S47: 0.1105648763 | T47: 0.06145004902 | U47: 0.3268602244 | V47: 0 | W47: 37.75588052 | X47: 0.1043141954 | Y47: 41.01754004 | Z47: 36.59539066 | AA47: 1.146384864 | AB47: 40.25492973 | AC47: 0.7626103061 | AD47: 0 | AE47: 0.05719577296 | AF47: 0 | AG47: 1.688637106 | AH47: 0 | AI47: 0 | AJ47: 0.9640483713 | AK47: 77.52478483 | AL47: 1.205904783 | AM47: 18.0422704 | AN47: 68.96938664 | AO47: 78.34186731 | AP47: 259.4454734 | AQ47: 0.5083342412 | AR47: 0.1024839307 | AS47: 1.6998039 | AT47: 381.3066511 | AU47: 0 | AV47: 0 | AW47: 0 | AX47: 0 | AY47: 0 | AZ47: 0 | BA47: 0 | BB47: 0 | BC47: 0 | BD47: 0 | BE47: 0 | BF47: 0 | BG47: 0 | BH47: 0.1634164942 | BI47: 0 | BJ47: 0.1084693322 | BK47: 0.02274430766 | BL47: 0.7191469659 | BN47: 0.05155790391 | BO47: 11.62980717 | BP47: 5.447216472e-05 | BQ47: 0.0008170824709 | BR47: 0 | BT47: 6.25
A48: 012006 | C48: F | D48: F | E48: 3 | F48: Rusks, commercial, bran | G48: Rusks, commercial, bran
A49: 012007 | C49: F | D49: F | E49: 3 | F49: Rusks, commercial, buttermilk | G49: Rusks, commercial, butterMilk
C50: 013 Pasta | E50: 013 PASTA
A51: 013003 | B51: a | C51: F | D51: F | E51: 1 | F51: Macaroni, raw | G51: Macaroni, raw | I51: 1 | K51: 9.7 | L51: 2.11 | M51: 12 | P51: 0 | Q51: 1.8 | S51: 0.3 | T51: 0.1 | U51: 0.8 | V51: tr | Y51: 75.8 | AB51: 73.6 | AC51: 2.2 | AG51: 3.1 | AK51: 25 | AL51: 1.6 | AM51: 53 | AN51: 180 | AO51: 230 | AP51: 11 | AQ51: 1.5 | AR51: 0.3 | AS51: 20 | AT51: 900 | AW51: 0 | AX51: 0 | BF51: 0 | BH51: tr | BJ51: 0.18 | BK51: 0.05 | BL51: 2.9 | BN51: 0.1 | BO51: 23 | BP51: 0 | BQ51: 0 | BW51: GB6 | BX51: 26
A52: 013002 | B52: a | C52: F | D52: F | E52: 1 | F52: Macaroni, boiled | G52: Macaroni, boiled | I52: 1 | K52: 78.1 | L52: 2.11 | M52: 12 | P52: 0 | Q52: 0.5 | S52: 0.1 | T52: tr | U52: 0.2 | V52: tr | Y52: 18.5 | AB52: 18.2 | AC52: 0.3 | AG52: 0.9 | AK52: 6 | AL52: 0.5 | AM52: 14 | AN52: 42 | AO52: 25 | AP52: 1 | AQ52: 0.5 | AR52: 0.09 | AS52: 5 | AT52: 300 | AW52: 0 | AX52: 0 | BF52: 0 | BH52: tr | BJ52: 0.03 | BK52: tr | BL52: 0.5 | BN52: 0.01 | BO52: 3 | BP52: 0 | BQ52: 0 | BW52: GB6 | BX52: 27
A53: 013001 | C53: R | D53: R | E53: 3 | F53: Macaroni salad (polony, cheese, sauce) | G53: Macaroni salad (polony, cheese, sauce)
A54: 013004 | B54: a | C54: F | D54: F | E54: 2 | F54: Noodles, egg, raw | G54: Noodles, raw | I54: 1 | K54: 9.1 | L54: 2.12 | M54: 12.1 | P54: 30 | Q54: 8.2 | S54: 2.3 | T54: 3.5 | U54: 0.9 | V54: tr | Y54: 71.7 | AB54: 69.8 | AC54: 1.9 | AG54: 2.9 | AK54: 28 | AL54: 1.5 | AM54: 43 | AN54: 200 | AO54: 260 | AP54: 180 | AQ54: 1.3 | AR54: 0.24 | AT54: 800 | AW54: 37 | AX54: 0 | BF54: 0.3 | BJ54: 0.26 | BK54: 0.1 | BL54: 2.2 | BN54: 0.1 | BO54: 29 | BP54: tr | BQ54: 0 | BW54: GB6 | BX54: 29
A55: 013005 | B55: a | C55: F | D55: R | E55: 2 | F55: Noodles, egg, boiled | G55: Noodles, boiled | I55: 1 | K55: 91.53168142 | L55: 0.1876106195 | M55: 1.07079646 | N55: 1.07079646 | O55: 0 | P55: 2.654867257 | Q55: 0.7256637168 | R55: 0 | S55: 0.203539823 | T55: 0.3097345133 | U55: 0.0796460177 | V55: 0 | W55: 5.768302494 | X55: 0 | Y55: 6.345132743 | Z55: 5.6154465 | AA55: 0.1601348504 | AB55: 6.17699115 | AC55: 0.1681415929 | AD55: 0 | AE55: 0 | AF55: 0 | AG55: 0.2566371681 | AH55: 0 | AI55: 0 | AJ55: 0.5231858407 | AK55: 3.92920354 | AL55: 0.1338053097 | AM55: 4.782300885 | AN55: 17.70265487 | AO55: 23.32389381 | AP55: 156.460177 | AQ55: 0.1153982301 | AR55: 0.02647787611 | AS55: 0 | AT55: 70.79646018 | AU55: 0 | AV55: 0 | AW55: 3.274336283 | AX55: 0 | BE55: 0 | BF55: 0.02654867257 | BG55: 0 | BH55: 0.03274336325 | BJ55: 0.01380530973 | BK55: 0.007433628319 | BL55: 0.1168141593 | BN55: 0.005309734513 | BO55: 1.283185841 | BP55: 0 | BQ55: 0 | BR55: 0 | BT55: 6.25 | BW55: GB6 | BX55: 30
A56: 013007 | B56: a | C56: F | D56: F | E56: 1 | F56: Spaghetti, white, raw | G56: Spaghetti, white, raw | I56: 1 | K56: 9.8 | L56: 2.11 | M56: 12 | P56: 0 | Q56: 1.8 | S56: 0.2 | T56: 0.2 | U56: 0.8 | V56: tr | Y56: 74.1 | AB56: 70.8 | AC56: 3.3 | AG56: 2.9 | AK56: 25 | AL56: 2.1 | AM56: 56 | AN56: 190 | AO56: 250 | AP56: 3 | AQ56: 1.5 | AR56: 0.32 | AS56: 17 | AT56: 900 | AW56: 0 | AX56: 0 | BF56: 0 | BH56: tr | BJ56: 0.22 | BK56: 0.03 | BL56: 3.1 | BN56: 0.17 | BO56: 23 | BP56: 0 | BQ56: 0 | BW56: GB6 | BX56: 35
A57: 013008 | B57: a | C57: F | D57: F | E57: 1 | F57: Spaghetti, white, boiled | G57: Spaghetti, white, boiled | I57: 1 | K57: 73.8 | L57: 0.63 | M57: 3.6 | P57: 0 | Q57: 0.7 | S57: 0.1 | T57: 0.1 | U57: 0.3 | V57: tr | Y57: 22.2 | AB57: 21.7 | AC57: 0.5 | AG57: 1.2 | AK57: 7 | AL57: 0.5 | AM57: 15 | AN57: 44 | AO57: 24 | AP57: tr | AQ57: 0.5 | AR57: 0.1 | AS57: 5 | AT57: 300 | AW57: 0 | AX57: 0 | BF57: 0 | BH57: tr | BJ57: 0.01 | BK57: 0.01 | BL57: 0.5 | BN57: 0.02 | BO57: 7 | BP57: 0 | BQ57: 0 | BW57: GB6 | BX57: 36
A58: 013006 | B58: a | C58: R | D58: R | E58: 2 | F58: Spaghetti bolognaise | G58: Spaghetti bolognaise | I58: 1 | K58: 85.64588235 | L58: 0.5211764706 | M58: 3.143137255 | N58: 1.211764706 | O58: 1.931372549 | P58: 0.005882352941 | Q58: 2.750980392 | R58: 0 | S58: 0.8210784314 | T58: 0.8789215686 | U58: 0.7594117647 | V58: 0.07843137255 | W58: 6.831729055 | X58: 0 | Y58: 7.264705882 | Z58: 6.310160428 | AA58: 0.4845938375 | AB58: 6.941176471 | AC58: 0.3235294118 | AD58: 0 | AE58: 0.3647058824 | AF58: 0 | AG58: 0.3156862745 | AH58: 0 | AI58: 0 | AJ58: 0.6639215686 | AK58: 5.68627451 | AL58: 0.3580392157 | AM58: 8.690196078 | AN58: 35.45490196 | AO58: 58.40784314 | AP58: 164.2156863 | AQ58: 0.5390196078 | AR58: 0.04129411765 | AS58: 2.37254902 | AT58: 5.578431373 | AU58: 0 | AV58: 0.7941176471 | AW58: 0 | AX58: 4.529411765 | AY58: 0 | AZ58: 0 | BA58: 0 | BB58: 0 | BC58: 0 | BD58: 0 | BE58: 0 | BF58: 0.06862745098 | BG58: 0 | BH58: 0.4176470588 | BI58: 0 | BJ58: 0.01729411765 | BK58: 0.012 | BL58: 0.5352941176 | BN58: 0.03423529412 | BO58: 2.009803922 | BP58: 0.1960784314 | BQ58: 0.5098039216 | BR58: 0
A59: 013009 | C59: F | D59: F | E59: 3 | F59: Spaghetti, canned in tomato sauce | G59: Spaghetti, canned in tomato sauce | BW59: GB6 | BX59: 39
C60: 014 Cakes and biscuits | E60: 014 CAKES AND BISCUITS
A61: 014001 | D61: F | E61: 3 | F61: Biscuits, dry | G61: Biscuits, dry
A62: 014002 | D62: F | E62: 3 | F62: Cake, chocolate | G62: Cake, chocolate
A63: 014003 | D63: F | E63: 3 | F63: Cake, fruit, rich | G63: Cake, fruit
A64: 014004 | B64: a | D64: F | E64: 2 | F64: Cake, madeira | G64: Cake, madeira | I64: 1 | K64: 20.2 | L64: 0.94 | M64: 5.4 | Q64: 15.1 | S64: 8.4 | T64: 3.8 | U64: 1.6 | V64: 0.7 | Y64: 58.4 | AB64: 21.9 | AC64: 36.5 | AG64: 0.9 | AK64: 42 | AL64: 1.1 | AM64: 12 | AN64: 120 | AO64: 120 | AP64: 380 | AQ64: 0.5 | AR64: 0.1 | BH64: 0.86 | BJ64: 0.06 | BK64: 0.11 | BL64: 0.5 | BP64: tr | BQ64: 0 | BW64: GB6 | BX64: 138
A65: 014005 | B65: a | D65: F | E65: 2 | F65: Cake, sponge | G65: Cake, sponge | I65: 1 | K65: 15.2 | L65: 1.05 | M65: 6.3 | P65: 112 | Q65: 6.9 | S65: 5.8 | T65: 8.9 | U65: 10.9 | V65: tr | Y65: 53 | AB65: 22 | AC65: 30.4 | AG65: 0.9 | AK65: 69 | AL65: 1.3 | AM65: 10 | AN65: 156 | AO65: 83 | AP65: 326 | AQ65: 0.6 | AR65: 0.11 | AS65: 4 | AT65: 200 | AW65: 247 | AX65: 100 | BF65: 2.8 | BH65: 9.7 | BJ65: 0.09 | BK65: 0.12 | BL65: 0.5 | BN65: 0.06 | BO65: 10 | BP65: 0.7 | BQ65: 0 | BW65: GB6 | BX65: 142
A66: 014006 | B66: a | D66: R | E66: 2 | F66: Fat cakes, homemade, brown | G66: Fat cakes, homemade, brown, deep fried in sunflower oil | I66: 1 | K66: 17.7783984 | L66: 0.6356910801 | M66: 3.645340553 | N66: 3.5907666 | O66: 0 | P66: 0 | Q66: 57.57281277 | R66: 0 | S66: 7.296373611 | T66: 10.64485893 | U66: 36.85951838 | V66: 0 | W66: 17.9980699 | X66: 0.05457395269 | Y66: 19.52123112 | Z66: 17.30614783 | AA66: 0.6882438356 | AB66: 19.03676261 | AC66: 0.4844685095 | AD66: 0 | AE66: 0.029923055 | AF66: 0 | AG66: 1.823881448 | AH66: 0 | AI66: 0 | AJ66: 0.50230835 | AK66: 37.51496153 | AL66: 0.9368481049 | AM66: 23.36905101 | AN66: 67.38728983 | AO66: 74.40638359 | AP66: 135.9526931 | AQ66: 0.5509261898 | AR66: 0.09342262753 | AS66: 1.174266173 | AT66: 541.4655885 | AU66: 0 | AV66: 1.709888857 | AW66: 0 | AX66: 0 | AY66: 0 | AZ66: 0 | BA66: 0 | BB66: 0 | BC66: 0 | BD66: 0 | BE66: 0 | BF66: 0 | BG66: 0 | BH66: 22.52493588 | BI66: 0 | BJ66: 0.06870333428 | BK66: 0.01869763465 | BL66: 0.7179395839 | BN66: 0.05262182958 | BO66: 8.934169279 | BP66: 2.849814762e-05 | BQ66: 0.0004274722143
A67: 014007 | B67: a | C67: R | D67: R | E67: 1 | F67: Fat cakes, homemade, white | G67: Fat cakes, homemade, white, deep fried in sunflower oil | I67: 1 | K67: 17.78204617 | L67: 0.5843944144 | M67: 3.331860929 | N67: 3.277286976 | O67: 0 | P67: 0 | Q67: 57.40182388 | R67: 0 | S67: 7.267875463 | T67: 10.61636079 | U67: 36.77402394 | V67: 0 | W67: 19.75270603 | X67: 0.05457395269 | Y67: 21.45910516 | Z67: 19.14557372 | AA67: 0.5997530161 | AB67: 21.06013109 | AC67: 0.3989740667 | AD67: 0 | AE67: 0.029923055 | AF67: 0 | AG67: 0.8834425762 | AH67: 0 | AI67: 0 | AJ67: 0.5043602166 | AK67: 40.55856369 | AL67: 0.630891992 | AM67: 9.439156455 | AN67: 36.08264463 | AO67: 40.98603591 | AP67: 135.7338273 | AQ67: 0.2659447136 | AR67: 0.05361641493 | AS67: 0.8892846965 | AT67: 199.487817 | AU67: 0 | AV67: 1.709888857 | AW67: 0 | AX67: 0 | AY67: 0 | AZ67: 0 | BA67: 0 | BB67: 0 | BC67: 0 | BD67: 0 | BE67: 0 | BF67: 0 | BG67: 0 | BH67: 22.43944144 | BI67: 0 | BJ67: 0.05674779139 | BK67: 0.01189911656 | BL67: 0.3762353947 | BN67: 0.02697349672 | BO67: 6.084354517 | BP67: 2.849814762e-05 | BQ67: 0.0004274722143 | BT67: 6.25 | BW67: Recipe
A68: 014008 | D68: F | E68: 3 | F68: Pastry, flaky, butter | G68: Pastry, flaky, butter
A69: 014009 | B69: a | D69: R | E69: 2 | F69: Scones, plain | G69: Scones, plain | K69: 32.6598916 | L69: 0.1693766938 | M69: 6.490514905 | N69: 5.365853659 | O69: 1.124661247 | P69: 0.003387533875 | Q69: 12.83197832 | R69: 0 | S69: 3.302168022 | T69: 6.044715447 | U69: 2.609078591 | V69: 0 | W69: 43.04607046 | X69: 0 | Y69: 0 | Z69: 0 | AA69: 4.238482385 | AB69: 0 | AC69: 0 | AD69: 0 | AE69: 1.463414634 | AF69: 0 | AG69: 0 | AH69: 0 | AI69: 0 | AJ69: 3.555555556 | AK69: 226.0162602 | AL69: 0.9952574526 | AM69: 15.4200542 | AN69: 352.4864499 | AO69: 128.1504065 | AP69: 1179.336043 | AQ69: 0.4654471545 | AR69: 0.06517615176 | AS69: 0.6775067751 | AT69: 543.3604336 | AU69: 0 | AV69: 115.1761518 | AW69: 12.53387534 | AX69: 6.436314363 | AY69: 0 | AZ69: 0 | BA69: 0 | BB69: 0 | BC69: 0 | BD69: 0 | BE69: 0.6876693767 | BF69: 0 | BG69: 0 | BH69: 2.082113821 | BI69: 0 | BJ69: 0.0520596206 | BK69: 0.06058265583 | BL69: 0.3977642276 | BN69: 0.02718495935 | BO69: 12.22899729 | BP69: 0.135501355 | BQ69: 0.3387533875 | BR69: 0
C70: 015 Breakfast cereals | E70: 015 BREAKFAST CEREALS
A71: 015001 | B71: a | D71: F | E71: 1 | F71: Breakfast cereal, all bran flakes | G71: Breakfast cereals, All bran flakes | I71: 1 | K71: 3 | L71: 2.06 | M71: 12.7 | N71: 12.7 | O71: 0 | P71: 0 | Q71: 1.3 | S71: 0.22 | T71: 0.17 | U71: 0.68 | W71: 57.5 | AA71: 10.6 | AE71: 19 | AK71: 50 | AL71: 14 | AM71: 182 | AN71: 480 | AO71: 498 | AP71: 804 | AQ71: 4 | AR71: 1 | AT71: 0 | AW71: 0 | BE71: 2.8 | BH71: 2.2 | BJ71: 1.33 | BK71: 1.59 | BL71: 17.7 | BN71: 1.8 | BO71: 250 | BP71: 2 | BQ71: 0 | BW71: SA91 | BX71: 4035
A72: 015002 | B72: a | D72: F | E72: 1 | F72: Breakfast cereal, plain corn flakes | G72: Breakfast cereals, plain corn flakes | I72: 1 | K72: 3 | L72: 1.26 | M72: 7.7 | N72: 7.7 | O72: 0 | P72: 0 | Q72: 0.2 | S72: 0.03 | T72: 0.06 | U72: 0.1 | W72: 82.9 | AA72: 6.3 | AE72: 3.3 | AK72: 11 | AL72: 12 | AM72: 13 | AN72: 51 | AO72: 106 | AP72: 1211 | AT72: 80 | AW72: 0 | BE72: 2.8 | BH72: 0.4 | BJ72: 1.33 | BK72: 1.59 | BL72: 17.7 | BN72: 1.8 | BO72: 250 | BP72: 2 | BQ72: 0 | BW72: SA91 | BX72: 4036
A73: 015003 | B73: a | D73: F | E73: 1 | F73: Breakfast cereal, rice crispies | G73: Breakfast cereals, rice cripies | I73: 1 | K73: 3 | L73: 1.03 | M73: 6.6 | N73: 6.6 | O73: 0 | P73: 0 | Q73: 0.2 | S73: 0.05 | T73: 0.04 | U73: 0.04 | W73: 86.8 | AA73: 8.5 | AE73: 0.5 | AK73: 11 | AL73: 11 | AM73: 37 | AN73: 141 | AO73: 100 | AP73: 1323 | AQ73: 2 | AR73: 0.25 | AT73: 990 | AW73: 0 | BE73: 2.8 | BH73: 0.6 | BJ73: 1.33 | BK73: 1.59 | BL73: 17.7 | BN73: 1.8 | BO73: 250 | BP73: 2 | BQ73: 0 | BW73: SA91 | BX73: 4046
A74: 015004 | B74: a | D74: F | E74: 1 | F74: Breakfast cereal, weetbix | G74: Breakfast cereals, Weetbix | I74: 1 | K74: 9 | L74: 75.5 | M74: 11.6 | N74: 11.6 | O74: 0 | P74: 0 | Q74: 2.1 | S74: 0.27 | T74: 0.31 | U74: 0.94 | W74: 63.2 | AA74: 6.2 | AE74: 12.1 | AK74: 34 | AL74: 5.8 | AM74: 116 | AN74: 280 | AO74: 357 | AP74: 165 | AQ74: 1.93 | AR74: 0.52 | AW74: 0 | BE74: 0 | BH74: 1 | BJ74: 0.68 | BK74: 0.97 | BL74: 9.7 | BN74: 0.213 | BO74: 48 | BP74: 0 | BQ74: 0 | BW74: SA91 | BX74: 4037
C75: 02 Meat, poultry, fish and their products | E75: 02 MEATS, POULTRY, FISH AND THEIR PRODUCTS
A76: 020010 | B76: a | D76: F | E76: 1 | F76: Beef, fatty, raw | H76: Bos bovis | I76: 1 | K76: 65.4 | L76: 3.08 | M76: 19.2 | P76: 0.076 | Q76: 14.2 | S76: 5.95 | T76: 5.29 | U76: 0.64 | W76: 0 | Z76: 0 | AA76: 0 | AE76: 0 | AJ76: 0.9 | AK76: 13 | AL76: 0.7 | AM76: 19 | AN76: 164 | AO76: 274 | AP76: 85 | AQ76: 3.42 | AR76: 0.32 | AS76: 8.6 | AT76: 17 | AV76: 0 | AW76: 0 | AX76: 0 | BE76: 0.62 | BH76: 0.16 | BJ76: 0.13 | BK76: 0.08 | BL76: 5.4 | BN76: 0.212 | BO76: 10 | BP76: 1 | BQ76: 0 | BW76: SA99 | BX76: 4360
A77: 020011 | B77: a | D77: F | E77: 1 | F77: Beef, fatty, boiled | H77: Bos bovis | I77: 1 | K77: 50.3 | L77: 4.37 | M77: 27.3 | P77: 0.082 | Q77: 19.6 | S77: 9.11 | T77: 8.6 | U77: 0.24 | W77: 0 | Z77: 0 | AA77: 0 | AE77: 0 | AJ77: 2.8 | AK77: 15 | AL77: 2.8 | AM77: 23 | AN77: 165 | AO77: 277 | AP77: 93 | AQ77: 4.9 | AR77: 0.15 | AT77: 23 | AV77: 0 | AW77: 0 | AX77: 0 | BJ77: 0.09 | BK77: 0.12 | BL77: 4.2 | BN77: 0.383 | BO77: 14 | BP77: 2.1 | BQ77: 0 | BW77: SA99 | BX77: 4370
A78: 020012 | D78: F | E78: 3 | F78: Beef, lean, raw | H78: Bos bovis
A79: 020013 | D79: R | E79: 3 | F79: Beef, lean, boiled | H79: Bos bovis
A80: 020002 | B80: a | D80: R | E80: 2 | F80: Beef and pork, sausage/boerwors, grilled/braai (Mmeso) | G80: Beef and pork grilled/roasted Probable ingredients label: pork, beef, water, cereal, salt, spices, starch, phosphate, dextrose, MSG, antioxidant, SO2 | I80: 1 | K80: 57.01038961 | L80: 2.769248609 | M80: 17.26808905 | N80: 0.009276437848 | O80: 17.25881262 | P80: 4.012244898 | Q80: 23.2096475 | R80: 0 | S80: 8.735621521 | T80: 9.954081633 | U80: 2.035714286 | V80: 0.01020408163 | W80: 0.01391465677 | AE80: 0 | AJ80: 2.101391466 | AK80: 15.29220779 | AL80: 0.7382189239 | AM80: 17.79777365 | AN80: 165.1307978 | AO80: 271.8961039 | AP80: 538.4044527 | AQ80: 2.648051948 | AR80: 0.21 | AS80: 16.49350649 | AT80: 15.67717996 | AU80: 0 | AV80: 1.113172542 | AW80: 0 | AX80: 0 | AY80: 0 | AZ80: 0 | BA80: 0 | BB80: 0 | BC80: 0 | BD80: 0 | BE80: 0.7161410019 | BF80: 0 | BG80: 0 | BH80: 0.1773654917 | BI80: 0 | BJ80: 0.2615955473 | BK80: 0.1168831169 | BL80: 3.803339518 | BN80: 0.1887198516 | BO80: 7.282003711 | BP80: 0.6901669759 | BQ80: 0 | BR80: 0 | BT80: 6.25
A81: 020024 | B81: a | D81: F | E81: 1 | F81: Beef, liver, raw | I81: 1 | K81: 69 | L81: 3.2 | M81: 20 | P81: 354 | Q81: 3.9 | S81: 1.5 | T81: 0.51 | U81: 0.84 | V81: tr | W81: 5.8 | Z81: 5.8 | AA81: tr | AE81: 0 | AJ81: 1.3 | AK81: 6 | AL81: 6.8 | AM81: 19 | AN81: 318 | AO81: 323 | AP81: 13 | AQ81: 73 | AR81: 3.34 | AS81: 41.3 | AT81: 264 | AV81: 10503 | AW81: 10316 | AX81: 1119 | BE81: 1.1 | BH81: 0.67 | BJ81: 0.26 | BK81: 2.78 | BL81: 12.8 | BN81: 0.94 | BO81: 248 | BP81: 69.2 | BQ81: 22 | BW81: SA99 | BX81: 4296
A82: 020003 | D82: R | E82: 1 | F82: Beef, liver, boiled
A83: 020040 | B83: a | C83: R | D83: F | E83: 1 | F83: Beef, liver, fried | I83: 1 | K83: 62.01 | M83: 26.52 | P83: 0.381 | Q83: 4.68 | S83: 1.493 | T83: 0.653 | U83: 0.971 | W83: 5.16 | AA83: 0 | AE83: 0 | AJ83: 1.63 | AK83: 6 | AL83: 6.17 | AM83: 22 | AN83: 485 | AO83: 351 | AP83: 77 | AQ83: 5.23 | AR83: 14.588 | AS83: 32.8 | AT83: 0.356 | AU83: 7744 | AW83: 7728 | BH83: 0.46 | BJ83: 0.177 | BK83: 3.425 | BL83: 17.475 | BN83: 1.027 | BO83: 260 | BP83: 83.13 | BQ83: 0.7 | BW83: US-18 | BX83: 13327
A84: 020006 | D84: F | E84: 3 | F84: Beef, neck, boiled | H84: Bos bovis
A85: 020007 | B85: a | D85: R | E85: 2 | F85: Beef, meat, roasted | H85: Bos bovis | I85: 1 | K85: 63.96065574 | L85: 3.107187894 | M85: 19.36948298 | N85: 0 | O85: 19.36948298 | P85: 0.07667087011 | Q85: 14.95586381 | R85: 0 | S85: 6.082282472 | T85: 5.453783102 | U85: 1.050567465 | V85: 0 | W85: 0 | X85: 0 | Y85: 0 | Z85: 0 | AA85: 0 | AB85: 0 | AC85: 0 | AD85: 0 | AE85: 0 | AF85: 0 | AG85: 0 | AH85: 0 | AI85: 0 | AJ85: 1.411349306 | AK85: 13.16519546 | AL85: 0.7076923077 | AM85: 19.55107188 | AN85: 165.4527112 | AO85: 276.8675914 | AP85: 283.9848676 | AQ85: 3.450693569 | AR85: 0.3232282472 | AS85: 8.67591425 | AT85: 17.15006305 | AU85: 0 | AV85: 0.01891551072 | AW85: 0 | AX85: 0 | AY85: 0 | AZ85: 0 | BA85: 0 | BB85: 0 | BC85: 0 | BD85: 0 | BE85: 0.6254728878 | BF85: 0 | BG85: 0 | BH85: 0.3269609079 | BI85: 0 | BJ85: 0.1049180328 | BK85: 0.06860025221 | BL85: 4.35813367 | BN85: 0.1710970996 | BO85: 10.08827238 | BP85: 0.8070617907 | BQ85: 0 | BR85: 0 | BT85: 6.25
A86: 020008 | B86: a | D86: R | E86: 2 | F86: Beef, sausage, grilled/braai (Mmeso) | I86: 1 | K86: 64.60621105 | L86: 3.040109197 | M86: 18.95103101 | N86: 0.00328953845 | O86: 18.94774147 | P86: 0.07500147666 | Q86: 14.4246261 | R86: 0 | S86: 5.92384196 | T86: 5.296855931 | U86: 0.8956590814 | V86: 0 | W86: 0.004934307675 | X86: 0 | Y86: 0 | Z86: 0 | AA86: 0.004934307675 | AB86: 0 | AC86: 0 | AD86: 0 | AE86: 0 | AF86: 0 | AG86: 0 | AH86: 0 | AI86: 0 | AJ86: 1.711382379 | AK86: 13.03479611 | AL86: 0.6973821514 | AM86: 19.55630608 | AN86: 162.1166787 | AO86: 271.8639052 | AP86: 407.2448601 | AQ86: 3.376711219 | AR86: 0.3167825527 | AS86: 8.495233047 | AT86: 16.85888456 | AU86: 0 | AV86: 0.01233576919 | AW86: 0 | AX86: 0 | AY86: 0 | AZ86: 0 | BA86: 0 | BB86: 0 | BC86: 0 | BD86: 0 | BE86: 0.6118541517 | BF86: 0 | BG86: 0 | BH86: 0.2553339745 | BI86: 0 | BJ86: 0.1026335996 | BK86: 0.06973821514 | BL86: 4.263241831 | BN86: 0.1673717163 | BO86: 9.86861535 | BP86: 0.789489228 | BQ86: 0 | BR86: 0 | BT86: 6.25 | BW86: SA99 | BX86: 2949
A87: 020009 | D87: F | E87: 3 | F87: Beef, tongue, boiled
A88: 020016 | B88: a | C88: R | D88: R | E88: 1 | F88: Beef, mince savoury onion, tomato, green sweet pepper | H88: Bos bovis | I88: 1 | K88: 70.26975477 | L88: 2.180108992 | M88: 13.73841962 | N88: 0.3188010899 | O88: 13.41961853 | P88: 0.0408719346 | Q88: 11.09809264 | R88: 0 | S88: 4.710081744 | T88: 4.709264305 | U88: 0.3656675749 | V88: 0.5449591281 | W88: 1.501362398 | X88: 0 | Y88: 0 | Z88: 0 | AA88: 1.288828338 | AB88: 0 | AC88: 0 | AD88: 0 | AE88: 0.4223433243 | AF88: 0 | AG88: 0.1307901907 | AH88: 0 | AI88: 0 | AJ88: 2.16893733 | AK88: 10.89918256 | AL88: 1.053133515 | AM88: 16.59400545 | AN88: 118.5149864 | AO88: 255.9809264 | AP88: 592.506812 | AQ88: 2.726975477 | AR88: 0.03160762943 | AS88: 4.926430518 | AT88: 34.33242507 | AU88: 0 | AV88: 10.626703 | AW88: 0 | AX88: 62.94277929 | AY88: 0 | AZ88: 0 | BA88: 0 | BB88: 0 | BC88: 0 | BD88: 0 | BE88: 0 | BF88: 0.4768392371 | BG88: 0 | BH88: 0.2757493188 | BI88: 0 | BJ88: 0.04337874659 | BK88: 0.08457765668 | BL88: 3.363487738 | BN88: 0.2291008174 | BO88: 14.60490463 | BP88: 1.089918256 | BQ88: 5.940054496 | BW88: Recipe
A89: 020014 | B89: a | D89: F | E89: 1 | F89: Beef, mince, fatty, raw | H89: Bos bovis | I89: 1 | K89: 62 | L89: 3.15 | M89: 19.7 | P89: 0.06 | Q89: 16.2 | S89: 6.9 | T89: 6.9 | U89: 0.5 | V89: 0.8 | Y89: 0 | AB89: 0 | AC89: 0 | AG89: 0 | AK89: 9 | AL89: 1.4 | AM89: 17 | AN89: 160 | AO89: 260 | AP89: 80 | AQ89: 3.9 | AR89: Tr | AS89: 7 | AT89: Tr | AW89: Tr | AX89: Tr | BF89: 0.7 | BH89: 0.17 | BJ89: 0.06 | BK89: 0.13 | BL89: 5.8 | BN89: 0.37 | BO89: 14 | BP89: 2 | BQ89: 0 | BW89: GB6 | BX89: 416
A90: 020015 | B90: a | D90: F | E90: 1 | F90: Beef, mince, fatty, boiled | H90: Bos bovis | I90: 1 | K90: 64.4 | L90: 3.49 | M90: 21.8 | P90: 0.079 | Q90: 13.5 | S90: 5.7 | T90: 5.7 | U90: 0.6 | V90: 0.7 | Y90: 0 | AB90: 0 | AC90: 0 | AG90: 0 | AK90: 20 | AL90: 2.7 | AM90: 15 | AN90: 150 | AO90: 210 | AP90: 73 | AQ90: 5 | AR90: 0.1 | AS90: 7 | AT90: 0.02 | AW90: 9 | AX90: 25 | BF90: 0.8 | BH90: 0.34 | BJ90: 0.03 | BK90: 0.19 | BL90: 4.6 | BN90: 0.28 | BO90: 17 | BP90: 2 | BQ90: 0 | BW90: GB6 | BX90: 418
A91: 020017 | D91: F | E91: 3 | F91: Beef, mince, lean, raw | H91: Bos bovis
A92: 020018 | D92: R | E92: 3 | F92: Beef, mince, lean, boiled | H92: Bos bovis
A93: 020019 | D93: F | E93: 3 | F93: Beef, rib prime, boiled | H93: Bos bovis
A94: 020020 | D94: F | E94: 3 | F94: Beef, rump, boiled | H94: Bos bovis
A95: 020001 | D95: F | E95: 3 | F95: Beef, shoulder, boiled | H95: Bos bovis
A96: 020021 | B96: a | D96: F | E96: 1 | F96: Beef, meat, very fat, boiled | G96: Beef, stew, boiled, different cuts cut into small pieces | H96: Bos bovis | I96: 1 | K96: 33.6 | L96: 2.48 | M96: 15.5 | O96: 0.097 | P96: 0.09 | Q96: 52.3 | S96: 24.3 | T96: 23.4 | U96: 1.8 | V96: 2.4 | Y96: 0 | AB96: 0 | AC96: 0 | AG96: 0 | AK96: 6 | AL96: 1 | AM96: 12 | AN96: 110 | AO96: 200 | AP96: 35 | AQ96: 1.5 | AR96: 0.01 | AS96: 3 | AT96: 10 | AW96: Tr | AX96: Tr | BF96: Tr | BH96: 0.08 | BJ96: 0.05 | BK96: 0.18 | BL96: 1.6 | BN96: 0.23 | BO96: 26 | BP96: 2 | BQ96: 0 | BW96: GB6 | BX96: 411
A97: 020022 | B97: a | D97: R | E97: 2 | F97: Beef, meat, stewed with vegetables | G97: Beef chuck cooked-moist, mixed vegetables green sweet pepper, onion/spring, onion, peas, carrots, water, spices | H97: Bos bovis | I97: 1 | K97: 69.57780365 | L97: 2.417539775 | M97: 15.07566938 | N97: 0.1746216531 | O97: 14.90104773 | P97: 0.05898331393 | Q97: 12.01008925 | R97: 0 | S97: 4.743752425 | T97: 4.288261544 | U97: 1.127473807 | V97: 0 | W97: 1.185098952 | X97: 0 | Y97: 0 | Z97: 0.01241753977 | AA97: 0.9786573535 | AB97: 0 | AC97: 0 | AD97: 0 | AE97: 0.3407062476 | AF97: 0 | AG97: 0.111757858 | AH97: 0 | AI97: 0 | AJ97: 1.59177338 | AK97: 14.32673652 | AL97: 0.6301901436 | AM97: 17.51649205 | AN97: 132.572759 | AO97: 255.2813349 | AP97: 373.8998836 | AQ97: 2.708343035 | AR97: 0.2646100116 | AS97: 6.803259604 | AT97: 39.11525029 | AU97: 0 | AV97: 204.2355452 | AW97: 0 | AX97: 1225.052386 | AY97: 0 | AZ97: 0 | BA97: 0 | BB97: 0 | BC97: 0 | BD97: 0 | BE97: 0.4811796663 | BF97: 0 | BG97: 0 | BH97: 0.581024447 | BI97: 0 | BJ97: 0.06440046566 | BK97: 0.04717112922 | BL97: 2.574621653 | BN97: 0.1093364377 | BO97: 4.819557625 | BP97: 0.7760962359 | BQ97: 1.90919674
A98: 020106 | B98: a | D98: F | E98: 1 | F98: Beef, heart, raw | I98: 1 | K98: 77.11 | M98: 17.72 | P98: 124 | Q98: 3.94 | S98: 1.383 | T98: 1.137 | U98: 0.546 | X98: 0.14 | AA98: 0 | AE98: 0 | AJ98: 1.1 | AK98: 7 | AL98: 4.31 | AM98: 21 | AN98: 212 | AO98: 282 | AP98: 98 | AQ98: 1.7 | AR98: 0.396 | AS98: 21.8 | AT98: 0.035 | AU98: 0 | AW98: 0 | AX98: 0 | BH98: 0.22 | BJ98: 0.238 | BK98: 0.906 | BL98: 7.53 | BN98: 0.279 | BO98: 3 | BP98: 8.55 | BQ98: 2 | BW98: US18 | BX98: 13321
A99: 020025 | B99: a | D99: F | E99: 1 | F99: Beef, heart, boiled | I99: 1 | K99: 64.1 | L99: 4.61 | M99: 28.8 | P99: 193 | Q99: 5.6 | S99: 1.68 | T99: 1.25 | U99: 1.37 | V99: tr | W99: 0 | Z99: 0 | AA99: 0 | AE99: 0 | AJ99: 1.1 | AK99: 6 | AL99: 7.5 | AM99: 25 | AN99: 250 | AO99: 233 | AP99: 63 | AQ99: 3.13 | AR99: 0.74 | AS99: 3 | AT99: 59 | AV99: 0 | AW99: 0 | AX99: 0 | BH99: 0.72 | BJ99: 0.14 | BK99: 1.54 | BL99: 4.1 | BN99: 0.21 | BO99: 2 | BP99: 14.3 | BQ99: 2 | BW99: SA99 | BX99: 2968
A100: 020023 | B100: a | D100: F | E100: 1 | F100: Beef, kidney, raw | I100: 1 | K100: 77 | L100: 2.65 | M100: 16.6 | P100: 285 | Q100: 3.1 | S100: 0.97 | T100: 0.66 | U100: 0.67 | V100: tr | W100: 0 | Z100: 0 | AA100: 0 | AE100: 0 | AJ100: 1.1 | AK100: 6 | AL100: 7.4 | AM100: 17 | AN100: 210 | AO100: 257 | AP100: 179 | AQ100: 1.85 | AR100: 0.47 | AS100: 148.8 | AT100: 102 | AV100: 264 | AW100: 160 | AX100: 624 | BH100: 0.2 | BJ100: 0.38 | BK100: 2.55 | BL100: 8 | BN100: 0.51 | BO100: 80 | BP100: 27 | BQ100: 9 | BW100: SA99 | BX100: 4294
A101: 020026 | B101: a | D101: F | E101: 1 | F101: Beef, kidney, boiled | I101: 1 | K101: 68.8 | L101: 4.08 | M101: 25.5 | P101: 387 | Q101: 3.4 | S101: 1.09 | T101: 0.74 | U101: 0.74 | V101: 0.08 | W101: 0 | Z101: 0 | AA101: 0 | AE101: 0 | AJ101: 1.3 | AK101: 17 | AL101: 7.3 | AM101: 18 | AN101: 306 | AO101: 179 | AP101: 134 | AQ101: 4.22 | AR101: 0.68 | AS101: 210 | AT101: 185 | AV101: 373 | AW101: 226 | AX101: 883 | BH101: 0.18 | BJ101: 0.19 | BK101: 4.06 | BL101: 6 | BN101: 0.52 | BO101: 98 | BP101: 51.3 | BQ101: 1 | BW101: SA99 | BX101: 2923
A102: 020043 | B102: a | D102: F | E102: 1 | F102: Beef, tripe, raw | I102: 1 | K102: 81.4 | L102: 2.33 | M102: 14.6 | P102: 95 | Q102: 4 | S102: 2.03 | T102: 1.31 | U102: 0.07 | V102: tr | W102: 0 | Z102: 0 | AA102: 0 | AE102: 0 | AJ102: 0.4 | AK102: 9 | AL102: 2 | AM102: 8 | AN102: 79 | AO102: 270 | AP102: 46 | AQ102: 2.47 | AR102: 0.09 | AT102: 10 | AV102: 0 | AW102: 0 | AX102: 0 | BE102: tr | BH102: 0.08 | BJ102: 0.01 | BK102: 0.17 | BL102: 0.1 | BN102: 0.04 | BO102: 2 | BP102: 1.5 | BQ102: 3 | BW102: SA99 | BX102: 4342
A103: 020030 | B103: a | C103: R | D103: R | E103: 1 | F103: Beef, tripe, boiled | I103: 1 | K103: 92.33440514 | L103: 0.7491961415 | M103: 4.694533762 | N103: 0 | O103: 4.694533762 | P103: 0.03054662379 | Q103: 1.286173633 | R103: 0 | S103: 0.652733119 | T103: 0.421221865 | U103: 0.02250803859 | V103: 0 | W103: 0 | X103: 0 | Y103: 0 | Z103: 0 | AA103: 0 | AB103: 0 | AC103: 0 | AD103: 0 | AE103: 0 | AF103: 0 | AG103: 0 | AH103: 0 | AI103: 0 | AJ103: 1.813504823 | AK103: 4.662379421 | AL103: 0.6479099678 | AM103: 4.59807074 | AN103: 25.41800643 | AO103: 88.24758842 | AP103: 648.2315113 | AQ103: 0.7958199357 | AR103: 0.03585209003 | AS103: 0 | AT103: 3.215434084 | AU103: 0 | AV103: 0 | AW103: 0 | AX103: 0 | AY103: 0 | AZ103: 0 | BA103: 0 | BB103: 0 | BC103: 0 | BD103: 0 | BE103: 0 | BF103: 0 | BG103: 0 | BH103: 0.02572347267 | BI103: 0 | BJ103: 0.00192926045 | BK103: 0.0424437299 | BL103: 0.0192926045 | BN103: 0.007717041801 | BO103: 0.3215434084 | BP103: 0.4823151125 | BQ103: 0.9646302251 | BR103: 0 | BT103: 6.25 | BW103: recipe
A104: 020027 | D104: R | E104: 3 | F104: Blood, chicken, boiled with fat | G104: Blood salted, boiled with animal fat mohlehlo and/or sunflower oil | BJ104: 0.09
A105: 020032 | D105: R | E105: 3 | F105: Blood, cow, boiled | G105: Blood salted, boiled with animal fat mohlehlo and/or sunflower oil
A106: 020031 | B106: a | C106: F | D106: F | E106: 1 | F106: Blood, pork, boiled with fat | G106: Blood salted, boiled with animal fat mohlehlo and/or sunflower oil | I106: 1 | K106: 79.76 | M106: 17.97 | P106: 0.04 | Q106: 0.21 | W106: 0.08 | AJ106: 1.16 | AK106: 6.333 | AL106: 30.647 | AM106: 10.225 | AN106: 51 | AO106: 175.267 | AP106: 205 | AQ106: 0.36 | AR106: 0.12 | AS106: 0.014 | AT106: 0.056 | AV106: 27 | AW106: 27 | BE106: 0.1 | BI106: 0.4 | BK106: 0.03 | BL106: 1.5 | BN106: 0.01 | BP106: 0.6 | BQ106: 0.105 | BW106: SK | BX106: 161 PORK.DOC
A107: 020033 | D107: R | E107: 3 | F107: Blood, sheep, boiled | G107: Blood salted, boiled with animal fat mohlehlo and/or sunflower oil
A108: 020034 | B108: a | D108: F | E108: 1 | F108: Chicken, meat and skin, raw | I108: 1 | K108: 74.9 | L108: 3.68 | M108: 23 | P108: 41 | Q108: 2.7 | S108: 0.75 | T108: 1.05 | U108: 0.68 | W108: 0 | Z108: 0 | AA108: 0 | AE108: 0 | AJ108: 1.1 | AK108: 14 | AL108: 1.1 | AM108: 28 | AN108: 224 | AO108: 309 | AP108: 43 | AQ108: 0.74 | AR108: 0.06 | AS108: 12 | AT108: 90 | AV108: 8 | AW108: tr | AX108: tr | BE108: 0.2 | BH108: 0.13 | BJ108: 0.13 | BK108: 0.08 | BL108: 5.7 | BN108: 0.061 | BO108: 1 | BP108: 0.2 | BQ108: 1 | BW108: SA99 | BX108: 4292
A109: 020050 | B109: a | C109: F | D109: F | E109: 1 | F109: Chicken, meat and skin, boiled | H109: Gallus domesticus | I109: 1 | K109: 59.6 | L109: 4.29 | M109: 26.8 | P109: 0.086 | Q109: 12.6 | S109: 3.52 | T109: 5.47 | U109: 2.92 | W109: 0 | Z109: 0 | AA109: 0 | AE109: 0 | AJ109: 1 | AK109: 11 | AL109: 0.8 | AM109: 23 | AN109: 184 | AO109: 234 | AP109: 56 | AQ109: 1.78 | AR109: 0.09 | AS109: 14.6 | AT109: 18 | AV109: 12 | AW109: 8 | AX109: Tr | BE109: 0.46 | BH109: 0.42 | BJ109: 0.08 | BK109: 0.15 | BL109: 10.3 | BN109: 0.173 | BO109: 6 | BP109: 0.3 | BQ109: 0 | BW109: SA99 | BX109: 2926
A110: 020046 | B110: a | C110: R | D110: R | E110: 1 | F110: Chicken, meat and skin, stewed with vegetable | G110: Chicken, meat and skin, stewed with vetetables. (onion, tomato, potato, green sweet pepper ) | H110: Gallus domesticus | I110: 1 | K110: 68.87308534 | L110: 3.142377826 | M110: 19.63311451 | N110: 0.08533916849 | O110: 19.54777535 | P110: 0.06272793581 | Q110: 9.198395332 | S110: 2.568781911 | T110: 3.990882567 | U110: 2.133041575 | V110: 0 | W110: 0.5550692925 | X110: 0 | Y110: 0 | Z110: 0.00875273523 | AA110: 0.480671043 | AB110: 0 | AC110: 0 | AD110: 0 | AE110: 0.1830780452 | AF110: 0 | AG110: 0.03501094092 | AH110: 0 | AI110: 0 | AJ110: 1.536834427 | AK110: 10.40116703 | AL110: 0.6287381473 | AM110: 18.53391685 | AN110: 136.6739606 | AO110: 192.5966448 | AP110: 329.3873085 | AQ110: 1.325820569 | AR110: 0.0734865062 | AS110: 10.71772429 | AT110: 24.50765864 | AU110: 0 | AV110: 152.1225383 | AW110: 5.83515682 | AX110: 860.131291 | AY110: 0 | AZ110: 0 | BA110: 0 | BB110: 0 | BC110: 0 | BD110: 0 | BE110: 0.3355215171 | BF110: 0 | BG110: 0 | BH110: 0.3479212254 | BI110: 0 | BJ110: 0.03689277899 | BK110: 0.07347921225 | BL110: 4.5404814 | BN110: 0.08043763676 | BO110: 2.691466083 | BP110: 0.2188183807 | BQ110: 0.889861415 | BR110: 0 | BT110: 6.25 | BW110: Recipe
A111: 020037 | B111: a | D111: F | E111: 2 | F111: Chicken, white meat, raw | H111: Gallus domesticus | I111: 1 | K111: 74.9 | L111: 3.68 | M111: 23 | P111: 41 | Q111: 2.7 | S111: 0.75 | T111: 1.05 | U111: 0.68 | V111: tr | W111: 0 | Z111: 0 | AA111: 0 | AE111: 0 | AJ111: 1.1 | AK111: 14 | AL111: 1.1 | AM111: 28 | AN111: 224 | AO111: 309 | AP111: 43 | AQ111: 0.74 | AR111: 0.06 | AS111: 12 | AT111: 90 | AV111: 8 | AW111: tr | AX111: tr | BE111: 0.2 | BH111: 0.13 | BJ111: 0.13 | BK111: 0.08 | BL111: 5.7 | BN111: 0.61 | BO111: 1 | BP111: 0.2 | BQ111: 1 | BW111: SA99 | BX111: 4302
A112: 020051 | B112: a | D112: F | E112: 2 | F112: Chicken, white meat, boiled | H112: Gallus domesticus | I112: 1 | K112: 67.6 | L112: 4.57 | M112: 28.6 | P112: 52 | Q112: 4.1 | S112: 1.2 | T112: 1.67 | U112: 0.94 | V112: 0.1 | W112: 0 | Z112: 0 | AA112: 0 | AE112: 0 | AJ112: 1.1 | AK112: 8 | AL112: 0.5 | AM112: 26 | AN112: 207 | AO112: 259 | AP112: 46 | AQ112: 0.88 | AR112: 0.06 | AS112: 13 | AT112: 10 | AV112: 8 | AW112: tr | AX112: tr | BE112: 0.1 | BH112: 0.27 | BJ112: 0.06 | BK112: 0.1 | BL112: 5.7 | BN112: 0.16 | BO112: 2 | BP112: 0.2 | BQ112: 0 | BW112: SA99 | BX112: 4303
A113: 020035 | B113: a | C113: R | D113: R | E113: 2 | F113: Chicken curry, boiled | G113: Includes; chicken mixed portions, curry sauce, vegetables | H113: Gallus domesticus | I113: 1 | K113: 77.45785582 | L113: 2.728391867 | M113: 17.1702403 | N113: 0.1646950092 | O113: 17.00554529 | P113: 30.3142329 | Q113: 3.976709797 | R113: 0 | S113: 0.79987061 | T113: 1.164491682 | U113: 1.738465804 | V113: 0 | W113: 0.7833641405 | X113: 0 | Y113: 0 | Z113: 0 | AA113: 0.2817005545 | AB113: 0 | AC113: 0 | AD113: 0 | AE113: 0.2171903882 | AF113: 0 | AG113: 0.07097966728 | AH113: 0 | AI113: 0 | AJ113: 1.644454713 | AK113: 16.8207024 | AL113: 1.12051756 | AM113: 24.73567468 | AN113: 170.9075786 | AO113: 253.0147874 | AP113: 324.2513863 | AQ113: 0.6009057301 | AR113: 0.06077634011 | AS113: 8.917560074 | AT113: 116.1367837 | AU113: 9.112754159 | AV113: 5.970425139 | AW113: 0.9149722736 | AX113: 0 | AY113: 0 | AZ113: 0 | BA113: 0 | BB113: 0 | BC113: 0 | BD113: 0 | BE113: 0.1478743068 | BF113: 0 | BG113: 0 | BH113: 0.8210720887 | BI113: 0 | BJ113: 0.05985582255 | BK113: 0.04174491682 | BL113: 2.550720887 | BM113: 0 | BN113: 0.03025508318 | BO113: 0.4140480591 | BP113: 0.1478743068 | BQ113: 1.107208872 | BR113: 0 | BT113: 6.25
A114: 020036 | B114: a | D114: F | E114: 2 | F114: Chicken, drumsticks, fried in sunflower oil | H114: Gallus domesticus | I114: 0.63 | K114: 63 | L114: 4.14 | M114: 25.8 | P114: 135 | Q114: 9.1 | S114: 0.3 | T114: 0.3 | U114: 0.2 | V114: 0.1 | Y114: 0 | AB114: 0 | AC114: 0 | AG114: 0 | AK114: 15 | AL114: 1 | AM114: 25 | AN114: 210 | AO114: 280 | AP114: 130 | AQ114: 2.3 | AR114: 0.09 | AS114: 17 | AT114: 20 | AW114: 24 | AX114: tr | BF114: 0.2 | BH114: 0.21 | BJ114: 0.09 | BK114: 0.09 | BL114: 5.5 | BN114: 0.19 | BO114: 12 | BP114: 1 | BQ114: 0 | BW114: GB6 | BX114: 485
A115: 020028 | B115: a | C115: F | D115: F | E115: 2 | F115: Chicken, feet, raw | I115: 0.65 | K115: 55.7 | L115: 3.25 | M115: 20.3 | Q115: 13.3 | S115: 3.98 | T115: 5.95 | U115: 2.79 | W115: 0 | Z115: 0 | AA115: 0 | AE115: 0.9 | AJ115: 9.8 | BW115: SA99 | BX115: 2997
A116: 020038 | B116: a | D116: R | E116: 2 | F116: Chicken, feet, boiled | I116: 0.65 | K116: 84.62592569 | L116: 1.050936848 | M116: 6.564313236 | N116: 0 | O116: 6.564313236 | P116: 0 | Q116: 4.300756948 | S116: 1.286993432 | T116: 1.924022845 | U116: 0.9021888635 | V116: 0 | W116: 0 | X116: 0 | Y116: 0 | Z116: 0 | AA116: 0 | AB116: 0 | AC116: 0 | AD116: 0 | AE116: 0.2910286656 | AF116: 0 | AG116: 0 | AH116: 0 | AI116: 0 | AJ116: 4.217975461 | AK116: 1.713835475 | AL116: 0.002910286656 | AM116: 1.54568558 | AN116: 0.009700955521 | AO116: 0.8633850414 | AP116: 382.8643779 | AQ116: 0.0009700955521 | AR116: 0.006434967162 | AS116: 0 | AT116: 0 | AU116: 0 | AV116: 0 | AW116: 0 | AX116: 0 | AY116: 0 | AZ116: 0 | BA116: 0 | BB116: 0 | BC116: 0 | BD116: 0 | BE116: 0 | BF116: 0 | BG116: 0 | BH116: 0 | BI116: 0 | BJ116: 0 | BK116: 0.005820573313 | BL116: 0 | BN116: 0 | BO116: 0 | BP116: 0 | BQ116: 0 | BR116: 0 | BT116: 6.25
A117: 020108 | B117: a | D117: F | E117: 1 | F117: Chicken, giblets, raw | I117: 1 | K117: 74.87 | M117: 17.88 | Q117: 4.47 | X117: 1.8 | AE117: 0 | AJ117: 0.99 | AK117: 10 | AL117: 5.86 | AM117: 18 | AN117: 197 | AO117: 228 | AP117: 77 | AQ117: 3.32 | AR117: 0.243 | AS117: 0.149 | AT117: 55.2 | BJ117: 0.088 | BK117: 0.987 | BL117: 6.662 | BN117: 0.42 | BO117: 345 | BQ117: 16.2 | BW117: US18 | BX117: 05020
A118: 020039 | B118: a | C118: F | D118: F | E118: 1 | F118: Chicken, giblets, boiled | I118: 1 | K118: 67.6 | L118: 4.14 | M118: 25.9 | P118: 0.393 | Q118: 4.8 | S118: 1.49 | T118: 1.19 | U118: 1.08 | W118: 0 | Z118: 0 | AA118: 0 | AE118: 0 | AJ118: 0.9 | AK118: 12 | AL118: 6.4 | AM118: 20 | AN118: 229 | AO118: 158 | AP118: 58 | AQ118: 4.57 | AR118: 0.26 | AT118: 170 | AV118: 2229 | BH118: 1.3 | BJ118: 0.09 | BK118: 0.95 | BL118: 4.1 | BN118: 0.34 | BO118: 376 | BP118: 10.1 | BQ118: 8 | BW118: SA99 | BX118: 2998
A119: 020041 | B119: a | C119: F | D119: F | E119: 2 | F119: Chicken, heads, raw | I119: 1 | K119: 73.1 | L119: 2.16 | M119: 13.5 | Q119: 7.4 | S119: 2.21 | T119: 3.31 | U119: 1.55 | W119: 0 | Z119: 0 | AA119: 0 | AE119: 2.4 | AJ119: 3.6 | BW119: SA99 | BX119: 2999
A120: 020042 | B120: a | D120: R | E120: 2 | F120: Chicken, heads, boiled | I120: 0.6 | K120: 90.25247989 | L120: 0.6984687975 | M120: 4.365429985 | N120: 0 | O120: 4.365429985 | P120: 0 | Q120: 2.392902362 | S120: 0.7146370567 | T120: 1.070338759 | U120: 0.5012160353 | V120: 0 | W120: 0 | X120: 0 | Y120: 0 | Z120: 0 | AA120: 0 | AB120: 0 | AC120: 0 | AD120: 0 | AE120: 0.7760764417 | AF120: 0 | AG120: 0 | AH120: 0 | AI120: 0 | AJ120: 2.21311132 | AK120: 1.713835475 | AL120: 0.002910286656 | AM120: 1.54568558 | AN120: 0.009700955521 | AO120: 0.8633850414 | AP120: 382.8643779 | AQ120: 0.0009700955521 | AR120: 0.006434967162 | AS120: 0 | AT120: 0 | AU120: 0 | AV120: 0 | AW120: 0 | AX120: 0 | AY120: 0 | AZ120: 0 | BA120: 0 | BB120: 0 | BC120: 0 | BD120: 0 | BE120: 0 | BF120: 0 | BG120: 0 | BH120: 0 | BI120: 0 | BJ120: 0 | BK120: 0.005820573313 | BL120: 0 | BN120: 0 | BO120: 0 | BP120: 0 | BQ120: 0 | BR120: 0 | BT120: 6.25
A121: 020029 | B121: a | D121: R | E121: 2 | F121: Chicken, heads and feet, boiled | G121: Chicken head and feet boiled in vegetables onion, tomato, patato | I121: 0.6 | K121: 87.58297416 | L121: 0.8759435361 | M121: 5.472623201 | N121: 0 | O121: 5.472623201 | P121: 0 | Q121: 3.351576931 | S121: 1.002234841 | T121: 1.499304463 | U121: 0.702697772 | V121: 0 | W121: 0 | X121: 0 | Y121: 0 | Z121: 0 | AA121: 0 | AB121: 0 | AC121: 0 | AD121: 0 | AE121: 0.5343093658 | AF121: 0 | AG121: 0 | AH121: 0 | AI121: 0 | AJ121: 3.058516339 | AK121: 1.700075255 | AL121: 0.002428678935 | AM121: 1.424824975 | AN121: 0.008095596452 | AO121: 0.7205080842 | AP121: 319.7760598 | AQ121: 0.0008095596452 | AR121: 0.006314565232 | AS121: 0 | AT121: 0 | AU121: 0 | AV121: 0 | AW121: 0 | AX121: 0 | AY121: 0 | AZ121: 0 | BA121: 0 | BB121: 0 | BC121: 0 | BD121: 0 | BE121: 0 | BF121: 0 | BG121: 0 | BH121: 0 | BI121: 0 | BJ121: 0 | BK121: 0.004857357871 | BL121: 0 | BN121: 0 | BO121: 0 | BP121: 0 | BQ121: 0 | BR121: 0 | BT121: 6.25
A122: 020044 | B122: a | D122: F | E122: 1 | F122: Chicken, liver, raw | I122: 1 | K122: 74.46 | M122: 16.92 | P122: 345 | Q122: 4.83 | S122: 1.563 | T122: 1.249 | U122: 0.819 | X122: 0 | AA122: 0 | AE122: 0 | AJ122: 1.06 | AK122: 8 | AL122: 8.99 | AM122: 19 | AN122: 297 | AO122: 230 | AP122: 71 | AQ122: 2.67 | AR122: 0.492 | AS122: 54.6 | AT122: 0.255 | AU122: 3296 | AW122: 3290 | AY122: 11 | AZ122: 56 | BA122: 11 | BC122: 40 | BD122: 0 | BH122: 0.7 | BJ122: 0.305 | BK122: 1.778 | BL122: 9.728 | BN122: 0.853 | BO122: 588 | BP122: 16.58 | BQ122: 17.9 | BW122: US18 | BX122: 05027
A123: 020045 | B123: a | D123: F | E123: 1 | F123: Chicken, liver, boiled | G123: Includes; chicken liver | I123: 1 | K123: 68.3 | L123: 3.9 | M123: 24.4 | P123: 0.631 | Q123: 5,5 | S123: 1.84 | T123: 1.34 | U123: 0.9 | W123: 0.9 | Z123: 0.9 | AA123: 0 | AE123: 0 | AJ123: 1 | AK123: 14 | AL123: 8.5 | AM123: 21 | AN123: 312 | AO123: 140 | AP123: 51 | AQ123: 4.34 | AR123: 0.37 | AS123: 36.9 | AT123: 297 | AV123: 4913 | AW123: 4913 | AX123: Tr | BE123: 1.79 | BH123: 1.44 | BJ123: 0.15 | BK123: 1.75 | BL123: 4.5 | BN123: 0.58 | BO123: 770 | BP123: 19.4 | BQ123: 16 | BW123: SA99 | BX123: 2970
A124: 020047 | D124: R | E124: 3 | F124: Chicken pie, flaky pastry
A125: 020048 | B125: a | D125: F | E125: 2 | F125: Chicken, wings, fried in sunflower oil | H125: Gallus domesticus | I125: 1 | K125: 48.62 | M125: 26.11 | P125: 81 | Q125: 22.16 | S125: 6.06 | T125: 8.89 | U125: 4.95 | X125: 2.39 | AE125: 0.1 | AJ125: 0.72 | AK125: 15 | AL125: 1.25 | AM125: 19 | AN125: 150 | AO125: 177 | AP125: 77 | AQ125: 1.76 | AR125: 0.061 | AS125: 0.028 | AT125: 21.3 | AU125: 125 | AW125: 38 | BJ125: 0.058 | BK125: 0.137 | BL125: 6.697 | BQ125: 0 | BW125: US18 | BX125: 05102
A126: 020060 | D126: R | E126: 3 | F126: Cow, head and feet, boiled | G126: Head and feet boiled, served as cold meat
A127: 020053 | D127: F | E127: 3 | F127: Donkey, meat, raw | H127: Equine domesticus
A128: 020052 | D128: R | E128: 3 | F128: Donkey, meat, boiled | H128: Equine domesticus
A129: 020054 | D129: F | E129: 3 | F129: Donkey, meat, raw, sun dried (Lihoapa) | H129: Equine domesticus
A130: 020055 | D130: F | E130: 3 | F130: Duck, meat and skin, roasted | H130: Anus platyrhynchos
A131: 020056 | D131: F | E131: 3 | F131: Fish, boiled
A132: 020057 | D132: F | E132: 2 | F132: Fish, fried in sunflower oil
A133: 020058 | B133: a | D133: F | E133: 2 | F133: Goat, meat, raw | H133: Capra domesticus | I133: 1 | K133: 75.8 | L133: 3.3 | M133: 20.6 | P133: 57 | Q133: 2.31 | S133: 0.71 | T133: 1.03 | U133: 0.17 | W133: 0 | Z133: 0 | AA133: 0 | AE133: 0 | AJ133: 1.1 | AK133: 13 | AL133: 2.8 | AM133: 0 | AN133: 180 | AO133: 385 | AP133: 82 | AQ133: 4 | AR133: 0.26 | AT133: 38 | AV133: 0 | BH133: 0.04 | BJ133: 0.11 | BK133: 0.49 | BL133: 3.8 | BN133: 0 | BO133: 5 | BP133: 1.1 | BQ133: 0 | BW133: SA99 | BX133: 4282
A134: 020059 | B134: a | D134: F | E134: 2 | F134: Goat, meat, roasted | H134: Capra domesticus | I134: 1 | K134: 68.2 | L134: 4.34 | M134: 27.1 | P134: 75 | Q134: 3 | S134: 0.93 | T134: 1.36 | U134: 0.23 | W134: 0 | Z134: 0 | AA134: 0 | AE134: 0 | AJ134: 1.5 | AK134: 17 | AL134: 3.7 | AM134: 0 | AN134: 201 | AO134: 405 | AP134: 86 | AQ134: 5.27 | AR134: 0.3 | AT134: 42 | AV134: 0 | BH134: 0.05 | BJ134: 0.09 | BK134: 0.61 | BL134: 4 | BN134: 0 | BO134: 5 | BP134: 1.2 | BQ134: 0 | BW134: SA99 | BX134: 4281
A135: 020063 | D135: F | E135: 3 | F135: Horse, meat, raw | H135: Equine domesticus
A136: 020065 | D136: F | E136: 3 | F136: Horse intestines, sun dried, raw (Mantatana) | H136: Equine domesticus
A137: 020064 | D137: F | E137: 3 | F137: Horse, meat, raw, sun dried (Lihoapa) | H137: Equine domesticus
A138: 020070 | B138: a | D138: F | E138: 2 | F138: Mutton, meat, raw | H138: Ovis aries | I138: 1 | K138: 60.7 | L138: 2.7 | M138: 16.9 | P138: 72 | Q138: 21.6 | S138: 9.47 | T138: 8.86 | U138: 1.7 | V138: 1.56 | W138: 0 | Z138: 0 | AA138: 0 | AE138: 0 | AJ138: 0.9 | AK138: 12 | AL138: 1.6 | AM138: 22 | AN138: 160 | AO138: 230 | AP138: 58 | AQ138: 3.33 | AR138: 0.1 | AS138: 2.7 | AT138: 19 | AV138: 0 | AW138: 0 | AX138: 0 | BE138: 0.53 | BH138: 0.21 | BJ138: 0.12 | BK138: 0.22 | BL138: 6.1 | BN138: 0.13 | BO138: 18 | BP138: 2.4 | BQ138: 0 | BW138: SA99 | BX138: 4335
A139: 020066 | B139: a | D139: R | E139: 2 | F139: Mutton curry | G139: Mutton meat, boiled with curry sauce, onion potato without skin | H139: Ovis aries | I139: 1 | K139: 72.15309381 | L139: 1.624870259 | M139: 10.29760479 | N139: 0.1778443114 | O139: 10.11976048 | P139: 43.11377246 | Q139: 15.07265469 | S139: 5.935588822 | T139: 5.724530938 | U139: 2.352315369 | V139: 0.9341317365 | W139: 0.8459081836 | X139: 0 | Y139: 0 | Z139: 0 | AA139: 0.3041916168 | AB139: 0 | AC139: 0 | AD139: 0 | AE139: 0.2345309381 | AF139: 0 | AG139: 0.07664670659 | AH139: 0 | AI139: 0 | AJ139: 1.448403194 | AK139: 14.41117764 | AL139: 1.289820359 | AM139: 17.64870259 | AN139: 101.5189621 | AO139: 164.2335329 | AP139: 350.7784431 | AQ139: 2.052075848 | AR139: 0.07844311377 | AS139: 1.665469062 | AT139: 64.93013972 | AU139: 9.840319361 | AV139: 0.05988023952 | AW139: 0.9880239521 | AX139: 0 | AY139: 0 | AZ139: 0 | BA139: 0 | BB139: 0 | BC139: 0 | BD139: 0 | BE139: 0.3173652695 | BF139: 0 | BG139: 0 | BH139: 0.9085828343 | BI139: 0 | BJ139: 0.04547305389 | BK139: 0.08579640719 | BL139: 2.215449102 | BN139: 0.05015568862 | BO139: 5.437125749 | BP139: 1.437125749 | BQ139: 0.3972055888
A140: 020067 | D140: F | E140: 3 | F140: Mutton, leg, fatty, roasted | H140: Ovis aries
A141: 020068 | D141: F | E141: 3 | F141: Mutton, loin, grilled | H141: Ovis aries
A142: 020069 | B142: a | D142: F | E142: 2 | F142: Mutton, mince, boiled | H142: Ovis aries | I142: 1 | K142: 55.1 | L142: 3.96 | M142: 24.8 | P142: 97 | Q142: 19.7 | S142: 8.12 | T142: 8.32 | U142: 1.4 | V142: 1.28 | W142: 0 | Z142: 0 | AA142: 0 | AE142: 0 | AJ142: 1.1 | AK142: 22 | AL142: 1.8 | AM142: 24 | AN142: 201 | AO142: 339 | AP142: 81 | AQ142: 4.67 | AR142: 0.13 | AS142: 3.6 | AT142: 24 | AV142: 0 | AW142: 0 | AX142: 0 | BE142: 0.6 | BH142: 0.25 | BJ142: 0.1 | BK142: 0.25 | BL142: 6.7 | BN142: 0.14 | BO142: 19 | BP142: 2.6 | BQ142: 0 | BW142: SA99 | BX142: 3041
A143: 020072 | D143: F | E143: 3 | F143: Mutton, rib, raw | H143: Ovis aries
A144: 020071 | D144: F | E144: 3 | F144: Mutton, rib, grilled | H144: Ovis aries
A145: 020073 | D145: F | E145: 3 | F145: Mutton, rib, roasted | H145: Ovis aries
A146: 020074 | D146: F | E146: 3 | F146: Mutton, shoulder, roasted | H146: Ovis aries
A147: 020075 | B147: a | D147: R | E147: 2 | F147: Mutton, stewed with vegetables | G147: Mutton meat, meat stewed with vegetables, onion, tomato, green sweet pepper, salt | H147: Ovis aries | I147: 1 | K147: 85.01317365 | L147: 1.440472879 | M147: 9.013212796 | N147: 0.1488178025 | O147: 8.814325452 | P147: 37.55215577 | Q147: 13.0403338 | S147: 5.170340751 | T147: 4.944262865 | U147: 2.024269819 | V147: 0.8136300417 | W147: 1.517385257 | X147: 0 | Y147: 0.6592489569 | Z147: 1.112656467 | AA147: 0.2962447844 | AB147: 0.02503477051 | AC147: 0.6175243394 | AD147: 0 | AE147: 0.173852573 | AF147: 0 | AG147: 0.2670375522 | AH147: 0 | AI147: 0 | AJ147: 1.249652295 | AK147: 10.63977747 | AL147: 0.9311543811 | AM147: 14.00556328 | AN147: 89.07510431 | AO147: 165.3616134 | AP147: 306.9541029 | AQ147: 1.778929068 | AR147: 0.07051460362 | AS147: 1.537552156 | AT147: 37.65646732 | AU147: 0 | AV147: 0.05215577191 | AW147: 0 | AX147: 1040.77886 | AY147: 0 | AZ147: 0 | BA147: 0 | BB147: 0 | BC147: 0 | BD147: 0 | BE147: 0.2764255911 | BF147: 0 | BG147: 0 | BH147: 0.8422809458 | BI147: 0 | BJ147: 0.04998609179 | BK147: 0.07418636996 | BL147: 1.979833102 | BN147: 0.05962447844 | BO147: 5.340751043 | BP147: 1.251738526 | BQ147: 2.767732962 | BT147: 6.25
A148: 020090 | B148: a | D148: R | E148: 1 | F148: Offals, chicken, raw (liver, giblets) | G148: - Includes; spleen, intestines, heart, lungs, pancrease, and tripe | I148: 1 | K148: 72.03 | L148: 2.07 | M148: 21.41 | N148: 0 | O148: 12.95 | P148: 172.6965 | Q148: 4.815 | S148: 1.5265 | T148: 1.2195 | U148: 0.9495 | V148: 0 | W148: 0 | X148: 0 | Y148: 0 | Z148: 0 | AA148: 0 | AB148: 0 | AC148: 0 | AD148: 0 | AE148: 0 | AF148: 0 | AG148: 0 | AH148: 0 | AI148: 0 | AJ148: 0.98 | AK148: 10 | AL148: 7.695 | AM148: 19.5 | AN148: 263 | AO148: 194 | AP148: 64.5 | AQ148: 3.62 | AR148: 0.376 | AS148: 27.3 | AT148: 85.1275 | AU148: 1648 | AV148: 1114.5 | AW148: 1645 | AX148: 0 | AY148: 5.5 | AZ148: 28 | BA148: 5.5 | BB148: 0 | BC148: 20 | BD148: 0 | BE148: 0 | BF148: 0 | BG148: 0 | BH148: 1 | BI148: 0 | BJ148: 0.1185 | BK148: 0.8184 | BL148: 4.1484 | BN148: 0.3579 | BO148: 241 | BP148: 13.34 | BQ148: 12.95 | BR148: 0
A149: 020088 | D149: F | E149: 3 | F149: Offals goat, raw | G149: - Includes; spleen, intestines, heart, lungs, pancrease, and tripe
A150: 020091 | B150: a | D150: R | E150: 1 | F150: Offals, beef, raw (heart, kidney, liver and tripe) | G150: Offal, beef, raw Includes; heart, kidney, liver, tripe | I150: 1 | K150: 75.73 | L150: 2.353571429 | M150: 17.26 | N150: 0 | O150: 17.26 | P150: 17.91535714 | Q150: 3.827142857 | S150: 1.596857143 | T150: 0.9067142857 | U150: 0.4987142857 | V150: 0 | W150: 2.091428571 | X150: 0.02 | Y150: 0 | Z150: 2.085714286 | AA150: 0 | AB150: 0 | AC150: 0 | AD150: 0 | AE150: 0 | AF150: 0 | AG150: 0 | AH150: 0 | AI150: 0 | AJ150: 0.9214285714 | AK150: 7.214285714 | AL150: 4.815714286 | AM150: 15.07142857 | AN150: 202.0714286 | AO150: 288.7857143 | AP150: 82.07142857 | AQ150: 2.789285714 | AR150: 1.348714286 | AS150: 39.12142857 | AT150: 112.4335714 | AU150: 0 | AV150: 3788.785714 | AW150: 3707.142857 | AX150: 488.7857143 | AY150: 0 | AZ150: 0 | BA150: 0 | BB150: 0 | BC150: 0 | BD150: 0 | BE150: 0.3928571429 | BF150: 0 | BG150: 0 | BH150: 0.3278571429 | BI150: 0 | BJ150: 0.1108285714 | BK150: 0.9283714286 | BL150: 4.095428571 | BN150: 0.2776285714 | BO150: 50.57142857 | BP150: 30.32857143 | BQ150: 10.5 | BR150: 0 | BT150: 6.25
A151: 020092 | B151: a | D151: R | E151: 1 | F151: Offals, beef, boiled | I151: 1 | K151: 87.92635528 | L151: 1.099758372 | M151: 8.065117241 | N151: 0 | O151: 8.065117241 | P151: 8.37134738 | Q151: 1.788317256 | S151: 0.7461668641 | T151: 0.4236823302 | U151: 0.2330352946 | V151: 0 | W151: 0.9772663169 | X151: 0.009345442921 | Y151: 0 | Z151: 0.9745961904 | AA151: 0 | AB151: 0 | AC151: 0 | AD151: 0 | AE151: 0 | AF151: 0 | AG151: 0 | AH151: 0 | AI151: 0 | AJ151: 1.764286117 | AK151: 16.78842068 | AL151: 2.252251744 | AM151: 14.22509919 | AN151: 94.4290254 | AO151: 135.5356236 | AP151: 314.0402587 | AQ151: 1.304023053 | AR151: 0.6774778586 | AS151: 18.28035389 | AT151: 52.53707621 | AU151: 0 | AV151: 1770.394032 | AW151: 1732.244599 | AX151: 228.3959497 | AY151: 0 | AZ151: 0 | BA151: 0 | BB151: 0 | BC151: 0 | BD151: 0 | BE151: 0.1835712002 | BF151: 0 | BG151: 0 | BH151: 0.1531985107 | BI151: 0 | BJ151: 0.05178710442 | BK151: 0.4378072996 | BL151: 1.913679698 | BN151: 0.1297280984 | BO151: 23.63061996 | BP151: 14.17169666 | BQ151: 4.906357534 | BR151: 0 | BT151: 6.25 | BW151: 0 | BX151: 0 | BY151: 0 | BZ151: 0 | CA151: 0
A152: 020083 | B152: a | C152: R | D152: R | E152: 2 | F152: Offals, chicken, boiled (giblets and liver) | G152: - Includes; | I152: 1 | K152: 74.21784054 | L152: 1.417760665 | M152: 15.36997972 | N152: 0 | O152: 15.34089745 | P152: 95.47382084 | Q152: 7.259661663 | S152: 1.623154197 | T152: 1.569351998 | U152: 3.058000696 | V152: 0 | W152: 0.9815266144 | X152: 0.6543510762 | Y152: 0 | Z152: 0.9815266144 | AA152: 0 | AB152: 0 | AC152: 0 | AD152: 0 | AE152: 0 | AF152: 0 | AG152: 0 | AH152: 0 | AI152: 0 | AJ152: 2.210979581 | AK152: 9.597149118 | AL152: 5.224629815 | AM152: 15.64626129 | AN152: 185.0504844 | AO152: 135.0726033 | AP152: 618.7252954 | AQ152: 2.786081471 | AR152: 0.2265508837 | AS152: 13.46836279 | AT152: 128.0346939 | AU152: 965.8948942 | AV152: 1786.123968 | AW152: 2751.909804 | AX152: 0 | AY152: 0 | AZ152: 0 | BA152: 0 | BB152: 0 | BC152: 0 | BD152: 0 | BE152: 0.6507157925 | BF152: 0 | BG152: 0 | BH152: 1.94923915 | BI152: 0 | BJ152: 0.05191185205 | BK152: 0.6057109796 | BL152: 2.434622238 | BN152: 0.2181170254 | BO152: 202.6670694 | BP152: 7.052450488 | BQ152: 11.7056137 | BR152: 0 | BT152: 6.25
A153: 020082 | D153: R | E153: 3 | F153: Offals, goat, boiled
A154: 020079 | B154: a | D154: R | E154: 1 | F154: Offals, sheep, raw (kidney, lung, liver) | G154: - Includes; spleen, intestines, heart, lungs, pancrease and tripe | I154: 1 | K154: 76.15833333 | L154: 1.778333333 | M154: 18.075 | N154: 0 | O154: 18.075 | P154: 0.21075 | Q154: 3.666666667 | S154: 1.345833333 | T154: 0.8216666667 | U154: 0.55 | V154: 0 | W154: 0.75 | X154: 0 | Y154: 0 | Z154: 0.75 | AA154: 0 | AB154: 0 | AC154: 0 | AD154: 0 | AE154: 0 | AF154: 0 | AG154: 0 | AH154: 0 | AI154: 0 | AJ154: 1.258333333 | AK154: 9.25 | AL154: 6.816666667 | AM154: 16.58333333 | AN154: 283.9166667 | AO154: 275.75 | AP154: 120.5833333 | AQ154: 3.065 | AR154: 3.089166667 | AS154: 62.85833333 | AT154: 96.34125 | AU154: 11.25 | AV154: 3095 | AW154: 3277.916667 | AX154: 10 | AY154: 0 | AZ154: 0 | BA154: 0 | BB154: 0 | BC154: 0 | BD154: 0 | BE154: 0.1958333333 | BF154: 0 | BG154: 0 | BH154: 0.3616666667 | BI154: 0 | BJ154: 0.159 | BK154: 1.19075 | BL154: 5.806 | BN154: 0.2745 | BO154: 52.75 | BP154: 47.89708333 | BQ154: 20.16666667 | BR154: 0 | BT154: 6.25
A155: 020078 | B155: a | D155: R | E155: 1 | F155: Offals, sheep, boiled | G155: Include | I155: 1 | K155: 89.07937728 | L155: 0.756495776 | M155: 7.689031575 | N155: 0 | O155: 7.689031575 | P155: 0.08965219388 | Q155: 1.559785105 | S155: 0.5725120329 | T155: 0.3495336622 | U155: 0.2339677658 | V155: 0 | W155: 0.3190469533 | X155: 0 | Y155: 0 | Z155: 0.3190469533 | AA155: 0 | AB155: 0 | AC155: 0 | AD155: 0 | AE155: 0 | AF155: 0 | AG155: 0 | AH155: 0 | AI155: 0 | AJ155: 1.951858361 | AK155: 18.18567634 | AL155: 2.901909289 | AM155: 14.68324979 | AN155: 120.7840866 | AO155: 117.9339338 | AP155: 344.109864 | AQ155: 1.304547542 | AR155: 1.364315672 | AS155: 26.73967965 | AT155: 40.98317639 | AU155: 4.7857043 | AV155: 1316.600427 | AW155: 1394.412434 | AX155: 4.253959378 | AY155: 0 | AZ155: 0 | BA155: 0 | BB155: 0 | BC155: 0 | BD155: 0 | BE155: 0.08330670448 | BF155: 0 | BG155: 0 | BH155: 0.1538515308 | BI155: 0 | BJ155: 0.06763795411 | BK155: 0.5107941723 | BL155: 2.469848815 | BN155: 0.1167711849 | BO155: 22.43963572 | BP155: 20.37522468 | BQ155: 8.578818078 | BR155: 0
A156: 020084 | D156: R | E156: 3 | F156: Oxtail, stewed, with baked beans | G156: oxtail stewed with sugar beans, onion, tomato
A157: 020085 | B157: a | C157: F | D157: F | E157: 1 | F157: Polony, cooked, retail | I157: 1 | K157: 54.3 | L157: 1.87 | M157: 11.7 | P157: 0.055 | Q157: 28.3 | S157: 10.7 | T157: 13.39 | U157: 2.4 | W157: 2.8 | Z157: 2.8 | AA157: Tr | AE157: 0 | AJ157: 3 | AK157: 12 | AL157: 1.5 | AM157: 11 | AN157: 91 | AO157: 180 | AP157: 1019 | AQ157: 1.94 | AR157: 0.08 | AS157: 11.3 | AT157: 39 | AV157: 0 | AW157: 0 | AX157: 0 | BE157: 0 | BH157: 0.22 | BJ157: 0.17 | BK157: 0.14 | BL157: 2.6 | BN157: 0.18 | BO157: 5 | BP157: 1.3 | BQ157: 0 | BW157: SA99 | BX157: 2919
A158: 020086 | D158: F | E158: 3 | F158: Pork, loin, raw | H158: Suidae domesticus
A159: 020081 | D159: F | E159: 3 | F159: Pork, loin, grilled | H159: Suidae domesticus
A160: 020080 | D160: F | E160: 3 | F160: Pork, loin, braised | H160: Suidae domesticus
A161: 020087 | D161: F | E161: 3 | F161: Pork, rib/breast, grilled | H161: Suidae domesticus
A162: 020093 | D162: F | E162: 3 | F162: Pork, rib/breast, raw | H162: Suidae domesticus
A163: 020094 | B163: a | D163: F | E163: 2 | F163: Pork, bacon, fatty, pan-fried | H163: Suidae domesticus | I163: 1 | K163: 12.9 | L163: 4.87 | M163: 30.5 | P163: 85 | Q163: 49.2 | S163: 17.42 | T163: 23.69 | U163: 5.81 | V163: 0.22 | W163: 0 | Z163: 0 | AA163: 0 | AE163: 0 | AJ163: 6.8 | AK163: 12 | AL163: 1.6 | AM163: 24 | AN163: 336 | AO163: 486 | AP163: 1596 | AQ163: 3.26 | AR163: 0.17 | AS163: 24.7 | AT163: 41 | AV163: 0 | AW163: 0 | AX163: 0 | BE163: tr | BH163: 0.54 | BJ163: 0.69 | BK163: 0.29 | BL163: 7.3 | BN163: 0.27 | BO163: 5 | BP163: 1.8 | BQ163: 0 | BW163: SA99 | BX163: 2906
A164: 020095 | D164: F | E164: 3 | F164: Pork, bacon, lean, pan-fried | H164: Suidae domesticus
A165: 020096 | B165: a | D165: F | E165: 1 | F165: Pork, fatty , raw | H165: Suidae domesticus | I165: 1 | K165: 49.8 | L165: 2.23 | M165: 13.9 | P165: 0.074 | Q165: 35.1 | S165: 12.44 | T165: 15.93 | U165: 3.8 | W165: 0 | Z165: 0 | AA165: 0 | AE165: 0 | AJ165: 0.7 | AK165: 19 | AL165: 0.7 | AM165: 13 | AN165: 155 | AO165: 253 | AP165: 42 | AQ165: 1.59 | AR165: 0.06 | AS165: 28.4 | AT165: 11 | AW165: Tr | AX165: Tr | BE165: 1 | BH165: 0.29 | BJ165: 0.6 | BK165: 0.21 | BL165: 3.8 | BN165: 0.284 | BO165: 4 | BP165: 0.6 | BQ165: Tr | BW165: SA99 | BX165: 4336
A166: 020097 | B166: a | D166: F | E166: 1 | F166: Pork, fatty, boiled | H166: Suidae domesticus | I166: 1 | K166: 33.1 | L166: 2.27 | M166: 14.2 | P166: 0.098 | Q166: 50.9 | S166: 17.9 | T166: 21.5 | U166: 8.9 | V166: 0.3 | Y166: 0 | AB166: 0 | AC166: 0 | AE166: 0 | AK166: 10 | AL166: 0.6 | AM166: 14 | AN166: 140 | AO166: 240 | AP166: 69 | AQ166: 0.9 | AR166: 0.05 | AS166: 9 | AT166: Tr | AW166: Tr | AX166: Tr | BE166: 2.1 | BH166: 0.05 | BJ166: 0.37 | BK166: 0.16 | BL166: 3.8 | BN166: 0.16 | BO166: 2 | BP166: Tr | BQ166: 0 | BW166: GB6 | BX166: 461
A167: 020098 | D167: F | E167: 3 | F167: Pork, ham, sliced, lean | G167: Sliced lean probable ingredients: meat, water, salt, soya protein, starch, spices,dextrose, phosphate, MSG, antioxidant, Na nitrate | H167: Suidae domesticus
A168: 020099 | B168: a | D168: F | E168: 2 | F168: Pork, ham, sliced, regular | G168: Sliced regular Probable ingredients: meat, water, salt, soya protein, starch, spices, dextrose, phosphate, MSG, antioxidant, Na nitrate | H168: Suidae domesticus | I168: 1 | K168: 70.5 | L168: 3.1 | M168: 19.4 | P168: 47 | Q168: 5 | S168: 1.62 | T168: 2.35 | U168: 0.48 | V168: tr | W168: 1 | Z168: 0 | AA168: 1 | AE168: 0 | AJ168: 4.2 | AK168: 7 | AL168: 0.8 | AM168: 17 | AN168: 218 | AO168: 350 | AP168: 1429 | AQ168: 1.93 | AR168: 0.07 | AS168: 16.2 | AT168: 33 | AV168: 0 | AW168: 0 | AX168: 0 | BE168: 0 | BH168: 0.29 | BJ168: 0.93 | BK168: 0.22 | BL168: 4.8 | BN168: 0.46 | BO168: 4 | BP168: 0.8 | BQ168: 0 | BW168: SA99 | BX168: 3008
A169: 020061 | D169: R | E169: 3 | F169: Pork, head and feet, boiled | G169: Head and feet boiled, served as cold meat
A170: 020100 | D170: F | E170: 3 | F170: Pork, lean, raw | H170: Suidae domesticus
A171: 020101 | D171: F | E171: 3 | F171: Pork, lean, boiled | H171: Suidae domesticus
A172: 020102 | D172: F | E172: 3 | F172: Pork, leg, raw | H172: Suidae domesticus
A173: 020103 | D173: F | E173: 3 | F173: Pork, leg, roasted | H173: Suidae domesticus
A174: 020104 | B174: a | D174: F | E174: 2 | F174: Pork, sausage, grilled | H174: Suidae domesticus | I174: 1 | K174: 44.6 | L174: 3.14 | M174: 19.7 | P174: 83 | Q174: 31.2 | S174: 10.81 | T174: 13.9 | U174: 3.81 | V174: 0.14 | W174: 1 | Z174: 0.8 | AA174: 0.2 | AE174: 0 | AJ174: 3.6 | AK174: 32 | AL174: 1.3 | AM174: 17 | AN174: 184 | AO174: 361 | AP174: 1294 | AQ174: 2.5 | AR174: 0.14 | AS174: 18.2 | AT174: 71 | AV174: 0 | AW174: 0 | AX174: 0 | BE174: 1.13 | BH174: 0.16 | BJ174: 0.74 | BK174: 0.25 | BL174: 4.5 | BN174: 0.33 | BO174: 2 | BP174: 1.7 | BQ174: 2 | BW174: SA99 | BX174: 2932
A175: 020062 | D175: R | E175: 3 | F175: Sheep, head and feet, boiled | G175: Head and feet boiled, served as cold meat
A176: 020076 | B176: a | D176: F | E176: 1 | F176: Sheep, kidney, raw | I176: 1 | K176: 79.2 | L176: 2.52 | M176: 15.7 | P176: 0.337 | Q176: 3 | S176: 1 | T176: 0.63 | U176: 0.55 | W176: 0 | Z176: 0 | AA176: 0 | AE176: 0 | AJ176: 1.3 | AK176: 13 | AL176: 6.4 | AM176: 17 | AN176: 246 | AO176: 277 | AP176: 456 | AQ176: 2.24 | AR176: 0.45 | AS176: 126.9 | AT176: 118 | AV176: 95 | AW176: 95 | AX176: tr | BH176: 0.37 | BJ176: 0.62 | BK176: 2.24 | BL176: 7.5 | BN176: 0.22 | BO176: 28 | BP176: 52.4 | BQ176: 11 | BW176: SA99 | BX176: 4293
A177: 020107 | B177: a | D177: F | E177: 1 | F177: Sheep, lung, raw | I177: 1 | K177: 79.7 | L177: 2.672 | M177: 16.7 | Q177: 2.6 | S177: 0.89 | T177: 0.67 | U177: 0.35 | W177: 0 | X177: 0 | AA177: 0 | AE177: 0 | AJ177: 1.1 | AK177: 10 | AL177: 6.4 | AM177: 14 | AN177: 219 | AO177: 238 | AP177: 157 | AQ177: 1.8 | AR177: 0.254 | AS177: 17.7 | AT177: 0.019 | AU177: 27 | AW177: 27 | BJ177: 0.048 | BK177: 0.237 | BL177: 4.124 | BN177: 0.11 | BO177: 12 | BP177: 3.893 | BQ177: 31 | BW177: US18 | BX177: 17205
A178: 020077 | B178: a | D178: F | E178: 1 | F178: Sheep, lung, roasted | I178: 1 | K178: 75.8 | L178: 3.18 | M178: 19.9 | P178: 0.284 | Q178: 3.1 | S178: 1.06 | T178: 0.8 | U178: 0.43 | W178: 0 | Z178: 0 | AA178: 0 | AE178: 0 | AJ178: 1.3 | AK178: 12 | AL178: 4.6 | AM178: 11 | AN178: 188 | AO178: 127 | AP178: 84 | AQ178: 1.93 | AR178: 0.23 | AS178: 32.3 | AT178: 16 | AV178: 32 | AW178: tr | AX178: tr | BE178: tr | BJ178: 0.03 | BK178: 0.14 | BL178: 2.4 | BN178: 0.06 | BO178: 8 | BP178: 2.5 | BQ178: 28 | BW178: SA99 | BX178: 4337
A179: 020089 | B179: a | D179: F | E179: 1 | F179: Sheep, liver, raw | I179: 1 | K179: 71.4 | L179: 3.26 | M179: 20.4 | P179: 0.371 | Q179: 5 | S179: 1.94 | T179: 1.05 | U179: 0.75 | W179: 1.8 | Z179: 1.8 | AA179: 0 | AE179: 0 | AJ179: 1.4 | AK179: 7 | AL179: 7.4 | AM179: 19 | AN179: 364 | AO179: 313 | AP179: 70 | AQ179: 4.66 | AR179: 6.98 | AS179: 82.4 | AT179: 184 | AV179: 7390 | AW179: 7802 | AX179: 24 | BE179: 0.47 | BH179: 0.72 | BJ179: 0.34 | BK179: 3.63 | BL179: 16.1 | BN179: 0.9 | BO179: 230 | BP179: 90.1 | BQ179: 13 | BW179: SA99 | BX179: 4295
A180: 020105 | D180: F | E180: 3 | F180: Turkey, meat and skin, roasted | H180: Meleagris gallopavo
C181: 03 Dairy products | E181: 03 DAIRY PRODUCTS
A182: 030001 | B182: a | D182: F | E182: 2 | F182: Cheese spread, full fat | G182: Cheddar full fat spread Ingredients: cheddar cheese, milk solids, cream or butter, emulsifiers, casein, thickener, salt, flavourant, colourant, preservative,K sorbate, nisin | I182: 1 | K182: 47.7 | L182: 2.57 | M182: 16.4 | P182: 0.055 | Q182: 21.2 | S182: 13.33 | T182: 6.22 | U182: 0.62 | V182: 1.74 | W182: 8.7 | Z182: 0 | AA182: 8.7 | AE182: 0 | AJ182: 6 | AK182: 562 | AL182: 0.3 | AM182: 29 | AN182: 712 | AO182: 242 | AP182: 1345 | AQ182: 2.59 | AR182: 0.03 | AS182: 11.3 | AT182: 20 | AV182: 189 | AW182: 177 | AX182: 68 | BE182: 0.19 | BH182: 0.71 | BJ182: 0.05 | BK182: 0.43 | BL182: 0.1 | BN182: 0.117 | BO182: 7 | BP182: 0.4 | BQ182: 0 | BW182: SA99 | BX182: 2730
A183: 030002 | B183: a | D183: F | E183: 2 | F183: Cheese, cheddar | I183: 1 | K183: 37.4 | L183: 3.87 | M183: 24.7 | P183: 0.115 | Q183: 32.3 | S183: 18.43 | T183: 8.11 | U183: 0.75 | W183: 1.8 | Z183: 0 | AA183: 1.8 | AE183: 0 | AJ183: 3.8 | AK183: 788 | AL183: 0.7 | AM183: 30 | AN183: 532 | AO183: 82 | AP183: 487 | AQ183: 3.93 | AR183: 0.07 | AS183: 13.9 | AT183: 70 | AV183: 390 | AW183: 344 | AX183: 277 | BE183: 0.25 | BH183: 1.15 | BJ183: 0.04 | BK183: 0.36 | BL183: 0.1 | BN183: 0.074 | BO183: 18 | BP183: 0.8 | BQ183: 0 | BW183: SA99 | BX183: 2722
A184: 030003 | B184: a | D184: F | E184: 2 | F184: Cheese, gouda | G184: Gouda edam, swiss | I184: 1 | K184: 40.6 | L184: 3.75 | M184: 23.9 | P184: 0.093 | Q184: 31.5 | S184: 18.79 | T184: 7.94 | U184: 0.75 | V184: 1.84 | W184: 0.3 | Z184: 0 | AA184: 0.3 | AE184: 0 | AJ184: 3.7 | AK184: 806 | AL184: 0.8 | AM184: 31 | AN184: 565 | AO184: 71 | AP184: 511 | AQ184: 3.74 | AR184: 0.06 | AS184: 14.5 | AT184: 80 | AV184: 423 | AW184: 367 | AX184: 338 | BE184: 0.24 | BH184: 1.23 | BJ184: 0.04 | BK184: 0.34 | BL184: 0.1 | BN184: 0.08 | BO184: 21 | BP184: 1.5 | BQ184: 0 | BW184: SA99 | BX184: 2723
A185: 030004 | B185: a | D185: F | E185: 2 | F185: Cheese, processed, full fat | G185: Processed, full fat Ingredients: cheese, butter, whey powder or skimmed milk, emulsifying salt, table salt,flavourants, colourant, preservatives | I185: 1 | K185: 45.7 | L185: 3.26 | M185: 20.8 | P185: 0.085 | Q185: 27 | S185: 17.02 | T185: 7.73 | U185: 0.86 | V185: 1.82 | W185: 0.9 | Z185: 0 | AA185: 0.9 | AE185: 0 | AJ185: 5.6 | AK185: 600 | AL185: 0.5 | AM185: 22 | AN185: 800 | AO185: 130 | AP185: 1320 | AQ185: 3.2 | AR185: 0.17 | AS185: 10 | AT185: tr | AV185: 286 | AW185: 270 | AX185: 95 | BE185: 0.21 | BH185: 0.55 | BJ185: 0.03 | BK185: 0.28 | BL185: 0.1 | BN185: 0.08 | BO185: 18 | BP185: 0.9 | BQ185: tr | BW185: SA99 | BX185: 2728
A186: 030005 | D186: F | E186: 3 | F186: Cheese, processed, reduced fat | G186: Processed, reduced fat Ingredients: cheese, butter, whey powder or skimmed milk,emulsifying salt, table salt,flavourants, colourant, preservatives
A187: 030006 | D187: F | E187: 3 | F187: Cheese, reduced fat, …%fat, gouda type
A188: 030008 | D188: F | E188: 3 | F188: Cream, for whipping, ….%fat
A189: 030009 | B189: a | D189: F | E189: 2 | F189: Creamer/non dairy powder, for coffee & tea | G189: Non dairy powder dry Ingredients: corn syrup, vegetable fat, sodium caseinate,dipotassium phosphate, emulsifier, stabiliser, anti-caking agent, colourants | I189: 1 | K189: 2.2 | L189: 0.75 | M189: 4.8 | P189: 0 | Q189: 35.5 | S189: 32.53 | T189: 0.97 | U189: 0.01 | V189: 0.33 | W189: 54.9 | Z189: tr | AA189: 9.8 | AE189: 0 | AJ189: 2.6 | AK189: 22 | AL189: 1.2 | AM189: 4 | AN189: 422 | AO189: 812 | AP189: 181 | AQ189: 0.51 | AR189: 0.12 | AS189: 0.6 | AT189: 220 | AV189: 20 | AW189: 0 | AX189: 120 | BE189: 0 | BH189: 0.27 | BJ189: 0 | BK189: 0.17 | BL189: 0 | BN189: 0 | BO189: 0 | BP189: 0 | BQ189: 0 | BW189: SA99 | BX189: 2751
A190: 030011 | B190: a | D190: F | E190: 1 | F190: Human milk, colostrum | G190: Human milk, colostrum | I190: 1 | K190: 88.2 | L190: 0.31 | M190: 2 | P190: 0.031 | Q190: 2.6 | S190: 1.1 | T190: 1.1 | U190: 0.5 | W190: 6.3 | Z190: 0 | AA190: 6.3 | AF190: 0 | AJ190: 0.9 | AK190: 28 | AL190: 0.1 | AM190: 3 | AN190: 14 | AO190: 70 | AP190: 47 | AQ190: 0.6 | AR190: 0.05 | AT190: Tr | AW190: 155 | AX190: 135 | BH190: 1.3 | BJ190: Tr | BK190: 0.03 | BL190: 0.1 | BN190: Tr | BO190: 2 | BP190: Tr | BQ190: 7 | BW190: SA99 | BX190: 4322
A191: 030012 | B191: a | D191: F | E191: 1 | F191: Human milk, mature | G191: Human milk, mature | I191: 1 | K191: 87.5 | L191: 0.16 | M191: 1 | P191: 0.014 | Q191: 4.4 | S191: 2 | T191: 1.66 | U191: 0.5 | W191: 6.9 | Z191: 0 | AA191: 6.9 | AE191: 0 | AJ191: 0.2 | AK191: 32 | AL191: Tr | AM191: 3 | AN191: 14 | AO191: 51 | AP191: 17 | AQ191: 0.17 | AR191: 0.05 | AS191: 1.8 | AT191: 26 | AW191: 60 | AX191: 25 | BE191: 0.04 | BH191: 0.9 | BJ191: 0.01 | BK191: 0.04 | BL191: 0.2 | BN191: 0.011 | BO191: 5 | BP191: Tr | BQ191: 5 | BW191: SA99 | BX191: 2741
A192: 030010 | B192: a | D192: F | E192: 2 | F192: Milk, goat, pasturized | G192: Goat milk, fresh | I192: 1 | K192: 87 | L192: 0.56 | M192: 3.6 | P192: 0.011 | Q192: 4.1 | S192: 2.67 | T192: 1.11 | U192: 0.15 | W192: 4.4 | Z192: 0 | AA192: 4.4 | AE192: 0 | AJ192: 0.8 | AK192: 134 | AL192: 0.1 | AM192: 14 | AN192: 111 | AO192: 204 | AP192: 50 | AQ192: 0.3 | AR192: 0.05 | AS192: 1.4 | AT192: 18 | AV192: 56 | AW192: 56 | AX192: tr | BE192: 0.13 | BH192: 0.09 | BJ192: 0.05 | BK192: 0.14 | BL192: 0.3 | BN192: 0.046 | BO192: 1 | BP192: 0.1 | BQ192: 1 | BW192: SA99 | BX192: 2738
A193: 030007 | B193: a | D193: F | E193: 1 | F193: Milk, cow, fresh, as from the cow (untreated) | I193: 1 | K193: 87.69 | M193: 3.28 | Q193: 3.66 | S193: 2.278 | T193: 1.057 | U193: 0.136 | X193: 4.65 | AE193: 0 | AJ193: 0.72 | AK193: 119 | AL193: 0.05 | AM193: 13 | AN193: 93 | AO193: 151 | AP193: 49 | AQ193: 0.38 | AR193: 0.01 | AS193: 2 | AT193: 0.004 | AU193: 33 | AW193: 31 | BJ193: 0.038 | BK193: 0.161 | BL193: 0.084 | BN193: 0.042 | BO193: 5 | BP193: 0.36 | BQ193: 1.5 | BW193: US18 | BX193: 01078
A194: 030015 | B194: a | D194: F | E194: 2 | F194: Milk powder, full fat | G194: Powder, full fat Ingredients: dehydrated full cream milk powder, Vitamin A, D and Fe sulphate, soya lecithin | I194: 1 | K194: 3 | L194: 4.03 | M194: 25.7 | P194: 0.097 | Q194: 28 | S194: 17.55 | T194: 8.31 | U194: 0.7 | V194: 1.44 | W194: 37.4 | Z194: 0 | AA194: 37.4 | AE194: 0 | AJ194: 5.7 | AK194: 930 | AL194: 6 | AM194: 85 | AN194: 750 | AO194: 1200 | AP194: 350 | AQ194: 3.34 | AR194: 0.08 | AS194: 16.3 | AT194: 40 | AV194: 450 | AW194: 410 | AX194: 241 | BE194: 10 | BH194: 1.08 | BJ194: 0.23 | BK194: 1.4 | BL194: 0.6 | BN194: 0.302 | BO194: 37 | BP194: 1.8 | BQ194: 9 | BW194: SA99 | BX194: 2721
A195: 030016 | B195: a | D195: F | E195: 2 | F195: Milk powder, full fat, reconstituted | G195: Powder, full fat reconstituted | I195: 1 | K195: 88 | L195: 0.5 | M195: 3.2 | P195: 0.012 | Q195: 3.5 | S195: 2.17 | T195: 1.03 | U195: 0.09 | V195: 0.24 | W195: 4.6 | Z195: 0 | AA195: 4.6 | AE195: 0 | AJ195: 0.7 | AK195: 115 | AL195: 0.7 | AM195: 11 | AN195: 93 | AO195: 148 | AP195: 43 | AQ195: 0.41 | AR195: 0.01 | AS195: 2 | AT195: 5 | AV195: 56 | AW195: 51 | AX195: 30 | BE195: 1.2 | BH195: 0.13 | BJ195: 0.03 | BK195: 0.17 | BL195: 0.1 | BN195: 0.037 | BO195: 5 | BP195: 0.2 | BQ195: 1 | BW195: SA99 | BX195: 2831
A196: 030017 | B196: a | D196: F | E196: 2 | F196: Milk powder, skimmed | I196: 1 | K196: 3 | L196: 5.7 | M196: 36.1 | P196: 0.012 | Q196: 0.6 | S196: 0.4 | T196: 0.2 | U196: tr | V196: tr | Y196: 52.9 | AB196: 0 | AC196: 52.9 | AG196: 0 | AK196: 1280 | AL196: 0.27 | AM196: 130 | AN196: 970 | AO196: 1590 | AP196: 550 | AQ196: 4 | AR196: tr | AS196: 11 | AT196: tr | AW196: 350 | AX196: 5 | BF196: 2.1 | BH196: 0.27 | BJ196: 0.38 | BK196: 1.63 | BL196: 1 | BN196: 0.6 | BO196: 51 | BP196: 2.6 | BQ196: 13 | BW196: GB6 | BX196: 229
A197: 030018 | B197: a | D197: F | E197: 2 | F197: Milk powder, skimmed, reconstituted | I197: 1 | K197: 90.8 | L197: 0.53 | M197: 3.4 | P197: 0.002 | Q197: 0.1 | S197: 0.06 | T197: 0.02 | U197: tr | V197: 125 | W197: 5 | Z197: 0 | AA197: 5 | AE197: 0 | AJ197: 3 | AK197: 125 | AL197: tr | AM197: 10 | AN197: 96 | AO197: 170 | AP197: 51 | AQ197: 0.39 | AR197: 2.6 | AS197: 2.6 | AT197: 2 | AV197: 58 | AW197: 54 | AX197: 20 | BE197: 0.72 | BH197: tr | BJ197: 0.03 | BK197: 0.17 | BL197: 0.1 | BN197: 0.024 | BO197: 5 | BP197: 0.3 | BQ197: 1 | BW197: SA99 | BX197: 2719
A198: 030019 | B198: a | D198: F | E198: 1 | F198: Milk, as from the cow, sterilized | I198: 1 | K198: 87.6 | L198: 0.55 | M198: 3.5 | Q198: 3.9 | Y198: 4.5 | AB198: 0 | AC198: 4.5 | AE198: 0 | AF198: 0 | AK198: 120 | AL198: 0.18 | AM198: 13 | AN198: 91 | AO198: 140 | AP198: 57 | AQ198: 0.3 | AR198: Tr | AS198: 1 | AT198: Tr | AW198: 61 | AX198: 21 | BF198: Tr | BH198: 0.12 | BJ198: 0.03 | BK198: 0.14 | BL198: 0.1 | BN198: 0.04 | BO198: Tr | BP198: 0.1 | BQ198: Tr | BW198: GB6 | BX198: 221
A199: 030020 | D199: F | E199: 3 | F199: Milk, condensed, full fat, sweetened | G199: Full fat, sweetened Ingredients: sugar sucrose, whole milk
A200: 030021 | D200: F | E200: 3 | F200: Milk, evaporated, unsweetened | G200: Full fat, unsweetened full cream cows’ milk, approximately50% water, removed by evaporation, stabilisers
... 292 more rows

Sheet reference DB
A1: code | B1: progress | C1: type | D1: priorityclass | E1: foodname | F1: LONG FOODNAME | G1: scientific name | H1: EDIBLE | I1: ENERC-kJ | J1: WATER-g | K1: NT-g | L1: PROTCNT-g | M1: PROPLA-g | N1: PROANI-g | O1: CHOL--g | P1: FAT-g | Q1: FATCE-g | R1: FASAT-g | S1: FAMS-g | T1: FAPU-g | U1: FATRN-g | V1: CHOAVLDF-g | W1: CHOCDF-g | X1: CHOAVLM-g | Y1: STARCH-g | Z1: SUGAR-g | AA1: STARCHM-g | AB1: SUGARM-g | AC1: ADSUGAR-g | AD1: FIBTG-g | AE1: FIBTS-g | AF1: PSACNS-g | AG1: FIBC-g | AH1: ALC-g | AI1: ASH-g | AJ1: CA-mg | AK1: FE-mg | AL1: MG-mg | AM1: P-mg | AN1: K-mg | AO1: NA-mg | AP1: ZN-mg | AQ1: CU-mg | AR1: SE-mcg | AS1: MN-mcg | AT1: VITA_12-mcg | AU1: VITA_6-mcg | AV1: RETOL-mcg | AW1: CARTBEQ-mcg | AX1: CAROTA-mcg | AY1: CAROTB-mcg | AZ1: CRYPX-mcg | BA1: CARTG-mcg | BB1: LYCPN-mcg | BC1: LUTNZEA-mcg | BD1: VITD-mcg | BE1: VITDbr-mcg | BF1: VITD--mcg | BG1: VITE-mg | BH1: TOCPHA-mg | BI1: THIA-mg | BJ1: RIBF-mg | BK1: NIA-mg | BL1: NIAEQ-mg | BM1: VITB6-mg | BN1: FOL-mcg | BO1: VITB12-mcg | BP1: VITC-mg | BQ1: ASCL-mg | BR1: DEN | BS1: XN | BT1: XFA | BU1: yield | BV1: FCT SOURCE | BW1: FDNUMBER SOURCE | BY1: comments | BZ1: SUM GB | CA1: sum of proximates | CB1: CHOAVLDF-g | CC1: STARCH-g | CD1: SUGAR-g | CE1: VITA_12-mcg | CF1: VITD-mcg | CG1: VITC-mg
D2: 01 CEREAL AND CEREAL PRODUCTS
D3: 011 GRAINS
A4: 011001 | B4: c | C4: R | D4: 1 | E4: Maize, sorghum and wheat grains, boiled (Likhobe) | H4: 1 | I4: =(L4*17)+(P4*37)+(CB4*17)+(AH4*29)+(AD4*8) -> 434.7547529 | J4: 73.24809886 | K4: =L4/BS4 -> 0.4692015209 | L4: 2.932509506 | M4: 2.932509506 | N4: 0 | O4: 0 | P4: 1.821292776 | R4: 0.241539924 | S4: 0.4047528517 | T4: 0.9874524715 | U4: 0 | V4: 19.52186312 | W4: 21.1378327 | X4: 0 | Y4: 5.826045627 | Z4: 0.03897338403 | AA4: 0 | AB4: 0 | AC4: 0 | AD4: 2.794676806 | AI4: 1.841254753 | AJ4: 25.23764259 | AK4: 1.009980989 | AL4: 33.53612167 | AM4: 97.05798479 | AN4: 104.3203422 | AO4: 207.6045627 | AP4: 0.4691064639 | AQ4: 0.1287072243 | AR4: 0 | AS4: 66.95731939 | AT4: 0 | AU4: 0.02851711027 | AV4: 0 | AW4: 0 | AX4: 0 | AY4: 0 | AZ4: 0 | BA4: 0 | BB4: 0 | BC4: 0 | BD4: 0 | BE4: 0 | BF4: 0 | BG4: 0.5923954364 | BH4: 0 | BI4: 0.06450570342 | BJ4: 0.02326996198 | BK4: 0.5661787072 | BM4: 0.03262357414 | BN4: 3.517110266 | BO4: 0 | BP4: 0 | BS4: 6.25 | BV4: Recipe | CA4: 100 | CB4: 17.3621673
A6: 011002 | B6: c | C6: F | D6: 1 | E6: Maize meal, super, white, unfortified, raw | G6: Zea mays | H6: 1 | I6: 1471.4 | J6: 12 | K6: 1.23 | L6: 7.7 | M6: 7.7 | N6: 0 | P6: 1.4 | R6: 0.189 | S6: 0.28 | T6: 0.42 | V6: 74 | Y6: 67.2 | Z6: 6.8 | AD6: 4.9 | AI6: 0.5 | AJ6: 3 | AK6: 0.7 | AL6: 36 | AM6: 60 | AN6: 108 | AO6: 3 | AP6: 0.58 | AQ6: 0.1 | AS6: 170 | AU6: 10 | BD6: 0 | BG6: 0.34 | BI6: 0.13 | BJ6: 0.02 | BK6: 0.8 | BM6: 0.17 | BN6: 8 | BP6: 0.12 | BS6: 6.25 | BV6: MRC05 | BX6: 3397 | CA6: =CB6+J6+L6+P6+AD6+AI6 -> 100 | CB6: =100-(J6+L6+P6+AI6+AD6+AH6) -> 73.5
M7: E | N7: E | Z7: C
A8: 011042 | B8: c | C8: F | D8: 1 | E8: Maize meal, super, white, fortified, raw | H8: 1 | I8: 1482.9 | J8: 12.1 | K8: 1.22 | L8: 7.6 | M8: 7.6 | N8: 0 | O8: 0 | P8: 1.7 | R8: 0.195 | S8: 0.32 | T8: 0.491 | V8: 74 | Y8: 74.6 | Z8: 0 | AD8: 4.1 | AI8: 0.5 | AJ8: 5 | AK8: 2.6 | AL8: 38 | AM8: 60 | AN8: 98 | AO8: 3 | AP8: 2.07 | AQ8: 0.1 | AS8: 190 | AU8: 184 | BG8: 0.36 | BI8: 0.43 | BJ8: 0.19 | BK8: 3.5 | BM8: 0.63 | BN8: 210 | BP8: 0.12 | BS8: 6.25 | BV8: MRC05 | CA8: =CB8+J8+L8+P8+AD8+AI8 -> 100 | CB8: =100-(J8+L8+P8+AI8+AD8+AH8) -> 74
H9: E | M9: E | N9: E | O9: E | W9: C | Z9: E | AT9: E | AV9: E
A10: 011003 | B10: c | C10: F | D10: 1 | E10: Maize meal, white, sifted, unfortified, raw | G10: Zea mays | H10: 1 | I10: 1482.7 | J10: 11.9 | K10: 1.33 | L10: 8.3 | M10: 8.3 | N10: 0 | O10: 0 | P10: 3.3 | R10: 0.462 | S10: 0.897 | T10: 1.431 | V10: 68 | Y10: 68.4 | Z10: 9.9 | AD10: 7.3 | AI10: 0.9 | AJ10: 3 | AK10: 1.5 | AL10: 98 | AM10: 190 | AN10: 196 | AO10: 3 | AP10: 1.67 | AQ10: 0.16 | AS10: 360 | AU10: 12 | BG10: 0.56 | BI10: 0.38 | BJ10: 0.05 | BK10: 1.7 | BM10: 0.31 | BN10: 29 | BP10: 128 | BS10: 6.25 | BV10: MRC05 | CA10: =CB10+J10+L10+P10+AD10+AI10 -> 100 | CB10: =100-(J10+L10+P10+AI10+AD10+AH10) -> 68.3
M11: E | N11: E | O11: E | Z11: C
A12: 011043 | B12: c | C12: F | D12: 1 | E12: Maize meal, white, sifted, fortified, raw | H12: 1 | I12: 1487.8 | J12: 11.8 | K12: 1.35 | L12: 8.4 | M12: 8.4 | N12: 0 | O12: 0 | P12: 3.2 | R12: 0.421 | S12: 0.825 | T12: 1.376 | V12: 69 | Y12: 68.5 | Z12: 0.5 | AD12: 6.7 | AI12: 0.9 | AJ12: 12 | AK12: 3.2 | AL12: 98 | AM12: 90 | AN12: 197 | AO12: 4 | AP12: 2.98 | AQ12: 0.16 | AS12: 330 | AU12: 196 | BG12: 0.62 | BI12: 0.68 | BJ12: 0.23 | BK12: 4.6 | BM12: 0.75 | BN12: 225 | BP12: 125 | BS12: 6.25 | BV12: MRC05 | CA12: =CB12+J12+L12+P12+AD12+AI12 -> 100 | CB12: =100-(J12+L12+P12+AI12+AD12+AH12) -> 69
H13: E | M13: E | N13: E | O13: E | W13: C | Z13: C | AT13: E | AV13: E
A14: 011004 | B14: c | C14: F | D14: 1 | E14: Maize meal, yellow, refined, raw | G14: Zea mays | H14: 1 | I14: 1488.2 | J14: 13 | K14: =L14/BS14 -> 1.424 | L14: 8.9 | M14: 8.9 | N14: 0 | O14: 0 | P14: 2.5 | R14: 0.33 | S14: 0.78 | T14: 0.95 | U14: 0 | V14: 81.6 | W14: =100-J14-L14-P14 -> 75.6 | Z14: 0 | AC14: 0 | AD14: 3.4 | AI14: 0.6 | AJ14: 4 | AK14: 0.7 | AL14: 75 | AM14: 174 | AN14: 251 | AO14: 7 | AP14: 0.9 | AQ14: 0.09 | AR14: 0 | AS14: 300 | AT14: 24 | AU14: 49 | AV14: 0 | BD14: 0 | BG14: 0.64 | BI14: 0.32 | BJ14: 0.04 | BK14: 0.9 | BM14: 0.06 | BN14: 16 | BO14: 0 | BP14: 0 | BS14: 6.25 | BV14: SA91 | BW14: 4079 | BX14: 3275 | CA14: =CB14+J14+L14+P14+AD14+AI14 -> 100 | CB14: =100-(J14+L14+P14+AI14+AD14+AH14) -> 71.6
H15: E | O15: E | W15: C | AI15: US18-20022 | AT15: E | AV15: E
A16: 011005 | B16: c | C16: F | D16: 1 | E16: Maize meal, special, white, unfortified, raw | G16: Zea mays | H16: 1 | I16: 1493.6 | J16: 12 | K16: 1.24 | L16: 7.7 | M16: 7.7 | N16: 0 | O16: 0 | P16: 2.9 | R16: 0.392 | S16: 0.78 | T16: 1.255 | V16: 71.5 | Y16: 70.3 | Z16: 1.2 | AD16: 5.2 | AI16: 0.8 | AJ16: 9 | AK16: 2.9 | AL16: 88 | AM16: 175 | AN16: 186 | AO16: 4 | AP16: 2.91 | AQ16: 0.14 | AS16: 290 | AU16: 235 | BG16: 0.62 | BI16: 0.77 | BJ16: 0.21 | BK16: 4.6 | BM16: 0.72 | BN16: 265 | BO16: 0 | BP16: 131 | BS16: 6.25 | BV16: MRC05 | BX16: 3377 | CA16: =CB16+J16+L16+P16+AD16+AI16 -> 100 | CB16: =100-(J16+L16+P16+AI16+AD16+AH16) -> 71.4
H17: E | M17: E | N17: E | O17: E | W17: C | Z17: C
A18: 011006 | B18: c | C18: F | D18: 1 | E18: Maize meal, special, white, fortified, raw | G18: Zea mays | H18: 1 | I18: 1497.7 | J18: 11.6 | K18: 1.23 | L18: 7.6 | M18: 7.6 | N18: 0 | P18: 2.9 | R18: 0.392 | S18: 0.78 | T18: 1.255 | V18: 71.5 | Y18: 69.9 | Z18: 1.6 | AD18: 5.5 | AI18: 0.8 | AJ18: 6 | AK18: 1.2 | AL18: 83 | AM18: 105 | AN18: 180 | AO18: 7 | AP18: 1.53 | AQ18: 0.22 | AR18: 0 | AS18: 540 | AU18: 23 | BD18: 0 | BG18: 0.49 | BI18: 0.38 | BJ18: 0.05 | BK18: 1.6 | BM18: 0.37 | BN18: 42 | BO18: 0 | BP18: 126 | BS18: 6.25 | BV18: MRC05 | BX18: 3270 | CA18: =CB18+J18+L18+P18+AD18+AI18 -> 100 | CB18: =100-(J18+L18+P18+AI18+AD18+AH18) -> 71.6
H19: E | M19: E | N19: E | W19: C | Z19: C
A20: 011007 | B20: c | C20: F | D20: 1 | E20: Maize, whole grain, white, dried, raw | G20: Zea mays | H20: 1 | I20: 1450.39 | J20: 13 | K20: =L20/BS20 -> 1.472 | L20: 9.2 | M20: 9.2 | N20: 0 | O20: 0 | P20: 4.3 | R20: 0.53 | S20: 1.23 | T20: 1.94 | U20: 0 | V20: 75.3 | W20: =100-J20-L20-P20 -> 73.5 | Z20: 0 | AC20: 0 | AD20: 10.6 | AI20: 1.13 | AJ20: 10 | AK20: 3 | AL20: 123 | AM20: 241 | AN20: 346 | AO20: 11 | AP20: 2.3 | AQ20: 0.2 | AR20: 0 | AS20: 700 | AT20: 0 | AU20: 0 | AV20: 0 | BD20: 0 | BG20: 1.3 | BI20: 0.5 | BJ20: 0.12 | BK20: 2.2 | BM20: 0.3 | BN20: 33 | BO20: 0 | BP20: 0 | BS20: 6.25 | BV20: SA91 | BW20: 4073 | BX20: 3271 | CA20: =CB20+J20+L20+P20+AD20+AI20 -> 100 | CB20: =100-(J20+L20+P20+AI20+AD20+AH20) -> 61.77
H21: E | O21: E | W21: C | AI21: US18-20020 | AT21: E | AV21: E
A22: 011040 | B22: c | C22: R | D22: 1 | E22: Maize, whole, grain, white, dried, roasted (Machechisa) | H22: 1 | I22: 629.3632959 | J22: 67.41573034 | K22: =L22/BS22 -> 0.5513108614 | L22: 3.445692884 | M22: 3.445692884 | N22: 0 | O22: 0 | P22: 1.610486891 | Q22: 0 | R22: 0.1985018727 | S22: 0.4606741573 | T22: 0.7265917603 | U22: 0 | V22: 28.20224719 | W22: 27.52808989 | X22: 0 | Y22: 0 | Z22: 0 | AA22: 0 | AB22: 0 | AC22: 0 | AD22: 3.970037453 | AE22: 0 | AF22: 0 | AG22: 0 | AH22: 0 | AI22: 0.4232209738 | AJ22: 3.745318352 | AK22: 1.123595506 | AL22: 46.06741573 | AM22: 90.26217228 | AN22: 129.588015 | AO22: 4.119850187 | AP22: 0.861423221 | AQ22: 0.07490636704 | AR22: 0 | AS22: 262.1722846 | AT22: 0 | AU22: 0 | AV22: 0 | AW22: 0 | AX22: 0 | AY22: 0 | AZ22: 0 | BA22: 0 | BB22: 0 | BC22: 0 | BD22: 0 | BE22: 0 | BF22: 0 | BG22: 0.4868913858 | BH22: 0 | BI22: 0.15917603 | BJ22: 0.03820224719 | BK22: 0.7827715356 | BL22: 0 | BM22: 0.08426966292 | BN22: 6.179775281 | BO22: 0 | BP22: 0 | BQ22: 0 | BS22: 6.25 | BV22: Recipe | CA22: 100 | CB22: 61.77
A24: 011010 | B24: c | C24: F | D24: 1 | E24: Maize, whole grain, yellow, dried, raw | G24: Zea mays | H24: 1 | I24: =(L24*17)+(P24*37)+(CB24*17)+(AH24*29)+(AD24*8) -> 1450.39 | J24: 13 | K24: =L24/BS24 -> 1.472 | L24: 9.2 | M24: 9.2 | N24: 0 | O24: 0 | P24: 4.3 | R24: 0.53 | S24: 1.23 | T24: 1.94 | U24: 0 | V24: 75.3 | W24: =100-J24-L24-P24 -> 73.5 | Z24: 0 | AC24: 0 | AD24: 10.6 | AI24: 1.13 | AJ24: 10 | AK24: 3 | AL24: 123 | AM24: 241 | AN24: 346 | AO24: 11 | AP24: 2.3 | AQ24: 0.2 | AR24: 0 | AS24: 700 | AT24: 24 | AU24: 49 | AV24: 0 | BD24: 0 | BG24: 1.3 | BI24: 0.5 | BJ24: 0.12 | BK24: 2.2 | BM24: 0.3 | BN24: 33 | BO24: 0 | BP24: 0 | BS24: 6.25 | BV24: SA91 | BW24: 4080 | BX24: 3276 | CA24: =CB24+J24+L24+P24+AD24+AI24 -> 100 | CB24: =100-(J24+L24+P24+AI24+AD24+AH24) -> 61.77
H25: E | O25: E | W25: C | AI25: US18-20020 | AT25: E | AV25: E
A26: 011014 | B26: c | C26: F | D26: 1 | E26: Maize samp/rice , white, raw | G26: Zea mays | H26: 1 | I26: =(L26*17)+(P26*37)+(CB26*17)+(AH26*29)+(AD26*8) -> 1454 | J26: 13 | K26: =L26/BS26 -> 1.408 | L26: 8.8 | M26: 8.8 | N26: 0 | O26: 0 | P26: 0.7 | R26: 0.09 | S26: 0.21 | T26: 0.28 | U26: 0 | V26: 85.9 | W26: =100-J26-L26-P26 -> 77.5 | Z26: 0 | AC26: 0 | AD26: 3.2 | AI26: 0.6 | AJ26: 3 | AK26: 0.6 | AL26: 28 | AM26: 60 | AN26: 110 | AO26: 3 | AP26: 0.5 | AQ26: 0.07 | AR26: 0 | AS26: 100 | AT26: 0 | AU26: 0 | AV26: 0 | BD26: 0 | BG26: 0.18 | BI26: 0.13 | BJ26: 0.01 | BK26: 0.5 | BM26: 0.025 | BN26: 10 | BO26: 0 | BP26: 0 | BS26: 6.25 | BV26: SA91 | BW26: 4077 | BX26: 3274 | CA26: =CB26+J26+L26+P26+AD26+AI26 -> 100 | CB26: =100-(J26+L26+P26+AI26+AD26+AH26) -> 73.7
H27: E | O27: E | W27: C | AI27: US18-20022 | AT27: E | AV27: E
A28: 011015 | B28: c | C28: F | D28: 1 | E28: Maize samp/rice, white, boiled | G28: Zea mays | H28: 1 | I28: =(L28*17)+(P28*37)+(CB28*17)+(AH28*29)+(AD28*8) -> 364 | J28: 78.2 | K28: =L28/BS28 -> 0.352 | L28: 2.2 | M28: 2.2 | N28: 0 | O28: 0 | P28: 0.2 | R28: 0.03 | S28: 0.05 | T28: 0.07 | U28: 0 | V28: 21.5 | W28: =100-J28-L28-P28 -> 19.4 | Z28: 0 | AC28: 0 | AD28: 0.8 | AI28: 0.2 | AJ28: 1 | AK28: 0.2 | AL28: 7 | AM28: 15 | AN28: 28 | AO28: 1 | AP28: 0.13 | AQ28: 0.02 | AR28: 0 | AS28: 30 | AT28: 0 | AU28: 0 | AV28: 0 | BD28: 0 | BG28: 0.05 | BI28: 0.03 | BJ28: 0 | BK28: 0.1 | BM28: 0.006 | BN28: 3 | BO28: 0 | BP28: 0 | BS28: 6.25 | BV28: SA91 | BW28: 4073 | BX28: 3250 | CA28: =CB28+J28+L28+P28+AD28+AI28 -> 100 | CB28: =100-(J28+L28+P28+AI28+AD28+AH28) -> 18.4
H29: E | O29: E | AI29: E-011015 | AT29: E | AV29: E
A30: 011038 | B30: c | C30: R | D30: 1 | E30: Maize samp with dried beans (Umngdusho) | H30: 1 | I30: 649.5476974 | J30: 62.37746711 | K30: =L30/BS30 -> 0.8453947368 | L30: 5.283717105 | M30: 5.283717105 | N30: 0 | O30: 0 | P30: 1.644736842 | R30: 0.2136101974 | S30: 0.3010279605 | T30: 1.051233553 | U30: 0 | V30: 27.15871711 | W30: 15.93338816 | Y30: 0 | Z30: 0 | AD30: 4.646381579 | AI30: 1.004523026 | AJ30: 19.77796053 | AK30: 1.337582237 | AL30: 10.36595395 | AM30: 46.05674342 | AN30: 257.3560855 | AO30: 171.0526316 | AP30: 0.6254111842 | AQ30: 0.2013980263 | AR30: 0 | AS30: 289.8848684 | AT30: 0 | AU30: 0.03700657895 | AV30: 0 | AW30: 0 | BD30: 0 | BF30: 0 | BG30: 0.5907072368 | BI30: 0.07154605263 | BJ30: 0.01973684211 | BK30: 0.3700657895 | BL30: 0 | BM30: 0.05699013158 | BN30: 39.0625 | BO30: 0 | BP30: 0.01 | BS30: 6.25 | BV30: Recipe | CA30: =CB30+J30+L30+P30+AD30+AI30 -> 100 | CB30: =100-(J30+L30+P30+AI30+AD30+AH30) -> 25.04317434
A32: 011016 | C32: F | D32: 3 | E32: Oat bran, raw | H32: 1 | BS32: 5.83 | BV32: SA91 | BW32: 4258
H33: E
A34: 011039 | C34: F | D34: 3 | E34: Oatmeal, raw | BS34: 5.83
A36: 011017 | C36: R | D36: 3 | E36: Oatmeal porridge, boiled with sugar, fresh milk | H36: 1 | BS36: 5.83 | BV36: Recipe
A38: 011018 | B38: c | C38: R | D38: 1 | E38: Hard porridge from white maize meal, boiled (Papa ) | I38: =(L38*17)+(P38*37)+(CB38*17)+(AH38*29)+(AD38*8) -> 568.883792 | J38: 66.63287462 | K38: =L38/6.25 -> 0.5443425076 | L38: 3.402140673 | M38: 3.402140673 | N38: 0 | O38: 0 | P38: 0.9556574924 | Q38: 0 | R38: 0.126146789 | S38: 0.2981651376 | T38: 0.3631498471 | U38: 0 | V38: 31.19266055 | W38: 28.89908257 | X38: 0 | Y38: 0 | Z38: 0 | AA38: 0 | AB38: 0 | AC38: 0 | AD38: 1.29969419 | AE38: 0 | AF38: 0 | AG38: 0 | AH38: 0 | AI38: 0.3396024465 | AJ38: 3.733944954 | AK38: 0.2675840979 | AL38: 29.77217125 | AM38: 66.51376147 | AN38: 95.94801223 | AO38: 4.880733945 | AP38: 0.3440366972 | AQ38: 0.04212079511 | AR38: 0 | AS38: 114.6788991 | AT38: 0 | AU38: 0 | AV38: 0 | AW38: 0 | BD38: 0 | BE38: 0 | BF38: 0 | BG38: 0.244648318 | BH38: 0 | BI38: 0.07339449541 | BJ38: 0.009174311927 | BK38: 0.2064220183 | BM38: 0.01376146789 | BN38: 3.058103976 | BO38: 0 | BP38: 0 | BS38: 6.25 | BV38: Recipe | CA38: =CB38+J38+L38+P38+AD38+AI38 -> 100 | CB38: =100-(J38+L38+P38+AI38+AD38+AH38) -> 27.37003058
A40: 011019 | B40: c | C40: R | D40: 1 | E40: Soft porridge from white maize meal, boiled (Lesheleshele) | H40: 1 | I40: =(L40*17)+(P40*37)+(CB40*17)+(AH40*29)+(AD40*8) -> 291.567474 | J40: 82.74705882 | K40: =L40/6.25 -> 0.1970934256 | L40: 1.23183391 | M40: 1.23183391 | N40: 0 | O40: 0 | P40: 0.3460207612 | Q40: 0 | R40: 0.04567474048 | S40: 0.1079584775 | T40: 0.1314878893 | U40: 0 | V40: 16.29757785 | W40: 10.46366782 | X40: 0 | Y40: 0 | Z40: 5.003460208 | AA40: 0 | AB40: 0 | AC40: 0 | AD40: 0.4705882353 | AE40: 0 | AF40: 0 | AG40: 0 | AH40: 0 | AI40: 0.2598615917 | AJ40: 7.567474048 | AK40: 0.2733564014 | AL40: 12.46020761 | AM40: 25.06920415 | AN40: 52.59515571 | AO40: 5.128027682 | AP40: 0.124567474 | AQ40: 0.02467820069 | AR40: 0 | AS40: 41.52249135 | AT40: 0 | AU40: 0 | AV40: 0 | AW40: 0 | BD40: 0 | BE40: 0 | BF40: 0 | BG40: 0.08858131488 | BH40: 0 | BI40: 0.02688581315 | BJ40: 0.004256055363 | BK40: 0.08096885813 | BM40: 0.004982698962 | BN40: 1.107266436 | BO40: 0 | BP40: 0 | BS40: 6.25 | BV40: Recipe | CA40: =CB40+J40+L40+P40+AD40+AI40 -> 100 | CB40: =100-(J40+L40+P40+AI40+AD40+AH40) -> 14.94463668
A42: 011020 | B42: c | C42: R | D42: 1 | E42: Hard porridge from yellow maize meal, boiled (Papa) | H42: 1 | I42: =(L42*17)+(P42*37)+(CB42*17)+(AH42*29)+(AD42*8) -> 568.883792 | J42: 66.63287462 | K42: =L42/6.25 -> 0.5443425076 | L42: 3.402140673 | M42: 3.402140673 | N42: 0 | O42: 0 | P42: 0.9556574924 | Q42: 0 | R42: 0.126146789 | S42: 0.2981651376 | T42: 0.3631498471 | U42: 0 | V42: 31.19266055 | W42: 28.89908257 | X42: 0 | Y42: 0 | Z42: 0 | AA42: 0 | AB42: 0 | AC42: 0 | AD42: 1.29969419 | AE42: 0 | AF42: 0 | AG42: 0 | AH42: 0 | AI42: 0.3396024465 | AJ42: 3.733944954 | AK42: 0.2675840979 | AL42: 29.77217125 | AM42: 66.51376147 | AN42: 95.94801223 | AO42: 4.880733945 | AP42: 0.3440366972 | AQ42: 0.04212079511 | AR42: 0 | AS42: 114.6788991 | AT42: 9.174311927 | AU42: 18.73088685 | AV42: 0 | AW42: 0 | BD42: 0 | BE42: 0 | BF42: 0 | BG42: 0.244648318 | BH42: 0 | BI42: 0.07339449541 | BJ42: 0.009174311927 | BK42: 0.2064220183 | BM42: 0.01376146789 | BN42: 3.058103976 | BO42: 0 | BP42: 0 | BS42: 6.25 | BV42: Recipe | CA42: =CB42+J42+L42+P42+AD42+AI42 -> 100 | CB42: =100-(J42+L42+P42+AI42+AD42+AH42) -> 27.37003058
A44: 011021 | B44: c | C44: F | D44: 2 | E44: Popped corn, plain, salted | G44: Zea mays | H44: 1 | I44: =(L44*17)+(P44*37)+(CB44*17)+(AH44*29)+(AD44*8) -> 2506.7 | J44: 0.9 | K44: 0.99 | L44: 6.2 | M44: 6.2 | N44: 0 | O44: 0 | P44: 42.8 | R44: 4.3 | S44: 14.5 | T44: 19.7 | V44: =X44/1.1 -> 44.27272727 | X44: 48.7 | Y44: =AA44/1.1 -> 43.27272727 | Z44: =AB44/1.05 -> 1.047619048 | AA44: 47.6 | AB44: 1.1 | AI44: 2 | AJ44: 10 | AK44: 1.1 | AL44: 81 | AM44: 170 | AN44: 220 | AO44: 4 | AP44: 1.7 | AS44: 0.01 | AV44: 0 | AW44: 230 | BE44: 0 | BG44: 11.03 | BI44: 0.18 | BJ44: 0.11 | BK44: 1 | BM44: 0.2 | BN44: 9 | BO44: 0 | BP44: 0 | BS44: 6.25 | BV44: GB6 | BW44: 1077 | CA44: =CB44+J44+L44+P44+AD44+AI44 -> 100 | CB44: =100-(J44+L44+P44+AI44+AD44+AH44) -> 48.1
H45: E | M45: E | N45: E | Y45: C | Z45: C | AI45: US18-42259
A46: 011022 | B46: c | C46: F | D46: 1 | E46: Rice, white, raw | G46: Oryza sativa | H46: 1 | I46: =(L46*17)+(P46*37)+(CB46*17)+(AH46*29)+(AD46*8) -> 1450.09 | J46: 13.29 | K46: =L46/BS46 -> 1.09243701 | L46: 6.5 | M46: 6.5 | N46: 0 | O46: 0 | P46: 0.52 | R46: 0.14 | S46: 0.161 | T46: 0.138 | V46: =W46-AD46 -> 76.35 | W46: 79.15 | AD46: 2.8 | AI46: 0.54 | AJ46: 3 | AK46: 4.23 | AL46: 23 | AM46: 95 | AN46: 76 | AO46: 1 | AP46: 1.1 | AQ46: 0.21 | AR46: 15.1 | AS46: 1.037 | AT46: 0 | AV46: 0 | BD46: 0 | BG46: 0.1 | BI46: 0.565 | BJ46: 0.048 | BK46: 4.113 | BM46: 0.171 | BN46: 6 | BO46: 0 | BP46: 0 | BS46: 5.949999809 | BV46: US18 | BW46: 20052 | CA46: =CB46+J46+L46+P46+AD46+AI46 -> 100 | CB46: =100-(J46+L46+P46+AI46+AD46+AH46) -> 76.35
M47: E | N47: E | V47: E | BD47: GB | BG47: GB11042
A48: 011023 | B48: c | C48: F | D48: 1 | E48: Rice, white, boiled | G48: Oryza sativa | H48: 1 | I48: =(L48*17)+(P48*37)+(CB48*17)+(AH48*29)+(AD48*8) -> 526.39 | J48: 68.53 | K48: =L48/BS48 -> 0.3966386682 | L48: 2.36 | M48: 2.36 | N48: 0 | O48: 0 | P48: 0.19 | R48: 0.051 | S48: 0.058 | T48: 0.05 | V48: =W48-AD48 -> 27.73 | W48: 28.73 | AD48: 1 | AI48: 0.2 | AJ48: 1 | AK48: 1.46 | AL48: 8 | AM48: 33 | AN48: 26 | AO48: 0 | AP48: 0.4 | AQ48: 0.072 | AR48: 7.5 | AS48: 0.357 | AT48: 0 | AV48: 0 | BD48: 0 | BG48: tr | BI48: 0.164 | BJ48: 0.016 | BK48: 1.493 | BM48: 0.059 | BN48: 2 | BO48: 0 | BP48: 0 | BS48: 5.949999809 | BV48: US18 | BW48: 20053 | CA48: =CB48+J48+L48+P48+AD48+AI48 -> 100 | CB48: =100-(J48+L48+P48+AI48+AD48+AH48) -> 27.72
M49: E | N49: E | V49: E | AD49: E | BD49: GB | BG49: GB11043
A50: 011024 | B50: c | C50: R | D50: 1 | E50: Mealie meal and wheat bread (Mochahlama) | I50: =(L50*17)+(P50*37)+(CB50*17)+(AH50*29)+(AD50*8) -> 440.5449089 | J50: 73.57260871 | K50: 0.4815214689 | L50: 2.89535619 | M50: 2.716295732 | N50: 0 | O50: 0 | P50: 0.4859099307 | Q50: 0 | R50: 0.06851517031 | S50: 0.08459944354 | T50: 0.1697567952 | U50: 0 | V50: 20.67817492 | W50: 0.1790604587 | X50: 6.938787576 | Y50: 18.71839865 | Z50: 1.886349875 | AA50: 6.766584089 | AB50: 0.1722034873 | AC50: 0 | AD50: 1.014520093 | AE50: 0 | AF50: 0.6482954816 | AG50: 0 | AH50: 0 | AI50: 0.5475447535 | AJ50: 15.62610287 | AK50: 0.5494927567 | AL50: 16.1855694 | AM50: 40.6415814 | AN50: 56.75702269 | AO50: 124.9994725 | AP50: 0.3311605525 | AQ50: 0.05807387289 | AR50: 0.517857184 | AS50: =+AS63 -> 0 | AT50: 0 | AU50: 1.87008312 | AV50: 0 | AW50: 0 | BD50: 0 | BE50: 0 | BF50: 0 | BG50: 0.1243605275 | BH50: 0 | BI50: 0.04493809737 | BJ50: 0.0237968077 | BK50: 0.4449395263 | BM50: 0.0416561015 | BN50: 8.801078683 | BO50: 9.3504156e-05 | BP50: 0.02384355978 | BV50: Recipe | CA50: =CB50+J50+L50+P50+AD50+AI50 -> 100 | CB50: =100-(J50+L50+P50+AI50+AD50+AH50) -> 21.48406032
A52: 011030 | B52: c | C52: F | D52: 1 | E52: Sorghum, whole grain, raw | G52: Sorghum bicolor | H52: 1 | I52: =(L52*17)+(P52*37)+(CB52*17)+(AH52*29)+(AD52*8) -> 1526.21 | J52: 9.2 | K52: =L52/BS52 -> 1.808 | L52: 11.3 | M52: 11.3 | N52: 0 | O52: 0 | P52: 3.3 | R52: 0.457 | S52: 0.993 | T52: 1.37 | V52: =W52-AD52 -> 68.33 | W52: 74.63 | AD52: 6.3 | AI52: 1.57 | AJ52: 28 | AK52: 4.4 | AM52: 287 | AN52: 350 | AO52: 6 | AT52: 0 | AV52: 0 | BD52: 0 | BG52: tr | BI52: 0.237 | BJ52: 0.142 | BK52: 2.927 | BM52: ? | BN52: ? | BO52: 0 | BP52: 0 | BS52: 6.25 | BV52: US18 | BW52: 20067 | CA52: =CB52+J52+L52+P52+AD52+AI52 -> 100 | CB52: =100-(J52+L52+P52+AI52+AD52+AH52) -> 68.33
M53: E | N53: E | BD53: GB11016 | BG53: GB11016
A54: 011025 | B54: c | C54: F | D54: 1 | E54: Sorghum flour | G54: Sorghum bicolor | H54: 1 | I54: =(L54*17)+(P54*37)+(CB54*17)+(AH54*29)+(AD54*8) -> 1478.37 | J54: 11 | K54: =L54/BS54 -> 1.6592 | L54: 10.37 | M54: 10.37 | N54: 0 | O54: 0 | P54: 1.7 | V54: 72.2 | Y54: 71.4 | Z54: 0.3700000048 | AD54: 4.66 | AI54: 1.57 | AJ54: 12 | AK54: 5.8 | AO54: 44 | AP54: 2.14 | AT54: 0 | AV54: 0 | AW54: 1 | AY54: 1 | BD54: 0 | BG54: tr | BI54: 0.18 | BJ54: 0.12 | BK54: 0.91 | BM54: ? | BO54: 0 | BP54: 0 | BS54: 6.25 | BV54: MALI | BW54: 374 | BX54: Analysed | BY54: checked other tables that data is similar and not more | CA54: =CB54+J54+L54+P54+AD54+AI54 -> 100 | CB54: =100-(J54+L54+P54+AI54+AD54+AH54) -> 70.7
M55: E | N55: E | O55: E | AI55: US18-20067 | BD55: GB11016 | BG55: GB11016
A56: 011026 | B56: c | C56: R | D56: 1 | E56: Sorghum porridge, hard (Papa) | G56: Sorghum bicolor | H56: 1 | I56: =(L56*17)+(P56*37)+(CB56*17)+(AH56*29)+(AD56*8) -> 567.6535356 | J56: 65.71570314 | K56: =L56/BS56 -> 0.6370872963 | L56: 3.981795602 | M56: 3.981795602 | N56: 0 | O56: 0 | P56: 0.6527533774 | Q56: 0 | R56: 0 | S56: 0 | T56: 0 | U56: 0 | V56: 27.72281991 | W56: 0 | X56: 0 | Y56: 27.41564185 | Z56: 0.1420698545 | AA56: 0 | AB56: 0 | AC56: 0 | AD56: 1.789312199 | AE56: 0 | AF56: 0 | AG56: 0 | AH56: 0 | AI56: 0.7135746332 | AJ56: 6.822424711 | AK56: 2.227040935 | AL56: 1.107376906 | AM56: 0 | AN56: 0 | AO56: 19.10954711 | AP56: 0.8217013103 | AQ56: 0.007751638342 | AR56: 0 | AS56: 0 | AT56: 0 | AU56: 0 | AV56: 0 | AW56: tr | AX56: 0 | AY56: 0.3839725749 | AZ56: 0 | BA56: 0 | BB56: 0 | BC56: 0 | BD56: 0 | BE56: 0 | BF56: 0 | BG56: 0 | BH56: 0 | BI56: 0.04146903809 | BJ56: 0.02764602539 | BK56: 0.2096490259 | BM56: 0 | BN56: 0 | BO56: 0 | BP56: 0 | BS56: 6.25 | BV56: Recipe | CA56: =CB56+J56+L56+P56+AD56+AI56 -> 100 | CB56: =100-(J56+L56+P56+AI56+AD56+AH56) -> 27.14686105
A58: 011027 | B58: c | C58: R | D58: 1 | E58: Sorghum porridge, soft (Lesheleshele) | G58: Sorghum bicolor | H58: 1 | I58: 410.4063023 | J58: 76.41011992 | K58: =L58/BS58 -> 0.3966907902 | L58: 2.479317438 | M58: 1.694826753 | N58: 0.7844906859 | O58: 0.002451533393 | P58: 1.111361805 | Q58: 0 | R58: 0.4755974783 | S58: 0.2206380054 | T58: 0.02696686733 | U58: 0 | V58: 18.88497891 | W58: 0 | X58: 0 | Y58: 11.66929895 | Z58: 7.145402665 | AA58: 0 | AB58: 0 | AC58: 0 | AD58: 0.7616097075 | AE58: 0 | AF58: 0 | AG58: 0 | AH58: 0 | AI58: 0.5855078921 | AJ58: 37.89662037 | AK58: 1.180821918 | AL58: 4.882637342 | AM58: 22.49281888 | AN58: 57.12072807 | AO58: 23.08527279 | AP58: 0.4429103664 | AQ58: 0.01327913921 | AR58: 0.4903066787 | AS58: 0.9806133573 | AT58: 0 | AU58: 9.806133573 | AV58: 9.070673555 | AW58: 4.821349007 | AX58: 0 | AY58: 0.1634355596 | AZ58: 0 | BA58: 0 | BB58: 0 | BC58: 0 | BD58: 0.00735460018 | BE58: 0 | BF58: 0 | BG58: 0.03432146751 | BH58: 0 | BI58: 0.02096061051 | BJ58: 0.03346343082 | BK58: 0.1112996161 | BL58: 0 | BM58: 0.003971484097 | BN58: 0.6128833483 | BO58: 0.09806133573 | BP58: 0.2451533393 | BS58: 6.25 | BV58: Recipe | CA58: =CB58+J58+L58+P58+AD58+AI58 -> 100 | CB58: =100-(J58+L58+P58+AI58+AD58+AH58) -> 18.65208323
A60: 011029 | C60: F | D60: 1 | E60: Sorghum, whole grain, half mature, raw | G60: Sorghum bicolor | H60: 1 | BS60: 6.25
A62: 011028 | C62: F | D62: 1 | E62: Sorghum, whole grain, half mature, boiled | G62: Sorghum bicolor | H62: 1 | BS62: 6.25
A64: 011037 | B64: c | C64: F | D64: 1 | E64: Wheat, whole grain, raw | G64: Triticum aestivum | H64: 1 | I64: =(L64*17)+(P64*37)+(CB64*17)+(AH64*29)+(AD64*8) -> 1383.25 | J64: 12.17 | K64: =L64/BS64 -> 1.775300195 | L64: 10.35 | M64: 10.35 | N64: 0 | O64: 0 | P64: 1.56 | R64: 0.289 | S64: 0.178 | T64: 0.656 | V64: =W64-AD64 -> 61.74 | W64: 74.24 | Y64: 61.29 | Z64: 0.41 | AD64: 12.5 | AI64: 1.68 | AJ64: 27 | AK64: 3.21 | AL64: 126 | AM64: 493 | AN64: 397 | AO64: 2 | AP64: 2.63 | AQ64: 0.45 | AS64: 4.391 | AT64: 0 | AV64: 0 | BD64: 0 | BG64: 1.00999999 | BI64: 0.394 | BJ64: 0.096 | BK64: 4.8 | BM64: 0.272 | BN64: 41 | BO64: 0 | BP64: 0 | BS64: 5.829999924 | BV64: US18 | BW64: 20073 | CA64: =CB64+J64+L64+P64+AD64+AI64 -> 100 | CB64: =100-(J64+L64+P64+AI64+AD64+AH64) -> 61.74
M65: E | N65: E | Y65: C | BD65: GB
A66: 011031 | B66: c | C66: F | D66: 2 | E66: Wheat flour, for brown bread | G66: Triticum aestivum | H66: 1 | I66: =(L66*17)+(P66*37)+(CB66*17)+(AH66*29)+(AD66*8) -> 1494.01 | J66: 14 | K66: 2.2 | L66: 12.6 | M66: 12.6 | N66: 0 | O66: 0 | P66: 2 | R66: 0.3 | S66: 0.2 | T66: 0.9 | U66: 0 | V66: =X66/1.1 -> 62.27272727 | X66: 68.5 | Y66: =AA66/1.1 -> 60.72727273 | Z66: =AB66/1.05 -> 1.619047619 | AA66: 66.8 | AB66: 1.7 | AF66: 6.4 | AI66: 0.47 | AJ66: 130 | AK66: 3.2 | AL66: 80 | AM66: 230 | AN66: 250 | AO66: 4 | AP66: 1.9 | AQ66: 0.32 | AR66: 4 | AS66: 1900 | AV66: 0 | AW66: 0 | BE66: 0 | BG66: 0.6 | BI66: 0.39 | BJ66: 0.07 | BK66: 4 | BM66: 0.3 | BN66: 51 | BO66: 0 | BP66: 0 | BS66: 6.25 | BV66: GB6 | BW66: 10 | CA66: =CB66+J66+L66+P66+AD66+AI66 -> 100 | CB66: =100-(J66+L66+P66+AI66+AD66+AH66) -> 70.93
M67: E | N67: E | Y67: C | Z67: C | AI67: US18-20129 | AV67: E
A68: 011032 | B68: c | C68: F | D68: 2 | E68: Wheat flour, for white bread | G68: Triticum aestivum | H68: 1 | I68: =(L68*17)+(P68*37)+(CB68*17)+(AH68*29)+(AD68*8) -> 1482.01 | J68: 14 | K68: 2.02 | L68: 11.5 | M68: 11.5 | N68: 0 | O68: 0 | P68: 1.4 | R68: 0.2 | S68: 0.1 | T68: 0.6 | V68: =X68/1.1 -> 68.45454545 | X68: 75.3 | Y68: =AA68/1.1 -> 67.18181818 | Z68: =AB68/1.05 -> 1.333333333 | AA68: 73.9 | AB68: 1.4 | AF68: 3.1 | AI68: 0.47 | AJ68: 140 | AK68: 2.1 | AL68: 31 | AM68: 120 | AN68: 130 | AO68: 3 | AP68: 0.9 | AQ68: 0.18 | AR68: 3 | AS68: 700 | AV68: 0 | AW68: 0 | BE68: 0 | BG68: 0.3 | BI68: 0.32 | BJ68: 0.03 | BK68: 2 | BM68: 0.15 | BN68: 31 | BO68: 0 | BP68: 0 | BS68: 6.25 | BV68: GB6 | BW68: 11 | CA68: =CB68+J68+L68+P68+AD68+AI68 -> 100 | CB68: =100-(J68+L68+P68+AI68+AD68+AH68) -> 72.63
M69: E | N69: E | Y69: C | Z69: C | AI69: US18-20129
A70: 011033 | B70: c | C70: F | D70: 1 | E70: Wheat flour, white, self raising flour | G70: Triticum aestivum | H70: 1 | I70: =(L70*17)+(P70*37)+(CB70*17)+(AH70*29)+(AD70*8) -> 1441.89 | J70: 10.6 | K70: =L70/BS70 -> 1.584 | L70: 9.9 | M70: 9.9 | N70: 0 | O70: 0 | P70: 1 | R70: 0.15 | S70: 0.09 | T70: 0.41 | V70: 71.5 | AC70: 0 | AD70: 2.7 | AI70: 4.33 | AJ70: 338 | AK70: 1.6 | AL70: 19 | AM70: 595 | AN70: 124 | AO70: 1270 | AP70: 0.62 | AQ70: 0.11 | AS70: 1000 | AT70: 0 | AU70: 0 | AV70: 0 | BD70: 0 | BG70: 0.004 | BI70: 0.1 | BJ70: 0.03 | BK70: 0.7 | BM70: 0.05 | BN70: 42 | BO70: 0 | BP70: 0 | BS70: 6.25 | BV70: SA91 | BW70: 4273 | BX70: 3415 | CA70: =CB70+J70+L70+P70+AD70+AI70 -> 100 | CB70: =100-(J70+L70+P70+AI70+AD70+AH70) -> 71.47
H71: E | O71: E | AI71: US18-20082 | AT71: GB | AV71: E
A72: 011034 | B72: c | C72: F | D72: 2 | E72: Wheat flour, white, for cake, sifted | G72: Triticum aestivum | H72: 1 | I72: =(L72*17)+(P72*37)+(CB72*17)+(AH72*29)+(AD72*8) -> 1479.37 | J72: 14 | K72: 1.56 | L72: 8.9 | M72: 8.9 | N72: 0 | O72: 0 | P72: 1.2 | R72: 0.2 | S72: 0.1 | T72: 0.5 | U72: 0 | V72: =X72/1.1 -> 68.72727273 | X72: 75.6 | Y72: =AA72/1.1 -> 67.54545455 | Z72: =AB72/1.05 -> 1.238095238 | AA72: 74.3 | AB72: 1.3 | AF72: 3.1 | AI72: 0.39 | AJ72: 350 | AK72: 2 | AL72: 20 | AM72: 450 | AN72: 150 | AO72: 360 | AP72: 0.6 | AQ72: 0.17 | AR72: 2 | AS72: 600 | AV72: 0 | AW72: 0 | BE72: 0 | BG72: 0.3 | BI72: 0.3 | BJ72: 0.3 | BK72: 1.5 | BM72: 0.15 | BN72: 19 | BO72: 0 | BP72: 0 | BS72: 6.25 | BV72: BG6 | BW72: 13 | CA72: =CB72+J72+L72+P72+AD72+AI72 -> 100 | CB72: =100-(J72+L72+P72+AI72+AD72+AH72) -> 75.51
M73: E | N73: E | Y73: C | Z73: C | AI73: US18-20084
A74: 011035 | B74: c | C74: F | D74: 2 | E74: Wheat flour, whole-wheat meal | G74: Triticum aestivum | H74: 1 | I74: =(L74*17)+(P74*37)+(CB74*17)+(AH74*29)+(AD74*8) -> 1478.8 | J74: 14 | K74: 2.18 | L74: 12.7 | M74: 12.7 | N74: 0 | O74: 0 | P74: 2.2 | R74: 0.3 | S74: 0.3 | T74: 1 | U74: 0 | V74: =X74/1.1 -> 58.09090909 | X74: 63.9 | AA74: 61.8 | AB74: 2.1 | AF74: 9 | AI74: 1.6 | AJ74: 38 | AK74: 3.9 | AL74: 120 | AM74: 320 | AN74: 340 | AO74: 3 | AP74: 2.9 | AQ74: 0.45 | AR74: 6 | AS74: 3100 | AV74: 0 | AW74: 0 | BE74: 0 | BG74: 1.4 | BI74: 0.47 | BJ74: 0.09 | BK74: 5.7 | BM74: 0.5 | BN74: 57 | BO74: 0 | BP74: 0 | BS74: 5.829999924 | BV74: GB6 | BW74: 14 | CA74: =CB74+J74+L74+P74+AD74+AI74 -> 100 | CB74: =100-(J74+L74+P74+AI74+AD74+AH74) -> 69.5
M75: E | N75: E | AI75: US18-20080
A76: 011036 | B76: c | C76: F | D76: 1 | E76: Wheat, bran, crude | G76: Triticum aestivum | H76: 1 | I76: =(L76*17)+(P76*37)+(CB76*17)+(AH76*29)+(AD76*8) -> 1133.24 | J76: 9.89 | K76: =L76/BS76 -> 2.464342336 | L76: 15.55 | M76: 15.55 | N76: 0 | O76: 0 | P76: 4.25 | R76: 0.63 | S76: 0.637 | T76: 2.212 | V76: =W76-AD76 -> 21.71 | W76: 64.51 | Z76: 0.41 | AD76: 42.8 | AI76: 5.79 | AJ76: 73 | AK76: 10.57 | AL76: 611 | AM76: 1013 | AN76: 1182 | AO76: 2 | AP76: 7.27 | AQ76: 0.998 | AR76: 77.6 | AS76: 11.5 | AT76: 0 | AV76: 0 | AW76: 0 | AX76: 6 | BB76: 0 | BC76: 240 | BD76: 0 | BG76: 1.49000001 | BI76: 0.523 | BJ76: 0.577 | BK76: 13.578 | BM76: 1.303 | BN76: 79 | BO76: 0 | BP76: 0 | BS76: 6.309999943 | BV76: US18 | BW76: 20077 | CA76: =CB76+J76+L76+P76+AD76+AI76 -> 100 | CB76: =100-(J76+L76+P76+AI76+AD76+AH76) -> 21.72
M77: E | N77: E | BD77: GB
A78: 011041 | B78: c | C78: R | D78: 1 | E78: Wheat, sorghum, dried beans, boiled (Likhobe) | I78: =(L78*17)+(P78*37)+(CB78*17)+(AH78*29)+(AD78*8) -> 404.4610266 | J78: 73.1730038 | K78: =L78/BS78 -> 0.5863117871 | L78: 3.664448669 | M78: 3.664448669 | N78: 0 | O78: 0 | P78: 0.680608365 | Q78: 0 | R78: 0.1009980989 | S78: 0.1422718631 | T78: 0.3467870722 | U78: 0 | V78: 16.75570342 | W78: 14.15114068 | X78: 0 | Y78: 5.826045627 | Z78: 0.03897338403 | AA78: 0 | AB78: 0 | AC78: 0 | AD78: 3.631178707 | AE78: 0 | AF78: 0 | AG78: 0 | AH78: 0 | AI78: 1.913498099 | AJ78: 32.36692015 | AK78: 1.285646388 | AL78: 23.45057034 | AM78: 89.73859316 | AN78: 179.7956274 | AO78: 209.8859316 | AP78: 0.4919201521 | AQ78: 0.1933460076 | AR78: 0 | AS78: 124.9421103 | AT78: 0 | AU78: 0.002851711027 | AV78: 0 | AW78: 0 | BC78: 0 | BD78: 0 | BE78: 0 | BF78: 0 | BG78: 0.1656083641 | BH78: 0 | BI78: 0.0616539924 | BJ78: 0.02384030418 | BK78: 0.5832889734 | BM78: 0.04043726236 | BN78: 19.53422053 | BO78: 0 | BP78: 0.2851711027 | BS78: 6.25 | BV78: Recipe | CA78: =CB78+J78+L78+P78+AD78+AI78 -> 100 | CB78: =100-(J78+L78+P78+AI78+AD78+AH78) -> 16.93726236
D80: 012 BREADS
A81: 012001 | B81: c | C81: R | D81: 2 | E81: Bread, brown coated | F81: Bread, brown coated with scambled Egg, deep fried in sunflower oil | H81: 1 | I81: =(L81*17)+(P81*37)+(CB81*17)+(AH81*29)+(AD81*8) -> 1444.976744 | J81: 22.62093023 | K81: 1.662790698 | L81: 10.3255814 | M81: 3 | N81: 7.325581395 | O81: 0.2436046512 | P81: 10.52325581 | Q81: 0 | R81: 2.379593023 | S81: 3.106755814 | T81: 3.544488372 | U81: 0 | V81: 16.08139535 | W81: 0 | X81: 0 | Y81: 0 | Z81: 0.6976744186 | AA81: 0 | AB81: 0 | AC81: 0 | AD81: 2.302325581 | AE81: 0 | AF81: 0 | AG81: 0 | AH81: 0 | AI81: 3.541860465 | AJ81: 42.09302326 | AK81: 1.576744186 | AL81: 32.81395349 | AM81: 172.3488372 | AN81: 136.4883721 | AO81: 1144.534884 | AP81: 1.159302326 | AQ81: 0.1379069767 | AR81: 19.30232558 | AS81: 35.32325581 | AT81: 0 | AU81: 38.4872093 | AV81: 38.37209302 | AW81: 0 | BC81: 0 | BD81: 4.61627907 | BE81: 0 | BF81: 0 | BG81: 3.528209302 | BH81: 0 | BI81: 0.0788372093 | BJ81: 0.1660465116 | BK81: 0.5790697674 | BM81: 0.04311627907 | BN81: 20.69767442 | BO81: 1.104651163 | BP81: 0 | BS81: 6.25 | BT81: 0 | BV81: Recipe | CA81: =CB81+J81+L81+P81+AD81+AI81 -> 100 | CB81: =100-(J81+L81+P81+AI81+AD81+AH81) -> 50.68604651
A83: 012002 | B83: c | C83: F | D83: 1 | E83: Bread, brown, baked | F83: Brown, bread, baked Ingredients: brown bread flour, water, raising agent (yeast), sugar,salt, baked | H83: 1 | I83: =(L83*17)+(P83*37)+(CB83*17)+(AH83*29)+(AD83*8) -> 1026.1 | J83: 36.5 | K83: 1.4 | L83: 8.6 | M83: 8.6 | N83: 0 | O83: 0 | P83: 2 | R83: 0.38 | S83: 0.18 | T83: 0.83 | U83: tr | V83: 44.1 | Z83: 0 | AD83: 6.6 | AI83: 2 | AJ83: 55 | AK83: 1.5 | AL83: 74 | AM83: 174 | AN83: 222 | AO83: 451 | AP83: 1.4 | AQ83: 0.19 | AR83: 4 | AS83: 1.26 | AU83: 0 | AV83: 0 | AW83: 0 | BD83: 0 | BG83: 0 | BI83: 0.16 | BJ83: 0.06 | BK83: 2.6 | BM83: 0.136 | BN83: 42 | BO83: 0 | BP83: 0 | BS83: 6.25 | BV83: SA91 | BW83: 4002 | CA83: =CB83+J83+L83+P83+AD83+AI83 -> 100 | CB83: =100-(J83+L83+P83+AI83+AD83+AH83) -> 44.3
K84: GB6-40 | U84: GB6-40 | AI84: US18-18042 | AR84: GB6-40 | AV84: GB6-40 | AW84: GB6-40
A85: 012003 | B85: c | C85: R | D85: 1 | E85: Bread, brown, steamed | F85: brown bread flour, water, raising agent (yeast), sugar, salt, steamed | H85: 1 | I85: =(L85*17)+(P85*37)+(CB85*17)+(AH85*29)+(AD85*8) -> 824.6955006 | J85: 51.790609 | K85: 1.215077895 | L85: 6.967806951 | M85: 6.863492755 | N85: 0 | O85: 0 | P85: 1.101971892 | Q85: 0 | R85: 0.1650370411 | S85: 0.1159222137 | T85: 0.4902767186 | U85: 0 | V85: 34.38851033 | W85: 0.1043141954 | X85: 37.31343284 | Y85: 33.07946003 | Z85: 1.30201962 | AA85: 36.38740604 | AB85: 0.9260268003 | AC85: 0 | AD85: 0.05719577296 | AE85: 0 | AF85: 3.486218542 | AG85: 0 | AH85: 0 | AI85: 0.9640483713 | AJ85: 72.07756836 | AK85: 1.805098595 | AL85: 44.73363111 | AM85: 128.8887678 | AN85: 143.708465 | AO85: 259.990195 | AP85: 1.053055888 | AQ85: 0.1787449613 | AR85: 2.244525547 | AS85: 1034.972628 | AT85: 0 | AU85: 0 | AV85: 0 | AW85: 0 | BC85: 0 | BD85: 0 | BE85: 0 | BF85: 0 | BG85: 0.3268329883 | BH85: 0 | BI85: 0.1313476414 | BJ85: 0.03581762719 | BK85: 1.372812943 | BM85: 0.1005828522 | BN85: 17.07702364 | BO85: 5.447216472e-05 | BP85: 0.0008170824709 | BS85: 6.25 | BT85: 0 | BV85: Recipe | CA85: =CB85+J85+L85+P85+AD85+AI85 -> 100 | CB85: =100-(J85+L85+P85+AI85+AD85+AH85) -> 39.11836801
A87: 012004 | B87: c | C87: F | D87: 1 | E87: Bread, white, baked | F87: white bread flour, water, raising agent (yeast), sugar,salt, baked | H87: 1 | I87: =(L87*17)+(P87*37)+(CB87*17)+(AH87*29)+(AD87*8) -> 1070.6 | J87: 35.4 | K87: 1.4 | L87: 8.5 | M87: 8.5 | N87: 0 | O87: 0 | P87: 1.8 | R87: 0.32 | S87: 0.15 | T87: 0.72 | U87: tr | V87: 49.3 | Z87: 0 | AD87: 3.1 | AI87: 2.1 | AJ87: 56 | AK87: 1.2 | AL87: 29 | AM87: 103 | AN87: 138 | AO87: 490 | AP87: 1 | AQ87: 0.3 | AR87: 6 | AS87: 0.46 | AU87: 0 | BD87: 0 | BG87: 0 | BI87: 0.15 | BJ87: 0.04 | BK87: 1.2 | BM87: 0.072 | BN87: 30 | BO87: 0 | BP87: 0 | BS87: 6.25 | BV87: SA91 | BW87: 4001 | CA87: =CB87+J87+L87+P87+AD87+AI87 -> 100 | CB87: =100-(J87+L87+P87+AI87+AD87+AH87) -> 49.1
K88: GB6-53 | U88: GB6-53 | AI88: US18-18070 | AR88: GB6-53
A89: 012005 | B89: c | C89: R | D89: 1 | E89: Bread, white, steamed | F89: white bread flour, water, raising agent (yeast), sugar,salt, steamed | H89: 1 | I89: =(L89*17)+(P89*37)+(CB89*17)+(AH89*29)+(AD89*8) -> 818.1588408 | J89: 51.790609 | K89: 1.117027999 | L89: 6.368613139 | M89: 6.264298943 | N89: 0 | O89: 0 | P89: 0.775138904 | Q89: 0 | R89: 0.1105648763 | S89: 0.06145004902 | T89: 0.3268602244 | U89: 0 | V89: 37.75588052 | W89: 0.1043141954 | X89: 41.01754004 | Y89: 36.59539066 | Z89: 1.146384864 | AA89: 40.25492973 | AB89: 0.7626103061 | AC89: 0 | AD89: 0.05719577296 | AE89: 0 | AF89: 1.688637106 | AG89: 0 | AH89: 0 | AI89: 0.9640483713 | AJ89: 77.52478483 | AK89: 1.205904783 | AL89: 18.0422704 | AM89: 68.96938664 | AN89: 78.34186731 | AO89: 259.4454734 | AP89: 0.5083342412 | AQ89: 0.1024839307 | AR89: 1.6998039 | AS89: 381.3066511 | AT89: 0 | AU89: 0 | AV89: 0 | AW89: 0 | BC89: 0 | BD89: 0 | BE89: 0 | BF89: 0 | BG89: 0.1634164942 | BH89: 0 | BI89: 0.1084693322 | BJ89: 0.02274430766 | BK89: 0.7191469659 | BM89: 0.05155790391 | BN89: 11.62980717 | BO89: 5.447216472e-05 | BP89: 0.0008170824709 | BS89: 6.25 | BV89: Recipe | CA89: =CB89+J89+L89+P89+AD89+AI89 -> 100 | CB89: =100-(J89+L89+P89+AI89+AD89+AH89) -> 40.04439481
A91: 012006 | C91: F | D91: 3 | E91: Rusks, commercial, bran | BS91: 6.25
A93: 012007 | C93: F | D93: 3 | E93: Rusks, commercial, buttermilk | BS93: 6.25
D95: 013 PASTA
A96: 013003 | B96: c | C96: F | D96: 1 | E96: Macaroni, raw | H96: 1 | I96: =(L96*17)+(P96*37)+(CB96*17)+(AH96*29)+(AD96*8) -> 1527.34 | J96: 9.7 | K96: 2.11 | L96: 12 | M96: 12 | N96: 0 | O96: 0 | P96: 1.8 | R96: 0.3 | S96: 0.1 | T96: 0.8 | U96: tr | V96: =X96/1.1 -> 68.90909091 | X96: 75.8 | Y96: =AA96/1.1 -> 66.90909091 | Z96: =AB96/1.05 -> 2.095238095 | AA96: 73.6 | AB96: 2.2 | AD96: 3.2 | AF96: 3.1 | AI96: 0.88 | AJ96: 25 | AK96: 1.6 | AL96: 53 | AM96: 180 | AN96: 230 | AO96: 11 | AP96: 1.5 | AQ96: 0.3 | AR96: 20 | AS96: 0.9 | AV96: 0 | AW96: 0 | BE96: 0 | BG96: tr | BI96: 0.18 | BJ96: 0.05 | BK96: 2.9 | BM96: 0.1 | BN96: 23 | BO96: 0 | BP96: 0 | BS96: 6.25 | BV96: GB6 | BW96: 26 | BZ96: =J96+L96+P96+X96+AF96+AI96 -> 103.28 | CA96: =CB96+J96+L96+P96+AD96+AI96 -> 100 | CB96: =100-(J96+L96+P96+AI96+AD96+AH96) -> 72.42
M97: E | N97: E | V97: C | Y97: C | Z97: C | AD97: US-20120 | AI97: US-20099
A98: 013002 | B98: c | C98: F | D98: 1 | E98: Macaroni, boiled | H98: 1 | I98: =(L98*17)+(P98*37)+(CB98*17)+(AH98*29)+(AD98*8) -> 361.51 | J98: 78.1 | K98: 2.11 | L98: 12 | M98: 12 | N98: 0 | O98: 0 | P98: 0.5 | R98: 0.1 | S98: tr | T98: 0.2 | U98: tr | V98: =X98/1.1 -> 16.81818182 | X98: 18.5 | Y98: =AA98/1.1 -> 16.54545455 | Z98: =AB98/1.05 -> 0.2857142857 | AA98: 18.2 | AB98: 0.3 | AD98: 1.8 | AF98: 0.9 | AI98: 0.27 | AJ98: 6 | AK98: 0.5 | AL98: 14 | AM98: 42 | AN98: 25 | AO98: 1 | AP98: 0.5 | AQ98: 0.09 | AR98: 5 | AS98: 0.3 | AV98: 0 | AW98: 0 | BE98: 0 | BG98: tr | BI98: 0.03 | BJ98: tr | BK98: 0.5 | BM98: 0.01 | BN98: 3 | BO98: 0 | BP98: 0 | BS98: 6.25 | BV98: GB6 | BW98: 27 | BZ98: =J98+L98+P98+X98+AF98+AI98 -> 110.27 | CA98: =CB98+J98+L98+P98+AD98+AI98 -> 100 | CB98: =100-(J98+L98+P98+AI98+AD98+AH98) -> 7.33
M99: E | N99: E | V99: C | Y99: C | Z99: C | AD99: US-20121 | AI99: US-20121
A100: 013001 | C100: R | D100: 3 | E100: Macaroni salad (polony, cheese, sauce) | BS100: 6.25 | BV100: Recipe
A102: 013004 | B102: c | C102: F | D102: 2 | E102: Noodles, egg, raw | H102: 1 | I102: =(L102*17)+(P102*37)+(CB102*17)+(AH102*29)+(AD102*8) -> 1690.26 | J102: 9.1 | K102: 2.12 | L102: 12.1 | M102: 12.1 | N102: 0 | O102: 0.03 | P102: 8.2 | R102: 2.3 | S102: 3.5 | T102: 0.9 | U102: tr | V102: 65.18181818 | X102: 71.7 | Y102: 63.45454545 | Z102: 1.80952381 | AA102: 69.8 | AB102: 1.9 | AF102: 2.9 | AI102: 1.12 | AJ102: 28 | AK102: 1.5 | AL102: 43 | AM102: 200 | AN102: 260 | AO102: 180 | AP102: 1.3 | AQ102: 0.24 | AS102: 800 | AV102: 37 | AW102: 0 | BE102: 0.3 | BG102: 0.3700000048 | BI102: 0.26 | BJ102: 0.1 | BK102: 2.2 | BM102: 0.1 | BN102: 29 | BO102: tr | BP102: 0 | BS102: 6.25 | BV102: GB6 | BW102: 29 | CA102: =CB102+J102+L102+P102+AD102+AI102 -> 100 | CB102: =100-(J102+L102+P102+AI102+AD102+AH102) -> 69.48
M103: E | N103: E | V103: C | Y103: C | Z103: C | AI103: US18-20109 | BG103: US18-20109
A104: 013005 | B104: c | C104: R | D104: 2 | E104: Noodles, egg, boiled | H104: 1 | I104: =(L104*17)+(P104*37)+(CB104*17)+(AH104*29)+(AD104*8) -> 149.580531 | J104: 91.53168142 | K104: 0.1876106195 | L104: 1.07079646 | M104: 1.07079646 | N104: 0 | O104: 2.654867257 | P104: 0.7256637168 | Q104: 0 | R104: 0.203539823 | S104: 0.3097345133 | T104: 0.0796460177 | U104: 0 | V104: 5.768302494 | W104: 0 | X104: 6.345132743 | Y104: 5.6154465 | Z104: 0.1601348504 | AA104: 6.17699115 | AB104: 0.1681415929 | AC104: 0 | AD104: 0 | AE104: 0 | AF104: 0.2566371681 | AG104: 0 | AH104: 0 | AI104: 0.5231858407 | AJ104: 3.92920354 | AK104: 0.1338053097 | AL104: 4.782300885 | AM104: 17.70265487 | AN104: 23.32389381 | AO104: 156.460177 | AP104: 0.1153982301 | AQ104: 0.02647787611 | AR104: 0 | AS104: 70.79646018 | AT104: 0 | AU104: 0 | AV104: 3.274336283 | AW104: 0 | BD104: 0 | BE104: 0.02654867257 | BF104: 0 | BG104: 0.03274336325 | BI104: 0.01380530973 | BJ104: 0.007433628319 | BK104: 0.1168141593 | BM104: 0.005309734513 | BN104: 1.283185841 | BO104: 0 | BP104: 0 | BS104: 6.25 | BV104: Recipe | CA104: =CB104+J104+L104+P104+AD104+AI104 -> 100 | CB104: =100-(J104+L104+P104+AI104+AD104+AH104) -> 6.148672566
A106: 013007 | B106: c | C106: F | D106: 1 | E106: Spaghetti, white, raw | H106: 1 | I106: =(L106*17)+(P106*37)+(CB106*17)+(AH106*29)+(AD106*8) -> 1525.64 | J106: 9.8 | K106: 2.11 | L106: 12 | M106: 12 | N106: 0 | O106: 0 | P106: 1.8 | R106: 0.2 | S106: 0.2 | T106: 0.8 | U106: tr | V106: =X106/1.1 -> 67.36363636 | X106: 74.1 | Y106: =AA106/1.1 -> 64.36363636 | Z106: =AB106/1.05 -> 3.142857143 | AA106: 70.8 | AB106: 3.3 | AD106: 3.2 | AF106: 2.9 | AI106: 0.88 | AJ106: 25 | AK106: 2.1 | AL106: 56 | AM106: 190 | AN106: 250 | AO106: 3 | AP106: 1.5 | AQ106: 0.32 | AR106: 17 | AS106: 0.9 | AT106: 0 | AV106: 0 | AW106: 0 | BD106: 0 | BE106: 0 | BG106: tr | BI106: 0.22 | BJ106: 0.03 | BK106: 3.1 | BM106: 0.17 | BN106: 23 | BO106: 0 | BP106: 0 | BS106: 6.25 | BV106: GB6 | BW106: 35 | BZ106: =J106+L106+P106+X106+AF106+AI106 -> 101.48 | CA106: =CB106+J106+L106+P106+AD106+AI106 -> 100 | CB106: =100-(J106+L106+P106+AI106+AD106+AH106) -> 72.32
M107: E | N107: E | V107: C | Y107: C | Z107: C | AD107: US-20120 | AI107: US-20120 | AT107: C | BD107: E
A108: 013008 | B108: c | C108: F | D108: 1 | E108: Spaghetti, white, boiled | H108: 1 | I108: =(L108*17)+(P108*37)+(CB108*17)+(AH108*29)+(AD108*8) -> 438.61 | J108: 73.8 | K108: 0.63 | L108: 3.6 | M108: 3.6 | N108: 0 | O108: 0 | P108: 0.7 | R108: 0.1 | S108: 0.1 | T108: 0.3 | U108: tr | V108: =X108/1.1 -> 20.18181818 | X108: 22.2 | Y108: =AA108/1.1 -> 19.72727273 | Z108: =AB108/1.05 -> 0.4761904762 | AA108: 21.7 | AB108: 0.5 | AD108: 1.8 | AF108: 1.2 | AI108: 0.27 | AJ108: 7 | AK108: 0.5 | AL108: 15 | AM108: 44 | AN108: 45 | AO108: 1 | AP108: 0.5 | AQ108: 0.1 | AR108: 5 | AS108: 0.3 | AT108: 0 | AV108: 0 | AW108: 0 | BD108: 0 | BE108: 0 | BG108: tr | BI108: 0.01 | BJ108: 0.01 | BK108: 0.5 | BM108: 0.02 | BN108: 7 | BO108: 0 | BP108: 0 | BS108: 6.25 | BV108: GB6 | BW108: 36 | BZ108: =J108+L108+P108+X108+AF108+AI108 -> 101.77 | CA108: =CB108+J108+L108+P108+AD108+AI108 -> 100 | CB108: =100-(J108+L108+P108+AI108+AD108+AH108) -> 19.83
M109: E | N109: E | V109: C | Y109: C | Z109: C | AD109: US-20121 | AI109: US-20121 | AN109: US-20121 | AO109: US-20121 | AT109: C | BD109: E
A110: 013006 | B110: c | C110: R | D110: 2 | E110: Spaghetti bolognaise | H110: 1 | I110: =(L110*17)+(P110*37)+(CB110*17)+(AH110*29)+(AD110*8) -> 284.4705882 | J110: 85.64588235 | K110: 0.5211764706 | L110: 3.143137255 | M110: 1.211764706 | N110: 1.931372549 | O110: 0.005882352941 | P110: 2.750980392 | Q110: 0 | R110: 0.8210784314 | S110: 0.8789215686 | T110: 0.7594117647 | U110: 0.07843137255 | V110: 6.831729055 | W110: 0 | X110: 7.264705882 | Y110: 6.310160428 | Z110: 0.4845938375 | AA110: 6.941176471 | AB110: 0.3235294118 | AC110: 0 | AD110: 0.3647058824 | AE110: 0 | AF110: 0.3156862745 | AG110: 0 | AH110: 0 | AI110: 0.6639215686 | AJ110: 5.68627451 | AK110: 0.3580392157 | AL110: 8.690196078 | AM110: 35.45490196 | AN110: 58.40784314 | AO110: 164.2156863 | AP110: 0.5390196078 | AQ110: 0.04129411765 | AR110: 2.37254902 | AS110: 5.578431373 | AT110: 0 | AU110: 0.7941176471 | AV110: 0 | AW110: 4.529411765 | BD110: 0 | BE110: 0.06862745098 | BF110: 0 | BG110: 0.4176470588 | BH110: 0 | BI110: 0.01729411765 | BJ110: 0.012 | BK110: 0.5352941176 | BM110: 0.03423529412 | BN110: 2.009803922 | BO110: 0.1960784314 | BP110: 0.5098039216 | BS110: 6.25 | BV110: Recipe | CA110: =CB110+J110+L110+P110+AD110+AI110 -> 100 | CB110: =100-(J110+L110+P110+AI110+AD110+AH110) -> 7.431372549
A112: 013009 | C112: F | D112: 3 | E112: Spaghetti, canned in tomato sauce | BS112: 6.25 | BV112: GB6 | BW112: 39
D114: 014 CAKES AND BISCUITS
A115: 014001 | C115: F | D115: 3 | E115: Biscuits, dry | F115: Biscuits, dry | BS115: 6.25
A117: 014002 | C117: F | D117: 3 | E117: Cake, chocolate | F117: Cake, chocolate | BS117: 6.25
A119: 014003 | C119: F | D119: 3 | E119: Cake, fruit, rich | F119: Cake, fruit | BS119: 6.25
A121: 014004 | B121: c | C121: F | D121: 2 | E121: Cake, madeira | F121: Cake, madeira | H121: 1 | I121: =(L121*17)+(P121*37)+(CB121*17)+(AH121*29)+(AD121*8) -> 1638.2 | J121: 20.2 | K121: 0.94 | L121: 5.4 | M121: 5.4 | N121: 0 | P121: 15.1 | R121: 8.4 | S121: 3.8 | T121: 1.6 | U121: 0.7 | V121: =X121/1.1 -> 53.09090909 | X121: 58.4 | Y121: =AA121/1.1 -> 19.90909091 | Z121: =AB121/1.05 -> 34.76190476 | AA121: 21.9 | AB121: 36.5 | AF121: 0.9 | AI121: 1.2 | AJ121: 42 | AK121: 1.1 | AL121: 12 | AM121: 120 | AN121: 120 | AO121: 380 | AP121: 0.5 | AQ121: 0.1 | BG121: 0.86 | BI121: 0.06 | BJ121: 0.11 | BK121: 0.5 | BO121: tr | BP121: 0 | BS121: 6.25 | BV121: GB6 | BW121: 138 | CA121: =CB121+J121+L121+P121+AD121+AI121 -> 100 | CB121: =100-(J121+L121+P121+AI121+AD121+AH121) -> 58.1
M122: E | N122: E | AI122: US18-18133
A123: 014005 | B123: c | C123: F | D123: 2 | E123: Cake, sponge | F123: Cake, sponge | H123: 1 | I123: =(L123*17)+(P123*37)+(CB123*17)+(AH123*29)+(AD123*8) -> 1557.5 | J123: 15.2 | K123: 1.05 | L123: 6.3 | M123: 6.3 | N123: 0 | O123: 0.112 | P123: 6.9 | R123: 5.8 | S123: 8.9 | T123: 10.9 | U123: tr | V123: =X123/1.1 -> 48.18181818 | X123: 53 | AA123: 22 | AB123: 30.4 | AF123: 0.9 | AI123: 1.3 | AJ123: 69 | AK123: 1.3 | AL123: 10 | AM123: 156 | AN123: 83 | AO123: 326 | AP123: 0.6 | AQ123: 0.11 | AR123: 4 | AS123: 200 | AV123: 247 | AW123: 100 | BE123: 2.8 | BG123: 9.7 | BI123: 0.09 | BJ123: 0.12 | BK123: 0.5 | BM123: 0.06 | BN123: 10 | BO123: 0.7 | BP123: 0 | BS123: 6.25 | BV123: GB6 | BW123: 142 | CA123: =CB123+J123+L123+P123+AD123+AI123 -> 100 | CB123: =100-(J123+L123+P123+AI123+AD123+AH123) -> 70.3
M124: E | N124: E | AI124: US18-18134
A125: 014006 | B125: c | C125: R | D125: 2 | E125: Fat cakes, homemade, brown | F125: Fat cakes, homemade, brown, deep fried in sunflower oil | H125: 1 | I125: =(L125*17)+(P125*37)+(CB125*17)+(AH125*29)+(AD125*8) -> 2540.414933 | J125: 17.7783984 | K125: 0.6356910801 | L125: 3.645340553 | M125: 3.5907666 | N125: 0 | O125: 0 | P125: 57.57281277 | Q125: 0 | R125: 7.296373611 | S125: 10.64485893 | T125: 36.85951838 | U125: 0 | V125: 17.9980699 | W125: 0.05457395269 | X125: 19.52123112 | Y125: 17.30614783 | Z125: 0.6882438356 | AA125: 19.03676261 | AB125: 0.4844685095 | AC125: 0 | AD125: 0.029923055 | AE125: 0 | AF125: 1.823881448 | AG125: 0 | AH125: 0 | AI125: 0.50230835 | AJ125: 37.51496153 | AK125: 0.9368481049 | AL125: 23.36905101 | AM125: 67.38728983 | AN125: 74.40638359 | AO125: 135.9526931 | AP125: 0.5509261898 | AQ125: 0.09342262753 | AR125: 1.174266173 | AS125: 541.4655885 | AT125: 0 | AU125: 1.709888857 | AV125: 0 | AW125: 0 | AX125: 0 | AY125: 0 | AZ125: 0 | BA125: 0 | BB125: 0 | BC125: 0 | BD125: 0 | BE125: 0 | BF125: 0 | BG125: 22.52493588 | BH125: 0 | BI125: 0.06870333428 | BJ125: 0.01869763465 | BK125: 0.7179395839 | BM125: 0.05262182958 | BN125: 8.934169279 | BO125: 2.849814762e-05 | BP125: 0.0004274722143 | BS125: 6.25 | BV125: Recipe | CA125: =CB125+J125+L125+P125+AD125+AI125 -> 100 | CB125: =100-(J125+L125+P125+AI125+AD125+AH125) -> 20.47121687
A127: 014007 | B127: c | C127: R | D127: 1 | E127: Fat cakes, homemade, white | F127: Fat cakes, homemade, white, deep fried in sunflower oil | H127: 1 | I127: =(L127*17)+(P127*37)+(CB127*17)+(AH127*29)+(AD127*8) -> 2536.898262 | J127: 17.78204617 | K127: 0.5843944144 | L127: 3.331860929 | M127: 3.277286976 | N127: 0 | O127: 0 | P127: 57.40182388 | Q127: 0 | R127: 7.267875463 | S127: 10.61636079 | T127: 36.77402394 | U127: 0 | V127: 19.75270603 | W127: 0.05457395269 | X127: 21.45910516 | Y127: 19.14557372 | Z127: 0.5997530161 | AA127: 21.06013109 | AB127: 0.3989740667 | AC127: 0 | AD127: 0.029923055 | AE127: 0 | AF127: 0.8834425762 | AG127: 0 | AH127: 0 | AI127: 0.5043602166 | AJ127: 40.55856369 | AK127: 0.630891992 | AL127: 9.439156455 | AM127: 36.08264463 | AN127: 40.98603591 | AO127: 135.7338273 | AP127: 0.2659447136 | AQ127: 0.05361641493 | AR127: 0.8892846965 | AS127: 199.487817 | AT127: 0 | AU127: 1.709888857 | AV127: 0 | AW127: 0 | AX127: 0 | AY127: 0 | AZ127: 0 | BA127: 0 | BB127: 0 | BC127: 0 | BD127: 0 | BE127: 0 | BF127: 0 | BG127: 22.43944144 | BH127: 0 | BI127: 0.05674779139 | BJ127: 0.01189911656 | BK127: 0.3762353947 | BM127: 0.02697349672 | BN127: 6.084354517 | BO127: 2.849814762e-05 | BP127: 0.0004274722143 | BS127: 6.25 | BV127: Recipe | CA127: =CB127+J127+L127+P127+AD127+AI127 -> 100 | CB127: =100-(J127+L127+P127+AI127+AD127+AH127) -> 20.94998575
A129: 014008 | C129: F | D129: 3 | E129: Pastry, flaky, butter | F129: Pastry, flaky, butter | BS129: 6.25
A131: 014009 | B131: c | C131: R | D131: 2 | E131: Scones, plain | F131: Scones, plain | H131: 1 | I131: =(L131*17)+(P131*37)+(CB131*17)+(AH131*29)+(AD131*8) -> 1327.806233 | J131: 32.6598916 | K131: 0.1693766938 | L131: 6.490514905 | M131: 5.365853659 | N131: 1.124661247 | O131: 0.003387533875 | P131: 12.83197832 | Q131: 0 | R131: 3.302168022 | S131: 6.044715447 | T131: 2.609078591 | U131: 0 | V131: 43.04607046 | W131: 0 | X131: 0 | Y131: 0 | Z131: 4.238482385 | AA131: 0 | AB131: 0 | AC131: 0 | AD131: 1.463414634 | AE131: 0 | AF131: 0 | AG131: 0 | AH131: 0 | AI131: 3.555555556 | AJ131: 226.0162602 | AK131: 0.9952574526 | AL131: 15.4200542 | AM131: 352.4864499 | AN131: 128.1504065 | AO131: 1179.336043 | AP131: 0.4654471545 | AQ131: 0.06517615176 | AR131: 0.6775067751 | AS131: 543.3604336 | AT131: 0 | AU131: 115.1761518 | AV131: 12.53387534 | AW131: 6.436314363 | AX131: 0 | AY131: 0 | AZ131: 0 | BA131: 0 | BB131: 0 | BC131: 0 | BD131: 0.6876693767 | BE131: 0 | BF131: 0 | BG131: 2.082113821 | BH131: 0 | BI131: 0.0520596206 | BJ131: 0.06058265583 | BK131: 0.3977642276 | BM131: 0.02718495935 | BN131: 12.22899729 | BO131: 0.135501355 | BP131: 0.3387533875 | BS131: 6.25 | BT131: 0 | BV131: Recipe | CA131: =CB131+J131+L131+P131+AD131+AI131 -> 100 | CB131: =100-(J131+L131+P131+AI131+AD131+AH131) -> 42.99864499
D133: 015 BREAKFAST CEREALS
A134: 015001 | B134: c | C134: F | D134: 1 | E134: Breakfast cereal, all bran flakes | F134: Breakfast cereals, All bran flakes | H134: 1 | I134: =(L134*17)+(P134*37)+(CB134*17)+(AH134*29)+(AD134*8) -> 1402 | J134: 3 | K134: 2.06 | L134: 12.7 | M134: 12.7 | N134: 0 | O134: 0 | P134: 1.3 | R134: 0.22 | S134: 0.17 | T134: 0.68 | U134: tr | V134: 57.5 | W134: 0 | Y134: 46.9 | Z134: 10.6 | AD134: 19 | AI134: 6 | AJ134: 50 | AK134: 14 | AL134: 182 | AM134: 480 | AN134: 498 | AO134: 804 | AP134: 4 | AQ134: 1 | AR134: 4 | AU134: 0 | AV134: 0 | AW134: 0 | AX134: 0 | AY134: 0 | AZ134: 0 | BB134: 0 | BC134: 0 | BD134: 2.8 | BG134: 2.2 | BI134: 1.33 | BJ134: 1.59 | BK134: 17.7 | BM134: 1.8 | BN134: 250 | BO134: 2 | BP134: 0 | BS134: 6.25 | BV134: SA91 | BW134: 4035 | CA134: =CB134+J134+L134+P134+AD134+AI134 -> 100 | CB134: =100-(J134+L134+P134+AI134+AD134+AH134) -> 58
K135: GB6-78 | U135: GB6-78 | Y135: C | AI135: US18-08028 | AR135: GB6-78 | AU135: E | AW135: GB6-78 | AX135: US18-08028 | AY135: US18-08028 | AZ135: US18-08028 | BB135: US18-08028 | BC135: US18-08028
A136: 015002 | B136: c | C136: F | D136: 1 | E136: Breakfast cereal, plain corn flakes | F136: Breakfast cereals, plain corn flakes | H136: 1 | I136: =(L136*17)+(P136*37)+(CB136*17)+(AH136*29)+(AD136*8) -> 1590.49 | J136: 3 | K136: 1.26 | L136: 7.7 | M136: 7.7 | N136: 0 | O136: 0 | P136: 0.2 | R136: 0.03 | S136: 0.06 | T136: 0.1 | U136: tr | V136: 82.9 | W136: 0 | Y136: 76.6 | Z136: 6.3 | AD136: 3.3 | AI136: 1.93 | AJ136: 11 | AK136: 12 | AL136: 13 | AM136: 51 | AN136: 106 | AO136: 1211 | AP136: 0.2 | AQ136: 0.03 | AR136: 5 | AS136: 0.08 | AU136: 0 | AV136: 0 | AW136: 0 | BD136: 2.8 | BG136: 0.4 | BI136: 1.33 | BJ136: 1.59 | BK136: 17.7 | BM136: 1.8 | BN136: 250 | BO136: 2 | BP136: 0 | BS136: 6.25 | BV136: SA91 | BW136: 4036 | CA136: =CB136+J136+L136+P136+AD136+AI136 -> 100 | CB136: =100-(J136+L136+P136+AI136+AD136+AH136) -> 83.87
K137: GB6-83 | U137: GB6-83 | Y137: C | AI137: US18-08020 | AP137: GB6-83 | AQ137: GB6-83 | AR137: GB6-83 | AW137: GB6-83
A138: 015003 | B138: c | C138: F | D138: 1 | E138: Breakfast cereal, rice crispies | F138: Breakfast cereals, rice cripies | H138: 1 | I138: =(L138*17)+(P138*37)+(CB138*17)+(AH138*29)+(AD138*8) -> 1602.26 | J138: 3 | K138: 1.03 | L138: 6.6 | M138: 6.6 | N138: 0 | O138: 0 | P138: 0.2 | R138: 0.05 | S138: 0.04 | T138: 0.04 | U138: tr | V138: 86.8 | W138: 0 | Y138: 78.3 | Z138: 8.5 | AD138: 0.5 | AI138: 2.72 | AJ138: 11 | AK138: 11 | AL138: 37 | AM138: 141 | AN138: 100 | AO138: 1323 | AP138: 2 | AQ138: 0.25 | AR138: 2 | AS138: 0.99 | AU138: 0 | AV138: 0 | AW138: 0 | AX138: 0 | AY138: 0 | AZ138: 0 | BD138: 2.8 | BG138: 0.6 | BI138: 1.33 | BJ138: 1.59 | BK138: 17.7 | BM138: 1.8 | BN138: 250 | BO138: 2 | BP138: 0 | BS138: 6.25 | BV138: SA91 | BW138: 4046 | CA138: =CB138+J138+L138+P138+AD138+AI138 -> 100 | CB138: =100-(J138+L138+P138+AI138+AD138+AH138) -> 86.98
K139: GB6 | U139: GB6-95 | Y139: C | AI139: US-08065 | AR139: GB6-95 | AW139: GB6-95 | AX139: US18-08065 | AY139: US18-08065 | AZ139: US18-08065
A140: 015004 | B140: c | C140: F | D140: 1 | E140: Breakfast cereal, weetbix | F140: Breakfast cereals, Weetbix | H140: 1 | I140: =(L140*17)+(P140*37)+(CB140*17)+(AH140*29)+(AD140*8) -> 1378.1 | J140: 9 | K140: 1.8 | L140: 11.6 | M140: 11.6 | N140: 0 | O140: 0 | P140: 2.1 | R140: 0.27 | S140: 0.31 | T140: 0.94 | U140: tr | V140: 63.2 | W140: 0 | Y140: 57 | Z140: 6.2 | AD140: 12.1 | AI140: 6 | AJ140: 34 | AK140: 5.8 | AL140: 116 | AM140: 280 | AN140: 357 | AO140: 165 | AP140: 1.93 | AQ140: 0.52 | AR140: 2 | AU140: 0 | AV140: 0 | AW140: 0 | BD140: 0 | BG140: 1 | BI140: 0.68 | BJ140: 0.97 | BK140: 9.7 | BM140: 0.213 | BN140: 48 | BO140: 0 | BP140: 0 | BS140: 6.25 | BV140: SA91 | BW140: 4037 | CA140: =CB140+J140+L140+P140+AD140+AI140 -> 100 | CB140: =100-(J140+L140+P140+AI140+AD140+AH140) -> 59.2
K141: GB6-102 | U141: GB6-102 | Y141: C | AI141: US18-08028 | AR141: GB6-102 | AW141: GB6-102
D142: 02 MEAT, POULTRY, FISH AND THEIR PRODUCTS
A143: 020010 | B143: c | C143: F | D143: 1 | E143: Beef, fatty, raw | G143: Bos bovis | H143: 1 | I143: =(L143*17)+(P143*37)+(CB143*17)+(AH143*29)+(AD143*8) -> 856.9 | J143: 65.4 | K143: 3.08 | L143: 19.2 | M143: 0 | N143: 19.2 | O143: 0.076 | P143: 14.2 | R143: 5.95 | S143: 5.29 | T143: 0.64 | V143: 0 | Y143: 0 | Z143: 0 | AD143: 0 | AI143: 0.9 | AJ143: 13 | AK143: 0.7 | AL143: 19 | AM143: 164 | AN143: 274 | AO143: 85 | AP143: 3.42 | AQ143: 0.32 | AR143: 8.6 | AS143: 17 | AU143: 0 | AV143: 0 | AW143: 0 | BD143: 0.62 | BG143: 0.16 | BI143: 0.13 | BJ143: 0.08 | BK143: 5.4 | BM143: 0.212 | BN143: 10 | BO143: 1 | BP143: 0 | BS143: 6.25 | BV143: SA99 | BW143: 4360 | CB143: =100-(J143+L143+P143+AI143+AD143+AH143) -> 0.3
M144: E | N144: E
